Workbook

Sheet HOME
A1: DĚVČATA
B9: DISCIPLÍNY

Sheet TVOJE
B2: 6.A | E2: 6.B | H2: 7.A | K2: 7.B | O2: 8.A | R2: 9.A | U2: 9.B

Sheet TVOJE2
D3: výkon | F3: místo | G3: body | I3: 19 - 20 | J3: 18 - 19 | K3: 17 - 18
C4: 60 m
C6: 300 m
C8: 800 m
C10: dálka
C12: výška
C14: míček
C16: koule
C18: člunek
C20: lehsed
C22: odbíjení
C24: plavání
C26: šplh
C28: švihadlo
C30: z místa

Sheet FOTO
B2: PRO ZOBRAZENÍ FOTOGRAFIÍ JE TŘEBA PŘÍSTUP K INTERNETU
E5: DALŠÍ SPORTOVNÍ AKCE
B7: 2020 | C7: VYHLÁŠENÍ SE NEUSKUTEČNILO | E7: 10.12.2019 OF FLORBAL STARŠÍ ŽÁCI | F7: 13.11.2019 OF PLAVÁNÍ JILEMNICE
E8: 19.12.2019 OF FLORBAL ML.ŽÁCI JIL. | F8: 25.9.2019 JILEMNICKÉ ŠTAFETY
E9: 24. 9.2019 OF ČTYŘBOJ TURNOV
B11: 2019 | C11: VYHLÁŠENÍ SPORTOVCE ŠKOLY 13. ROČNÍK | E11: 6. 12. 2018 OF FLORBAL 6.-7. ROČ | F11: 14.11.2018 OF PLAVÁNÍ JILEMNICE
E12: 26. 9.2018 OF ČTYŘBOJ TURNOV
B13: 2018 | C13: VYHLÁŠENÍ SPORTOVCE ŠKOLY 12. ROČNÍK
B15: 2017 | C15: VYHLÁŠENÍ SPORTOVCE ŠKOLY 11. ROČNÍK
B17: 2016 | C17: VYHLÁŠENÍ SPORTOVCE ŠKOLY 10. ROČNÍK | E17: 11. 5. 2016 POHÁR ROZHLASU TURNOV
C20: průběžně budu přídávat další

Sheet D15
C1: T O P 1 5 | S1: stav k | U1: =TODAY() -> 2021-06-28
F3: 60 m | G3: 300m | H3: 800m | I3: dálka | J3: výška | K3: míček | L3: koule | M3: člunek | N3: lehsed | O3: odbíjení | P3: plavání | Q3: šplh | R3: švihadlo | S3: z místa | T3: REPRE | U3: CELKEM
A5: 1. | B5: =B35 -> ERBENOVÁ | C5: Sára | D5: 6.A | F5: 645.3139553 | G5: 0 | H5: 0 | I5: 570.392 | J5: 0 | K5: 321.5 | L5: 325.3333333 | M5: 0 | N5: 541.93 | O5: 0 | P5: 0 | Q5: 0 | R5: 174.5 | S5: 454.2275732 | T5: 0 | U5: 3033.196862
A6: 2. | B6: HOFMANOVÁ | C6: Nicol | D6: 6.A | F6: 625.2273174 | G6: 491.2991107 | H6: 0 | I6: 646.908 | J6: 0 | K6: 285.1 | L6: 419.5555556 | M6: 606.7977669 | N6: 389.14 | O6: 0 | P6: 0 | Q6: 0 | R6: 318.25 | S6: 670.631728 | T6: 0 | U6: 4452.909479
A7: 3. | B7: HOLEŠOVSKÁ | C7: Aneta | D7: 6.A | F7: 683.1197966 | G7: 0 | H7: 279.5310145 | I7: 622.562 | J7: 0 | K7: 414.32 | L7: 0 | M7: 0 | N7: 0 | O7: 0 | P7: 0 | Q7: 0 | R7: 0 | S7: 0 | T7: 0 | U7: 1999.532811
A8: 4. | B8: HOLUBCOVÁ | C8: Alena | D8: 6.A | F8: 0 | G8: 687.0880805 | H8: 0 | I8: 634.735 | J8: 0 | K8: 530.8 | L8: 574.2222222 | M8: 680.4288819 | N8: 0 | O8: 0 | P8: 0 | Q8: 0 | R8: 0 | S8: 694.1539188 | T8: 0 | U8: 3801.428103
A9: 5. | B9: KOHOUTOVÁ | C9: Anna | D9: 6.A | F9: 556.5564308 | G9: 420.7536823 | H9: 0 | I9: 525.178 | J9: 0 | K9: 239.6 | L9: 272.8888889 | M9: 539.8369847 | N9: 0 | O9: 0 | P9: 0 | Q9: 0 | R9: 0 | S9: 0 | T9: 0 | U9: 2554.813987
A10: 6. | B10: KRAUSOVÁ | C10: Anežka | D10: 6.A | F10: 635.7164917 | G10: 619.1152056 | H10: 0 | I10: 0 | J10: 0 | K10: 0 | L10: 0 | M10: 638.0912487 | N10: 528.04 | O10: 0 | P10: 0 | Q10: 0 | R10: 0 | S10: 694.1539188 | T10: 0 | U10: 3115.116865
A11: 7. | B11: KUŽELOVÁ | C11: Apoléna | D11: 6.A | F11: 692.0021691 | G11: 0 | H11: 517.1215266 | I11: 606.911 | J11: 0 | K11: 337.88 | L11: 0 | M11: 0 | N11: 0 | O11: 0 | P11: 0 | Q11: 0 | R11: 0 | S11: 0 | T11: 0 | U11: 2153.914696
A12: 8. | B12: MORÁVKOVÁ | C12: Lucie | D12: 6.A | F12: 645.3139553 | G12: 0 | H12: 446.6865305 | I12: 513.005 | J12: 0 | K12: 383.38 | L12: 0 | M12: 0 | N12: 625.27 | O12: 0 | P12: 0 | Q12: 0 | R12: 493.25 | S12: 0 | T12: 0 | U12: 3106.905486
A13: 9. | B13: SKLENÁROVÁ | C13: Eliška | D13: 6.A | F13: 0 | G13: 474.6279096 | H13: 0 | I13: 0 | J13: 0 | K13: 0 | L13: 0 | M13: 0 | N13: 583.6 | O13: 0 | P13: 0 | Q13: 0 | R13: 243.25 | S13: 553.0207743 | T13: 0 | U13: 1854.498684
A14: 10. | B14: ŠTOLFOVÁ | C14: Tereza | D14: 6.A | F14: 694.7781473 | G14: 609.0873703 | H14: 0 | I14: 0 | J14: 0 | K14: 257.8 | L14: 293.3333333 | M14: 622.369643 | N14: 0 | O14: 0 | P14: 0 | Q14: 0 | R14: 0 | S14: 491.8630784 | T14: 0 | U14: 2969.231572
A15: 11. | B15: ŠUBÍKOVÁ | C15: Klára | D15: 6.A | F15: 0 | G15: 593.8773779 | H15: 0 | I15: 669.515 | J15: 0 | K15: 239.6 | L15: 364.4444444 | M15: 642.8898111 | N15: 0 | O15: 0 | P15: 0 | Q15: 0 | R15: 0 | S15: 623.5873466 | T15: 0 | U15: 3133.91398
A16: 12. | B16: TULÁČKOVÁ | C16: Natálie | D16: 6.A | F16: 648.981736 | G16: 0 | H16: 458.7008332 | I16: 577.348 | J16: 0 | K16: 326.96 | L16: 0 | M16: 0 | N16: 666.94 | O16: 0 | P16: 0 | Q16: 0 | R16: 262 | S16: 0 | T16: 0 | U16: 2940.930569
A17: 13. | B17: VOJTÍŠKOVÁ | C17: Ella | D17: 6.A | F17: 709.6954327 | G17: 0 | H17: 0 | I17: 659.081 | J17: 0 | K17: 450.72 | L17: 0 | M17: 0 | N17: 0 | O17: 0 | P17: 0 | Q17: 0 | R17: 830.75 | S17: 567.1340888 | T17: 0 | U17: 3217.380521
A18: 14. | B18: DRUGÁČOVÁ | C18: Kristinka | D18: 6.B | F18: 0 | G18: 628.8570231 | H18: 0 | I18: 664.298 | J18: 0 | K18: =K48 -> 303.3 | L18: 377.7777778 | M18: 693.3875973 | N18: 416.92 | O18: 0 | P18: 0 | Q18: 0 | R18: 249.5 | S18: 703.5627951 | T18: 0 | U18: 4037.603193
A19: 15. | B19: =B49 -> FAJSTAVROVÁ | C19: Karolína | D19: 6.B | F19: 709.6954327 | G19: 0 | H19: 757.6745547 | I19: 634.735 | J19: 0 | K19: 410.68 | L19: 0 | M19: 0 | N19: 305.8 | O19: 0 | P19: 0 | Q19: 0 | R19: 362 | S19: 308.3899906 | T19: 0 | U19: 3488.974978
F34: 60 m | G34: 300m | H34: 800m | I34: dálka | J34: výška | K34: míček | L34: koule | M34: člunek | N34: lehsed | O34: odbíjení | P34: plavání | Q34: šplh | R34: švihadlo | S34: z místa | T34: REPRE | U34: CELKEM
B35: ='D60'!B101 -> ERBENOVÁ | C35: ='D60'!C101 -> Sára | D35: ='D60'!D101 -> 6.A | F35: ='D60'!H101 -> 645.3139553 | G35: ='D300'!H101 -> 0 | H35: ='D800'!H101 -> 0 | I35: =Ddál!H101 -> 570.392 | J35: =Dvýš!H101 -> 0 | K35: =Dmíč!H101 -> 321.5 | L35: =Dkou!H101 -> 325.3333333 | M35: =Dčlu!H101 -> 0 | N35: =Dls!H101 -> 541.93 | O35: =Dodbíj!H101 -> 0 | P35: =Dplav!H101 -> 0 | Q35: =Dšplh!H101 -> 0 | R35: =Dšvih!H101 -> 174.5 | S35: ='Dz mís'!H101 -> 454.2275732 | T35: =Drepre!E4 -> 0 | U35: =SUM(F35:T35) -> 3033.196862
B36: ='D60'!B102 -> HOFMANOVÁ | C36: ='D60'!C102 -> Nicol | D36: ='D60'!D102 -> 6.A | F36: ='D60'!H102 -> 625.2273174 | G36: ='D300'!H102 -> 491.2991107 | H36: ='D800'!H102 -> 0 | I36: =Ddál!H102 -> 646.908 | J36: =Dvýš!H102 -> 0 | K36: =Dmíč!H102 -> 285.1 | L36: =Dkou!H102 -> 419.5555556 | M36: =Dčlu!H102 -> 606.7977669 | N36: =Dls!H102 -> 389.14 | O36: =Dodbíj!H102 -> 0 | P36: =Dplav!H102 -> 0 | Q36: =Dšplh!H102 -> 0 | R36: =Dšvih!H102 -> 318.25 | S36: ='Dz mís'!H102 -> 670.631728 | T36: =Drepre!E5 -> 0 | U36: 4452.909479
B37: ='D60'!B103 -> HOLEŠOVSKÁ | C37: ='D60'!C103 -> Aneta | D37: ='D60'!D103 -> 6.A | F37: ='D60'!H103 -> 683.1197966 | G37: ='D300'!H103 -> 0 | H37: ='D800'!H103 -> 279.5310145 | I37: =Ddál!H103 -> 622.562 | J37: =Dvýš!H103 -> 0 | K37: =Dmíč!H103 -> 414.32 | L37: =Dkou!H103 -> 0 | M37: =Dčlu!H103 -> 0 | N37: =Dls!H103 -> 0 | O37: =Dodbíj!H103 -> 0 | P37: =Dplav!H103 -> 0 | Q37: =Dšplh!H103 -> 0 | R37: =Dšvih!H103 -> 0 | S37: ='Dz mís'!H103 -> 0 | T37: =Drepre!E6 -> 0 | U37: 1999.532811
B38: ='D60'!B104 -> HOLUBCOVÁ | C38: ='D60'!C104 -> Alena | D38: ='D60'!D104 -> 6.A | F38: ='D60'!H104 -> 0 | G38: ='D300'!H104 -> 687.0880805 | H38: ='D800'!H104 -> 0 | I38: =Ddál!H104 -> 634.735 | J38: =Dvýš!H104 -> 0 | K38: =Dmíč!H104 -> 530.8 | L38: =Dkou!H104 -> 574.2222222 | M38: =Dčlu!H104 -> 680.4288819 | N38: =Dls!H104 -> 0 | O38: =Dodbíj!H104 -> 0 | P38: =Dplav!H104 -> 0 | Q38: =Dšplh!H104 -> 0 | R38: =Dšvih!H104 -> 0 | S38: ='Dz mís'!H104 -> 694.1539188 | T38: =Drepre!E7 -> 0 | U38: 3801.428103
B39: ='D60'!B105 -> KOHOUTOVÁ | C39: ='D60'!C105 -> Anna | D39: ='D60'!D105 -> 6.A | F39: ='D60'!H105 -> 556.5564308 | G39: ='D300'!H105 -> 420.7536823 | H39: ='D800'!H105 -> 0 | I39: =Ddál!H105 -> 525.178 | J39: =Dvýš!H105 -> 0 | K39: =Dmíč!H105 -> 239.6 | L39: =Dkou!H105 -> 272.8888889 | M39: =Dčlu!H105 -> 539.8369847 | N39: =Dls!H105 -> 0 | O39: =Dodbíj!H105 -> 0 | P39: =Dplav!H105 -> 0 | Q39: =Dšplh!H105 -> 0 | R39: =Dšvih!H105 -> 0 | S39: ='Dz mís'!H105 -> 0 | T39: =Drepre!E8 -> 0 | U39: 2554.813987
B40: ='D60'!B106 -> KRAUSOVÁ | C40: ='D60'!C106 -> Anežka | D40: ='D60'!D106 -> 6.A | F40: ='D60'!H106 -> 635.7164917 | G40: ='D300'!H106 -> 619.1152056 | H40: ='D800'!H106 -> 0 | I40: =Ddál!H106 -> 0 | J40: =Dvýš!H106 -> 0 | K40: =Dmíč!H106 -> 0 | L40: =Dkou!H106 -> 0 | M40: =Dčlu!H106 -> 638.0912487 | N40: =Dls!H106 -> 528.04 | O40: =Dodbíj!H106 -> 0 | P40: =Dplav!H106 -> 0 | Q40: =Dšplh!H106 -> 0 | R40: =Dšvih!H106 -> 0 | S40: ='Dz mís'!H106 -> 694.1539188 | T40: =Drepre!E9 -> 0 | U40: 3115.116865
B41: ='D60'!B107 -> KUŽELOVÁ | C41: ='D60'!C107 -> Apoléna | D41: ='D60'!D107 -> 6.A | F41: ='D60'!H107 -> 692.0021691 | G41: ='D300'!H107 -> 0 | H41: ='D800'!H107 -> 517.1215266 | I41: =Ddál!H107 -> 606.911 | J41: =Dvýš!H107 -> 0 | K41: =Dmíč!H107 -> 337.88 | L41: =Dkou!H107 -> 0 | M41: =Dčlu!H107 -> 0 | N41: =Dls!H107 -> 0 | O41: =Dodbíj!H107 -> 0 | P41: =Dplav!H107 -> 0 | Q41: =Dšplh!H107 -> 0 | R41: =Dšvih!H107 -> 0 | S41: ='Dz mís'!H107 -> 0 | T41: =Drepre!E10 -> 0 | U41: 2153.914696
B42: ='D60'!B108 -> MORÁVKOVÁ | C42: ='D60'!C108 -> Lucie | D42: ='D60'!D108 -> 6.A | F42: ='D60'!H108 -> 645.3139553 | G42: ='D300'!H108 -> 0 | H42: ='D800'!H108 -> 446.6865305 | I42: =Ddál!H108 -> 513.005 | J42: =Dvýš!H108 -> 0 | K42: =Dmíč!H108 -> 383.38 | L42: =Dkou!H108 -> 0 | M42: =Dčlu!H108 -> 0 | N42: =Dls!H108 -> 625.27 | O42: =Dodbíj!H108 -> 0 | P42: =Dplav!H108 -> 0 | Q42: =Dšplh!H108 -> 0 | R42: =Dšvih!H108 -> 493.25 | S42: ='Dz mís'!H108 -> 0 | T42: =Drepre!E11 -> 0 | U42: 3106.905486
B43: ='D60'!B109 -> SKLENÁROVÁ | C43: ='D60'!C109 -> Eliška | D43: ='D60'!D109 -> 6.A | F43: ='D60'!H109 -> 0 | G43: ='D300'!H109 -> 474.6279096 | H43: ='D800'!H109 -> 0 | I43: =Ddál!H109 -> 0 | J43: =Dvýš!H109 -> 0 | K43: =Dmíč!H109 -> 0 | L43: =Dkou!H109 -> 0 | M43: =Dčlu!H109 -> 0 | N43: =Dls!H109 -> 583.6 | O43: =Dodbíj!H109 -> 0 | P43: =Dplav!H109 -> 0 | Q43: =Dšplh!H109 -> 0 | R43: =Dšvih!H109 -> 243.25 | S43: ='Dz mís'!H109 -> 553.0207743 | T43: =Drepre!E12 -> 0 | U43: 1854.498684
B44: ='D60'!B110 -> ŠTOLFOVÁ | C44: ='D60'!C110 -> Tereza | D44: ='D60'!D110 -> 6.A | F44: ='D60'!H110 -> 694.7781473 | G44: ='D300'!H110 -> 609.0873703 | H44: ='D800'!H110 -> 0 | I44: =Ddál!H110 -> 0 | J44: =Dvýš!H110 -> 0 | K44: =Dmíč!H110 -> 257.8 | L44: =Dkou!H110 -> 293.3333333 | M44: =Dčlu!H110 -> 622.369643 | N44: =Dls!H110 -> 0 | O44: =Dodbíj!H110 -> 0 | P44: =Dplav!H110 -> 0 | Q44: =Dšplh!H110 -> 0 | R44: =Dšvih!H110 -> 0 | S44: ='Dz mís'!H110 -> 491.8630784 | T44: =Drepre!E13 -> 0 | U44: 2969.231572
B45: ='D60'!B111 -> ŠUBÍKOVÁ | C45: ='D60'!C111 -> Klára | D45: ='D60'!D111 -> 6.A | F45: ='D60'!H111 -> 0 | G45: ='D300'!H111 -> 593.8773779 | H45: ='D800'!H111 -> 0 | I45: =Ddál!H111 -> 669.515 | J45: =Dvýš!H111 -> 0 | K45: =Dmíč!H111 -> 239.6 | L45: =Dkou!H111 -> 364.4444444 | M45: =Dčlu!H111 -> 642.8898111 | N45: =Dls!H111 -> 0 | O45: =Dodbíj!H111 -> 0 | P45: =Dplav!H111 -> 0 | Q45: =Dšplh!H111 -> 0 | R45: =Dšvih!H111 -> 0 | S45: ='Dz mís'!H111 -> 623.5873466 | T45: =Drepre!E14 -> 0 | U45: 3133.91398
B46: ='D60'!B112 -> TULÁČKOVÁ | C46: ='D60'!C112 -> Natálie | D46: ='D60'!D112 -> 6.A | F46: ='D60'!H112 -> 648.981736 | G46: ='D300'!H112 -> 0 | H46: ='D800'!H112 -> 458.7008332 | I46: =Ddál!H112 -> 577.348 | J46: =Dvýš!H112 -> 0 | K46: =Dmíč!H112 -> 326.96 | L46: =Dkou!H112 -> 0 | M46: =Dčlu!H112 -> 0 | N46: =Dls!H112 -> 666.94 | O46: =Dodbíj!H112 -> 0 | P46: =Dplav!H112 -> 0 | Q46: =Dšplh!H112 -> 0 | R46: =Dšvih!H112 -> 262 | S46: ='Dz mís'!H112 -> 0 | T46: =Drepre!E15 -> 0 | U46: 2940.930569
B47: ='D60'!B113 -> VOJTÍŠKOVÁ | C47: ='D60'!C113 -> Ella | D47: ='D60'!D113 -> 6.A | F47: ='D60'!H113 -> 709.6954327 | G47: ='D300'!H113 -> 0 | H47: ='D800'!H113 -> 0 | I47: =Ddál!H113 -> 659.081 | J47: =Dvýš!H113 -> 0 | K47: =Dmíč!H113 -> 450.72 | L47: =Dkou!H113 -> 0 | M47: =Dčlu!H113 -> 0 | N47: =Dls!H113 -> 0 | O47: =Dodbíj!H113 -> 0 | P47: =Dplav!H113 -> 0 | Q47: =Dšplh!H113 -> 0 | R47: =Dšvih!H113 -> 830.75 | S47: ='Dz mís'!H113 -> 567.1340888 | T47: =Drepre!E16 -> 0 | U47: 3217.380521
B48: ='D60'!B114 -> DRUGÁČOVÁ | C48: ='D60'!C114 -> Kristinka | D48: ='D60'!D114 -> 6.B | F48: ='D60'!H114 -> 0 | G48: ='D300'!H114 -> 628.8570231 | H48: ='D800'!H114 -> 0 | I48: =Ddál!H114 -> 664.298 | J48: =Dvýš!H114 -> 0 | K48: =Dmíč!H114 -> 303.3 | L48: =Dkou!H114 -> 377.7777778 | M48: =Dčlu!H114 -> 693.3875973 | N48: =Dls!H114 -> 416.92 | O48: =Dodbíj!H114 -> 0 | P48: =Dplav!H114 -> 0 | Q48: =Dšplh!H114 -> 0 | R48: =Dšvih!H114 -> 249.5 | S48: ='Dz mís'!H114 -> 703.5627951 | T48: =Drepre!E17 -> 0 | U48: 4037.603193
B49: ='D60'!B115 -> FAJSTAVROVÁ | C49: ='D60'!C115 -> Karolína | D49: ='D60'!D115 -> 6.B | F49: ='D60'!H115 -> 709.6954327 | G49: ='D300'!H115 -> 0 | H49: ='D800'!H115 -> 757.6745547 | I49: =Ddál!H115 -> 634.735 | J49: =Dvýš!H115 -> 0 | K49: =Dmíč!H115 -> 410.68 | L49: =Dkou!H115 -> 0 | M49: =Dčlu!H115 -> 0 | N49: =Dls!H115 -> 305.8 | O49: =Dodbíj!H115 -> 0 | P49: =Dplav!H115 -> 0 | Q49: =Dšplh!H115 -> 0 | R49: =Dšvih!H115 -> 362 | S49: ='Dz mís'!H115 -> 308.3899906 | T49: =Drepre!E18 -> 0 | U49: 3488.974978
B50: ='D60'!B116 -> FAJSTAVROVÁ | C50: ='D60'!C116 -> Magdaléna | D50: ='D60'!D116 -> 6.B | F50: ='D60'!H116 -> 736.6900017 | G50: ='D300'!H116 -> 0 | H50: ='D800'!H116 -> 801.5705492 | I50: =Ddál!H116 -> 0 | J50: =Dvýš!H116 -> 0 | K50: =Dmíč!H116 -> 530.8 | L50: =Dkou!H116 -> 0 | M50: =Dčlu!H116 -> 0 | N50: =Dls!H116 -> 625.27 | O50: =Dodbíj!H116 -> 0 | P50: =Dplav!H116 -> 0 | Q50: =Dšplh!H116 -> 0 | R50: =Dšvih!H116 -> 493.25 | S50: ='Dz mís'!H116 -> 722.3805477 | T50: =Drepre!E19 -> 0 | U50: 3909.961099
B51: ='D60'!B117 -> HLAVATÁ | C51: ='D60'!C117 -> Anna | D51: ='D60'!D117 -> 6.B | F51: ='D60'!H117 -> 0 | G51: ='D300'!H117 -> 0 | H51: ='D800'!H117 -> 0 | I51: =Ddál!H117 -> 636.474 | J51: =Dvýš!H117 -> 0 | K51: =Dmíč!H117 -> 0 | L51: =Dkou!H117 -> 0 | M51: =Dčlu!H117 -> 632.1845437 | N51: =Dls!H117 -> 0 | O51: =Dodbíj!H117 -> 0 | P51: =Dplav!H117 -> 0 | Q51: =Dšplh!H117 -> 0 | R51: =Dšvih!H117 -> 0 | S51: ='Dz mís'!H117 -> 0 | T51: =Drepre!E20 -> 0 | U51: 1268.658544
B52: ='D60'!B118 -> JINDROVÁ | C52: ='D60'!C118 -> Barbora | D52: ='D60'!D118 -> 6.B | F52: ='D60'!H118 -> 615.0502178 | G52: ='D300'!H118 -> 0 | H52: ='D800'!H118 -> 564.8599999 | I52: =Ddál!H118 -> 643.43 | J52: =Dvýš!H118 -> 0 | K52: =Dmíč!H118 -> 221.4 | L52: =Dkou!H118 -> 0 | M52: =Dčlu!H118 -> 0 | N52: =Dls!H118 -> 347.47 | O52: =Dodbíj!H118 -> 0 | P52: =Dplav!H118 -> 0 | Q52: =Dšplh!H118 -> 0 | R52: =Dšvih!H118 -> 337 | S52: ='Dz mís'!H118 -> 477.7497639 | T52: =Drepre!E21 -> 0 | U52: 3206.959982
B53: ='D60'!B119 -> MAŘASOVÁ | C53: ='D60'!C119 -> Vendula | D53: ='D60'!D119 -> 6.B | F53: ='D60'!H119 -> 0 | G53: ='D300'!H119 -> 0 | H53: ='D800'!H119 -> 545.4814341 | I53: =Ddál!H119 -> 547.785 | J53: =Dvýš!H119 -> 0 | K53: =Dmíč!H119 -> 239.6 | L53: =Dkou!H119 -> 0 | M53: =Dčlu!H119 -> 0 | N53: =Dls!H119 -> 0 | O53: =Dodbíj!H119 -> 0 | P53: =Dplav!H119 -> 0 | Q53: =Dšplh!H119 -> 0 | R53: =Dšvih!H119 -> 0 | S53: ='Dz mís'!H119 -> 0 | T53: =Drepre!E22 -> 0 | U53: 1332.866434
B54: ='D60'!B120 -> PETŘÍČKOVÁ | C54: ='D60'!C120 -> Natálie | D54: ='D60'!D120 -> 6.B | F54: ='D60'!H120 -> 697.5747265 | G54: ='D300'!H120 -> 0 | H54: ='D800'!H120 -> 0 | I54: =Ddál!H120 -> 674.732 | J54: =Dvýš!H120 -> 0 | K54: =Dmíč!H120 -> 399.76 | L54: =Dkou!H120 -> 0 | M54: =Dčlu!H120 -> 0 | N54: =Dls!H120 -> 0 | O54: =Dodbíj!H120 -> 0 | P54: =Dplav!H120 -> 0 | Q54: =Dšplh!H120 -> 0 | R54: =Dšvih!H120 -> 0 | S54: ='Dz mís'!H120 -> 0 | T54: =Drepre!E23 -> 0 | U54: 1772.066726
B55: ='D60'!B121 -> PETŘÍKOVÁ | C55: ='D60'!C121 -> Adéla | D55: ='D60'!D121 -> 6.B | F55: ='D60'!H121 -> 599.8074033 | G55: ='D300'!H121 -> 541.6772924 | H55: ='D800'!H121 -> 0 | I55: =Ddál!H121 -> 464.313 | J55: =Dvýš!H121 -> 0 | K55: =Dmíč!H121 -> 203.2 | L55: =Dkou!H121 -> 353.7777778 | M55: =Dčlu!H121 -> 574.2364662 | N55: =Dls!H121 -> 333.58 | O55: =Dodbíj!H121 -> 0 | P55: =Dplav!H121 -> 0 | Q55: =Dšplh!H121 -> 0 | R55: =Dšvih!H121 -> 124.5 | S55: ='Dz mís'!H121 -> 576.5429651 | T55: =Drepre!E24 -> 0 | U55: 3771.634905
B56: ='D60'!B122 -> REGÁLOVÁ | C56: ='D60'!C122 -> Karolína | D56: ='D60'!D122 -> 6.B | F56: ='D60'!H122 -> 657.061158 | G56: ='D300'!H122 -> 0 | H56: ='D800'!H122 -> 529.7114396 | I56: =Ddál!H122 -> 636.474 | J56: =Dvýš!H122 -> 0 | K56: =Dmíč!H122 -> 425.24 | L56: =Dkou!H122 -> 0 | M56: =Dčlu!H122 -> 0 | N56: =Dls!H122 -> 778.06 | O56: =Dodbíj!H122 -> 0 | P56: =Dplav!H122 -> 0 | Q56: =Dšplh!H122 -> 0 | R56: =Dšvih!H122 -> 462 | S56: ='Dz mís'!H122 -> 430.7053824 | T56: =Drepre!E25 -> 0 | U56: 3919.25198
B57: ='D60'!B123 -> RIEGROVÁ | C57: ='D60'!C123 -> Magdaléna | D57: ='D60'!D123 -> 6.B | F57: ='D60'!H123 -> 0 | G57: ='D300'!H123 -> 514.4247023 | H57: ='D800'!H123 -> 0 | I57: =Ddál!H123 -> 0 | J57: =Dvýš!H123 -> 0 | K57: =Dmíč!H123 -> 285.1 | L57: =Dkou!H123 -> 256.8888889 | M57: =Dčlu!H123 -> 587.7929157 | N57: =Dls!H123 -> 0 | O57: =Dodbíj!H123 -> 0 | P57: =Dplav!H123 -> 0 | Q57: =Dšplh!H123 -> 0 | R57: =Dšvih!H123 -> 0 | S57: ='Dz mís'!H123 -> 590.6562795 | T57: =Drepre!E26 -> 0 | U57: 2234.862786
B58: ='D60'!B124 -> RYBENSKÁ | C58: ='D60'!C124 -> Sabina | D58: ='D60'!D124 -> 6.B | F58: ='D60'!H124 -> 681.7718952 | G58: ='D300'!H124 -> 0 | H58: ='D800'!H124 -> 529.7114396 | I58: =Ddál!H124 -> 582.565 | J58: =Dvýš!H124 -> 0 | K58: =Dmíč!H124 -> 232.32 | L58: =Dkou!H124 -> 0 | M58: =Dčlu!H124 -> 0 | N58: =Dls!H124 -> 0 | O58: =Dodbíj!H124 -> 0 | P58: =Dplav!H124 -> 0 | Q58: =Dšplh!H124 -> 0 | R58: =Dšvih!H124 -> 0 | S58: ='Dz mís'!H124 -> 0 | T58: =Drepre!E27 -> 0 | U58: 2026.368335
B59: ='D60'!B125 -> STEINEROVÁ | C59: ='D60'!C125 -> Barbora | D59: ='D60'!D125 -> 6.B | F59: ='D60'!H125 -> 665.3271387 | G59: ='D300'!H125 -> 0 | H59: ='D800'!H125 -> 527.1544185 | I59: =Ddál!H125 -> 631.257 | J59: =Dvýš!H125 -> 0 | K59: =Dmíč!H125 -> 447.08 | L59: =Dkou!H125 -> 0 | M59: =Dčlu!H125 -> 0 | N59: =Dls!H125 -> 0 | O59: =Dodbíj!H125 -> 0 | P59: =Dplav!H125 -> 0 | Q59: =Dšplh!H125 -> 0 | R59: =Dšvih!H125 -> 0 | S59: ='Dz mís'!H125 -> 0 | T59: =Drepre!E28 -> 0 | U59: 2270.818557
B60: ='D60'!B126 -> TOMEŠOVÁ | C60: ='D60'!C126 -> Barbora | D60: ='D60'!D126 -> 6.B | F60: ='D60'!H126 -> 644.7063505 | G60: ='D300'!H126 -> 0 | H60: ='D800'!H126 -> 522.0993845 | I60: =Ddál!H126 -> 509.527 | J60: =Dvýš!H126 -> 0 | K60: =Dmíč!H126 -> 297.84 | L60: =Dkou!H126 -> 0 | M60: =Dčlu!H126 -> 0 | N60: =Dls!H126 -> 0 | O60: =Dodbíj!H126 -> 0 | P60: =Dplav!H126 -> 0 | Q60: =Dšplh!H126 -> 0 | R60: =Dšvih!H126 -> 0 | S60: ='Dz mís'!H126 -> 0 | T60: =Drepre!E29 -> 0 | U60: 1974.172735
B61: ='D60'!B127 -> VOHNOUTOVÁ | C61: ='D60'!C127 -> Aneta | D61: ='D60'!D127 -> 6.B | F61: ='D60'!H127 -> 739.8069065 | G61: ='D300'!H127 -> 0 | H61: ='D800'!H127 -> 654.9344442 | I61: =Ddál!H127 -> 0 | J61: =Dvýš!H127 -> 0 | K61: =Dmíč!H127 -> 530.8 | L61: =Dkou!H127 -> 0 | M61: =Dčlu!H127 -> 0 | N61: =Dls!H127 -> 805.84 | O61: =Dodbíj!H127 -> 0 | P61: =Dplav!H127 -> 0 | Q61: =Dšplh!H127 -> 0 | R61: =Dšvih!H127 -> 274.5 | S61: ='Dz mís'!H127 -> 458.9320113 | T61: =Drepre!E30 -> 0 | U61: 3464.813362
B62: ='D60'!B128 -> HAVLÍKOVÁ | C62: ='D60'!C128 -> Michaela | D62: ='D60'!D128 -> 7.A | F62: ='D60'!H128 -> 635.1253288 | G62: ='D300'!H128 -> 0 | H62: ='D800'!H128 -> 0 | I62: =Ddál!H128 -> 634.735 | J62: =Dvýš!H128 -> 0 | K62: =Dmíč!H128 -> 0 | L62: =Dkou!H128 -> 254.2222222 | M62: =Dčlu!H128 -> 673.7862151 | N62: =Dls!H128 -> 0 | O62: =Dodbíj!H128 -> 0 | P62: =Dplav!H128 -> 0 | Q62: =Dšplh!H128 -> 0 | R62: =Dšvih!H128 -> 0 | S62: ='Dz mís'!H128 -> 0 | T62: =Drepre!E31 -> 0 | U62: 2197.868766
B63: ='D60'!B129 -> HOLUBCOVÁ | C63: ='D60'!C129 -> Sára | D63: ='D60'!D129 -> 7.A | F63: ='D60'!H129 -> 792.3314693 | G63: ='D300'!H129 -> 0 | H63: ='D800'!H129 -> 0 | I63: =Ddál!H129 -> 758.204 | J63: =Dvýš!H129 -> 0 | K63: =Dmíč!H129 -> 458 | L63: =Dkou!H129 -> 381.3333333 | M63: =Dčlu!H129 -> 706.8086895 | N63: =Dls!H129 -> 0 | O63: =Dodbíj!H129 -> 0 | P63: =Dplav!H129 -> 0 | Q63: =Dšplh!H129 -> 0 | R63: =Dšvih!H129 -> 362 | S63: ='Dz mís'!H129 -> 0 | T63: =Drepre!E32 -> 0 | U63: 3458.677492
B64: ='D60'!B130 -> HONCŮ | C64: ='D60'!C130 -> Tereza | D64: ='D60'!D130 -> 7.A | F64: ='D60'!H130 -> 671.1624509 | G64: ='D300'!H130 -> 0 | H64: ='D800'!H130 -> 0 | I64: =Ddál!H130 -> 723.424 | J64: =Dvýš!H130 -> 0 | K64: =Dmíč!H130 -> 403.4 | L64: =Dkou!H130 -> 356.4444444 | M64: =Dčlu!H130 -> 0 | N64: =Dls!H130 -> 0 | O64: =Dodbíj!H130 -> 0 | P64: =Dplav!H130 -> 0 | Q64: =Dšplh!H130 -> 0 | R64: =Dšvih!H130 -> 0 | S64: ='Dz mís'!H130 -> 0 | T64: =Drepre!E33 -> 0 | U64: 2154.430895
B65: ='D60'!B131 -> HORÁČKOVÁ | C65: ='D60'!C131 -> Kateřina | D65: ='D60'!D131 -> 7.A | F65: ='D60'!H131 -> 791.4438453 | G65: ='D300'!H131 -> 0 | H65: ='D800'!H131 -> 0 | I65: =Ddál!H131 -> 754.726 | J65: =Dvýš!H131 -> 0 | K65: =Dmíč!H131 -> 403.4 | L65: =Dkou!H131 -> 511.1111111 | M65: =Dčlu!H131 -> 694.0822303 | N65: =Dls!H131 -> 541.93 | O65: =Dodbíj!H131 -> 0 | P65: =Dplav!H131 -> 0 | Q65: =Dšplh!H131 -> 0 | R65: =Dšvih!H131 -> 212 | S65: ='Dz mís'!H131 -> 0 | T65: =Drepre!E34 -> 0 | U65: 3908.693187
B66: ='D60'!B132 -> JOUDALOVÁ | C66: ='D60'!C132 -> Daniela | D66: ='D60'!D132 -> 7.A | F66: ='D60'!H132 -> 0 | G66: ='D300'!H132 -> 0 | H66: ='D800'!H132 -> 0 | I66: =Ddál!H132 -> 0 | J66: =Dvýš!H132 -> 0 | K66: =Dmíč!H132 -> 0 | L66: =Dkou!H132 -> 364.4444444 | M66: =Dčlu!H132 -> 0 | N66: =Dls!H132 -> 0 | O66: =Dodbíj!H132 -> 0 | P66: =Dplav!H132 -> 0 | Q66: =Dšplh!H132 -> 0 | R66: =Dšvih!H132 -> 0 | S66: ='Dz mís'!H132 -> 0 | T66: =Drepre!E35 -> 0 | U66: 364.4444444
B67: ='D60'!B133 -> KLÍMOVÁ | C67: ='D60'!C133 -> Anna | D67: ='D60'!D133 -> 7.A | F67: ='D60'!H133 -> 695.4753518 | G67: ='D300'!H133 -> 0 | H67: ='D800'!H133 -> 0 | I67: =Ddál!H133 -> 0 | J67: =Dvýš!H133 -> 0 | K67: =Dmíč!H133 -> 0 | L67: =Dkou!H133 -> 422.2222222 | M67: =Dčlu!H133 -> 662.763503 | N67: =Dls!H133 -> 0 | O67: =Dodbíj!H133 -> 0 | P67: =Dplav!H133 -> 0 | Q67: =Dšplh!H133 -> 0 | R67: =Dšvih!H133 -> 0 | S67: ='Dz mís'!H133 -> 0 | T67: =Drepre!E36 -> 0 | U67: =SUM(F67:T67) -> 1780.461077
B68: ='D60'!B134 -> KOHOUTOVÁ | C68: ='D60'!C134 -> Veronika | D68: ='D60'!D134 -> 7.A | F68: ='D60'!H134 -> 0 | G68: ='D300'!H134 -> 0 | H68: ='D800'!H134 -> 0 | I68: =Ddál!H134 -> 780.811 | J68: =Dvýš!H134 -> 0 | K68: =Dmíč!H134 -> 539.9 | L68: =Dkou!H134 -> 494.2222222 | M68: =Dčlu!H134 -> 695.4753518 | N68: =Dls!H134 -> 0 | O68: =Dodbíj!H134 -> 0 | P68: =Dplav!H134 -> 0 | Q68: =Dšplh!H134 -> 0 | R68: =Dšvih!H134 -> 0 | S68: ='Dz mís'!H134 -> 0 | T68: =Drepre!E37 -> 0 | U68: 2510.408574
B69: ='D60'!B135 -> KOVÁŘOVÁ | C69: ='D60'!C135 -> Viktorie | D69: ='D60'!D135 -> 7.A | F69: ='D60'!H135 -> 708.9717082 | G69: ='D300'!H135 -> 0 | H69: ='D800'!H135 -> 0 | I69: =Ddál!H135 -> 721.685 | J69: =Dvýš!H135 -> 0 | K69: =Dmíč!H135 -> 357.9 | L69: =Dkou!H135 -> 372.4444444 | M69: =Dčlu!H135 -> 692.6942448 | N69: =Dls!H135 -> 583.6 | O69: =Dodbíj!H135 -> 0 | P69: =Dplav!H135 -> 0 | Q69: =Dšplh!H135 -> 0 | R69: =Dšvih!H135 -> 0 | S69: ='Dz mís'!H135 -> 0 | T69: =Drepre!E38 -> 0 | U69: 3437.295397
B70: ='D60'!B136 -> KYNČLOVÁ | C70: ='D60'!C136 -> Anna | D70: ='D60'!D136 -> 7.A | F70: ='D60'!H136 -> 799.4997337 | G70: ='D300'!H136 -> 0 | H70: ='D800'!H136 -> 0 | I70: =Ddál!H136 -> 766.899 | J70: =Dvýš!H136 -> 0 | K70: =Dmíč!H136 -> 503.5 | L70: =Dkou!H136 -> 329.7777778 | M70: =Dčlu!H136 -> 750.1076892 | N70: =Dls!H136 -> 736.39 | O70: =Dodbíj!H136 -> 0 | P70: =Dplav!H136 -> 0 | Q70: =Dšplh!H136 -> 0 | R70: =Dšvih!H136 -> 355.75 | S70: ='Dz mís'!H136 -> 0 | T70: =Drepre!E39 -> 0 | U70: 4241.924201
B71: ='D60'!B137 -> MATOUŠOVÁ | C71: ='D60'!C137 -> Tereza | D71: ='D60'!D137 -> 7.A | F71: ='D60'!H137 -> 695.4753518 | G71: ='D300'!H137 -> 0 | H71: ='D800'!H137 -> 0 | I71: =Ddál!H137 -> 739.075 | J71: =Dvýš!H137 -> 0 | K71: =Dmíč!H137 -> 376.1 | L71: =Dkou!H137 -> 432 | M71: =Dčlu!H137 -> 628.6883322 | N71: =Dls!H137 -> 0 | O71: =Dodbíj!H137 -> 0 | P71: =Dplav!H137 -> 509.9544345 | Q71: =Dšplh!H137 -> 0 | R71: =Dšvih!H137 -> 312 | S71: ='Dz mís'!H137 -> 0 | T71: =Drepre!E40 -> 0 | U71: 3693.293119
B72: ='D60'!B138 -> MAZÁNKOVÁ | C72: ='D60'!C138 -> Zuzana | D72: ='D60'!D138 -> 7.A | F72: ='D60'!H138 -> 735.914573 | G72: ='D300'!H138 -> 0 | H72: ='D800'!H138 -> 0 | I72: =Ddál!H138 -> 672.993 | J72: =Dvýš!H138 -> 0 | K72: =Dmíč!H138 -> 348.8 | L72: =Dkou!H138 -> 422.2222222 | M72: =Dčlu!H138 -> 0 | N72: =Dls!H138 -> 0 | O72: =Dodbíj!H138 -> 0 | P72: =Dplav!H138 -> 0 | Q72: =Dšplh!H138 -> 0 | R72: =Dšvih!H138 -> 0 | S72: ='Dz mís'!H138 -> 0 | T72: =Drepre!E41 -> 0 | U72: 2179.929795
B73: ='D60'!B139 -> MORKESOVÁ | C73: ='D60'!C139 -> Sabrina | D73: ='D60'!D139 -> 7.A | F73: ='D60'!H139 -> 0 | G73: ='D300'!H139 -> 0 | H73: ='D800'!H139 -> 0 | I73: =Ddál!H139 -> 766.899 | J73: =Dvýš!H139 -> 0 | K73: =Dmíč!H139 -> 767.4 | L73: =Dkou!H139 -> 610.6666667 | M73: =Dčlu!H139 -> 743.7375504 | N73: =Dls!H139 -> 541.93 | O73: =Dodbíj!H139 -> 0 | P73: =Dplav!H139 -> 0 | Q73: =Dšplh!H139 -> 0 | R73: =Dšvih!H139 -> 412 | S73: ='Dz mís'!H139 -> 637.700661 | T73: =Drepre!E42 -> 0 | U73: 4480.333878
B74: ='D60'!B140 -> POHOŘALÁ | C74: ='D60'!C140 -> Alžběta | D74: ='D60'!D140 -> 7.A | F74: ='D60'!H140 -> 799.4997337 | G74: ='D300'!H140 -> 0 | H74: ='D800'!H140 -> 0 | I74: =Ddál!H140 -> 733.858 | J74: =Dvýš!H140 -> 0 | K74: =Dmíč!H140 -> 412.5 | L74: =Dkou!H140 -> 400.8888889 | M74: =Dčlu!H140 -> 699.6858186 | N74: =Dls!H140 -> 0 | O74: =Dodbíj!H140 -> 0 | P74: =Dplav!H140 -> 509.9544345 | Q74: =Dšplh!H140 -> 0 | R74: =Dšvih!H140 -> 0 | S74: ='Dz mís'!H140 -> 0 | T74: =Drepre!E43 -> 0 | U74: 3556.386876
B75: ='D60'!B141 -> SCHOLZOVÁ | C75: ='D60'!C141 -> Laura | D75: ='D60'!D141 -> 7.A | F75: ='D60'!H141 -> 663.4027089 | G75: ='D300'!H141 -> 0 | H75: ='D800'!H141 -> 0 | I75: =Ddál!H141 -> 0 | J75: =Dvýš!H141 -> 0 | K75: =Dmíč!H141 -> 0 | L75: =Dkou!H141 -> 296 | M75: =Dčlu!H141 -> 636.3086625 | N75: =Dls!H141 -> 0 | O75: =Dodbíj!H141 -> 0 | P75: =Dplav!H141 -> 509.9544345 | Q75: =Dšplh!H141 -> 0 | R75: =Dšvih!H141 -> 0 | S75: ='Dz mís'!H141 -> 0 | T75: =Drepre!E44 -> 0 | U75: 2105.665806
B76: ='D60'!B142 -> VÁCLAVÍKOVÁ | C76: ='D60'!C142 -> Valerie | D76: ='D60'!D142 -> 7.A | F76: ='D60'!H142 -> 806.7897522 | G76: ='D300'!H142 -> 0 | H76: ='D800'!H142 -> 0 | I76: =Ddál!H142 -> 742.553 | J76: =Dvýš!H142 -> 0 | K76: =Dmíč!H142 -> 485.3 | L76: =Dkou!H142 -> 548.4444444 | M76: =Dčlu!H142 -> 684.4726129 | N76: =Dls!H142 -> 528.04 | O76: =Dodbíj!H142 -> 0 | P76: =Dplav!H142 -> 509.9544345 | Q76: =Dšplh!H142 -> 0 | R76: =Dšvih!H142 -> 287 | S76: ='Dz mís'!H142 -> 477.7497639 | T76: =Drepre!E45 -> 0 | U76: 5070.304008
B77: ='D60'!B143 -> ZAPADLOVÁ | C77: ='D60'!C143 -> Emma | D77: ='D60'!D143 -> 7.A | F77: ='D60'!H143 -> 797.6963731 | G77: ='D300'!H143 -> 0 | H77: ='D800'!H143 -> 0 | I77: =Ddál!H143 -> 728.641 | J77: =Dvýš!H143 -> 0 | K77: =Dmíč!H143 -> 612.7 | L77: =Dkou!H143 -> 400.8888889 | M77: =Dčlu!H143 -> 690.6218344 | N77: =Dls!H143 -> 486.37 | O77: =Dodbíj!H143 -> 0 | P77: =Dplav!H143 -> 509.9544345 | Q77: =Dšplh!H143 -> 0 | R77: =Dšvih!H143 -> 412 | S77: ='Dz mís'!H143 -> 0 | T77: =Drepre!E46 -> 0 | U77: 4638.872531
B78: ='D60'!B144 -> ŽIŠKOVÁ | C78: ='D60'!C144 -> Mia | D78: ='D60'!D144 -> 7.A | F78: ='D60'!H144 -> 792.3314693 | G78: ='D300'!H144 -> 0 | H78: ='D800'!H144 -> 0 | I78: =Ddál!H144 -> 725.163 | J78: =Dvýš!H144 -> 0 | K78: =Dmíč!H144 -> 412.5 | L78: =Dkou!H144 -> 0 | M78: =Dčlu!H144 -> 0 | N78: =Dls!H144 -> 0 | O78: =Dodbíj!H144 -> 0 | P78: =Dplav!H144 -> 0 | Q78: =Dšplh!H144 -> 0 | R78: =Dšvih!H144 -> 0 | S78: ='Dz mís'!H144 -> 0 | T78: =Drepre!E47 -> 0 | U78: 1929.994469
B79: ='D60'!B145 -> FARSKÁ | C79: ='D60'!C145 -> Tereza | D79: ='D60'!D145 -> 7.B | F79: ='D60'!H145 -> 647.1430823 | G79: ='D300'!H145 -> 0 | H79: ='D800'!H145 -> 0 | I79: =Ddál!H145 -> 0 | J79: =Dvýš!H145 -> 0 | K79: =Dmíč!H145 -> 0 | L79: =Dkou!H145 -> 0 | M79: =Dčlu!H145 -> 0 | N79: =Dls!H145 -> 472.48 | O79: =Dodbíj!H145 -> 0 | P79: =Dplav!H145 -> 0 | Q79: =Dšplh!H145 -> 0 | R79: =Dšvih!H145 -> 355.75 | S79: ='Dz mís'!H145 -> 426.0009443 | T79: =Drepre!E48 -> 0 | U79: 1901.374027
B80: ='D60'!B146 -> FEIXOVÁ | C80: ='D60'!C146 -> Rozálie | D80: ='D60'!D146 -> 7.B | F80: ='D60'!H146 -> 645.3139553 | G80: ='D300'!H146 -> 0 | H80: ='D800'!H146 -> 0 | I80: =Ddál!H146 -> 565.175 | J80: =Dvýš!H146 -> 0 | K80: =Dmíč!H146 -> 0 | L80: =Dkou!H146 -> 0 | M80: =Dčlu!H146 -> 0 | N80: =Dls!H146 -> 0 | O80: =Dodbíj!H146 -> 0 | P80: =Dplav!H146 -> 0 | Q80: =Dšplh!H146 -> 0 | R80: =Dšvih!H146 -> 0 | S80: ='Dz mís'!H146 -> 0 | T80: =Drepre!E49 -> 0 | U80: 1210.488955
B81: ='D60'!B147 -> FIŠEROVÁ | C81: ='D60'!C147 -> Michaela | D81: ='D60'!D147 -> 7.B | F81: ='D60'!H147 -> 689.2465651 | G81: ='D300'!H147 -> 0 | H81: ='D800'!H147 -> 0 | I81: =Ddál!H147 -> 553.002 | J81: =Dvýš!H147 -> 570.5 | K81: =Dmíč!H147 -> 0 | L81: =Dkou!H147 -> 0 | M81: =Dčlu!H147 -> 0 | N81: =Dls!H147 -> 0 | O81: =Dodbíj!H147 -> 0 | P81: =Dplav!H147 -> 0 | Q81: =Dšplh!H147 -> 0 | R81: =Dšvih!H147 -> 0 | S81: ='Dz mís'!H147 -> 0 | T81: =Drepre!E50 -> 0 | U81: 1812.748565
B82: ='D60'!B148 -> HAVLÍČKOVÁ | C82: ='D60'!C148 -> Kristýna | D82: ='D60'!D148 -> 7.B | F82: ='D60'!H148 -> 600.8732728 | G82: ='D300'!H148 -> 0 | H82: ='D800'!H148 -> 0 | I82: =Ddál!H148 -> 539.09 | J82: =Dvýš!H148 -> 0 | K82: =Dmíč!H148 -> 0 | L82: =Dkou!H148 -> 0 | M82: =Dčlu!H148 -> 0 | N82: =Dls!H148 -> 0 | O82: =Dodbíj!H148 -> 0 | P82: =Dplav!H148 -> 0 | Q82: =Dšplh!H148 -> 0 | R82: =Dšvih!H148 -> 0 | S82: ='Dz mís'!H148 -> 0 | T82: =Drepre!E51 -> 0 | U82: 1139.963273
B83: ='D60'!B149 -> JODASOVÁ | C83: ='D60'!C149 -> Nikola | D83: ='D60'!D149 -> 7.B | F83: ='D60'!H149 -> 777.4894858 | G83: ='D300'!H149 -> 0 | H83: ='D800'!H149 -> 0 | I83: =Ddál!H149 -> 695.6 | J83: =Dvýš!H149 -> 0 | K83: =Dmíč!H149 -> 0 | L83: =Dkou!H149 -> 0 | M83: =Dčlu!H149 -> 0 | N83: =Dls!H149 -> 0 | O83: =Dodbíj!H149 -> 0 | P83: =Dplav!H149 -> 0 | Q83: =Dšplh!H149 -> 0 | R83: =Dšvih!H149 -> 0 | S83: ='Dz mís'!H149 -> 0 | T83: =Drepre!E52 -> 0 | U83: 1473.089486
B84: ='D60'!B150 -> KADAVÁ | C84: ='D60'!C150 -> Nikola | D84: ='D60'!D150 -> 7.B | F84: ='D60'!H150 -> 0 | G84: ='D300'!H150 -> 0 | H84: ='D800'!H150 -> 0 | I84: =Ddál!H150 -> 0 | J84: =Dvýš!H150 -> 0 | K84: =Dmíč!H150 -> 0 | L84: =Dkou!H150 -> 0 | M84: =Dčlu!H150 -> 0 | N84: =Dls!H150 -> 583.6 | O84: =Dodbíj!H150 -> 0 | P84: =Dplav!H150 -> 0 | Q84: =Dšplh!H150 -> 0 | R84: =Dšvih!H150 -> 0 | S84: ='Dz mís'!H150 -> 0 | T84: =Drepre!E53 -> 0 | U84: 583.6
B85: ='D60'!B151 -> KRAFKOVÁ | C85: ='D60'!C151 -> Lucie | D85: ='D60'!D151 -> 7.B | F85: ='D60'!H151 -> 675.7664479 | G85: ='D300'!H151 -> 0 | H85: ='D800'!H151 -> 0 | I85: =Ddál!H151 -> 537.351 | J85: =Dvýš!H151 -> 0 | K85: =Dmíč!H151 -> 0 | L85: =Dkou!H151 -> 0 | M85: =Dčlu!H151 -> 0 | N85: =Dls!H151 -> 0 | O85: =Dodbíj!H151 -> 0 | P85: =Dplav!H151 -> 0 | Q85: =Dšplh!H151 -> 0 | R85: =Dšvih!H151 -> 0 | S85: ='Dz mís'!H151 -> 0 | T85: =Drepre!E54 -> 0 | U85: 1213.117448
B86: ='D60'!B152 -> KŘIVINKOVÁ | C86: ='D60'!C152 -> Alžběta | D86: ='D60'!D152 -> 7.B | F86: ='D60'!H152 -> 681.7718952 | G86: ='D300'!H152 -> 0 | H86: ='D800'!H152 -> 0 | I86: =Ddál!H152 -> 626.04 | J86: =Dvýš!H152 -> 0 | K86: =Dmíč!H152 -> 0 | L86: =Dkou!H152 -> 0 | M86: =Dčlu!H152 -> 0 | N86: =Dls!H152 -> 0 | O86: =Dodbíj!H152 -> 0 | P86: =Dplav!H152 -> 0 | Q86: =Dšplh!H152 -> 0 | R86: =Dšvih!H152 -> 0 | S86: ='Dz mís'!H152 -> 0 | T86: =Drepre!E55 -> 0 | U86: 1307.811895
B87: ='D60'!B153 -> LEŠÁKOVÁ | C87: ='D60'!C153 -> Lenka | D87: ='D60'!D153 -> 7.B | F87: ='D60'!H153 -> 598.7449721 | G87: ='D300'!H153 -> 0 | H87: ='D800'!H153 -> 0 | I87: =Ddál!H153 -> 0 | J87: =Dvýš!H153 -> 0 | K87: =Dmíč!H153 -> 0 | L87: =Dkou!H153 -> 0 | M87: =Dčlu!H153 -> 0 | N87: =Dls!H153 -> 0 | O87: =Dodbíj!H153 -> 0 | P87: =Dplav!H153 -> 0 | Q87: =Dšplh!H153 -> 0 | R87: =Dšvih!H153 -> 0 | S87: ='Dz mís'!H153 -> 0 | T87: =Drepre!E56 -> 0 | U87: 598.7449721
B88: ='D60'!B154 -> NYKLÍČKOVÁ | C88: ='D60'!C154 -> Adéla | D88: ='D60'!D154 -> 7.B | F88: ='D60'!H154 -> 747.7070731 | G88: ='D300'!H154 -> 0 | H88: ='D800'!H154 -> 0 | I88: =Ddál!H154 -> 695.6 | J88: =Dvýš!H154 -> 668 | K88: =Dmíč!H154 -> 0 | L88: =Dkou!H154 -> 0 | M88: =Dčlu!H154 -> 0 | N88: =Dls!H154 -> 0 | O88: =Dodbíj!H154 -> 0 | P88: =Dplav!H154 -> 0 | Q88: =Dšplh!H154 -> 0 | R88: =Dšvih!H154 -> 0 | S88: ='Dz mís'!H154 -> 0 | T88: =Drepre!E57 -> 0 | U88: 2111.307073
B89: ='D60'!B155 -> PLŮCHOVÁ | C89: ='D60'!C155 -> Petra | D89: ='D60'!D155 -> 7.B | F89: ='D60'!H155 -> 681.7718952 | G89: ='D300'!H155 -> 0 | H89: ='D800'!H155 -> 0 | I89: =Ddál!H155 -> 521.7 | J89: =Dvýš!H155 -> 668 | K89: =Dmíč!H155 -> 0 | L89: =Dkou!H155 -> 0 | M89: =Dčlu!H155 -> 0 | N89: =Dls!H155 -> 0 | O89: =Dodbíj!H155 -> 0 | P89: =Dplav!H155 -> 0 | Q89: =Dšplh!H155 -> 0 | R89: =Dšvih!H155 -> 0 | S89: ='Dz mís'!H155 -> 0 | T89: =Drepre!E58 -> 0 | U89: 1871.471895
B90: ='D60'!B156 -> PODZIMKOVÁ | C90: ='D60'!C156 -> Eliška | D90: ='D60'!D156 -> 7.B | F90: ='D60'!H156 -> 601.4075021 | G90: ='D300'!H156 -> 0 | H90: ='D800'!H156 -> 0 | I90: =Ddál!H156 -> 460.835 | J90: =Dvýš!H156 -> 596.5 | K90: =Dmíč!H156 -> 0 | L90: =Dkou!H156 -> 0 | M90: =Dčlu!H156 -> 0 | N90: =Dls!H156 -> 0 | O90: =Dodbíj!H156 -> 0 | P90: =Dplav!H156 -> 0 | Q90: =Dšplh!H156 -> 0 | R90: =Dšvih!H156 -> 0 | S90: ='Dz mís'!H156 -> 0 | T90: =Drepre!E59 -> 0 | U90: 1658.742502
B91: ='D60'!B157 -> RUTKAYOVÁ | C91: ='D60'!C157 -> Klára | D91: ='D60'!D157 -> 7.B | F91: ='D60'!H157 -> 0 | G91: ='D300'!H157 -> 0 | H91: ='D800'!H157 -> 0 | I91: =Ddál!H157 -> 0 | J91: =Dvýš!H157 -> 0 | K91: =Dmíč!H157 -> 0 | L91: =Dkou!H157 -> 0 | M91: =Dčlu!H157 -> 0 | N91: =Dls!H157 -> 583.6 | O91: =Dodbíj!H157 -> 0 | P91: =Dplav!H157 -> 0 | Q91: =Dšplh!H157 -> 0 | R91: =Dšvih!H157 -> 437 | S91: ='Dz mís'!H157 -> 0 | T91: =Drepre!E60 -> 0 | U91: 1020.6
B92: ='D60'!B158 -> SEIDLOVÁ | C92: ='D60'!C158 -> Zuzana | D92: ='D60'!D158 -> 7.B | F92: ='D60'!H158 -> 612.8296242 | G92: ='D300'!H158 -> 0 | H92: ='D800'!H158 -> 0 | I92: =Ddál!H158 -> 624.301 | J92: =Dvýš!H158 -> 635.5 | K92: =Dmíč!H158 -> 0 | L92: =Dkou!H158 -> 0 | M92: =Dčlu!H158 -> 0 | N92: =Dls!H158 -> 375.25 | O92: =Dodbíj!H158 -> 0 | P92: =Dplav!H158 -> 0 | Q92: =Dšplh!H158 -> 0 | R92: =Dšvih!H158 -> 224.5 | S92: ='Dz mís'!H158 -> 477.7497639 | T92: =Drepre!E61 -> 0 | U92: 2950.130388
B93: ='D60'!B159 -> TOMÁŠOVÁ | C93: ='D60'!C159 -> Sára | D93: ='D60'!D159 -> 7.B | F93: ='D60'!H159 -> 592.962323 | G93: ='D300'!H159 -> 0 | H93: ='D800'!H159 -> 0 | I93: =Ddál!H159 -> 473.008 | J93: =Dvýš!H159 -> 0 | K93: =Dmíč!H159 -> 0 | L93: =Dkou!H159 -> 0 | M93: =Dčlu!H159 -> 0 | N93: =Dls!H159 -> 0 | O93: =Dodbíj!H159 -> 0 | P93: =Dplav!H159 -> 0 | Q93: =Dšplh!H159 -> 0 | R93: =Dšvih!H159 -> 0 | S93: ='Dz mís'!H159 -> 0 | T93: =Drepre!E62 -> 0 | U93: 1065.970323
B94: ='D60'!B160 -> VANCLOVÁ | C94: ='D60'!C160 -> Barbora | D94: ='D60'!D160 -> 7.B | F94: ='D60'!H160 -> 759.0335507 | G94: ='D300'!H160 -> 0 | H94: ='D800'!H160 -> 0 | I94: =Ddál!H160 -> 613.867 | J94: =Dvýš!H160 -> 635.5 | K94: =Dmíč!H160 -> 0 | L94: =Dkou!H160 -> 0 | M94: =Dčlu!H160 -> 0 | N94: =Dls!H160 -> 0 | O94: =Dodbíj!H160 -> 0 | P94: =Dplav!H160 -> 0 | Q94: =Dšplh!H160 -> 0 | R94: =Dšvih!H160 -> 0 | S94: ='Dz mís'!H160 -> 0 | T94: =Drepre!E63 -> 0 | U94: 2008.400551
B95: ='D60'!B161 -> VOTOČKOVÁ | C95: ='D60'!C161 -> Veronika | D95: ='D60'!D161 -> 7.B | F95: ='D60'!H161 -> 590.8846744 | G95: ='D300'!H161 -> 0 | H95: ='D800'!H161 -> 0 | I95: =Ddál!H161 -> 573.87 | J95: =Dvýš!H161 -> 0 | K95: =Dmíč!H161 -> 0 | L95: =Dkou!H161 -> 0 | M95: =Dčlu!H161 -> 0 | N95: =Dls!H161 -> 0 | O95: =Dodbíj!H161 -> 0 | P95: =Dplav!H161 -> 0 | Q95: =Dšplh!H161 -> 0 | R95: =Dšvih!H161 -> 0 | S95: ='Dz mís'!H161 -> 0 | T95: =Drepre!E64 -> 0 | U95: 1164.754674
B96: ='D60'!B162 -> HARTIGOVÁ | C96: ='D60'!C162 -> Anna | D96: ='D60'!D162 -> 8.A | F96: ='D60'!H162 -> 703.2306118 | G96: ='D300'!H162 -> 0 | H96: ='D800'!H162 -> 0 | I96: =Ddál!H162 -> 716.468 | J96: =Dvýš!H162 -> 0 | K96: =Dmíč!H162 -> 458 | L96: =Dkou!H162 -> 627.5555556 | M96: =Dčlu!H162 -> 0 | N96: =Dls!H162 -> 0 | O96: =Dodbíj!H162 -> 63 | P96: =Dplav!H162 -> 0 | Q96: =Dšplh!H162 -> 0 | R96: =Dšvih!H162 -> 0 | S96: ='Dz mís'!H162 -> 0 | T96: =Drepre!E65 -> 0 | U96: 2568.254167
B97: ='D60'!B163 -> HONCŮ | C97: ='D60'!C163 -> Rozálie | D97: ='D60'!D163 -> 8.A | F97: ='D60'!H163 -> 829.4221623 | G97: ='D300'!H163 -> 0 | H97: ='D800'!H163 -> 0 | I97: =Ddál!H163 -> 810.374 | J97: =Dvýš!H163 -> 0 | K97: =Dmíč!H163 -> 494.4 | L97: =Dkou!H163 -> 653.3333333 | M97: =Dčlu!H163 -> 733.5973295 | N97: =Dls!H163 -> 0 | O97: =Dodbíj!H163 -> 30 | P97: =Dplav!H163 -> 0 | Q97: =Dšplh!H163 -> 0 | R97: =Dšvih!H163 -> 0 | S97: ='Dz mís'!H163 -> 0 | T97: =Drepre!E66 -> 0 | U97: 3551.126825
B98: ='D60'!B164 -> CHALOUPSKÁ | C98: ='D60'!C164 -> Lucie | D98: ='D60'!D164 -> 8.A | F98: ='D60'!H164 -> 0 | G98: ='D300'!H164 -> 847.9565742 | H98: ='D800'!H164 -> 0 | I98: =Ddál!H164 -> 791.245 | J98: =Dvýš!H164 -> 0 | K98: =Dmíč!H164 -> 530.8 | L98: =Dkou!H164 -> 660.4444444 | M98: =Dčlu!H164 -> 701.8087265 | N98: =Dls!H164 -> 0 | O98: =Dodbíj!H164 -> 12 | P98: =Dplav!H164 -> 0 | Q98: =Dšplh!H164 -> 0 | R98: =Dšvih!H164 -> 0 | S98: ='Dz mís'!H164 -> 0 | T98: =Drepre!E67 -> 0 | U98: 3544.254745
B99: ='D60'!B165 -> KŘÍŽKOVÁ | C99: ='D60'!C165 -> Anna | D99: ='D60'!D165 -> 8.A | F99: ='D60'!H165 -> 696.1738475 | G99: ='D300'!H165 -> 650.2981572 | H99: ='D800'!H165 -> 0 | I99: =Ddál!H165 -> 613.867 | J99: =Dvýš!H165 -> 0 | K99: =Dmíč!H165 -> 458 | L99: =Dkou!H165 -> 537.7777778 | M99: =Dčlu!H165 -> 661.4884793 | N99: =Dls!H165 -> 0 | O99: =Dodbíj!H165 -> 36 | P99: =Dplav!H165 -> 0 | Q99: =Dšplh!H165 -> 0 | R99: =Dšvih!H165 -> 0 | S99: ='Dz mís'!H165 -> 0 | T99: =Drepre!E68 -> 0 | U99: =SUM(F99:T99) -> 3653.605262
B100: ='D60'!B166 -> LUKEŠOVÁ | C100: ='D60'!C166 -> Kristýna | D100: ='D60'!D166 -> 8.A | F100: ='D60'!H166 -> 0 | G100: ='D300'!H166 -> 726.3159891 | H100: ='D800'!H166 -> 0 | I100: =Ddál!H166 -> 723.424 | J100: =Dvýš!H166 -> 0 | K100: =Dmíč!H166 -> 412.5 | L100: =Dkou!H166 -> 520 | M100: =Dčlu!H166 -> 694.0822303 | N100: =Dls!H166 -> 0 | O100: =Dodbíj!H166 -> 30 | P100: =Dplav!H166 -> 0 | Q100: =Dšplh!H166 -> 0 | R100: =Dšvih!H166 -> 0 | S100: ='Dz mís'!H166 -> 0 | T100: =Drepre!E69 -> 0 | U100: 3106.322219
B101: ='D60'!B167 -> MOTLÍKOVÁ | C101: ='D60'!C167 -> Eliška | D101: ='D60'!D167 -> 8.A | F101: ='D60'!H167 -> 721.4634001 | G101: ='D300'!H167 -> 0 | H101: ='D800'!H167 -> 0 | I101: =Ddál!H167 -> 699.078 | J101: =Dvýš!H167 -> 0 | K101: =Dmíč!H167 -> 458 | L101: =Dkou!H167 -> 590.2222222 | M101: =Dčlu!H167 -> 687.8763334 | N101: =Dls!H167 -> 0 | O101: =Dodbíj!H167 -> 30 | P101: =Dplav!H167 -> 0 | Q101: =Dšplh!H167 -> 0 | R101: =Dšvih!H167 -> 0 | S101: ='Dz mís'!H167 -> 0 | T101: =Drepre!E70 -> 0 | U101: 3186.639956
B102: ='D60'!B168 -> POHOŘELÁ | C102: ='D60'!C168 -> Amálie | D102: ='D60'!D168 -> 8.A | F102: ='D60'!H168 -> 819.8497259 | G102: ='D300'!H168 -> 665.4012487 | H102: ='D800'!H168 -> 0 | I102: =Ddál!H168 -> 0 | J102: =Dvýš!H168 -> 0 | K102: =Dmíč!H168 -> 0 | L102: =Dkou!H168 -> 546.6666667 | M102: =Dčlu!H168 -> 671.1624509 | N102: =Dls!H168 -> 541.93 | O102: =Dodbíj!H168 -> 36 | P102: =Dplav!H168 -> 0 | Q102: =Dšplh!H168 -> 0 | R102: =Dšvih!H168 -> 693.25 | S102: ='Dz mís'!H168 -> 670.631728 | T102: =Drepre!E71 -> 0 | U102: 4644.89182
B103: ='D60'!B169 -> POLÁČKOVÁ | C103: ='D60'!C169 -> Natálie | D103: ='D60'!D169 -> 8.A | F103: ='D60'!H169 -> 0 | G103: ='D300'!H169 -> 362.1473163 | H103: ='D800'!H169 -> 0 | I103: =Ddál!H169 -> 0 | J103: =Dvýš!H169 -> 0 | K103: =Dmíč!H169 -> 439.8 | L103: =Dkou!H169 -> 342.2222222 | M103: =Dčlu!H169 -> 566.4679214 | N103: =Dls!H169 -> 0 | O103: =Dodbíj!H169 -> 18 | P103: =Dplav!H169 -> 0 | Q103: =Dšplh!H169 -> 0 | R103: =Dšvih!H169 -> 0 | S103: ='Dz mís'!H169 -> 0 | T103: =Drepre!E72 -> 0 | U103: 1728.63746
B104: ='D60'!B170 -> ŘEHOŘKOVÁ | C104: ='D60'!C170 -> Lucie | D104: ='D60'!D170 -> 8.A | F104: ='D60'!H170 -> 726.7259659 | G104: ='D300'!H170 -> 683.2990891 | H104: ='D800'!H170 -> 0 | I104: =Ddál!H170 -> 744.292 | J104: =Dvýš!H170 -> 0 | K104: =Dmíč!H170 -> 558.1 | L104: =Dkou!H170 -> 688.8888889 | M104: =Dčlu!H170 -> 727.4835608 | N104: =Dls!H170 -> 0 | O104: =Dodbíj!H170 -> 18 | P104: =Dplav!H170 -> 0 | Q104: =Dšplh!H170 -> 0 | R104: =Dšvih!H170 -> 0 | S104: ='Dz mís'!H170 -> 0 | T104: =Drepre!E73 -> 0 | U104: 4146.789505
B105: ='D60'!B171 -> SKÁLOVÁ | C105: ='D60'!C171 -> Alena | D105: ='D60'!D171 -> 8.A | F105: ='D60'!H171 -> 654.5556074 | G105: ='D300'!H171 -> 547.5044892 | H105: ='D800'!H171 -> 0 | I105: =Ddál!H171 -> 672.993 | J105: =Dvýš!H171 -> 0 | K105: =Dmíč!H171 -> 367 | L105: =Dkou!H171 -> 688.8888889 | M105: =Dčlu!H171 -> 630.4320049 | N105: =Dls!H171 -> 0 | O105: =Dodbíj!H171 -> 12 | P105: =Dplav!H171 -> 0 | Q105: =Dšplh!H171 -> 0 | R105: =Dšvih!H171 -> 0 | S105: ='Dz mís'!H171 -> 0 | T105: =Drepre!E74 -> 0 | U105: 3573.37399
B106: ='D60'!B172 -> VÁVROVÁ | C106: ='D60'!C172 -> Aneta | D106: ='D60'!D172 -> 8.A | F106: ='D60'!H172 -> 780.0709346 | G106: ='D300'!H172 -> 787.1880212 | H106: ='D800'!H172 -> 0 | I106: =Ddál!H172 -> 786.028 | J106: =Dvýš!H172 -> 0 | K106: =Dmíč!H172 -> 439.8 | L106: =Dkou!H172 -> 511.1111111 | M106: =Dčlu!H172 -> 0 | N106: =Dls!H172 -> 389.14 | O106: =Dodbíj!H172 -> 63 | P106: =Dplav!H172 -> 0 | Q106: =Dšplh!H172 -> 0 | R106: =Dšvih!H172 -> 468.25 | S106: ='Dz mís'!H172 -> 792.9471199 | T106: =Drepre!E75 -> 0 | U106: 5017.535187
B107: ='D60'!B173 -> ZELINKOVÁ | C107: ='D60'!C173 -> Klára | D107: ='D60'!D173 -> 8.A | F107: ='D60'!H173 -> 780.9349623 | G107: ='D300'!H173 -> 660.0698802 | H107: ='D800'!H173 -> 0 | I107: =Ddál!H173 -> 728.641 | J107: =Dvýš!H173 -> 0 | K107: =Dmíč!H173 -> 494.4 | L107: =Dkou!H173 -> 621.3333333 | M107: =Dčlu!H173 -> 673.7862151 | N107: =Dls!H173 -> 0 | O107: =Dodbíj!H173 -> 30 | P107: =Dplav!H173 -> 0 | Q107: =Dšplh!H173 -> 0 | R107: =Dšvih!H173 -> 0 | S107: ='Dz mís'!H173 -> 0 | T107: =Drepre!E76 -> 0 | U107: 3989.165391
B108: ='D60'!B174 -> JUNGOVÁ | C108: ='D60'!C174 -> Lucie | D108: ='D60'!D174 -> 9.A | F108: ='D60'!H174 -> 829.4221623 | G108: ='D300'!H174 -> 0 | H108: ='D800'!H174 -> 0 | I108: =Ddál!H174 -> 0 | J108: =Dvýš!H174 -> 0 | K108: =Dmíč!H174 -> 376.1 | L108: =Dkou!H174 -> 462.2222222 | M108: =Dčlu!H174 -> 673.7862151 | N108: =Dls!H174 -> 0 | O108: =Dodbíj!H174 -> 0 | P108: =Dplav!H174 -> 0 | Q108: =Dšplh!H174 -> 0 | R108: =Dšvih!H174 -> 0 | S108: ='Dz mís'!H174 -> 0 | T108: =Drepre!E77 -> 0 | U108: 2341.5306
B109: ='D60'!B175 -> KŘIVÁNKOVÁ | C109: ='D60'!C175 -> Linda | D109: ='D60'!D175 -> 9.A | F109: ='D60'!H175 -> 703.2306118 | G109: ='D300'!H175 -> 422.4211204 | H109: ='D800'!H175 -> 0 | I109: =Ddál!H175 -> 0 | J109: =Dvýš!H175 -> 0 | K109: =Dmíč!H175 -> 285.1 | L109: =Dkou!H175 -> 564.4444444 | M109: =Dčlu!H175 -> 638.6874773 | N109: =Dls!H175 -> 0 | O109: =Dodbíj!H175 -> 0 | P109: =Dplav!H175 -> 0 | Q109: =Dšplh!H175 -> 0 | R109: =Dšvih!H175 -> 462 | S109: ='Dz mís'!H175 -> 0 | T109: =Drepre!E78 -> 0 | U109: 3075.883654
B110: ='D60'!B176 -> KUBÁTOVÁ | C110: ='D60'!C176 -> Lucie | D110: ='D60'!D176 -> 9.A | F110: ='D60'!H176 -> 726.7259659 | G110: ='D300'!H176 -> 0 | H110: ='D800'!H176 -> 0 | I110: =Ddál!H176 -> 0 | J110: =Dvýš!H176 -> 0 | K110: =Dmíč!H176 -> 0 | L110: =Dkou!H176 -> 0 | M110: =Dčlu!H176 -> 0 | N110: =Dls!H176 -> 0 | O110: =Dodbíj!H176 -> 0 | P110: =Dplav!H176 -> 0 | Q110: =Dšplh!H176 -> 0 | R110: =Dšvih!H176 -> 0 | S110: ='Dz mís'!H176 -> 0 | T110: =Drepre!E79 -> 0 | U110: 726.7259659
B111: ='D60'!B177 -> ŠIMŮNKOVÁ | C111: ='D60'!C177 -> Nikola | D111: ='D60'!D177 -> 9.A | F111: ='D60'!H177 -> 703.9435497 | G111: ='D300'!H177 -> 437.6717991 | H111: ='D800'!H177 -> 0 | I111: =Ddál!H177 -> 0 | J111: =Dvýš!H177 -> 0 | K111: =Dmíč!H177 -> 330.6 | L111: =Dkou!H177 -> 472 | M111: =Dčlu!H177 -> 596.6303582 | N111: =Dls!H177 -> 0 | O111: =Dodbíj!H177 -> 0 | P111: =Dplav!H177 -> 0 | Q111: =Dšplh!H177 -> 0 | R111: =Dšvih!H177 -> 0 | S111: ='Dz mís'!H177 -> 0 | T111: =Drepre!E80 -> 0 | U111: 2540.845707
B112: ='D60'!B178 -> ŠMÍDOVÁ | C112: ='D60'!C178 -> Kristýna | D112: ='D60'!D178 -> 9.A | F112: ='D60'!H178 -> 593.4838128 | G112: ='D300'!H178 -> 520.6470498 | H112: ='D800'!H178 -> 0 | I112: =Ddál!H178 -> 0 | J112: =Dvýš!H178 -> 0 | K112: =Dmíč!H178 -> 367 | L112: =Dkou!H178 -> 584 | M112: =Dčlu!H178 -> 568.875034 | N112: =Dls!H178 -> 541.93 | O112: =Dodbíj!H178 -> 0 | P112: =Dplav!H178 -> 0 | Q112: =Dšplh!H178 -> 0 | R112: =Dšvih!H178 -> 224.5 | S112: ='Dz mís'!H178 -> 421.2965061 | T112: =Drepre!E81 -> 0 | U112: 3821.732403
B113: ='D60'!B179 -> VOTOČKOVÁ | C113: ='D60'!C179 -> Nikola | D113: ='D60'!D179 -> 9.A | F113: ='D60'!H179 -> 857.3693744 | G113: ='D300'!H179 -> 815.1873542 | H113: ='D800'!H179 -> 0 | I113: =Ddál!H179 -> 0 | J113: =Dvýš!H179 -> 0 | K113: =Dmíč!H179 -> 530.8 | L113: =Dkou!H179 -> 562.6666667 | M113: =Dčlu!H179 -> 701.0997715 | N113: =Dls!H179 -> 0 | O113: =Dodbíj!H179 -> 0 | P113: =Dplav!H179 -> 0 | Q113: =Dšplh!H179 -> 0 | R113: =Dšvih!H179 -> 0 | S113: ='Dz mís'!H179 -> 0 | T113: =Drepre!E82 -> 0 | U113: 3467.123167
B114: ='D60'!B180 -> VYHLASOVÁ | C114: ='D60'!C180 -> Lenka | D114: ='D60'!D180 -> 9.A | F114: ='D60'!H180 -> 593.4838128 | G114: ='D300'!H180 -> 0 | H114: ='D800'!H180 -> 0 | I114: =Ddál!H180 -> 0 | J114: =Dvýš!H180 -> 0 | K114: =Dmíč!H180 -> 0 | L114: =Dkou!H180 -> 612.4444444 | M114: =Dčlu!H180 -> 519.4544512 | N114: =Dls!H180 -> 0 | O114: =Dodbíj!H180 -> 0 | P114: =Dplav!H180 -> 0 | Q114: =Dšplh!H180 -> 0 | R114: =Dšvih!H180 -> 0 | S114: ='Dz mís'!H180 -> 0 | T114: =Drepre!E83 -> 0 | U114: 1725.382708
B115: ='D60'!B181 -> BÖHMOVÁ | C115: ='D60'!C181 -> Diana | D115: ='D60'!D181 -> 9.B | F115: ='D60'!H181 -> 743.7375504 | G115: ='D300'!H181 -> 632.0655859 | H115: ='D800'!H181 -> 0 | I115: =Ddál!H181 -> 0 | J115: =Dvýš!H181 -> 0 | K115: =Dmíč!H181 -> 357.9 | L115: =Dkou!H181 -> 525.3333333 | M115: =Dčlu!H181 -> 657.061158 | N115: =Dls!H181 -> 0 | O115: =Dodbíj!H181 -> 24 | P115: =Dplav!H181 -> 509.9544345 | Q115: =Dšplh!H181 -> 0 | R115: =Dšvih!H181 -> 0 | S115: ='Dz mís'!H181 -> 0 | T115: =Drepre!E84 -> 0 | U115: 3450.052062
B116: ='D60'!B182 -> HOUDOVÁ | C116: ='D60'!C182 -> Tereza | D116: ='D60'!D182 -> 9.B | F116: ='D60'!H182 -> 750.1076892 | G116: ='D300'!H182 -> 0 | H116: ='D800'!H182 -> 0 | I116: =Ddál!H182 -> 0 | J116: =Dvýš!H182 -> 0 | K116: =Dmíč!H182 -> 0 | L116: =Dkou!H182 -> 0 | M116: =Dčlu!H182 -> 0 | N116: =Dls!H182 -> 0 | O116: =Dodbíj!H182 -> 0 | P116: =Dplav!H182 -> 509.9544345 | Q116: =Dšplh!H182 -> 0 | R116: =Dšvih!H182 -> 0 | S116: ='Dz mís'!H182 -> 0 | T116: =Drepre!E85 -> 0 | U116: 1260.062124
B117: ='D60'!B183 -> JANÍKOVÁ | C117: ='D60'!C183 -> Kristýna | D117: ='D60'!D183 -> 9.B | F117: ='D60'!H183 -> 829.4221623 | G117: ='D300'!H183 -> 0 | H117: ='D800'!H183 -> 0 | I117: =Ddál!H183 -> 0 | J117: =Dvýš!H183 -> 0 | K117: =Dmíč!H183 -> 0 | L117: =Dkou!H183 -> 635.5555556 | M117: =Dčlu!H183 -> 0 | N117: =Dls!H183 -> 0 | O117: =Dodbíj!H183 -> 0 | P117: =Dplav!H183 -> 509.9544345 | Q117: =Dšplh!H183 -> 0 | R117: =Dšvih!H183 -> 0 | S117: ='Dz mís'!H183 -> 0 | T117: =Drepre!E86 -> 0 | U117: 1974.932152
B118: ='D60'!B184 -> KUŽELOVÁ | C118: ='D60'!C184 -> Ela | D118: ='D60'!D184 -> 9.B | F118: ='D60'!H184 -> 797.6963731 | G118: ='D300'!H184 -> 424.6325174 | H118: ='D800'!H184 -> 0 | I118: =Ddál!H184 -> 0 | J118: =Dvýš!H184 -> 0 | K118: =Dmíč!H184 -> 0 | L118: =Dkou!H184 -> 568 | M118: =Dčlu!H184 -> 696.1738475 | N118: =Dls!H184 -> 0 | O118: =Dodbíj!H184 -> 27 | P118: =Dplav!H184 -> 0 | Q118: =Dšplh!H184 -> 0 | R118: =Dšvih!H184 -> 0 | S118: ='Dz mís'!H184 -> 0 | T118: =Drepre!E87 -> 0 | U118: 2513.502738
B119: ='D60'!B185 -> MATERNOVÁ | C119: ='D60'!C185 -> Lucie | D119: ='D60'!D185 -> 9.B | F119: ='D60'!H185 -> 767.3206174 | G119: ='D300'!H185 -> 612.4030839 | H119: ='D800'!H185 -> 0 | I119: =Ddál!H185 -> 0 | J119: =Dvýš!H185 -> 0 | K119: =Dmíč!H185 -> 257.8 | L119: =Dkou!H185 -> 372.4444444 | M119: =Dčlu!H185 -> 640.4822991 | N119: =Dls!H185 -> 0 | O119: =Dodbíj!H185 -> 12 | P119: =Dplav!H185 -> 0 | Q119: =Dšplh!H185 -> 0 | R119: =Dšvih!H185 -> 0 | S119: ='Dz mís'!H185 -> 0 | T119: =Drepre!E88 -> 0 | U119: 2662.450445
B120: ='D60'!B186 -> OPOČENSKÁ | C120: ='D60'!C186 -> Matylda | D120: ='D60'!D186 -> 9.B | F120: ='D60'!H186 -> 0 | G120: ='D300'!H186 -> 0 | H120: ='D800'!H186 -> 0 | I120: =Ddál!H186 -> 0 | J120: =Dvýš!H186 -> 0 | K120: =Dmíč!H186 -> 0 | L120: =Dkou!H186 -> 0 | M120: =Dčlu!H186 -> 0 | N120: =Dls!H186 -> 0 | O120: =Dodbíj!H186 -> 0 | P120: =Dplav!H186 -> 0 | Q120: =Dšplh!H186 -> 0 | R120: =Dšvih!H186 -> 0 | S120: ='Dz mís'!H186 -> 0 | T120: =Drepre!E89 -> 0 | U120: 0
B121: ='D60'!B187 -> PIŠTOROVÁ | C121: ='D60'!C187 -> Karolína | D121: ='D60'!D187 -> 9.B | F121: ='D60'!H187 -> 787.9117839 | G121: ='D300'!H187 -> 0 | H121: ='D800'!H187 -> 0 | I121: =Ddál!H187 -> 0 | J121: =Dvýš!H187 -> 0 | K121: =Dmíč!H187 -> 367 | L121: =Dkou!H187 -> 0 | M121: =Dčlu!H187 -> 687.8763334 | N121: =Dls!H187 -> 0 | O121: =Dodbíj!H187 -> 27 | P121: =Dplav!H187 -> 0 | Q121: =Dšplh!H187 -> 0 | R121: =Dšvih!H187 -> 0 | S121: ='Dz mís'!H187 -> 0 | T121: =Drepre!E90 -> 0 | U121: 1869.788117
B122: ='D60'!B188 -> POKORNÝ | C122: ='D60'!C188 -> Anna | D122: ='D60'!D188 -> 9.B | F122: ='D60'!H188 -> 0 | G122: ='D300'!H188 -> 0 | H122: ='D800'!H188 -> 0 | I122: =Ddál!H188 -> 0 | J122: =Dvýš!H188 -> 0 | K122: =Dmíč!H188 -> 303.3 | L122: =Dkou!H188 -> 576 | M122: =Dčlu!H188 -> 0 | N122: =Dls!H188 -> 625.27 | O122: =Dodbíj!H188 -> 15 | P122: =Dplav!H188 -> 0 | Q122: =Dšplh!H188 -> 0 | R122: =Dšvih!H188 -> 0 | S122: ='Dz mís'!H188 -> 0 | T122: =Drepre!E91 -> 0 | U122: 1519.57
B123: ='D60'!B189 -> SUCHÁNKOVÁ | C123: ='D60'!C189 -> Michaela | D123: ='D60'!D189 -> 9.B | F123: ='D60'!H189 -> 586.7688574 | G123: ='D300'!H189 -> 398.082218 | H123: ='D800'!H189 -> 0 | I123: =Ddál!H189 -> 0 | J123: =Dvýš!H189 -> 0 | K123: =Dmíč!H189 -> 276 | L123: =Dkou!H189 -> 546.6666667 | M123: =Dčlu!H189 -> 517.8183709 | N123: =Dls!H189 -> 0 | O123: =Dodbíj!H189 -> 27 | P123: =Dplav!H189 -> 0 | Q123: =Dšplh!H189 -> 0 | R123: =Dšvih!H189 -> 0 | S123: ='Dz mís'!H189 -> 0 | T123: =Drepre!E92 -> 0 | U123: 2352.336113
B124: ='D60'!B190 -> ŠUBÍKOVÁ | C124: ='D60'!C190 -> Štěpánka | D124: ='D60'!D190 -> 9.B | F124: ='D60'!H190 -> 774.923874 | G124: ='D300'!H190 -> 637.6036953 | H124: ='D800'!H190 -> 0 | I124: =Ddál!H190 -> 0 | J124: =Dvýš!H190 -> 0 | K124: =Dmíč!H190 -> 321.5 | L124: =Dkou!H190 -> 466.6666667 | M124: =Dčlu!H190 -> 692.6942448 | N124: =Dls!H190 -> 0 | O124: =Dodbíj!H190 -> 27 | P124: =Dplav!H190 -> 0 | Q124: =Dšplh!H190 -> 0 | R124: =Dšvih!H190 -> 0 | S124: ='Dz mís'!H190 -> 0 | T124: =Drepre!E93 -> 0 | U124: 2920.388481
B125: ='D60'!B191 -> VANCLOVÁ | C125: ='D60'!C191 -> Pavlína | D125: ='D60'!D191 -> 9.B | F125: ='D60'!H191 -> 0 | G125: ='D300'!H191 -> 643.6281601 | H125: ='D800'!H191 -> 0 | I125: =Ddál!H191 -> 0 | J125: =Dvýš!H191 -> 0 | K125: =Dmíč!H191 -> 421.6 | L125: =Dkou!H191 -> 724.4444444 | M125: =Dčlu!H191 -> 654.5556074 | N125: =Dls!H191 -> 0 | O125: =Dodbíj!H191 -> 24 | P125: =Dplav!H191 -> 509.9544345 | Q125: =Dšplh!H191 -> 0 | R125: =Dšvih!H191 -> 0 | S125: ='Dz mís'!H191 -> 0 | T125: =Drepre!E94 -> 0 | U125: 2978.182646

Sheet Droč
C1: CELKOVÉ VÝSLEDKY | U1: =TODAY() -> 2021-06-28
B3: 6. ročník | F3: 60 m | G3: 300m | H3: 1000m | I3: dálka | J3: výška | K3: míček | L3: koule | M3: člunek | N3: lehsed | O3: odbíjení | P3: plavání | Q3: šplh | R3: švihadlo | S3: z místa | T3: REPRE | U3: CELKEM
A5: 1. | B5: =B139 -> ERBENOVÁ | C5: =C139 -> Sára | D5: =D139 -> 6.A | F5: =F139 -> 645.3139553 | G5: 0 | H5: 0 | I5: 570.392 | J5: 0 | K5: 321.5 | L5: 325.3333333 | M5: 0 | N5: 541.93 | O5: 0 | P5: 0 | Q5: 0 | R5: 174.5 | S5: 454.2275732 | T5: 0 | U5: 3033.196862
A6: 2. | B6: =B140 -> HOFMANOVÁ | C6: Nicol | D6: 6.A | F6: 625.2273174 | G6: 491.2991107 | H6: 0 | I6: 646.908 | J6: 0 | K6: 285.1 | L6: 419.5555556 | M6: 606.7977669 | N6: 389.14 | O6: 0 | P6: 0 | Q6: 0 | R6: 318.25 | S6: 670.631728 | T6: 0 | U6: =U140 -> 4452.909479
A7: 3. | B7: =B141 -> HOLEŠOVSKÁ | C7: Aneta | D7: 6.A | F7: 683.1197966 | G7: 0 | H7: 279.5310145 | I7: 622.562 | J7: 0 | K7: 414.32 | L7: 0 | M7: 0 | N7: 0 | O7: 0 | P7: 0 | Q7: 0 | R7: 0 | S7: 0 | T7: 0 | U7: 1999.532811
A8: 4. | B8: HOLUBCOVÁ | C8: Alena | D8: 6.A | F8: 0 | G8: 687.0880805 | H8: 0 | I8: 634.735 | J8: 0 | K8: 530.8 | L8: 574.2222222 | M8: 680.4288819 | N8: 0 | O8: 0 | P8: 0 | Q8: 0 | R8: 0 | S8: 694.1539188 | T8: 0 | U8: 3801.428103
A9: 5. | B9: KOHOUTOVÁ | C9: Anna | D9: 6.A | F9: 556.5564308 | G9: 420.7536823 | H9: 0 | I9: 525.178 | J9: 0 | K9: 239.6 | L9: 272.8888889 | M9: 539.8369847 | N9: 0 | O9: 0 | P9: 0 | Q9: 0 | R9: 0 | S9: 0 | T9: 0 | U9: 2554.813987
A10: 6. | B10: KRAUSOVÁ | C10: Anežka | D10: 6.A | F10: 635.7164917 | G10: 619.1152056 | H10: 0 | I10: 0 | J10: 0 | K10: 0 | L10: 0 | M10: 638.0912487 | N10: 528.04 | O10: 0 | P10: 0 | Q10: 0 | R10: 0 | S10: 694.1539188 | T10: 0 | U10: 3115.116865
A11: 7. | B11: KUŽELOVÁ | C11: Apoléna | D11: 6.A | F11: 692.0021691 | G11: 0 | H11: 517.1215266 | I11: 606.911 | J11: 0 | K11: 337.88 | L11: 0 | M11: 0 | N11: 0 | O11: 0 | P11: 0 | Q11: 0 | R11: 0 | S11: 0 | T11: 0 | U11: 2153.914696
A12: 8. | B12: MORÁVKOVÁ | C12: Lucie | D12: 6.A | F12: 645.3139553 | G12: 0 | H12: 446.6865305 | I12: 513.005 | J12: 0 | K12: 383.38 | L12: 0 | M12: 0 | N12: 625.27 | O12: 0 | P12: 0 | Q12: 0 | R12: 493.25 | S12: 0 | T12: 0 | U12: 3106.905486
A13: 9. | B13: SKLENÁROVÁ | C13: Eliška | D13: 6.A | F13: 0 | G13: 474.6279096 | H13: 0 | I13: 0 | J13: 0 | K13: 0 | L13: 0 | M13: 0 | N13: 583.6 | O13: 0 | P13: 0 | Q13: 0 | R13: 243.25 | S13: 553.0207743 | T13: 0 | U13: 1854.498684
A14: 10. | B14: ŠTOLFOVÁ | C14: Tereza | D14: 6.A | F14: 694.7781473 | G14: 609.0873703 | H14: 0 | I14: 0 | J14: 0 | K14: 257.8 | L14: 293.3333333 | M14: 622.369643 | N14: 0 | O14: 0 | P14: 0 | Q14: 0 | R14: 0 | S14: 491.8630784 | T14: 0 | U14: 2969.231572
A15: 11. | B15: ŠUBÍKOVÁ | C15: Klára | D15: 6.A | F15: 0 | G15: 593.8773779 | H15: 0 | I15: 669.515 | J15: 0 | K15: 239.6 | L15: 364.4444444 | M15: 642.8898111 | N15: 0 | O15: 0 | P15: 0 | Q15: 0 | R15: 0 | S15: 623.5873466 | T15: 0 | U15: 3133.91398
A16: 12. | B16: TULÁČKOVÁ | C16: Natálie | D16: 6.A | F16: 648.981736 | G16: 0 | H16: 458.7008332 | I16: 577.348 | J16: 0 | K16: 326.96 | L16: 0 | M16: 0 | N16: 666.94 | O16: 0 | P16: 0 | Q16: 0 | R16: 262 | S16: 0 | T16: 0 | U16: 2940.930569
A17: 13. | B17: VOJTÍŠKOVÁ | C17: Ella | D17: 6.A | F17: 709.6954327 | G17: 0 | H17: 0 | I17: 659.081 | J17: 0 | K17: 450.72 | L17: 0 | M17: 0 | N17: 0 | O17: 0 | P17: 0 | Q17: 0 | R17: 830.75 | S17: 567.1340888 | T17: 0 | U17: 3217.380521
A18: 14. | B18: DRUGÁČOVÁ | C18: Kristinka | D18: 6.B | F18: 0 | G18: 628.8570231 | H18: 0 | I18: 664.298 | J18: 0 | K18: 303.3 | L18: 377.7777778 | M18: 693.3875973 | N18: 416.92 | O18: 0 | P18: 0 | Q18: 0 | R18: 249.5 | S18: 703.5627951 | T18: 0 | U18: 4037.603193
A19: 15. | B19: FAJSTAVROVÁ | C19: Karolína | D19: 6.B | F19: 709.6954327 | G19: 0 | H19: 757.6745547 | I19: 634.735 | J19: 0 | K19: 410.68 | L19: 0 | M19: 0 | N19: 305.8 | O19: 0 | P19: 0 | Q19: 0 | R19: 362 | S19: 308.3899906 | T19: 0 | U19: 3488.974978
A20: 16. | B20: FAJSTAVROVÁ | C20: Magdaléna | D20: 6.B | F20: 736.6900017 | G20: 0 | H20: 801.5705492 | I20: 0 | J20: 0 | K20: 530.8 | L20: 0 | M20: 0 | N20: 625.27 | O20: 0 | P20: 0 | Q20: 0 | R20: 493.25 | S20: 722.3805477 | T20: =T154 -> 0 | U20: 3909.961099
A21: 17. | B21: HLAVATÁ | C21: Anna | D21: 6.B | F21: 0 | G21: 0 | H21: 0 | I21: 636.474 | J21: 0 | K21: 0 | L21: 0 | M21: 632.1845437 | N21: 0 | O21: 0 | P21: 0 | Q21: 0 | R21: 0 | S21: 0 | T21: 0 | U21: 1268.658544
A22: 18. | B22: JINDROVÁ | C22: Barbora | D22: 6.B | F22: 615.0502178 | G22: 0 | H22: 564.8599999 | I22: 643.43 | J22: 0 | K22: 221.4 | L22: 0 | M22: 0 | N22: 347.47 | O22: 0 | P22: 0 | Q22: 0 | R22: 337 | S22: 477.7497639 | T22: 0 | U22: 3206.959982
A23: 19. | B23: MAŘASOVÁ | C23: Vendula | D23: 6.B | F23: 0 | G23: 0 | H23: 545.4814341 | I23: 547.785 | J23: 0 | K23: 239.6 | L23: 0 | M23: 0 | N23: 0 | O23: 0 | P23: 0 | Q23: 0 | R23: 0 | S23: 0 | T23: 0 | U23: 1332.866434
A24: 20. | B24: PETŘÍČKOVÁ | C24: Natálie | D24: 6.B | F24: 697.5747265 | G24: 0 | H24: 0 | I24: 674.732 | J24: 0 | K24: 399.76 | L24: 0 | M24: 0 | N24: 0 | O24: 0 | P24: 0 | Q24: 0 | R24: 0 | S24: 0 | T24: 0 | U24: 1772.066726
A25: 21. | B25: PETŘÍKOVÁ | C25: Adéla | D25: 6.B | F25: 599.8074033 | G25: 541.6772924 | H25: 0 | I25: 464.313 | J25: 0 | K25: 203.2 | L25: 353.7777778 | M25: 574.2364662 | N25: 333.58 | O25: 0 | P25: 0 | Q25: 0 | R25: 124.5 | S25: 576.5429651 | T25: 0 | U25: 3771.634905
A26: 22. | B26: REGÁLOVÁ | C26: Karolína | D26: 6.B | F26: 657.061158 | G26: 0 | H26: 529.7114396 | I26: 636.474 | J26: 0 | K26: 425.24 | L26: 0 | M26: 0 | N26: 778.06 | O26: 0 | P26: 0 | Q26: 0 | R26: 462 | S26: 430.7053824 | T26: 0 | U26: 3919.25198
A27: 23. | B27: RIEGROVÁ | C27: Magdaléna | D27: 6.B | F27: 0 | G27: 514.4247023 | H27: 0 | I27: 0 | J27: 0 | K27: 285.1 | L27: 256.8888889 | M27: 587.7929157 | N27: 0 | O27: 0 | P27: 0 | Q27: 0 | R27: 0 | S27: 590.6562795 | T27: 0 | U27: 2234.862786
A28: 24. | B28: RYBENSKÁ | C28: Sabina | D28: 6.B | F28: 681.7718952 | G28: 0 | H28: 529.7114396 | I28: 582.565 | J28: 0 | K28: 232.32 | L28: 0 | M28: 0 | N28: 0 | O28: 0 | P28: 0 | Q28: 0 | R28: 0 | S28: 0 | T28: 0 | U28: 2026.368335
A29: 25. | B29: STEINEROVÁ | C29: Barbora | D29: 6.B | F29: 665.3271387 | G29: 0 | H29: 527.1544185 | I29: 631.257 | J29: 0 | K29: 447.08 | L29: 0 | M29: 0 | N29: 0 | O29: 0 | P29: 0 | Q29: 0 | R29: 0 | S29: 0 | T29: 0 | U29: 2270.818557
A30: 26. | B30: TOMEŠOVÁ | C30: Barbora | D30: 6.B | F30: 644.7063505 | G30: 0 | H30: 522.0993845 | I30: 509.527 | J30: 0 | K30: 297.84 | L30: 0 | M30: 0 | N30: 0 | O30: 0 | P30: 0 | Q30: 0 | R30: 0 | S30: 0 | T30: 0 | U30: 1974.172735
A31: 27. | B31: VOHNOUTOVÁ | C31: Aneta | D31: 6.B | F31: 739.8069065 | G31: 0 | H31: 654.9344442 | I31: 0 | J31: 0 | K31: 530.8 | L31: 0 | M31: 0 | N31: 805.84 | O31: 0 | P31: 0 | Q31: 0 | R31: 274.5 | S31: 458.9320113 | T31: 0 | U31: 3464.813362
C35: CELKOVÉ VÝSLEDKY | U35: =TODAY() -> 2021-06-28
B37: 7. ročník | F37: 60 m | G37: 300m | H37: 1000m | I37: dálka | J37: výška | K37: míček | L37: koule | M37: člunek | N37: lehsed | O37: odbíjení | P37: plavání | Q37: šplh | R37: švihadlo | S37: z místa | T37: REPRE | U37: CELKEM
A39: 1. | B39: =B166 -> HAVLÍKOVÁ | C39: =C166 -> Michaela | D39: 7.A | E39: 0 | F39: 635.1253288 | G39: 0 | H39: 0 | I39: 634.735 | J39: 0 | K39: 0 | L39: 254.2222222 | M39: 673.7862151 | N39: 0 | O39: 0 | P39: 0 | Q39: 0 | R39: 0 | S39: 0 | T39: 0 | U39: =U166 -> 2197.868766
A40: 2. | B40: =B167 -> HOLUBCOVÁ | C40: Sára | D40: 7.A | E40: 0 | F40: 792.3314693 | G40: 0 | H40: 0 | I40: 758.204 | J40: 0 | K40: 458 | L40: 381.3333333 | M40: 706.8086895 | N40: 0 | O40: 0 | P40: 0 | Q40: 0 | R40: 362 | S40: 0 | T40: 0 | U40: 3458.677492
A41: 3. | B41: =B168 -> HONCŮ | C41: Tereza | D41: 7.A | E41: 0 | F41: 671.1624509 | G41: 0 | H41: 0 | I41: 723.424 | J41: 0 | K41: 403.4 | L41: 356.4444444 | M41: 0 | N41: 0 | O41: 0 | P41: 0 | Q41: 0 | R41: 0 | S41: 0 | T41: 0 | U41: 2154.430895
A42: 4. | B42: =B169 -> HORÁČKOVÁ | C42: Kateřina | D42: 7.A | E42: 0 | F42: 791.4438453 | G42: 0 | H42: 0 | I42: 754.726 | J42: 0 | K42: 403.4 | L42: 511.1111111 | M42: 694.0822303 | N42: 541.93 | O42: 0 | P42: 0 | Q42: 0 | R42: 212 | S42: 0 | T42: 0 | U42: 3908.693187
A43: 5. | B43: =B170 -> JOUDALOVÁ | C43: Daniela | D43: 7.A | E43: 0 | F43: 0 | G43: 0 | H43: 0 | I43: 0 | J43: 0 | K43: 0 | L43: 364.4444444 | M43: 0 | N43: 0 | O43: 0 | P43: 0 | Q43: 0 | R43: 0 | S43: 0 | T43: 0 | U43: 364.4444444
A44: 6. | B44: =B171 -> KLÍMOVÁ | C44: Anna | D44: 7.A | E44: 0 | F44: 695.4753518 | G44: 0 | H44: 0 | I44: 0 | J44: 0 | K44: 0 | L44: 422.2222222 | M44: 662.763503 | N44: 0 | O44: 0 | P44: 0 | Q44: 0 | R44: 0 | S44: 0 | T44: 0 | U44: 1780.461077
A45: 7. | B45: =B172 -> KOHOUTOVÁ | C45: Veronika | D45: 7.A | E45: 0 | F45: 0 | G45: 0 | H45: 0 | I45: 780.811 | J45: 0 | K45: 539.9 | L45: 494.2222222 | M45: 695.4753518 | N45: 0 | O45: 0 | P45: 0 | Q45: 0 | R45: 0 | S45: 0 | T45: 0 | U45: 2510.408574
A46: 8. | B46: =B173 -> KOVÁŘOVÁ | C46: Viktorie | D46: 7.A | E46: 0 | F46: 708.9717082 | G46: 0 | H46: 0 | I46: 721.685 | J46: 0 | K46: 357.9 | L46: 372.4444444 | M46: 692.6942448 | N46: 583.6 | O46: 0 | P46: 0 | Q46: 0 | R46: 0 | S46: 0 | T46: 0 | U46: 3437.295397
A47: 9. | B47: =B174 -> KYNČLOVÁ | C47: Anna | D47: 7.A | E47: 0 | F47: 799.4997337 | G47: 0 | H47: 0 | I47: 766.899 | J47: 0 | K47: 503.5 | L47: 329.7777778 | M47: 750.1076892 | N47: 736.39 | O47: 0 | P47: 0 | Q47: 0 | R47: 355.75 | S47: 0 | T47: 0 | U47: 4241.924201
A48: 10. | B48: =B175 -> MATOUŠOVÁ | C48: Tereza | D48: 7.A | E48: 0 | F48: 695.4753518 | G48: 0 | H48: 0 | I48: 739.075 | J48: 0 | K48: 376.1 | L48: 432 | M48: 628.6883322 | N48: 0 | O48: 0 | P48: 509.9544345 | Q48: 0 | R48: 312 | S48: 0 | T48: 0 | U48: 3693.293119
A49: 11. | B49: =B176 -> MAZÁNKOVÁ | C49: Zuzana | D49: 7.A | E49: 0 | F49: 735.914573 | G49: 0 | H49: 0 | I49: 672.993 | J49: 0 | K49: 348.8 | L49: 422.2222222 | M49: 0 | N49: 0 | O49: 0 | P49: 0 | Q49: 0 | R49: 0 | S49: 0 | T49: 0 | U49: 2179.929795
A50: 12. | B50: =B177 -> MORKESOVÁ | C50: Sabrina | D50: 7.A | E50: 0 | F50: 0 | G50: 0 | H50: 0 | I50: 766.899 | J50: 0 | K50: 767.4 | L50: 610.6666667 | M50: 743.7375504 | N50: 541.93 | O50: 0 | P50: 0 | Q50: 0 | R50: 412 | S50: 637.700661 | T50: 0 | U50: 4480.333878
A51: 13. | B51: =B178 -> POHOŘALÁ | C51: Alžběta | D51: 7.A | E51: 0 | F51: 799.4997337 | G51: 0 | H51: 0 | I51: 733.858 | J51: 0 | K51: 412.5 | L51: 400.8888889 | M51: 699.6858186 | N51: 0 | O51: 0 | P51: 509.9544345 | Q51: 0 | R51: 0 | S51: 0 | T51: 0 | U51: 3556.386876
A52: 14. | B52: =B179 -> SCHOLZOVÁ | C52: Laura | D52: 7.A | E52: 0 | F52: 663.4027089 | G52: 0 | H52: 0 | I52: 0 | J52: 0 | K52: 0 | L52: 296 | M52: 636.3086625 | N52: 0 | O52: 0 | P52: 509.9544345 | Q52: 0 | R52: 0 | S52: 0 | T52: 0 | U52: 2105.665806
A53: 15. | B53: =B180 -> VÁCLAVÍKOVÁ | C53: Valerie | D53: 7.A | E53: 0 | F53: 806.7897522 | G53: 0 | H53: 0 | I53: 742.553 | J53: 0 | K53: 485.3 | L53: 548.4444444 | M53: 684.4726129 | N53: 528.04 | O53: 0 | P53: 509.9544345 | Q53: 0 | R53: 287 | S53: 477.7497639 | T53: 0 | U53: 5070.304008
A54: 16. | B54: =B181 -> ZAPADLOVÁ | C54: Emma | D54: 7.A | E54: 0 | F54: 797.6963731 | G54: 0 | H54: 0 | I54: 728.641 | J54: 0 | K54: 612.7 | L54: 400.8888889 | M54: 690.6218344 | N54: 486.37 | O54: 0 | P54: 509.9544345 | Q54: 0 | R54: 412 | S54: 0 | T54: 0 | U54: 4638.872531
A55: 17. | B55: =B182 -> ŽIŠKOVÁ | C55: Mia | D55: 7.A | E55: 0 | F55: 792.3314693 | G55: 0 | H55: 0 | I55: 725.163 | J55: 0 | K55: 412.5 | L55: 0 | M55: 0 | N55: 0 | O55: 0 | P55: 0 | Q55: 0 | R55: 0 | S55: 0 | T55: 0 | U55: 1929.994469
A56: 18. | B56: =B183 -> FARSKÁ | C56: Tereza | D56: 7.B | E56: 0 | F56: 647.1430823 | G56: 0 | H56: 0 | I56: 0 | J56: 0 | K56: 0 | L56: 0 | M56: 0 | N56: 472.48 | O56: 0 | P56: 0 | Q56: 0 | R56: 355.75 | S56: 426.0009443 | T56: 0 | U56: 1901.374027
A57: 19. | B57: =B184 -> FEIXOVÁ | C57: Rozálie | D57: 7.B | E57: 0 | F57: 645.3139553 | G57: 0 | H57: 0 | I57: 565.175 | J57: 0 | K57: 0 | L57: 0 | M57: 0 | N57: 0 | O57: 0 | P57: 0 | Q57: 0 | R57: 0 | S57: 0 | T57: 0 | U57: 1210.488955
A58: 20. | B58: =B185 -> FIŠEROVÁ | C58: Michaela | D58: 7.B | E58: 0 | F58: 689.2465651 | G58: 0 | H58: 0 | I58: 553.002 | J58: 570.5 | K58: 0 | L58: 0 | M58: 0 | N58: 0 | O58: 0 | P58: 0 | Q58: 0 | R58: 0 | S58: 0 | T58: 0 | U58: 1812.748565
A59: 21. | B59: =B186 -> HAVLÍČKOVÁ | C59: Kristýna | D59: 7.B | E59: 0 | F59: 600.8732728 | G59: 0 | H59: 0 | I59: 539.09 | J59: 0 | K59: 0 | L59: 0 | M59: 0 | N59: 0 | O59: 0 | P59: 0 | Q59: 0 | R59: 0 | S59: 0 | T59: 0 | U59: 1139.963273
A60: 22. | B60: =B187 -> JODASOVÁ | C60: Nikola | D60: 7.B | E60: 0 | F60: 777.4894858 | G60: 0 | H60: 0 | I60: 695.6 | J60: 0 | K60: 0 | L60: 0 | M60: 0 | N60: 0 | O60: 0 | P60: 0 | Q60: 0 | R60: 0 | S60: 0 | T60: 0 | U60: 1473.089486
A61: 23. | B61: =B188 -> KADAVÁ | C61: Nikola | D61: 7.B | E61: 0 | F61: 0 | G61: 0 | H61: 0 | I61: 0 | J61: 0 | K61: 0 | L61: 0 | M61: 0 | N61: 583.6 | O61: 0 | P61: 0 | Q61: 0 | R61: 0 | S61: 0 | T61: 0 | U61: 583.6
A62: 24. | B62: =B189 -> KRAFKOVÁ | C62: Lucie | D62: 7.B | E62: 0 | F62: 675.7664479 | G62: 0 | H62: 0 | I62: 537.351 | J62: 0 | K62: 0 | L62: 0 | M62: 0 | N62: 0 | O62: 0 | P62: 0 | Q62: 0 | R62: 0 | S62: 0 | T62: 0 | U62: 1213.117448
A63: 25. | B63: =B190 -> KŘIVINKOVÁ | C63: Alžběta | D63: 7.B | E63: 0 | F63: 681.7718952 | G63: 0 | H63: 0 | I63: 626.04 | J63: 0 | K63: 0 | L63: 0 | M63: 0 | N63: 0 | O63: 0 | P63: 0 | Q63: 0 | R63: 0 | S63: 0 | T63: 0 | U63: 1307.811895
A64: 26. | B64: =B191 -> LEŠÁKOVÁ | C64: Lenka | D64: 7.B | E64: 0 | F64: 598.7449721 | G64: 0 | H64: 0 | I64: 0 | J64: 0 | K64: 0 | L64: 0 | M64: 0 | N64: 0 | O64: 0 | P64: 0 | Q64: 0 | R64: 0 | S64: 0 | T64: 0 | U64: 598.7449721
A65: 27. | B65: =B192 -> NYKLÍČKOVÁ | C65: Adéla | D65: 7.B | E65: 0 | F65: 747.7070731 | G65: 0 | H65: 0 | I65: 695.6 | J65: 668 | K65: 0 | L65: 0 | M65: 0 | N65: 0 | O65: 0 | P65: 0 | Q65: 0 | R65: 0 | S65: 0 | T65: 0 | U65: 2111.307073
A66: 28. | B66: =B193 -> PLŮCHOVÁ | C66: Petra | D66: 7.B | E66: 0 | F66: 681.7718952 | G66: 0 | H66: 0 | I66: 521.7 | J66: 668 | K66: 0 | L66: 0 | M66: 0 | N66: 0 | O66: 0 | P66: 0 | Q66: 0 | R66: 0 | S66: 0 | T66: 0 | U66: 1871.471895
A67: 29. | B67: =B194 -> PODZIMKOVÁ | C67: Eliška | D67: 7.B | E67: 0 | F67: 601.4075021 | G67: 0 | H67: 0 | I67: 460.835 | J67: 596.5 | K67: 0 | L67: 0 | M67: 0 | N67: 0 | O67: 0 | P67: 0 | Q67: 0 | R67: 0 | S67: 0 | T67: 0 | U67: 1658.742502
A68: 30. | B68: =B195 -> RUTKAYOVÁ | C68: Klára | D68: 7.B | E68: 0 | F68: 0 | G68: 0 | H68: 0 | I68: 0 | J68: 0 | K68: 0 | L68: 0 | M68: 0 | N68: 583.6 | O68: 0 | P68: 0 | Q68: 0 | R68: 437 | S68: 0 | T68: 0 | U68: 1020.6
A69: 31. | B69: =B196 -> SEIDLOVÁ | C69: Zuzana | D69: 7.B | E69: 0 | F69: 612.8296242 | G69: 0 | H69: 0 | I69: 624.301 | J69: 635.5 | K69: 0 | L69: 0 | M69: 0 | N69: 375.25 | O69: 0 | P69: 0 | Q69: 0 | R69: 224.5 | S69: 477.7497639 | T69: 0 | U69: 2950.130388
A70: 32. | B70: =B197 -> TOMÁŠOVÁ | C70: Sára | D70: 7.B | E70: 0 | F70: 592.962323 | G70: 0 | H70: 0 | I70: 473.008 | J70: 0 | K70: 0 | L70: 0 | M70: 0 | N70: 0 | O70: 0 | P70: 0 | Q70: 0 | R70: 0 | S70: 0 | T70: 0 | U70: 1065.970323
A71: 33. | B71: =B198 -> VANCLOVÁ | C71: Barbora | D71: 7.B | E71: 0 | F71: 759.0335507 | G71: 0 | H71: 0 | I71: 613.867 | J71: 635.5 | K71: 0 | L71: 0 | M71: 0 | N71: 0 | O71: 0 | P71: 0 | Q71: 0 | R71: 0 | S71: 0 | T71: 0 | U71: 2008.400551
A72: 34. | B72: =B199 -> VOTOČKOVÁ | C72: Veronika | D72: 7.B | E72: 0 | F72: 590.8846744 | G72: 0 | H72: 0 | I72: 573.87 | J72: 0 | K72: 0 | L72: 0 | M72: 0 | N72: 0 | O72: 0 | P72: 0 | Q72: 0 | R72: 0 | S72: 0 | T72: 0 | U72: 1164.754674
C76: CELKOVÉ VÝSLEDKY | U76: =U35 -> 2021-06-28
B78: 8. ročník | F78: 60 m | G78: 300m | H78: 1000m | I78: dálka | J78: výška | K78: míček | L78: koule | M78: člunek | N78: lehsed | O78: odbíjení | P78: plavání | Q78: šplh | R78: švihadlo | S78: z místa | T78: REPRE | U78: CELKEM
A80: 1. | B80: =B200 -> HARTIGOVÁ | C80: =C200 -> Anna | D80: 8.A | E80: 0 | F80: 703.2306118 | G80: 0 | H80: 0 | I80: 716.468 | J80: 0 | K80: 458 | L80: 627.5555556 | M80: 0 | N80: 0 | O80: 63 | P80: 0 | Q80: 0 | R80: 0 | S80: 0 | T80: 0 | U80: =U200 -> 2568.254167
A81: 2. | B81: =B201 -> HONCŮ | C81: Rozálie | D81: 8.A | E81: 0 | F81: 829.4221623 | G81: 0 | H81: 0 | I81: 810.374 | J81: 0 | K81: 494.4 | L81: 653.3333333 | M81: 733.5973295 | N81: 0 | O81: 30 | P81: 0 | Q81: 0 | R81: 0 | S81: 0 | T81: 0 | U81: 3551.126825
A82: 3. | B82: =B202 -> CHALOUPSKÁ | C82: Lucie | D82: 8.A | E82: 0 | F82: 0 | G82: 847.9565742 | H82: 0 | I82: 791.245 | J82: 0 | K82: 530.8 | L82: 660.4444444 | M82: 701.8087265 | N82: 0 | O82: 12 | P82: 0 | Q82: 0 | R82: 0 | S82: 0 | T82: 0 | U82: 3544.254745
A83: 4. | B83: =B203 -> KŘÍŽKOVÁ | C83: Anna | D83: 8.A | E83: 0 | F83: 696.1738475 | G83: 650.2981572 | H83: 0 | I83: 613.867 | J83: 0 | K83: 458 | L83: 537.7777778 | M83: 661.4884793 | N83: 0 | O83: 36 | P83: 0 | Q83: 0 | R83: 0 | S83: 0 | T83: 0 | U83: 3653.605262
A84: 5. | B84: =B204 -> LUKEŠOVÁ | C84: Kristýna | D84: 8.A | E84: 0 | F84: 0 | G84: 726.3159891 | H84: 0 | I84: 723.424 | J84: 0 | K84: 412.5 | L84: 520 | M84: 694.0822303 | N84: 0 | O84: 30 | P84: 0 | Q84: 0 | R84: 0 | S84: 0 | T84: 0 | U84: 3106.322219
A85: 6. | B85: =B205 -> MOTLÍKOVÁ | C85: Eliška | D85: 8.A | E85: 0 | F85: 721.4634001 | G85: 0 | H85: 0 | I85: 699.078 | J85: 0 | K85: 458 | L85: 590.2222222 | M85: 687.8763334 | N85: 0 | O85: 30 | P85: 0 | Q85: 0 | R85: 0 | S85: 0 | T85: 0 | U85: 3186.639956
A86: 7. | B86: =B206 -> POHOŘELÁ | C86: Amálie | D86: 8.A | E86: 0 | F86: 819.8497259 | G86: 665.4012487 | H86: 0 | I86: 0 | J86: 0 | K86: 0 | L86: 546.6666667 | M86: 671.1624509 | N86: 541.93 | O86: 36 | P86: 0 | Q86: 0 | R86: 693.25 | S86: 670.631728 | T86: 0 | U86: 4644.89182
A87: 8. | B87: =B207 -> POLÁČKOVÁ | C87: Natálie | D87: 8.A | E87: 0 | F87: 0 | G87: 362.1473163 | H87: 0 | I87: 0 | J87: 0 | K87: 439.8 | L87: 342.2222222 | M87: 566.4679214 | N87: 0 | O87: 18 | P87: 0 | Q87: 0 | R87: 0 | S87: 0 | T87: 0 | U87: 1728.63746
A88: 9. | B88: =B208 -> ŘEHOŘKOVÁ | C88: Lucie | D88: 8.A | E88: 0 | F88: 726.7259659 | G88: 683.2990891 | H88: 0 | I88: 744.292 | J88: 0 | K88: 558.1 | L88: 688.8888889 | M88: 727.4835608 | N88: 0 | O88: 18 | P88: 0 | Q88: 0 | R88: 0 | S88: 0 | T88: 0 | U88: 4146.789505
A89: 10. | B89: =B209 -> SKÁLOVÁ | C89: Alena | D89: 8.A | E89: 0 | F89: 654.5556074 | G89: 547.5044892 | H89: 0 | I89: 672.993 | J89: 0 | K89: 367 | L89: 688.8888889 | M89: 630.4320049 | N89: 0 | O89: 12 | P89: 0 | Q89: 0 | R89: 0 | S89: 0 | T89: 0 | U89: 3573.37399
A90: 11. | B90: =B210 -> VÁVROVÁ | C90: Aneta | D90: 8.A | E90: 0 | F90: 780.0709346 | G90: 787.1880212 | H90: 0 | I90: 786.028 | J90: 0 | K90: 439.8 | L90: 511.1111111 | M90: 0 | N90: 389.14 | O90: 63 | P90: 0 | Q90: 0 | R90: 468.25 | S90: 792.9471199 | T90: 0 | U90: 5017.535187
A91: 12. | B91: =B211 -> ZELINKOVÁ | C91: Klára | D91: 8.A | E91: 0 | F91: 780.9349623 | G91: 660.0698802 | H91: 0 | I91: 728.641 | J91: 0 | K91: 494.4 | L91: 621.3333333 | M91: 673.7862151 | N91: 0 | O91: 30 | P91: 0 | Q91: 0 | R91: 0 | S91: 0 | T91: 0 | U91: 3989.165391
C98: CELKOVÉ VÝSLEDKY | U98: =U76 -> 2021-06-28
B100: 9. ročník | F100: 60 m | G100: 300m | H100: 1000m | I100: dálka | J100: výška | K100: míček | L100: koule | M100: člunek | N100: lehsed | O100: odbíjení | P100: plavání | Q100: šplh | R100: švihadlo | S100: z místa | T100: REPRE | U100: CELKEM
A102: 1. | B102: =B212 -> JUNGOVÁ | C102: =C212 -> Lucie | D102: 9.A | E102: 0 | F102: 829.4221623 | G102: 0 | H102: 0 | I102: 0 | J102: 0 | K102: 376.1 | L102: 462.2222222 | M102: 673.7862151 | N102: 0 | O102: 0 | P102: 0 | Q102: 0 | R102: 0 | S102: 0 | T102: 0 | U102: =U212 -> 2341.5306
A103: 2. | B103: =B213 -> KŘIVÁNKOVÁ | C103: Linda | D103: 9.A | E103: 0 | F103: 703.2306118 | G103: 422.4211204 | H103: 0 | I103: 0 | J103: 0 | K103: 285.1 | L103: 564.4444444 | M103: 638.6874773 | N103: 0 | O103: 0 | P103: 0 | Q103: 0 | R103: 462 | S103: 0 | T103: 0 | U103: 3075.883654
A104: 3. | B104: =B214 -> KUBÁTOVÁ | C104: Lucie | D104: 9.A | E104: 0 | F104: 726.7259659 | G104: 0 | H104: 0 | I104: 0 | J104: 0 | K104: 0 | L104: 0 | M104: 0 | N104: 0 | O104: 0 | P104: 0 | Q104: 0 | R104: 0 | S104: 0 | T104: 0 | U104: 726.7259659
A105: 4. | B105: =B215 -> ŠIMŮNKOVÁ | C105: Nikola | D105: 9.A | E105: 0 | F105: 703.9435497 | G105: 437.6717991 | H105: 0 | I105: 0 | J105: 0 | K105: 330.6 | L105: 472 | M105: 596.6303582 | N105: 0 | O105: 0 | P105: 0 | Q105: 0 | R105: 0 | S105: 0 | T105: 0 | U105: 2540.845707
A106: 5. | B106: =B216 -> ŠMÍDOVÁ | C106: Kristýna | D106: 9.A | E106: 0 | F106: 593.4838128 | G106: 520.6470498 | H106: 0 | I106: 0 | J106: 0 | K106: 367 | L106: 584 | M106: 568.875034 | N106: 541.93 | O106: 0 | P106: 0 | Q106: 0 | R106: 224.5 | S106: 421.2965061 | T106: 0 | U106: 3821.732403
A107: 6. | B107: =B217 -> VOTOČKOVÁ | C107: Nikola | D107: 9.A | E107: 0 | F107: 857.3693744 | G107: 815.1873542 | H107: 0 | I107: 0 | J107: 0 | K107: 530.8 | L107: 562.6666667 | M107: 701.0997715 | N107: 0 | O107: 0 | P107: 0 | Q107: 0 | R107: 0 | S107: 0 | T107: 0 | U107: 3467.123167
A108: 7. | B108: =B218 -> VYHLASOVÁ | C108: Lenka | D108: 9.A | E108: 0 | F108: 593.4838128 | G108: 0 | H108: 0 | I108: 0 | J108: 0 | K108: 0 | L108: 612.4444444 | M108: 519.4544512 | N108: 0 | O108: 0 | P108: 0 | Q108: 0 | R108: 0 | S108: 0 | T108: 0 | U108: 1725.382708
A109: 8. | B109: =B219 -> BÖHMOVÁ | C109: Diana | D109: 9.B | E109: 0 | F109: 743.7375504 | G109: 632.0655859 | H109: 0 | I109: 0 | J109: 0 | K109: 357.9 | L109: 525.3333333 | M109: 657.061158 | N109: 0 | O109: 24 | P109: 509.9544345 | Q109: 0 | R109: 0 | S109: 0 | T109: 0 | U109: 3450.052062
A110: 9. | B110: =B220 -> HOUDOVÁ | C110: Tereza | D110: 9.B | E110: 0 | F110: 750.1076892 | G110: 0 | H110: 0 | I110: 0 | J110: 0 | K110: 0 | L110: 0 | M110: 0 | N110: 0 | O110: 0 | P110: 509.9544345 | Q110: 0 | R110: 0 | S110: 0 | T110: 0 | U110: 1260.062124
A111: 10. | B111: =B221 -> JANÍKOVÁ | C111: Kristýna | D111: 9.B | E111: 0 | F111: 829.4221623 | G111: 0 | H111: 0 | I111: 0 | J111: 0 | K111: 0 | L111: 635.5555556 | M111: 0 | N111: 0 | O111: 0 | P111: 509.9544345 | Q111: 0 | R111: 0 | S111: 0 | T111: 0 | U111: 1974.932152
A112: 11. | B112: =B222 -> KUŽELOVÁ | C112: Ela | D112: 9.B | E112: 0 | F112: 797.6963731 | G112: 424.6325174 | H112: 0 | I112: 0 | J112: 0 | K112: 0 | L112: 568 | M112: 696.1738475 | N112: 0 | O112: 27 | P112: 0 | Q112: 0 | R112: 0 | S112: 0 | T112: 0 | U112: 2513.502738
A113: 12. | B113: =B223 -> MATERNOVÁ | C113: Lucie | D113: 9.B | E113: 0 | F113: 767.3206174 | G113: 612.4030839 | H113: 0 | I113: 0 | J113: 0 | K113: 257.8 | L113: 372.4444444 | M113: 640.4822991 | N113: 0 | O113: 12 | P113: 0 | Q113: 0 | R113: 0 | S113: 0 | T113: 0 | U113: 2662.450445
A114: 13. | B114: =B224 -> OPOČENSKÁ | C114: Matylda | D114: 9.B | E114: 0 | F114: 0 | G114: 0 | H114: 0 | I114: 0 | J114: 0 | K114: 0 | L114: 0 | M114: 0 | N114: 0 | O114: 0 | P114: 0 | Q114: 0 | R114: 0 | S114: 0 | T114: 0 | U114: 0
A115: 14. | B115: =B225 -> PIŠTOROVÁ | C115: Karolína | D115: 9.B | E115: 0 | F115: 787.9117839 | G115: 0 | H115: 0 | I115: 0 | J115: 0 | K115: 367 | L115: 0 | M115: 687.8763334 | N115: 0 | O115: 27 | P115: 0 | Q115: 0 | R115: 0 | S115: 0 | T115: 0 | U115: 1869.788117
A116: 15. | B116: =B226 -> POKORNÝ | C116: Anna | D116: 9.B | E116: 0 | F116: 0 | G116: 0 | H116: 0 | I116: 0 | J116: 0 | K116: 303.3 | L116: 576 | M116: 0 | N116: 625.27 | O116: 15 | P116: 0 | Q116: 0 | R116: 0 | S116: 0 | T116: 0 | U116: 1519.57
A117: 16. | B117: =B227 -> SUCHÁNKOVÁ | C117: Michaela | D117: 9.B | E117: 0 | F117: 586.7688574 | G117: 398.082218 | H117: 0 | I117: 0 | J117: 0 | K117: 276 | L117: 546.6666667 | M117: 517.8183709 | N117: 0 | O117: 27 | P117: 0 | Q117: 0 | R117: 0 | S117: 0 | T117: 0 | U117: 2352.336113
A118: 17. | B118: =B228 -> ŠUBÍKOVÁ | C118: Štěpánka | D118: 9.B | E118: 0 | F118: 774.923874 | G118: 637.6036953 | H118: 0 | I118: 0 | J118: 0 | K118: 321.5 | L118: 466.6666667 | M118: 692.6942448 | N118: 0 | O118: 27 | P118: 0 | Q118: 0 | R118: 0 | S118: 0 | T118: 0 | U118: 2920.388481
A119: 18. | B119: =B229 -> VANCLOVÁ | C119: Pavlína | D119: 9.B | E119: 0 | F119: 0 | G119: 643.6281601 | H119: 0 | I119: 0 | J119: 0 | K119: 421.6 | L119: 724.4444444 | M119: 654.5556074 | N119: 0 | O119: 24 | P119: 509.9544345 | Q119: 0 | R119: 0 | S119: 0 | T119: 0 | U119: 2978.182646
F138: 60 m | G138: 300m | H138: 800m | I138: dálka | J138: výška | K138: míček | L138: koule | M138: člunek | N138: lehsed | O138: odbíjení | P138: plavání | Q138: šplh | R138: švihadlo | S138: z místa | T138: REPRE | U138: CELKEM
B139: ERBENOVÁ | C139: Sára | D139: 6.A | F139: ='D60'!H101 -> 645.3139553 | G139: ='D300'!H101 -> 0 | H139: ='D800'!H101 -> 0 | I139: =Ddál!H101 -> 570.392 | J139: =Dvýš!H101 -> 0 | K139: =Dmíč!H101 -> 321.5 | L139: =Dkou!H101 -> 325.3333333 | M139: =Dčlu!H101 -> 0 | N139: =Dls!H101 -> 541.93 | O139: =Dodbíj!H101 -> 0 | P139: =Dplav!H101 -> 0 | Q139: =Dšplh!H101 -> 0 | R139: =Dšvih!H101 -> 174.5 | S139: ='Dz mís'!H101 -> 454.2275732 | T139: =Drepre!E4 -> 0 | U139: =SUM(F139:T139) -> 3033.196862
B140: HOFMANOVÁ | C140: Nicol | D140: 6.A | F140: ='D60'!H102 -> 625.2273174 | G140: ='D300'!H102 -> 491.2991107 | H140: ='D800'!H102 -> 0 | I140: =Ddál!H102 -> 646.908 | J140: =Dvýš!H102 -> 0 | K140: =Dmíč!H102 -> 285.1 | L140: =Dkou!H102 -> 419.5555556 | M140: =Dčlu!H102 -> 606.7977669 | N140: =Dls!H102 -> 389.14 | O140: =Dodbíj!H102 -> 0 | P140: =Dplav!H102 -> 0 | Q140: =Dšplh!H102 -> 0 | R140: =Dšvih!H102 -> 318.25 | S140: ='Dz mís'!H102 -> 670.631728 | T140: =Drepre!E5 -> 0 | U140: =SUM(F140:T140) -> 4452.909479
B141: HOLEŠOVSKÁ | C141: Aneta | D141: 6.A | F141: ='D60'!H103 -> 683.1197966 | G141: ='D300'!H103 -> 0 | H141: ='D800'!H103 -> 279.5310145 | I141: =Ddál!H103 -> 622.562 | J141: =Dvýš!H103 -> 0 | K141: =Dmíč!H103 -> 414.32 | L141: =Dkou!H103 -> 0 | M141: =Dčlu!H103 -> 0 | N141: =Dls!H103 -> 0 | O141: =Dodbíj!H103 -> 0 | P141: =Dplav!H103 -> 0 | Q141: =Dšplh!H103 -> 0 | R141: =Dšvih!H103 -> 0 | S141: ='Dz mís'!H103 -> 0 | T141: =Drepre!E6 -> 0 | U141: =SUM(F141:T141) -> 1999.532811
B142: HOLUBCOVÁ | C142: Alena | D142: 6.A | F142: ='D60'!H104 -> 0 | G142: ='D300'!H104 -> 687.0880805 | H142: ='D800'!H104 -> 0 | I142: =Ddál!H104 -> 634.735 | J142: =Dvýš!H104 -> 0 | K142: =Dmíč!H104 -> 530.8 | L142: =Dkou!H104 -> 574.2222222 | M142: =Dčlu!H104 -> 680.4288819 | N142: =Dls!H104 -> 0 | O142: =Dodbíj!H104 -> 0 | P142: =Dplav!H104 -> 0 | Q142: =Dšplh!H104 -> 0 | R142: =Dšvih!H104 -> 0 | S142: ='Dz mís'!H104 -> 694.1539188 | T142: =Drepre!E7 -> 0 | U142: =SUM(F142:T142) -> 3801.428103
B143: KOHOUTOVÁ | C143: Anna | D143: 6.A | F143: ='D60'!H105 -> 556.5564308 | G143: ='D300'!H105 -> 420.7536823 | H143: ='D800'!H105 -> 0 | I143: =Ddál!H105 -> 525.178 | J143: =Dvýš!H105 -> 0 | K143: =Dmíč!H105 -> 239.6 | L143: =Dkou!H105 -> 272.8888889 | M143: =Dčlu!H105 -> 539.8369847 | N143: =Dls!H105 -> 0 | O143: =Dodbíj!H105 -> 0 | P143: =Dplav!H105 -> 0 | Q143: =Dšplh!H105 -> 0 | R143: =Dšvih!H105 -> 0 | S143: ='Dz mís'!H105 -> 0 | T143: =Drepre!E8 -> 0 | U143: =SUM(F143:T143) -> 2554.813987
B144: KRAUSOVÁ | C144: Anežka | D144: 6.A | F144: ='D60'!H106 -> 635.7164917 | G144: ='D300'!H106 -> 619.1152056 | H144: ='D800'!H106 -> 0 | I144: =Ddál!H106 -> 0 | J144: =Dvýš!H106 -> 0 | K144: =Dmíč!H106 -> 0 | L144: =Dkou!H106 -> 0 | M144: =Dčlu!H106 -> 638.0912487 | N144: =Dls!H106 -> 528.04 | O144: =Dodbíj!H106 -> 0 | P144: =Dplav!H106 -> 0 | Q144: =Dšplh!H106 -> 0 | R144: =Dšvih!H106 -> 0 | S144: ='Dz mís'!H106 -> 694.1539188 | T144: =Drepre!E9 -> 0 | U144: =SUM(F144:T144) -> 3115.116865
B145: KUŽELOVÁ | C145: Apoléna | D145: 6.A | F145: ='D60'!H107 -> 692.0021691 | G145: ='D300'!H107 -> 0 | H145: ='D800'!H107 -> 517.1215266 | I145: =Ddál!H107 -> 606.911 | J145: =Dvýš!H107 -> 0 | K145: =Dmíč!H107 -> 337.88 | L145: =Dkou!H107 -> 0 | M145: =Dčlu!H107 -> 0 | N145: =Dls!H107 -> 0 | O145: =Dodbíj!H107 -> 0 | P145: =Dplav!H107 -> 0 | Q145: =Dšplh!H107 -> 0 | R145: =Dšvih!H107 -> 0 | S145: ='Dz mís'!H107 -> 0 | T145: =Drepre!E10 -> 0 | U145: =SUM(F145:T145) -> 2153.914696
B146: MORÁVKOVÁ | C146: Lucie | D146: 6.A | F146: ='D60'!H108 -> 645.3139553 | G146: ='D300'!H108 -> 0 | H146: ='D800'!H108 -> 446.6865305 | I146: =Ddál!H108 -> 513.005 | J146: =Dvýš!H108 -> 0 | K146: =Dmíč!H108 -> 383.38 | L146: =Dkou!H108 -> 0 | M146: =Dčlu!H108 -> 0 | N146: =Dls!H108 -> 625.27 | O146: =Dodbíj!H108 -> 0 | P146: =Dplav!H108 -> 0 | Q146: =Dšplh!H108 -> 0 | R146: =Dšvih!H108 -> 493.25 | S146: ='Dz mís'!H108 -> 0 | T146: =Drepre!E11 -> 0 | U146: =SUM(F146:T146) -> 3106.905486
B147: SKLENÁROVÁ | C147: Eliška | D147: 6.A | F147: ='D60'!H109 -> 0 | G147: ='D300'!H109 -> 474.6279096 | H147: ='D800'!H109 -> 0 | I147: =Ddál!H109 -> 0 | J147: =Dvýš!H109 -> 0 | K147: =Dmíč!H109 -> 0 | L147: =Dkou!H109 -> 0 | M147: =Dčlu!H109 -> 0 | N147: =Dls!H109 -> 583.6 | O147: =Dodbíj!H109 -> 0 | P147: =Dplav!H109 -> 0 | Q147: =Dšplh!H109 -> 0 | R147: =Dšvih!H109 -> 243.25 | S147: ='Dz mís'!H109 -> 553.0207743 | T147: =Drepre!E12 -> 0 | U147: =SUM(F147:T147) -> 1854.498684
B148: ŠTOLFOVÁ | C148: Tereza | D148: 6.A | F148: ='D60'!H110 -> 694.7781473 | G148: ='D300'!H110 -> 609.0873703 | H148: ='D800'!H110 -> 0 | I148: =Ddál!H110 -> 0 | J148: =Dvýš!H110 -> 0 | K148: =Dmíč!H110 -> 257.8 | L148: =Dkou!H110 -> 293.3333333 | M148: =Dčlu!H110 -> 622.369643 | N148: =Dls!H110 -> 0 | O148: =Dodbíj!H110 -> 0 | P148: =Dplav!H110 -> 0 | Q148: =Dšplh!H110 -> 0 | R148: =Dšvih!H110 -> 0 | S148: ='Dz mís'!H110 -> 491.8630784 | T148: =Drepre!E13 -> 0 | U148: =SUM(F148:T148) -> 2969.231572
B149: ŠUBÍKOVÁ | C149: Klára | D149: 6.A | F149: ='D60'!H111 -> 0 | G149: ='D300'!H111 -> 593.8773779 | H149: ='D800'!H111 -> 0 | I149: =Ddál!H111 -> 669.515 | J149: =Dvýš!H111 -> 0 | K149: =Dmíč!H111 -> 239.6 | L149: =Dkou!H111 -> 364.4444444 | M149: =Dčlu!H111 -> 642.8898111 | N149: =Dls!H111 -> 0 | O149: =Dodbíj!H111 -> 0 | P149: =Dplav!H111 -> 0 | Q149: =Dšplh!H111 -> 0 | R149: =Dšvih!H111 -> 0 | S149: ='Dz mís'!H111 -> 623.5873466 | T149: =Drepre!E14 -> 0 | U149: =SUM(F149:T149) -> 3133.91398
B150: TULÁČKOVÁ | C150: Natálie | D150: 6.A | F150: ='D60'!H112 -> 648.981736 | G150: ='D300'!H112 -> 0 | H150: ='D800'!H112 -> 458.7008332 | I150: =Ddál!H112 -> 577.348 | J150: =Dvýš!H112 -> 0 | K150: =Dmíč!H112 -> 326.96 | L150: =Dkou!H112 -> 0 | M150: =Dčlu!H112 -> 0 | N150: =Dls!H112 -> 666.94 | O150: =Dodbíj!H112 -> 0 | P150: =Dplav!H112 -> 0 | Q150: =Dšplh!H112 -> 0 | R150: =Dšvih!H112 -> 262 | S150: ='Dz mís'!H112 -> 0 | T150: =Drepre!E15 -> 0 | U150: =SUM(F150:T150) -> 2940.930569
B151: VOJTÍŠKOVÁ | C151: Ella | D151: 6.A | F151: ='D60'!H113 -> 709.6954327 | G151: ='D300'!H113 -> 0 | H151: ='D800'!H113 -> 0 | I151: =Ddál!H113 -> 659.081 | J151: =Dvýš!H113 -> 0 | K151: =Dmíč!H113 -> 450.72 | L151: =Dkou!H113 -> 0 | M151: =Dčlu!H113 -> 0 | N151: =Dls!H113 -> 0 | O151: =Dodbíj!H113 -> 0 | P151: =Dplav!H113 -> 0 | Q151: =Dšplh!H113 -> 0 | R151: =Dšvih!H113 -> 830.75 | S151: ='Dz mís'!H113 -> 567.1340888 | T151: =Drepre!E16 -> 0 | U151: =SUM(F151:T151) -> 3217.380521
B152: DRUGÁČOVÁ | C152: Kristinka | D152: 6.B | F152: ='D60'!H114 -> 0 | G152: ='D300'!H114 -> 628.8570231 | H152: ='D800'!H114 -> 0 | I152: =Ddál!H114 -> 664.298 | J152: =Dvýš!H114 -> 0 | K152: =Dmíč!H114 -> 303.3 | L152: =Dkou!H114 -> 377.7777778 | M152: =Dčlu!H114 -> 693.3875973 | N152: =Dls!H114 -> 416.92 | O152: =Dodbíj!H114 -> 0 | P152: =Dplav!H114 -> 0 | Q152: =Dšplh!H114 -> 0 | R152: =Dšvih!H114 -> 249.5 | S152: ='Dz mís'!H114 -> 703.5627951 | T152: =Drepre!E17 -> 0 | U152: =SUM(F152:T152) -> 4037.603193
B153: FAJSTAVROVÁ | C153: Karolína | D153: 6.B | F153: ='D60'!H115 -> 709.6954327 | G153: ='D300'!H115 -> 0 | H153: ='D800'!H115 -> 757.6745547 | I153: =Ddál!H115 -> 634.735 | J153: =Dvýš!H115 -> 0 | K153: =Dmíč!H115 -> 410.68 | L153: =Dkou!H115 -> 0 | M153: =Dčlu!H115 -> 0 | N153: =Dls!H115 -> 305.8 | O153: =Dodbíj!H115 -> 0 | P153: =Dplav!H115 -> 0 | Q153: =Dšplh!H115 -> 0 | R153: =Dšvih!H115 -> 362 | S153: ='Dz mís'!H115 -> 308.3899906 | T153: =Drepre!E18 -> 0 | U153: =SUM(F153:T153) -> 3488.974978
B154: FAJSTAVROVÁ | C154: Magdaléna | D154: 6.B | F154: ='D60'!H116 -> 736.6900017 | G154: ='D300'!H116 -> 0 | H154: ='D800'!H116 -> 801.5705492 | I154: =Ddál!H116 -> 0 | J154: =Dvýš!H116 -> 0 | K154: =Dmíč!H116 -> 530.8 | L154: =Dkou!H116 -> 0 | M154: =Dčlu!H116 -> 0 | N154: =Dls!H116 -> 625.27 | O154: =Dodbíj!H116 -> 0 | P154: =Dplav!H116 -> 0 | Q154: =Dšplh!H116 -> 0 | R154: =Dšvih!H116 -> 493.25 | S154: ='Dz mís'!H116 -> 722.3805477 | T154: =Drepre!E19 -> 0 | U154: =SUM(F154:T154) -> 3909.961099
B155: HLAVATÁ | C155: Anna | D155: 6.B | F155: ='D60'!H117 -> 0 | G155: ='D300'!H117 -> 0 | H155: ='D800'!H117 -> 0 | I155: =Ddál!H117 -> 636.474 | J155: =Dvýš!H117 -> 0 | K155: =Dmíč!H117 -> 0 | L155: =Dkou!H117 -> 0 | M155: =Dčlu!H117 -> 632.1845437 | N155: =Dls!H117 -> 0 | O155: =Dodbíj!H117 -> 0 | P155: =Dplav!H117 -> 0 | Q155: =Dšplh!H117 -> 0 | R155: =Dšvih!H117 -> 0 | S155: ='Dz mís'!H117 -> 0 | T155: =Drepre!E20 -> 0 | U155: =SUM(F155:T155) -> 1268.658544
B156: JINDROVÁ | C156: Barbora | D156: 6.B | F156: ='D60'!H118 -> 615.0502178 | G156: ='D300'!H118 -> 0 | H156: ='D800'!H118 -> 564.8599999 | I156: =Ddál!H118 -> 643.43 | J156: =Dvýš!H118 -> 0 | K156: =Dmíč!H118 -> 221.4 | L156: =Dkou!H118 -> 0 | M156: =Dčlu!H118 -> 0 | N156: =Dls!H118 -> 347.47 | O156: =Dodbíj!H118 -> 0 | P156: =Dplav!H118 -> 0 | Q156: =Dšplh!H118 -> 0 | R156: =Dšvih!H118 -> 337 | S156: ='Dz mís'!H118 -> 477.7497639 | T156: =Drepre!E21 -> 0 | U156: =SUM(F156:T156) -> 3206.959982
B157: MAŘASOVÁ | C157: Vendula | D157: 6.B | F157: ='D60'!H119 -> 0 | G157: ='D300'!H119 -> 0 | H157: ='D800'!H119 -> 545.4814341 | I157: =Ddál!H119 -> 547.785 | J157: =Dvýš!H119 -> 0 | K157: =Dmíč!H119 -> 239.6 | L157: =Dkou!H119 -> 0 | M157: =Dčlu!H119 -> 0 | N157: =Dls!H119 -> 0 | O157: =Dodbíj!H119 -> 0 | P157: =Dplav!H119 -> 0 | Q157: =Dšplh!H119 -> 0 | R157: =Dšvih!H119 -> 0 | S157: ='Dz mís'!H119 -> 0 | T157: =Drepre!E22 -> 0 | U157: =SUM(F157:T157) -> 1332.866434
B158: PETŘÍČKOVÁ | C158: Natálie | D158: 6.B | F158: ='D60'!H120 -> 697.5747265 | G158: ='D300'!H120 -> 0 | H158: ='D800'!H120 -> 0 | I158: =Ddál!H120 -> 674.732 | J158: =Dvýš!H120 -> 0 | K158: =Dmíč!H120 -> 399.76 | L158: =Dkou!H120 -> 0 | M158: =Dčlu!H120 -> 0 | N158: =Dls!H120 -> 0 | O158: =Dodbíj!H120 -> 0 | P158: =Dplav!H120 -> 0 | Q158: =Dšplh!H120 -> 0 | R158: =Dšvih!H120 -> 0 | S158: ='Dz mís'!H120 -> 0 | T158: =Drepre!E23 -> 0 | U158: =SUM(F158:T158) -> 1772.066726
B159: PETŘÍKOVÁ | C159: Adéla | D159: 6.B | F159: ='D60'!H121 -> 599.8074033 | G159: ='D300'!H121 -> 541.6772924 | H159: ='D800'!H121 -> 0 | I159: =Ddál!H121 -> 464.313 | J159: =Dvýš!H121 -> 0 | K159: =Dmíč!H121 -> 203.2 | L159: =Dkou!H121 -> 353.7777778 | M159: =Dčlu!H121 -> 574.2364662 | N159: =Dls!H121 -> 333.58 | O159: =Dodbíj!H121 -> 0 | P159: =Dplav!H121 -> 0 | Q159: =Dšplh!H121 -> 0 | R159: =Dšvih!H121 -> 124.5 | S159: ='Dz mís'!H121 -> 576.5429651 | T159: =Drepre!E24 -> 0 | U159: =SUM(F159:T159) -> 3771.634905
B160: REGÁLOVÁ | C160: Karolína | D160: 6.B | F160: ='D60'!H122 -> 657.061158 | G160: ='D300'!H122 -> 0 | H160: ='D800'!H122 -> 529.7114396 | I160: =Ddál!H122 -> 636.474 | J160: =Dvýš!H122 -> 0 | K160: =Dmíč!H122 -> 425.24 | L160: =Dkou!H122 -> 0 | M160: =Dčlu!H122 -> 0 | N160: =Dls!H122 -> 778.06 | O160: =Dodbíj!H122 -> 0 | P160: =Dplav!H122 -> 0 | Q160: =Dšplh!H122 -> 0 | R160: =Dšvih!H122 -> 462 | S160: ='Dz mís'!H122 -> 430.7053824 | T160: =Drepre!E25 -> 0 | U160: =SUM(F160:T160) -> 3919.25198
B161: RIEGROVÁ | C161: Magdaléna | D161: 6.B | F161: ='D60'!H123 -> 0 | G161: ='D300'!H123 -> 514.4247023 | H161: ='D800'!H123 -> 0 | I161: =Ddál!H123 -> 0 | J161: =Dvýš!H123 -> 0 | K161: =Dmíč!H123 -> 285.1 | L161: =Dkou!H123 -> 256.8888889 | M161: =Dčlu!H123 -> 587.7929157 | N161: =Dls!H123 -> 0 | O161: =Dodbíj!H123 -> 0 | P161: =Dplav!H123 -> 0 | Q161: =Dšplh!H123 -> 0 | R161: =Dšvih!H123 -> 0 | S161: ='Dz mís'!H123 -> 590.6562795 | T161: =Drepre!E26 -> 0 | U161: =SUM(F161:T161) -> 2234.862786
B162: RYBENSKÁ | C162: Sabina | D162: 6.B | F162: ='D60'!H124 -> 681.7718952 | G162: ='D300'!H124 -> 0 | H162: ='D800'!H124 -> 529.7114396 | I162: =Ddál!H124 -> 582.565 | J162: =Dvýš!H124 -> 0 | K162: =Dmíč!H124 -> 232.32 | L162: =Dkou!H124 -> 0 | M162: =Dčlu!H124 -> 0 | N162: =Dls!H124 -> 0 | O162: =Dodbíj!H124 -> 0 | P162: =Dplav!H124 -> 0 | Q162: =Dšplh!H124 -> 0 | R162: =Dšvih!H124 -> 0 | S162: ='Dz mís'!H124 -> 0 | T162: =Drepre!E27 -> 0 | U162: =SUM(F162:T162) -> 2026.368335
B163: STEINEROVÁ | C163: Barbora | D163: 6.B | F163: ='D60'!H125 -> 665.3271387 | G163: ='D300'!H125 -> 0 | H163: ='D800'!H125 -> 527.1544185 | I163: =Ddál!H125 -> 631.257 | J163: =Dvýš!H125 -> 0 | K163: =Dmíč!H125 -> 447.08 | L163: =Dkou!H125 -> 0 | M163: =Dčlu!H125 -> 0 | N163: =Dls!H125 -> 0 | O163: =Dodbíj!H125 -> 0 | P163: =Dplav!H125 -> 0 | Q163: =Dšplh!H125 -> 0 | R163: =Dšvih!H125 -> 0 | S163: ='Dz mís'!H125 -> 0 | T163: =Drepre!E28 -> 0 | U163: =SUM(F163:T163) -> 2270.818557
B164: TOMEŠOVÁ | C164: Barbora | D164: 6.B | F164: ='D60'!H126 -> 644.7063505 | G164: ='D300'!H126 -> 0 | H164: ='D800'!H126 -> 522.0993845 | I164: =Ddál!H126 -> 509.527 | J164: =Dvýš!H126 -> 0 | K164: =Dmíč!H126 -> 297.84 | L164: =Dkou!H126 -> 0 | M164: =Dčlu!H126 -> 0 | N164: =Dls!H126 -> 0 | O164: =Dodbíj!H126 -> 0 | P164: =Dplav!H126 -> 0 | Q164: =Dšplh!H126 -> 0 | R164: =Dšvih!H126 -> 0 | S164: ='Dz mís'!H126 -> 0 | T164: =Drepre!E29 -> 0 | U164: =SUM(F164:T164) -> 1974.172735
B165: VOHNOUTOVÁ | C165: Aneta | D165: 6.B | F165: ='D60'!H127 -> 739.8069065 | G165: ='D300'!H127 -> 0 | H165: ='D800'!H127 -> 654.9344442 | I165: =Ddál!H127 -> 0 | J165: =Dvýš!H127 -> 0 | K165: =Dmíč!H127 -> 530.8 | L165: =Dkou!H127 -> 0 | M165: =Dčlu!H127 -> 0 | N165: =Dls!H127 -> 805.84 | O165: =Dodbíj!H127 -> 0 | P165: =Dplav!H127 -> 0 | Q165: =Dšplh!H127 -> 0 | R165: =Dšvih!H127 -> 274.5 | S165: ='Dz mís'!H127 -> 458.9320113 | T165: =Drepre!E30 -> 0 | U165: =SUM(F165:T165) -> 3464.813362
B166: HAVLÍKOVÁ | C166: Michaela | D166: 7.A | F166: ='D60'!H128 -> 635.1253288 | G166: ='D300'!H128 -> 0 | H166: ='D800'!H128 -> 0 | I166: =Ddál!H128 -> 634.735 | J166: =Dvýš!H128 -> 0 | K166: =Dmíč!H128 -> 0 | L166: =Dkou!H128 -> 254.2222222 | M166: =Dčlu!H128 -> 673.7862151 | N166: =Dls!H128 -> 0 | O166: =Dodbíj!H128 -> 0 | P166: =Dplav!H128 -> 0 | Q166: =Dšplh!H128 -> 0 | R166: =Dšvih!H128 -> 0 | S166: ='Dz mís'!H128 -> 0 | T166: =Drepre!E31 -> 0 | U166: =SUM(F166:T166) -> 2197.868766
B167: HOLUBCOVÁ | C167: Sára | D167: 7.A | F167: ='D60'!H129 -> 792.3314693 | G167: ='D300'!H129 -> 0 | H167: ='D800'!H129 -> 0 | I167: =Ddál!H129 -> 758.204 | J167: =Dvýš!H129 -> 0 | K167: =Dmíč!H129 -> 458 | L167: =Dkou!H129 -> 381.3333333 | M167: =Dčlu!H129 -> 706.8086895 | N167: =Dls!H129 -> 0 | O167: =Dodbíj!H129 -> 0 | P167: =Dplav!H129 -> 0 | Q167: =Dšplh!H129 -> 0 | R167: =Dšvih!H129 -> 362 | S167: ='Dz mís'!H129 -> 0 | T167: =Drepre!E32 -> 0 | U167: =SUM(F167:T167) -> 3458.677492
B168: HONCŮ | C168: Tereza | D168: 7.A | F168: ='D60'!H130 -> 671.1624509 | G168: ='D300'!H130 -> 0 | H168: ='D800'!H130 -> 0 | I168: =Ddál!H130 -> 723.424 | J168: =Dvýš!H130 -> 0 | K168: =Dmíč!H130 -> 403.4 | L168: =Dkou!H130 -> 356.4444444 | M168: =Dčlu!H130 -> 0 | N168: =Dls!H130 -> 0 | O168: =Dodbíj!H130 -> 0 | P168: =Dplav!H130 -> 0 | Q168: =Dšplh!H130 -> 0 | R168: =Dšvih!H130 -> 0 | S168: ='Dz mís'!H130 -> 0 | T168: =Drepre!E33 -> 0 | U168: =SUM(F168:T168) -> 2154.430895
B169: HORÁČKOVÁ | C169: Kateřina | D169: 7.A | F169: ='D60'!H131 -> 791.4438453 | G169: ='D300'!H131 -> 0 | H169: ='D800'!H131 -> 0 | I169: =Ddál!H131 -> 754.726 | J169: =Dvýš!H131 -> 0 | K169: =Dmíč!H131 -> 403.4 | L169: =Dkou!H131 -> 511.1111111 | M169: =Dčlu!H131 -> 694.0822303 | N169: =Dls!H131 -> 541.93 | O169: =Dodbíj!H131 -> 0 | P169: =Dplav!H131 -> 0 | Q169: =Dšplh!H131 -> 0 | R169: =Dšvih!H131 -> 212 | S169: ='Dz mís'!H131 -> 0 | T169: =Drepre!E34 -> 0 | U169: =SUM(F169:T169) -> 3908.693187
B170: JOUDALOVÁ | C170: Daniela | D170: 7.A | F170: ='D60'!H132 -> 0 | G170: ='D300'!H132 -> 0 | H170: ='D800'!H132 -> 0 | I170: =Ddál!H132 -> 0 | J170: =Dvýš!H132 -> 0 | K170: =Dmíč!H132 -> 0 | L170: =Dkou!H132 -> 364.4444444 | M170: =Dčlu!H132 -> 0 | N170: =Dls!H132 -> 0 | O170: =Dodbíj!H132 -> 0 | P170: =Dplav!H132 -> 0 | Q170: =Dšplh!H132 -> 0 | R170: =Dšvih!H132 -> 0 | S170: ='Dz mís'!H132 -> 0 | T170: =Drepre!E35 -> 0 | U170: =SUM(F170:T170) -> 364.4444444
B171: KLÍMOVÁ | C171: Anna | D171: 7.A | F171: ='D60'!H133 -> 695.4753518 | G171: ='D300'!H133 -> 0 | H171: ='D800'!H133 -> 0 | I171: =Ddál!H133 -> 0 | J171: =Dvýš!H133 -> 0 | K171: =Dmíč!H133 -> 0 | L171: =Dkou!H133 -> 422.2222222 | M171: =Dčlu!H133 -> 662.763503 | N171: =Dls!H133 -> 0 | O171: =Dodbíj!H133 -> 0 | P171: =Dplav!H133 -> 0 | Q171: =Dšplh!H133 -> 0 | R171: =Dšvih!H133 -> 0 | S171: ='Dz mís'!H133 -> 0 | T171: =Drepre!E36 -> 0 | U171: =SUM(F171:T171) -> 1780.461077
B172: KOHOUTOVÁ | C172: Veronika | D172: 7.A | F172: ='D60'!H134 -> 0 | G172: ='D300'!H134 -> 0 | H172: ='D800'!H134 -> 0 | I172: =Ddál!H134 -> 780.811 | J172: =Dvýš!H134 -> 0 | K172: =Dmíč!H134 -> 539.9 | L172: =Dkou!H134 -> 494.2222222 | M172: =Dčlu!H134 -> 695.4753518 | N172: =Dls!H134 -> 0 | O172: =Dodbíj!H134 -> 0 | P172: =Dplav!H134 -> 0 | Q172: =Dšplh!H134 -> 0 | R172: =Dšvih!H134 -> 0 | S172: ='Dz mís'!H134 -> 0 | T172: =Drepre!E37 -> 0 | U172: =SUM(F172:T172) -> 2510.408574
B173: KOVÁŘOVÁ | C173: Viktorie | D173: 7.A | F173: ='D60'!H135 -> 708.9717082 | G173: ='D300'!H135 -> 0 | H173: ='D800'!H135 -> 0 | I173: =Ddál!H135 -> 721.685 | J173: =Dvýš!H135 -> 0 | K173: =Dmíč!H135 -> 357.9 | L173: =Dkou!H135 -> 372.4444444 | M173: =Dčlu!H135 -> 692.6942448 | N173: =Dls!H135 -> 583.6 | O173: =Dodbíj!H135 -> 0 | P173: =Dplav!H135 -> 0 | Q173: =Dšplh!H135 -> 0 | R173: =Dšvih!H135 -> 0 | S173: ='Dz mís'!H135 -> 0 | T173: =Drepre!E38 -> 0 | U173: =SUM(F173:T173) -> 3437.295397
B174: KYNČLOVÁ | C174: Anna | D174: 7.A | F174: ='D60'!H136 -> 799.4997337 | G174: ='D300'!H136 -> 0 | H174: ='D800'!H136 -> 0 | I174: =Ddál!H136 -> 766.899 | J174: =Dvýš!H136 -> 0 | K174: =Dmíč!H136 -> 503.5 | L174: =Dkou!H136 -> 329.7777778 | M174: =Dčlu!H136 -> 750.1076892 | N174: =Dls!H136 -> 736.39 | O174: =Dodbíj!H136 -> 0 | P174: =Dplav!H136 -> 0 | Q174: =Dšplh!H136 -> 0 | R174: =Dšvih!H136 -> 355.75 | S174: ='Dz mís'!H136 -> 0 | T174: =Drepre!E39 -> 0 | U174: =SUM(F174:T174) -> 4241.924201
B175: MATOUŠOVÁ | C175: Tereza | D175: 7.A | F175: ='D60'!H137 -> 695.4753518 | G175: ='D300'!H137 -> 0 | H175: ='D800'!H137 -> 0 | I175: =Ddál!H137 -> 739.075 | J175: =Dvýš!H137 -> 0 | K175: =Dmíč!H137 -> 376.1 | L175: =Dkou!H137 -> 432 | M175: =Dčlu!H137 -> 628.6883322 | N175: =Dls!H137 -> 0 | O175: =Dodbíj!H137 -> 0 | P175: =Dplav!H137 -> 509.9544345 | Q175: =Dšplh!H137 -> 0 | R175: =Dšvih!H137 -> 312 | S175: ='Dz mís'!H137 -> 0 | T175: =Drepre!E40 -> 0 | U175: =SUM(F175:T175) -> 3693.293119
B176: MAZÁNKOVÁ | C176: Zuzana | D176: 7.A | F176: ='D60'!H138 -> 735.914573 | G176: ='D300'!H138 -> 0 | H176: ='D800'!H138 -> 0 | I176: =Ddál!H138 -> 672.993 | J176: =Dvýš!H138 -> 0 | K176: =Dmíč!H138 -> 348.8 | L176: =Dkou!H138 -> 422.2222222 | M176: =Dčlu!H138 -> 0 | N176: =Dls!H138 -> 0 | O176: =Dodbíj!H138 -> 0 | P176: =Dplav!H138 -> 0 | Q176: =Dšplh!H138 -> 0 | R176: =Dšvih!H138 -> 0 | S176: ='Dz mís'!H138 -> 0 | T176: =Drepre!E41 -> 0 | U176: =SUM(F176:T176) -> 2179.929795
B177: MORKESOVÁ | C177: Sabrina | D177: 7.A | F177: ='D60'!H139 -> 0 | G177: ='D300'!H139 -> 0 | H177: ='D800'!H139 -> 0 | I177: =Ddál!H139 -> 766.899 | J177: =Dvýš!H139 -> 0 | K177: =Dmíč!H139 -> 767.4 | L177: =Dkou!H139 -> 610.6666667 | M177: =Dčlu!H139 -> 743.7375504 | N177: =Dls!H139 -> 541.93 | O177: =Dodbíj!H139 -> 0 | P177: =Dplav!H139 -> 0 | Q177: =Dšplh!H139 -> 0 | R177: =Dšvih!H139 -> 412 | S177: ='Dz mís'!H139 -> 637.700661 | T177: =Drepre!E42 -> 0 | U177: =SUM(F177:T177) -> 4480.333878
B178: POHOŘALÁ | C178: Alžběta | D178: 7.A | F178: ='D60'!H140 -> 799.4997337 | G178: ='D300'!H140 -> 0 | H178: ='D800'!H140 -> 0 | I178: =Ddál!H140 -> 733.858 | J178: =Dvýš!H140 -> 0 | K178: =Dmíč!H140 -> 412.5 | L178: =Dkou!H140 -> 400.8888889 | M178: =Dčlu!H140 -> 699.6858186 | N178: =Dls!H140 -> 0 | O178: =Dodbíj!H140 -> 0 | P178: =Dplav!H140 -> 509.9544345 | Q178: =Dšplh!H140 -> 0 | R178: =Dšvih!H140 -> 0 | S178: ='Dz mís'!H140 -> 0 | T178: =Drepre!E43 -> 0 | U178: =SUM(F178:T178) -> 3556.386876
B179: SCHOLZOVÁ | C179: Laura | D179: 7.A | F179: ='D60'!H141 -> 663.4027089 | G179: ='D300'!H141 -> 0 | H179: ='D800'!H141 -> 0 | I179: =Ddál!H141 -> 0 | J179: =Dvýš!H141 -> 0 | K179: =Dmíč!H141 -> 0 | L179: =Dkou!H141 -> 296 | M179: =Dčlu!H141 -> 636.3086625 | N179: =Dls!H141 -> 0 | O179: =Dodbíj!H141 -> 0 | P179: =Dplav!H141 -> 509.9544345 | Q179: =Dšplh!H141 -> 0 | R179: =Dšvih!H141 -> 0 | S179: ='Dz mís'!H141 -> 0 | T179: =Drepre!E44 -> 0 | U179: =SUM(F179:T179) -> 2105.665806
B180: VÁCLAVÍKOVÁ | C180: Valerie | D180: 7.A | F180: ='D60'!H142 -> 806.7897522 | G180: ='D300'!H142 -> 0 | H180: ='D800'!H142 -> 0 | I180: =Ddál!H142 -> 742.553 | J180: =Dvýš!H142 -> 0 | K180: =Dmíč!H142 -> 485.3 | L180: =Dkou!H142 -> 548.4444444 | M180: =Dčlu!H142 -> 684.4726129 | N180: =Dls!H142 -> 528.04 | O180: =Dodbíj!H142 -> 0 | P180: =Dplav!H142 -> 509.9544345 | Q180: =Dšplh!H142 -> 0 | R180: =Dšvih!H142 -> 287 | S180: ='Dz mís'!H142 -> 477.7497639 | T180: =Drepre!E45 -> 0 | U180: =SUM(F180:T180) -> 5070.304008
B181: ZAPADLOVÁ | C181: Emma | D181: 7.A | F181: ='D60'!H143 -> 797.6963731 | G181: ='D300'!H143 -> 0 | H181: ='D800'!H143 -> 0 | I181: =Ddál!H143 -> 728.641 | J181: =Dvýš!H143 -> 0 | K181: =Dmíč!H143 -> 612.7 | L181: =Dkou!H143 -> 400.8888889 | M181: =Dčlu!H143 -> 690.6218344 | N181: =Dls!H143 -> 486.37 | O181: =Dodbíj!H143 -> 0 | P181: =Dplav!H143 -> 509.9544345 | Q181: =Dšplh!H143 -> 0 | R181: =Dšvih!H143 -> 412 | S181: ='Dz mís'!H143 -> 0 | T181: =Drepre!E46 -> 0 | U181: =SUM(F181:T181) -> 4638.872531
B182: ŽIŠKOVÁ | C182: Mia | D182: 7.A | F182: ='D60'!H144 -> 792.3314693 | G182: ='D300'!H144 -> 0 | H182: ='D800'!H144 -> 0 | I182: =Ddál!H144 -> 725.163 | J182: =Dvýš!H144 -> 0 | K182: =Dmíč!H144 -> 412.5 | L182: =Dkou!H144 -> 0 | M182: =Dčlu!H144 -> 0 | N182: =Dls!H144 -> 0 | O182: =Dodbíj!H144 -> 0 | P182: =Dplav!H144 -> 0 | Q182: =Dšplh!H144 -> 0 | R182: =Dšvih!H144 -> 0 | S182: ='Dz mís'!H144 -> 0 | T182: =Drepre!E47 -> 0 | U182: =SUM(F182:T182) -> 1929.994469
B183: FARSKÁ | C183: Tereza | D183: 7.B | F183: ='D60'!H145 -> 647.1430823 | G183: ='D300'!H145 -> 0 | H183: ='D800'!H145 -> 0 | I183: =Ddál!H145 -> 0 | J183: =Dvýš!H145 -> 0 | K183: =Dmíč!H145 -> 0 | L183: =Dkou!H145 -> 0 | M183: =Dčlu!H145 -> 0 | N183: =Dls!H145 -> 472.48 | O183: =Dodbíj!H145 -> 0 | P183: =Dplav!H145 -> 0 | Q183: =Dšplh!H145 -> 0 | R183: =Dšvih!H145 -> 355.75 | S183: ='Dz mís'!H145 -> 426.0009443 | T183: =Drepre!E48 -> 0 | U183: =SUM(F183:T183) -> 1901.374027
B184: FEIXOVÁ | C184: Rozálie | D184: 7.B | F184: ='D60'!H146 -> 645.3139553 | G184: ='D300'!H146 -> 0 | H184: ='D800'!H146 -> 0 | I184: =Ddál!H146 -> 565.175 | J184: =Dvýš!H146 -> 0 | K184: =Dmíč!H146 -> 0 | L184: =Dkou!H146 -> 0 | M184: =Dčlu!H146 -> 0 | N184: =Dls!H146 -> 0 | O184: =Dodbíj!H146 -> 0 | P184: =Dplav!H146 -> 0 | Q184: =Dšplh!H146 -> 0 | R184: =Dšvih!H146 -> 0 | S184: ='Dz mís'!H146 -> 0 | T184: =Drepre!E49 -> 0 | U184: =SUM(F184:T184) -> 1210.488955
B185: FIŠEROVÁ | C185: Michaela | D185: 7.B | F185: ='D60'!H147 -> 689.2465651 | G185: ='D300'!H147 -> 0 | H185: ='D800'!H147 -> 0 | I185: =Ddál!H147 -> 553.002 | J185: =Dvýš!H147 -> 570.5 | K185: =Dmíč!H147 -> 0 | L185: =Dkou!H147 -> 0 | M185: =Dčlu!H147 -> 0 | N185: =Dls!H147 -> 0 | O185: =Dodbíj!H147 -> 0 | P185: =Dplav!H147 -> 0 | Q185: =Dšplh!H147 -> 0 | R185: =Dšvih!H147 -> 0 | S185: ='Dz mís'!H147 -> 0 | T185: =Drepre!E50 -> 0 | U185: =SUM(F185:T185) -> 1812.748565
B186: HAVLÍČKOVÁ | C186: Kristýna | D186: 7.B | F186: ='D60'!H148 -> 600.8732728 | G186: ='D300'!H148 -> 0 | H186: ='D800'!H148 -> 0 | I186: =Ddál!H148 -> 539.09 | J186: =Dvýš!H148 -> 0 | K186: =Dmíč!H148 -> 0 | L186: =Dkou!H148 -> 0 | M186: =Dčlu!H148 -> 0 | N186: =Dls!H148 -> 0 | O186: =Dodbíj!H148 -> 0 | P186: =Dplav!H148 -> 0 | Q186: =Dšplh!H148 -> 0 | R186: =Dšvih!H148 -> 0 | S186: ='Dz mís'!H148 -> 0 | T186: =Drepre!E51 -> 0 | U186: =SUM(F186:T186) -> 1139.963273
B187: JODASOVÁ | C187: Nikola | D187: 7.B | F187: ='D60'!H149 -> 777.4894858 | G187: ='D300'!H149 -> 0 | H187: ='D800'!H149 -> 0 | I187: =Ddál!H149 -> 695.6 | J187: =Dvýš!H149 -> 0 | K187: =Dmíč!H149 -> 0 | L187: =Dkou!H149 -> 0 | M187: =Dčlu!H149 -> 0 | N187: =Dls!H149 -> 0 | O187: =Dodbíj!H149 -> 0 | P187: =Dplav!H149 -> 0 | Q187: =Dšplh!H149 -> 0 | R187: =Dšvih!H149 -> 0 | S187: ='Dz mís'!H149 -> 0 | T187: =Drepre!E52 -> 0 | U187: =SUM(F187:T187) -> 1473.089486
B188: KADAVÁ | C188: Nikola | D188: 7.B | F188: ='D60'!H150 -> 0 | G188: ='D300'!H150 -> 0 | H188: ='D800'!H150 -> 0 | I188: =Ddál!H150 -> 0 | J188: =Dvýš!H150 -> 0 | K188: =Dmíč!H150 -> 0 | L188: =Dkou!H150 -> 0 | M188: =Dčlu!H150 -> 0 | N188: =Dls!H150 -> 583.6 | O188: =Dodbíj!H150 -> 0 | P188: =Dplav!H150 -> 0 | Q188: =Dšplh!H150 -> 0 | R188: =Dšvih!H150 -> 0 | S188: ='Dz mís'!H150 -> 0 | T188: =Drepre!E53 -> 0 | U188: =SUM(F188:T188) -> 583.6
B189: KRAFKOVÁ | C189: Lucie | D189: 7.B | F189: ='D60'!H151 -> 675.7664479 | G189: ='D300'!H151 -> 0 | H189: ='D800'!H151 -> 0 | I189: =Ddál!H151 -> 537.351 | J189: =Dvýš!H151 -> 0 | K189: =Dmíč!H151 -> 0 | L189: =Dkou!H151 -> 0 | M189: =Dčlu!H151 -> 0 | N189: =Dls!H151 -> 0 | O189: =Dodbíj!H151 -> 0 | P189: =Dplav!H151 -> 0 | Q189: =Dšplh!H151 -> 0 | R189: =Dšvih!H151 -> 0 | S189: ='Dz mís'!H151 -> 0 | T189: =Drepre!E54 -> 0 | U189: =SUM(F189:T189) -> 1213.117448
B190: KŘIVINKOVÁ | C190: Alžběta | D190: 7.B | F190: ='D60'!H152 -> 681.7718952 | G190: ='D300'!H152 -> 0 | H190: ='D800'!H152 -> 0 | I190: =Ddál!H152 -> 626.04 | J190: =Dvýš!H152 -> 0 | K190: =Dmíč!H152 -> 0 | L190: =Dkou!H152 -> 0 | M190: =Dčlu!H152 -> 0 | N190: =Dls!H152 -> 0 | O190: =Dodbíj!H152 -> 0 | P190: =Dplav!H152 -> 0 | Q190: =Dšplh!H152 -> 0 | R190: =Dšvih!H152 -> 0 | S190: ='Dz mís'!H152 -> 0 | T190: =Drepre!E55 -> 0 | U190: =SUM(F190:T190) -> 1307.811895
B191: LEŠÁKOVÁ | C191: Lenka | D191: 7.B | F191: ='D60'!H153 -> 598.7449721 | G191: ='D300'!H153 -> 0 | H191: ='D800'!H153 -> 0 | I191: =Ddál!H153 -> 0 | J191: =Dvýš!H153 -> 0 | K191: =Dmíč!H153 -> 0 | L191: =Dkou!H153 -> 0 | M191: =Dčlu!H153 -> 0 | N191: =Dls!H153 -> 0 | O191: =Dodbíj!H153 -> 0 | P191: =Dplav!H153 -> 0 | Q191: =Dšplh!H153 -> 0 | R191: =Dšvih!H153 -> 0 | S191: ='Dz mís'!H153 -> 0 | T191: =Drepre!E56 -> 0 | U191: =SUM(F191:T191) -> 598.7449721
B192: NYKLÍČKOVÁ | C192: Adéla | D192: 7.B | F192: ='D60'!H154 -> 747.7070731 | G192: ='D300'!H154 -> 0 | H192: ='D800'!H154 -> 0 | I192: =Ddál!H154 -> 695.6 | J192: =Dvýš!H154 -> 668 | K192: =Dmíč!H154 -> 0 | L192: =Dkou!H154 -> 0 | M192: =Dčlu!H154 -> 0 | N192: =Dls!H154 -> 0 | O192: =Dodbíj!H154 -> 0 | P192: =Dplav!H154 -> 0 | Q192: =Dšplh!H154 -> 0 | R192: =Dšvih!H154 -> 0 | S192: ='Dz mís'!H154 -> 0 | T192: =Drepre!E57 -> 0 | U192: =SUM(F192:T192) -> 2111.307073
B193: PLŮCHOVÁ | C193: Petra | D193: 7.B | F193: ='D60'!H155 -> 681.7718952 | G193: ='D300'!H155 -> 0 | H193: ='D800'!H155 -> 0 | I193: =Ddál!H155 -> 521.7 | J193: =Dvýš!H155 -> 668 | K193: =Dmíč!H155 -> 0 | L193: =Dkou!H155 -> 0 | M193: =Dčlu!H155 -> 0 | N193: =Dls!H155 -> 0 | O193: =Dodbíj!H155 -> 0 | P193: =Dplav!H155 -> 0 | Q193: =Dšplh!H155 -> 0 | R193: =Dšvih!H155 -> 0 | S193: ='Dz mís'!H155 -> 0 | T193: =Drepre!E58 -> 0 | U193: =SUM(F193:T193) -> 1871.471895
B194: PODZIMKOVÁ | C194: Eliška | D194: 7.B | F194: ='D60'!H156 -> 601.4075021 | G194: ='D300'!H156 -> 0 | H194: ='D800'!H156 -> 0 | I194: =Ddál!H156 -> 460.835 | J194: =Dvýš!H156 -> 596.5 | K194: =Dmíč!H156 -> 0 | L194: =Dkou!H156 -> 0 | M194: =Dčlu!H156 -> 0 | N194: =Dls!H156 -> 0 | O194: =Dodbíj!H156 -> 0 | P194: =Dplav!H156 -> 0 | Q194: =Dšplh!H156 -> 0 | R194: =Dšvih!H156 -> 0 | S194: ='Dz mís'!H156 -> 0 | T194: =Drepre!E59 -> 0 | U194: =SUM(F194:T194) -> 1658.742502
B195: RUTKAYOVÁ | C195: Klára | D195: 7.B | F195: ='D60'!H157 -> 0 | G195: ='D300'!H157 -> 0 | H195: ='D800'!H157 -> 0 | I195: =Ddál!H157 -> 0 | J195: =Dvýš!H157 -> 0 | K195: =Dmíč!H157 -> 0 | L195: =Dkou!H157 -> 0 | M195: =Dčlu!H157 -> 0 | N195: =Dls!H157 -> 583.6 | O195: =Dodbíj!H157 -> 0 | P195: =Dplav!H157 -> 0 | Q195: =Dšplh!H157 -> 0 | R195: =Dšvih!H157 -> 437 | S195: ='Dz mís'!H157 -> 0 | T195: =Drepre!E60 -> 0 | U195: =SUM(F195:T195) -> 1020.6
B196: SEIDLOVÁ | C196: Zuzana | D196: 7.B | F196: ='D60'!H158 -> 612.8296242 | G196: ='D300'!H158 -> 0 | H196: ='D800'!H158 -> 0 | I196: =Ddál!H158 -> 624.301 | J196: =Dvýš!H158 -> 635.5 | K196: =Dmíč!H158 -> 0 | L196: =Dkou!H158 -> 0 | M196: =Dčlu!H158 -> 0 | N196: =Dls!H158 -> 375.25 | O196: =Dodbíj!H158 -> 0 | P196: =Dplav!H158 -> 0 | Q196: =Dšplh!H158 -> 0 | R196: =Dšvih!H158 -> 224.5 | S196: ='Dz mís'!H158 -> 477.7497639 | T196: =Drepre!E61 -> 0 | U196: =SUM(F196:T196) -> 2950.130388
B197: TOMÁŠOVÁ | C197: Sára | D197: 7.B | F197: ='D60'!H159 -> 592.962323 | G197: ='D300'!H159 -> 0 | H197: ='D800'!H159 -> 0 | I197: =Ddál!H159 -> 473.008 | J197: =Dvýš!H159 -> 0 | K197: =Dmíč!H159 -> 0 | L197: =Dkou!H159 -> 0 | M197: =Dčlu!H159 -> 0 | N197: =Dls!H159 -> 0 | O197: =Dodbíj!H159 -> 0 | P197: =Dplav!H159 -> 0 | Q197: =Dšplh!H159 -> 0 | R197: =Dšvih!H159 -> 0 | S197: ='Dz mís'!H159 -> 0 | T197: =Drepre!E62 -> 0 | U197: =SUM(F197:T197) -> 1065.970323
B198: VANCLOVÁ | C198: Barbora | D198: 7.B | F198: ='D60'!H160 -> 759.0335507 | G198: ='D300'!H160 -> 0 | H198: ='D800'!H160 -> 0 | I198: =Ddál!H160 -> 613.867 | J198: =Dvýš!H160 -> 635.5 | K198: =Dmíč!H160 -> 0 | L198: =Dkou!H160 -> 0 | M198: =Dčlu!H160 -> 0 | N198: =Dls!H160 -> 0 | O198: =Dodbíj!H160 -> 0 | P198: =Dplav!H160 -> 0 | Q198: =Dšplh!H160 -> 0 | R198: =Dšvih!H160 -> 0 | S198: ='Dz mís'!H160 -> 0 | T198: =Drepre!E63 -> 0 | U198: =SUM(F198:T198) -> 2008.400551
B199: VOTOČKOVÁ | C199: Veronika | D199: 7.B | F199: ='D60'!H161 -> 590.8846744 | G199: ='D300'!H161 -> 0 | H199: ='D800'!H161 -> 0 | I199: =Ddál!H161 -> 573.87 | J199: =Dvýš!H161 -> 0 | K199: =Dmíč!H161 -> 0 | L199: =Dkou!H161 -> 0 | M199: =Dčlu!H161 -> 0 | N199: =Dls!H161 -> 0 | O199: =Dodbíj!H161 -> 0 | P199: =Dplav!H161 -> 0 | Q199: =Dšplh!H161 -> 0 | R199: =Dšvih!H161 -> 0 | S199: ='Dz mís'!H161 -> 0 | T199: =Drepre!E64 -> 0 | U199: =SUM(F199:T199) -> 1164.754674
B200: HARTIGOVÁ | C200: Anna | D200: 8.A | F200: ='D60'!H162 -> 703.2306118 | G200: ='D300'!H162 -> 0 | H200: ='D800'!H162 -> 0 | I200: =Ddál!H162 -> 716.468 | J200: =Dvýš!H162 -> 0 | K200: =Dmíč!H162 -> 458 | L200: =Dkou!H162 -> 627.5555556 | M200: =Dčlu!H162 -> 0 | N200: =Dls!H162 -> 0 | O200: =Dodbíj!H162 -> 63 | P200: =Dplav!H162 -> 0 | Q200: =Dšplh!H162 -> 0 | R200: =Dšvih!H162 -> 0 | S200: ='Dz mís'!H162 -> 0 | T200: =Drepre!E65 -> 0 | U200: =SUM(F200:T200) -> 2568.254167
B201: HONCŮ | C201: Rozálie | D201: 8.A | F201: ='D60'!H163 -> 829.4221623 | G201: ='D300'!H163 -> 0 | H201: ='D800'!H163 -> 0 | I201: =Ddál!H163 -> 810.374 | J201: =Dvýš!H163 -> 0 | K201: =Dmíč!H163 -> 494.4 | L201: =Dkou!H163 -> 653.3333333 | M201: =Dčlu!H163 -> 733.5973295 | N201: =Dls!H163 -> 0 | O201: =Dodbíj!H163 -> 30 | P201: =Dplav!H163 -> 0 | Q201: =Dšplh!H163 -> 0 | R201: =Dšvih!H163 -> 0 | S201: ='Dz mís'!H163 -> 0 | T201: =Drepre!E66 -> 0 | U201: =SUM(F201:T201) -> 3551.126825
B202: CHALOUPSKÁ | C202: Lucie | D202: 8.A | F202: ='D60'!H164 -> 0 | G202: ='D300'!H164 -> 847.9565742 | H202: ='D800'!H164 -> 0 | I202: =Ddál!H164 -> 791.245 | J202: =Dvýš!H164 -> 0 | K202: =Dmíč!H164 -> 530.8 | L202: =Dkou!H164 -> 660.4444444 | M202: =Dčlu!H164 -> 701.8087265 | N202: =Dls!H164 -> 0 | O202: =Dodbíj!H164 -> 12 | P202: =Dplav!H164 -> 0 | Q202: =Dšplh!H164 -> 0 | R202: =Dšvih!H164 -> 0 | S202: ='Dz mís'!H164 -> 0 | T202: =Drepre!E67 -> 0 | U202: =SUM(F202:T202) -> 3544.254745
B203: KŘÍŽKOVÁ | C203: Anna | D203: 8.A | F203: ='D60'!H165 -> 696.1738475 | G203: ='D300'!H165 -> 650.2981572 | H203: ='D800'!H165 -> 0 | I203: =Ddál!H165 -> 613.867 | J203: =Dvýš!H165 -> 0 | K203: =Dmíč!H165 -> 458 | L203: =Dkou!H165 -> 537.7777778 | M203: =Dčlu!H165 -> 661.4884793 | N203: =Dls!H165 -> 0 | O203: =Dodbíj!H165 -> 36 | P203: =Dplav!H165 -> 0 | Q203: =Dšplh!H165 -> 0 | R203: =Dšvih!H165 -> 0 | S203: ='Dz mís'!H165 -> 0 | T203: =Drepre!E68 -> 0 | U203: =SUM(F203:T203) -> 3653.605262
B204: LUKEŠOVÁ | C204: Kristýna | D204: 8.A | F204: ='D60'!H166 -> 0 | G204: ='D300'!H166 -> 726.3159891 | H204: ='D800'!H166 -> 0 | I204: =Ddál!H166 -> 723.424 | J204: =Dvýš!H166 -> 0 | K204: =Dmíč!H166 -> 412.5 | L204: =Dkou!H166 -> 520 | M204: =Dčlu!H166 -> 694.0822303 | N204: =Dls!H166 -> 0 | O204: =Dodbíj!H166 -> 30 | P204: =Dplav!H166 -> 0 | Q204: =Dšplh!H166 -> 0 | R204: =Dšvih!H166 -> 0 | S204: ='Dz mís'!H166 -> 0 | T204: =Drepre!E69 -> 0 | U204: =SUM(F204:T204) -> 3106.322219
B205: MOTLÍKOVÁ | C205: Eliška | D205: 8.A | F205: ='D60'!H167 -> 721.4634001 | G205: ='D300'!H167 -> 0 | H205: ='D800'!H167 -> 0 | I205: =Ddál!H167 -> 699.078 | J205: =Dvýš!H167 -> 0 | K205: =Dmíč!H167 -> 458 | L205: =Dkou!H167 -> 590.2222222 | M205: =Dčlu!H167 -> 687.8763334 | N205: =Dls!H167 -> 0 | O205: =Dodbíj!H167 -> 30 | P205: =Dplav!H167 -> 0 | Q205: =Dšplh!H167 -> 0 | R205: =Dšvih!H167 -> 0 | S205: ='Dz mís'!H167 -> 0 | T205: =Drepre!E70 -> 0 | U205: =SUM(F205:T205) -> 3186.639956
B206: POHOŘELÁ | C206: Amálie | D206: 8.A | F206: ='D60'!H168 -> 819.8497259 | G206: ='D300'!H168 -> 665.4012487 | H206: ='D800'!H168 -> 0 | I206: =Ddál!H168 -> 0 | J206: =Dvýš!H168 -> 0 | K206: =Dmíč!H168 -> 0 | L206: =Dkou!H168 -> 546.6666667 | M206: =Dčlu!H168 -> 671.1624509 | N206: =Dls!H168 -> 541.93 | O206: =Dodbíj!H168 -> 36 | P206: =Dplav!H168 -> 0 | Q206: =Dšplh!H168 -> 0 | R206: =Dšvih!H168 -> 693.25 | S206: ='Dz mís'!H168 -> 670.631728 | T206: =Drepre!E71 -> 0 | U206: =SUM(F206:T206) -> 4644.89182
B207: POLÁČKOVÁ | C207: Natálie | D207: 8.A | F207: ='D60'!H169 -> 0 | G207: ='D300'!H169 -> 362.1473163 | H207: ='D800'!H169 -> 0 | I207: =Ddál!H169 -> 0 | J207: =Dvýš!H169 -> 0 | K207: =Dmíč!H169 -> 439.8 | L207: =Dkou!H169 -> 342.2222222 | M207: =Dčlu!H169 -> 566.4679214 | N207: =Dls!H169 -> 0 | O207: =Dodbíj!H169 -> 18 | P207: =Dplav!H169 -> 0 | Q207: =Dšplh!H169 -> 0 | R207: =Dšvih!H169 -> 0 | S207: ='Dz mís'!H169 -> 0 | T207: =Drepre!E72 -> 0 | U207: =SUM(F207:T207) -> 1728.63746
B208: ŘEHOŘKOVÁ | C208: Lucie | D208: 8.A | F208: ='D60'!H170 -> 726.7259659 | G208: ='D300'!H170 -> 683.2990891 | H208: ='D800'!H170 -> 0 | I208: =Ddál!H170 -> 744.292 | J208: =Dvýš!H170 -> 0 | K208: =Dmíč!H170 -> 558.1 | L208: =Dkou!H170 -> 688.8888889 | M208: =Dčlu!H170 -> 727.4835608 | N208: =Dls!H170 -> 0 | O208: =Dodbíj!H170 -> 18 | P208: =Dplav!H170 -> 0 | Q208: =Dšplh!H170 -> 0 | R208: =Dšvih!H170 -> 0 | S208: ='Dz mís'!H170 -> 0 | T208: =Drepre!E73 -> 0 | U208: =SUM(F208:T208) -> 4146.789505
B209: SKÁLOVÁ | C209: Alena | D209: 8.A | F209: ='D60'!H171 -> 654.5556074 | G209: ='D300'!H171 -> 547.5044892 | H209: ='D800'!H171 -> 0 | I209: =Ddál!H171 -> 672.993 | J209: =Dvýš!H171 -> 0 | K209: =Dmíč!H171 -> 367 | L209: =Dkou!H171 -> 688.8888889 | M209: =Dčlu!H171 -> 630.4320049 | N209: =Dls!H171 -> 0 | O209: =Dodbíj!H171 -> 12 | P209: =Dplav!H171 -> 0 | Q209: =Dšplh!H171 -> 0 | R209: =Dšvih!H171 -> 0 | S209: ='Dz mís'!H171 -> 0 | T209: =Drepre!E74 -> 0 | U209: =SUM(F209:T209) -> 3573.37399
B210: VÁVROVÁ | C210: Aneta | D210: 8.A | F210: ='D60'!H172 -> 780.0709346 | G210: ='D300'!H172 -> 787.1880212 | H210: ='D800'!H172 -> 0 | I210: =Ddál!H172 -> 786.028 | J210: =Dvýš!H172 -> 0 | K210: =Dmíč!H172 -> 439.8 | L210: =Dkou!H172 -> 511.1111111 | M210: =Dčlu!H172 -> 0 | N210: =Dls!H172 -> 389.14 | O210: =Dodbíj!H172 -> 63 | P210: =Dplav!H172 -> 0 | Q210: =Dšplh!H172 -> 0 | R210: =Dšvih!H172 -> 468.25 | S210: ='Dz mís'!H172 -> 792.9471199 | T210: =Drepre!E75 -> 0 | U210: =SUM(F210:T210) -> 5017.535187
B211: ZELINKOVÁ | C211: Klára | D211: 8.A | F211: ='D60'!H173 -> 780.9349623 | G211: ='D300'!H173 -> 660.0698802 | H211: ='D800'!H173 -> 0 | I211: =Ddál!H173 -> 728.641 | J211: =Dvýš!H173 -> 0 | K211: =Dmíč!H173 -> 494.4 | L211: =Dkou!H173 -> 621.3333333 | M211: =Dčlu!H173 -> 673.7862151 | N211: =Dls!H173 -> 0 | O211: =Dodbíj!H173 -> 30 | P211: =Dplav!H173 -> 0 | Q211: =Dšplh!H173 -> 0 | R211: =Dšvih!H173 -> 0 | S211: ='Dz mís'!H173 -> 0 | T211: =Drepre!E76 -> 0 | U211: =SUM(F211:T211) -> 3989.165391
B212: JUNGOVÁ | C212: Lucie | D212: 9.A | F212: ='D60'!H174 -> 829.4221623 | G212: ='D300'!H174 -> 0 | H212: ='D800'!H174 -> 0 | I212: =Ddál!H174 -> 0 | J212: =Dvýš!H174 -> 0 | K212: =Dmíč!H174 -> 376.1 | L212: =Dkou!H174 -> 462.2222222 | M212: =Dčlu!H174 -> 673.7862151 | N212: =Dls!H174 -> 0 | O212: =Dodbíj!H174 -> 0 | P212: =Dplav!H174 -> 0 | Q212: =Dšplh!H174 -> 0 | R212: =Dšvih!H174 -> 0 | S212: ='Dz mís'!H174 -> 0 | T212: =Drepre!E77 -> 0 | U212: =SUM(F212:T212) -> 2341.5306
B213: KŘIVÁNKOVÁ | C213: Linda | D213: 9.A | F213: ='D60'!H175 -> 703.2306118 | G213: ='D300'!H175 -> 422.4211204 | H213: ='D800'!H175 -> 0 | I213: =Ddál!H175 -> 0 | J213: =Dvýš!H175 -> 0 | K213: =Dmíč!H175 -> 285.1 | L213: =Dkou!H175 -> 564.4444444 | M213: =Dčlu!H175 -> 638.6874773 | N213: =Dls!H175 -> 0 | O213: =Dodbíj!H175 -> 0 | P213: =Dplav!H175 -> 0 | Q213: =Dšplh!H175 -> 0 | R213: =Dšvih!H175 -> 462 | S213: ='Dz mís'!H175 -> 0 | T213: =Drepre!E78 -> 0 | U213: =SUM(F213:T213) -> 3075.883654
B214: KUBÁTOVÁ | C214: Lucie | D214: 9.A | F214: ='D60'!H176 -> 726.7259659 | G214: ='D300'!H176 -> 0 | H214: ='D800'!H176 -> 0 | I214: =Ddál!H176 -> 0 | J214: =Dvýš!H176 -> 0 | K214: =Dmíč!H176 -> 0 | L214: =Dkou!H176 -> 0 | M214: =Dčlu!H176 -> 0 | N214: =Dls!H176 -> 0 | O214: =Dodbíj!H176 -> 0 | P214: =Dplav!H176 -> 0 | Q214: =Dšplh!H176 -> 0 | R214: =Dšvih!H176 -> 0 | S214: ='Dz mís'!H176 -> 0 | T214: =Drepre!E79 -> 0 | U214: =SUM(F214:T214) -> 726.7259659
B215: ŠIMŮNKOVÁ | C215: Nikola | D215: 9.A | F215: ='D60'!H177 -> 703.9435497 | G215: ='D300'!H177 -> 437.6717991 | H215: ='D800'!H177 -> 0 | I215: =Ddál!H177 -> 0 | J215: =Dvýš!H177 -> 0 | K215: =Dmíč!H177 -> 330.6 | L215: =Dkou!H177 -> 472 | M215: =Dčlu!H177 -> 596.6303582 | N215: =Dls!H177 -> 0 | O215: =Dodbíj!H177 -> 0 | P215: =Dplav!H177 -> 0 | Q215: =Dšplh!H177 -> 0 | R215: =Dšvih!H177 -> 0 | S215: ='Dz mís'!H177 -> 0 | T215: =Drepre!E80 -> 0 | U215: =SUM(F215:T215) -> 2540.845707
B216: ŠMÍDOVÁ | C216: Kristýna | D216: 9.A | F216: ='D60'!H178 -> 593.4838128 | G216: ='D300'!H178 -> 520.6470498 | H216: ='D800'!H178 -> 0 | I216: =Ddál!H178 -> 0 | J216: =Dvýš!H178 -> 0 | K216: =Dmíč!H178 -> 367 | L216: =Dkou!H178 -> 584 | M216: =Dčlu!H178 -> 568.875034 | N216: =Dls!H178 -> 541.93 | O216: =Dodbíj!H178 -> 0 | P216: =Dplav!H178 -> 0 | Q216: =Dšplh!H178 -> 0 | R216: =Dšvih!H178 -> 224.5 | S216: ='Dz mís'!H178 -> 421.2965061 | T216: =Drepre!E81 -> 0 | U216: =SUM(F216:T216) -> 3821.732403
B217: VOTOČKOVÁ | C217: Nikola | D217: 9.A | F217: ='D60'!H179 -> 857.3693744 | G217: ='D300'!H179 -> 815.1873542 | H217: ='D800'!H179 -> 0 | I217: =Ddál!H179 -> 0 | J217: =Dvýš!H179 -> 0 | K217: =Dmíč!H179 -> 530.8 | L217: =Dkou!H179 -> 562.6666667 | M217: =Dčlu!H179 -> 701.0997715 | N217: =Dls!H179 -> 0 | O217: =Dodbíj!H179 -> 0 | P217: =Dplav!H179 -> 0 | Q217: =Dšplh!H179 -> 0 | R217: =Dšvih!H179 -> 0 | S217: ='Dz mís'!H179 -> 0 | T217: =Drepre!E82 -> 0 | U217: =SUM(F217:T217) -> 3467.123167
B218: VYHLASOVÁ | C218: Lenka | D218: 9.A | F218: ='D60'!H180 -> 593.4838128 | G218: ='D300'!H180 -> 0 | H218: ='D800'!H180 -> 0 | I218: =Ddál!H180 -> 0 | J218: =Dvýš!H180 -> 0 | K218: =Dmíč!H180 -> 0 | L218: =Dkou!H180 -> 612.4444444 | M218: =Dčlu!H180 -> 519.4544512 | N218: =Dls!H180 -> 0 | O218: =Dodbíj!H180 -> 0 | P218: =Dplav!H180 -> 0 | Q218: =Dšplh!H180 -> 0 | R218: =Dšvih!H180 -> 0 | S218: ='Dz mís'!H180 -> 0 | T218: =Drepre!E83 -> 0 | U218: =SUM(F218:T218) -> 1725.382708
B219: BÖHMOVÁ | C219: Diana | D219: 9.B | F219: ='D60'!H181 -> 743.7375504 | G219: ='D300'!H181 -> 632.0655859 | H219: ='D800'!H181 -> 0 | I219: =Ddál!H181 -> 0 | J219: =Dvýš!H181 -> 0 | K219: =Dmíč!H181 -> 357.9 | L219: =Dkou!H181 -> 525.3333333 | M219: =Dčlu!H181 -> 657.061158 | N219: =Dls!H181 -> 0 | O219: =Dodbíj!H181 -> 24 | P219: =Dplav!H181 -> 509.9544345 | Q219: =Dšplh!H181 -> 0 | R219: 0 | S219: ='Dz mís'!H181 -> 0 | T219: =Drepre!E84 -> 0 | U219: =SUM(F219:T219) -> 3450.052062
B220: HOUDOVÁ | C220: Tereza | D220: 9.B | F220: ='D60'!H182 -> 750.1076892 | G220: ='D300'!H182 -> 0 | H220: ='D800'!H182 -> 0 | I220: =Ddál!H182 -> 0 | J220: =Dvýš!H182 -> 0 | K220: =Dmíč!H182 -> 0 | L220: =Dkou!H182 -> 0 | M220: =Dčlu!H182 -> 0 | N220: =Dls!H182 -> 0 | O220: =Dodbíj!H182 -> 0 | P220: =Dplav!H182 -> 509.9544345 | Q220: =Dšplh!H182 -> 0 | R220: =Dšvih!H182 -> 0 | S220: ='Dz mís'!H182 -> 0 | T220: =Drepre!E85 -> 0 | U220: =SUM(F220:T220) -> 1260.062124
B221: JANÍKOVÁ | C221: Kristýna | D221: 9.B | F221: ='D60'!H183 -> 829.4221623 | G221: ='D300'!H183 -> 0 | H221: ='D800'!H183 -> 0 | I221: =Ddál!H183 -> 0 | J221: =Dvýš!H183 -> 0 | K221: =Dmíč!H183 -> 0 | L221: =Dkou!H183 -> 635.5555556 | M221: =Dčlu!H183 -> 0 | N221: =Dls!H183 -> 0 | O221: =Dodbíj!H183 -> 0 | P221: =Dplav!H183 -> 509.9544345 | Q221: =Dšplh!H183 -> 0 | R221: =Dšvih!H183 -> 0 | S221: ='Dz mís'!H183 -> 0 | T221: =Drepre!E86 -> 0 | U221: =SUM(F221:T221) -> 1974.932152
B222: KUŽELOVÁ | C222: Ela | D222: 9.B | F222: ='D60'!H184 -> 797.6963731 | G222: ='D300'!H184 -> 424.6325174 | H222: ='D800'!H184 -> 0 | I222: =Ddál!H184 -> 0 | J222: =Dvýš!H184 -> 0 | K222: =Dmíč!H184 -> 0 | L222: =Dkou!H184 -> 568 | M222: =Dčlu!H184 -> 696.1738475 | N222: =Dls!H184 -> 0 | O222: =Dodbíj!H184 -> 27 | P222: =Dplav!H184 -> 0 | Q222: =Dšplh!H184 -> 0 | R222: 0 | S222: ='Dz mís'!H184 -> 0 | T222: =Drepre!E87 -> 0 | U222: =SUM(F222:T222) -> 2513.502738
B223: MATERNOVÁ | C223: Lucie | D223: 9.B | F223: ='D60'!H185 -> 767.3206174 | G223: ='D300'!H185 -> 612.4030839 | H223: ='D800'!H185 -> 0 | I223: =Ddál!H185 -> 0 | J223: =Dvýš!H185 -> 0 | K223: =Dmíč!H185 -> 257.8 | L223: =Dkou!H185 -> 372.4444444 | M223: =Dčlu!H185 -> 640.4822991 | N223: =Dls!H185 -> 0 | O223: =Dodbíj!H185 -> 12 | P223: =Dplav!H185 -> 0 | Q223: =Dšplh!H185 -> 0 | R223: 0 | S223: ='Dz mís'!H185 -> 0 | T223: =Drepre!E88 -> 0 | U223: =SUM(F223:T223) -> 2662.450445
B224: OPOČENSKÁ | C224: Matylda | D224: 9.B | F224: ='D60'!H186 -> 0 | G224: ='D300'!H186 -> 0 | H224: ='D800'!H186 -> 0 | I224: =Ddál!H186 -> 0 | J224: =Dvýš!H186 -> 0 | K224: =Dmíč!H186 -> 0 | L224: =Dkou!H186 -> 0 | M224: =Dčlu!H186 -> 0 | N224: =Dls!H186 -> 0 | O224: =Dodbíj!H186 -> 0 | P224: =Dplav!H186 -> 0 | Q224: =Dšplh!H186 -> 0 | R224: =Dšvih!H186 -> 0 | S224: ='Dz mís'!H186 -> 0 | T224: =Drepre!E89 -> 0 | U224: =SUM(F224:T224) -> 0
B225: PIŠTOROVÁ | C225: Karolína | D225: 9.B | F225: ='D60'!H187 -> 787.9117839 | G225: ='D300'!H187 -> 0 | H225: ='D800'!H187 -> 0 | I225: =Ddál!H187 -> 0 | J225: =Dvýš!H187 -> 0 | K225: =Dmíč!H187 -> 367 | L225: =Dkou!H187 -> 0 | M225: =Dčlu!H187 -> 687.8763334 | N225: =Dls!H187 -> 0 | O225: =Dodbíj!H187 -> 27 | P225: =Dplav!H187 -> 0 | Q225: =Dšplh!H187 -> 0 | R225: 0 | S225: ='Dz mís'!H187 -> 0 | T225: =Drepre!E90 -> 0 | U225: =SUM(F225:T225) -> 1869.788117
B226: POKORNÝ | C226: Anna | D226: 9.B | F226: ='D60'!H188 -> 0 | G226: ='D300'!H188 -> 0 | H226: ='D800'!H188 -> 0 | I226: =Ddál!H188 -> 0 | J226: =Dvýš!H188 -> 0 | K226: =Dmíč!H188 -> 303.3 | L226: =Dkou!H188 -> 576 | M226: =Dčlu!H188 -> 0 | N226: =Dls!H188 -> 625.27 | O226: =Dodbíj!H188 -> 15 | P226: =Dplav!H188 -> 0 | Q226: =Dšplh!H188 -> 0 | R226: 0 | S226: ='Dz mís'!H188 -> 0 | T226: =Drepre!E91 -> 0 | U226: =SUM(F226:T226) -> 1519.57
B227: SUCHÁNKOVÁ | C227: Michaela | D227: 9.B | F227: ='D60'!H189 -> 586.7688574 | G227: ='D300'!H189 -> 398.082218 | H227: ='D800'!H189 -> 0 | I227: =Ddál!H189 -> 0 | J227: =Dvýš!H189 -> 0 | K227: =Dmíč!H189 -> 276 | L227: =Dkou!H189 -> 546.6666667 | M227: =Dčlu!H189 -> 517.8183709 | N227: =Dls!H189 -> 0 | O227: =Dodbíj!H189 -> 27 | P227: =Dplav!H189 -> 0 | Q227: =Dšplh!H189 -> 0 | R227: 0 | S227: ='Dz mís'!H189 -> 0 | T227: =Drepre!E92 -> 0 | U227: =SUM(F227:T227) -> 2352.336113
B228: ŠUBÍKOVÁ | C228: Štěpánka | D228: 9.B | F228: ='D60'!H190 -> 774.923874 | G228: ='D300'!H190 -> 637.6036953 | H228: ='D800'!H190 -> 0 | I228: =Ddál!H190 -> 0 | J228: =Dvýš!H190 -> 0 | K228: =Dmíč!H190 -> 321.5 | L228: =Dkou!H190 -> 466.6666667 | M228: =Dčlu!H190 -> 692.6942448 | N228: =Dls!H190 -> 0 | O228: =Dodbíj!H190 -> 27 | P228: =Dplav!H190 -> 0 | Q228: =Dšplh!H190 -> 0 | R228: 0 | S228: ='Dz mís'!H190 -> 0 | T228: =Drepre!E93 -> 0 | U228: =SUM(F228:T228) -> 2920.388481
B229: VANCLOVÁ | C229: Pavlína | D229: 9.B | F229: ='D60'!H191 -> 0 | G229: ='D300'!H191 -> 643.6281601 | H229: ='D800'!H191 -> 0 | I229: =Ddál!H191 -> 0 | J229: =Dvýš!H191 -> 0 | K229: =Dmíč!H191 -> 421.6 | L229: =Dkou!H191 -> 724.4444444 | M229: =Dčlu!H191 -> 654.5556074 | N229: =Dls!H191 -> 0 | O229: =Dodbíj!H191 -> 24 | P229: =Dplav!H191 -> 509.9544345 | Q229: =Dšplh!H191 -> 0 | R229: 0 | S229: ='Dz mís'!H191 -> 0 | T229: =Drepre!E94 -> 0 | U229: =SUM(F229:T229) -> 2978.182646

Sheet Dvýk

Sheet D60
C1: VÝKONY 2020 - 2021 | G1: 60 M | I1: DĚVČATA 6. - 9. ROČ.
K2: stav k | L2: =TODAY() -> 2021-06-28
H3: BODY | J3: 19 - 20 | K3: 18 - 19 | L3: 17 - 18
A5: 1. | B5: =B101 -> ERBENOVÁ | C5: =C101 -> Sára | D5: 6.A | E5: 11.58 | G5: Jilemnice 16.09.20 | H5: 645.3139553 | J5: 0 | K5: 0 | L5: 0
A6: 2. | B6: =B102 -> HOFMANOVÁ | C6: Nicol | D6: 6.A | E6: 11.92 | G6: Jilemnice 16.09.20 | H6: 625.2273174 | J6: 0 | K6: 0 | L6: 0
A7: 3. | B7: HOLEŠOVSKÁ | C7: Aneta | D7: 6.A | E7: 10.99 | G7: Jilemnice 16.09.20 | H7: 683.1197966 | J7: 0 | K7: 0 | L7: 0
A8: 4. | B8: HOLUBCOVÁ | C8: Alena | D8: 6.A | E8: 0 | G8: 0 | H8: 0 | J8: 0 | K8: 0 | L8: 0
A9: 5. | B9: KOHOUTOVÁ | C9: Anna | D9: 6.A | E9: 13.25 | G9: Jilemnice 16.09.20 | H9: 556.5564308 | J9: 0 | K9: 0 | L9: 0
A10: 6. | B10: KRAUSOVÁ | C10: Anežka | D10: 6.A | E10: 11.74 | G10: Jilemnice 16.09.20 | H10: 635.7164917 | J10: 0 | K10: 0 | L10: 0
A11: 7. | B11: KUŽELOVÁ | C11: Apoléna | D11: 6.A | E11: 10.86 | G11: Jilemnice 16.09.20 | H11: 692.0021691 | J11: 0 | K11: 0 | L11: 0
A12: 8. | B12: MORÁVKOVÁ | C12: Lucie | D12: 6.A | E12: 11.58 | G12: Jilemnice 16.09.20 | H12: 645.3139553 | J12: 0 | K12: 0 | L12: 0
A13: 9. | B13: SKLENÁROVÁ | C13: Eliška | D13: 6.A | E13: 0 | G13: 0 | H13: 0 | J13: 0 | K13: 0 | L13: 0
A14: 10. | B14: ŠTOLFOVÁ | C14: Tereza | D14: 6.A | E14: 10.82 | G14: Jilemnice 16.09.20 | H14: 694.7781473 | J14: 0 | K14: 0 | L14: 0
A15: 11. | B15: ŠUBÍKOVÁ | C15: Klára | D15: 6.A | E15: 0 | G15: 0 | H15: 0 | J15: 0 | K15: 0 | L15: 0
A16: 12. | B16: TULÁČKOVÁ | C16: Natálie | D16: 6.A | E16: 11.52 | G16: Jilemnice 16.09.20 | H16: 648.981736 | J16: 0 | K16: 0 | L16: 0
A17: 13. | B17: VOJTÍŠKOVÁ | C17: Ella | D17: 6.A | E17: 10.61 | G17: Jilemnice 16.09.20 | H17: 709.6954327 | J17: 0 | K17: 0 | L17: 0
A18: 14. | B18: DRUGÁČOVÁ | C18: Kristinka | D18: 6.B | E18: 0 | G18: 0 | H18: 0 | J18: 0 | K18: 0 | L18: 0
A19: 15. | B19: FAJSTAVROVÁ | C19: Karolína | D19: 6.B | E19: 10.61 | G19: Jilemnice 16.09.20 | H19: 709.6954327 | J19: 0 | K19: 0 | L19: 0
A20: 16. | B20: FAJSTAVROVÁ | C20: Magdaléna | D20: 6.B | E20: 10.25 | G20: Jilemnice 16.09.20 | H20: 736.6900017 | J20: 0 | K20: 0 | L20: 0
A21: 17. | B21: HLAVATÁ | C21: Anna | D21: 6.B | E21: 0 | G21: 0 | H21: 0 | J21: 0 | K21: 0 | L21: 0
A22: 18. | B22: =B118 -> JINDROVÁ | C22: Barbora | D22: 6.B | E22: 12.1 | G22: Jilemnice 16.09.20 | H22: 615.0502178 | J22: 0 | K22: 0 | L22: 0
A23: 19. | B23: MAŘASOVÁ | C23: Vendula | D23: 6.B | E23: 0 | G23: 0 | H23: 0 | J23: 0 | K23: 0 | L23: 0
A24: 20. | B24: PETŘÍČKOVÁ | C24: Natálie | D24: 6.B | E24: 10.78 | G24: Jilemnice 16.09.20 | H24: 697.5747265 | J24: 0 | K24: 0 | L24: 0
A25: 21. | B25: PETŘÍKOVÁ | C25: Adéla | D25: 6.B | E25: 12.38 | G25: Jilemnice 16.09.20 | H25: 599.8074033 | J25: 0 | K25: 0 | L25: 0
A26: 22. | B26: REGÁLOVÁ | C26: Karolína | D26: 6.B | E26: 11.39 | G26: Jilemnice 16.09.20 | H26: 657.061158 | J26: 0 | K26: 0 | L26: 0
A27: 23. | B27: RIEGROVÁ | C27: Magdaléna | D27: 6.B | E27: 0 | G27: 0 | H27: 0 | J27: 0 | K27: 0 | L27: 0
A28: 24. | B28: RYBENSKÁ | C28: Sabina | D28: 6.B | E28: 11.01 | G28: Jilemnice 16.09.20 | H28: 681.7718952 | J28: 0 | K28: 0 | L28: 0
A29: 25. | B29: STEINEROVÁ | C29: Barbora | D29: 6.B | E29: 11.26 | G29: Jilemnice 16.09.20 | H29: 665.3271387 | J29: 0 | K29: 0 | L29: 0
A30: 26. | B30: TOMEŠOVÁ | C30: Barbora | D30: 6.B | E30: 11.59 | G30: Jilemnice 16.09.20 | H30: 644.7063505 | J30: 0 | K30: 0 | L30: 0
A31: 27. | B31: VOHNOUTOVÁ | C31: Aneta | D31: 6.B | E31: 10.21 | G31: Jilemnice 16.09.20 | H31: 739.8069065 | J31: 0 | K31: 0 | L31: 0
A32: 28. | B32: HAVLÍKOVÁ | C32: Michaela | D32: 7.A | E32: 11.75 | G32: Jilemnice 18.09.20 | H32: 635.1253288 | J32: 12.24 | K32: 0 | L32: 0
A33: 29. | B33: HOLUBCOVÁ | C33: Sára | D33: 7.A | E33: 9.58 | G33: Jilemnice 18.09.20 | H33: 792.3314693 | J33: 9.96 | K33: 0 | L33: 0
A34: 30. | B34: HONCŮ | C34: Tereza | D34: 7.A | E34: 11.17 | G34: Jilemnice 18.09.20 | H34: 671.1624509 | J34: 0 | K34: 0 | L34: 0
A35: 31. | B35: HORÁČKOVÁ | C35: Kateřina | D35: 7.A | E35: 9.59 | G35: Jilemnice 18.09.20 | H35: 791.4438453 | J35: 9.91 | K35: 0 | L35: 0
A36: 32. | B36: JOUDALOVÁ | C36: Daniela | D36: 7.A | E36: 0 | G36: 0 | H36: 0 | J36: 13.96 | K36: 0 | L36: 0
A37: 33. | B37: KLÍMOVÁ | C37: Anna | D37: 7.A | E37: 10.81 | G37: Jilemnice 18.09.20 | H37: 695.4753518 | J37: 11.09 | K37: 0 | L37: 0
A38: 34. | B38: =B134 -> KOHOUTOVÁ | C38: Veronika | D38: 7.A | E38: 0 | G38: 0 | H38: 0 | J38: 9.96 | K38: 0 | L38: 0
A39: 35. | B39: KOVÁŘOVÁ | C39: Viktorie | D39: 7.A | E39: 10.62 | G39: Jilemnice 18.09.20 | H39: 708.9717082 | J39: 11.22 | K39: 0 | L39: 0
A40: 36. | B40: KYNČLOVÁ | C40: Anna | D40: 7.A | E40: 9.5 | G40: Jilemnice 18.09.20 | H40: 799.4997337 | J40: 10.51 | K40: 0 | L40: 0
A41: 37. | B41: MATOUŠOVÁ | C41: Tereza | D41: 7.A | E41: 10.81 | G41: Jilemnice 18.09.20 | H41: 695.4753518 | J41: 11.37 | K41: 0 | L41: 0
A42: 38. | B42: MAZÁNKOVÁ | C42: Zuzana | D42: 7.A | E42: 10.26 | G42: Jilemnice 18.09.20 | H42: 735.914573 | J42: 11.5 | K42: 0 | L42: 0
A43: 39. | B43: MORKESOVÁ | C43: Sabrina | D43: 7.A | E43: 0 | G43: 0 | H43: 0 | J43: 9.39 | K43: 0 | L43: 0
A44: 40. | B44: POHOŘALÁ | C44: Alžběta | D44: 7.A | E44: 9.5 | G44: Jilemnice 18.09.20 | H44: 799.4997337 | J44: 10.59 | K44: 0 | L44: 0
A45: 41. | B45: SCHOLZOVÁ | C45: Laura | D45: 7.A | E45: 11.29 | G45: Jilemnice 18.09.20 | H45: 663.4027089 | J45: 0 | K45: 0 | L45: 0
A46: 42. | B46: VÁCLAVÍKOVÁ | C46: Valerie | D46: 7.A | E46: 9.42 | G46: Jilemnice 18.09.20 | H46: 806.7897522 | J46: 10.34 | K46: 0 | L46: 0
A47: 43. | B47: ZAPADLOVÁ | C47: Emma | D47: 7.A | E47: 9.52 | G47: Jilemnice 18.09.20 | H47: 797.6963731 | J47: 0 | K47: 0 | L47: 0
A48: 44. | B48: ŽIŠKOVÁ | C48: Mia | D48: 7.A | E48: 9.58 | G48: Jilemnice 18.09.20 | H48: 792.3314693 | J48: 10.58 | K48: 0 | L48: 0
A49: 45. | B49: FARSKÁ | C49: Tereza | D49: 7.B | E49: 11.55 | G49: 0 | H49: 647.1430823 | J49: 11.73 | K49: 0 | L49: 0
A50: 46. | B50: FEIXOVÁ | C50: Rozálie | D50: 7.B | E50: 11.58 | G50: 0 | H50: 645.3139553 | J50: 12.86 | K50: 0 | L50: 0
A51: 47. | B51: FIŠEROVÁ | C51: Michaela | D51: 7.B | E51: 10.9 | G51: 0 | H51: 689.2465651 | J51: 11.71 | K51: 0 | L51: 0
A52: 48. | B52: HAVLÍČKOVÁ | C52: Kristýna | D52: 7.B | E52: 12.36 | G52: 0 | H52: 600.8732728 | J52: 12.86 | K52: 0 | L52: 0
A53: 49. | B53: JODASOVÁ | C53: Nikola | D53: 7.B | E53: 9.75 | G53: 0 | H53: 777.4894858 | J53: 10.37 | K53: 0 | L53: 0
A54: 50. | B54: =B150 -> KADAVÁ | C54: Nikola | D54: 7.B | E54: 0 | G54: 0 | H54: 0 | J54: 12.41 | K54: 0 | L54: 0
A55: 51. | B55: KRAFKOVÁ | C55: Lucie | D55: 7.B | E55: 11.1 | G55: 0 | H55: 675.7664479 | J55: 0 | K55: 0 | L55: 0
A56: 52. | B56: KŘIVINKOVÁ | C56: Alžběta | D56: 7.B | E56: 11.01 | G56: 0 | H56: 681.7718952 | J56: 0 | K56: 0 | L56: 0
A57: 53. | B57: LEŠÁKOVÁ | C57: Lenka | D57: 7.B | E57: 12.4 | G57: 0 | H57: 598.7449721 | J57: 12.92 | K57: 0 | L57: 0
A58: 54. | B58: NYKLÍČKOVÁ | C58: Adéla | D58: 7.B | E58: 10.11 | G58: 0 | H58: 747.7070731 | J58: 10 | K58: 0 | L58: 0
A59: 55. | B59: PLŮCHOVÁ | C59: Petra | D59: 7.B | E59: 11.01 | G59: 0 | H59: 681.7718952 | J59: 11.32 | K59: 0 | L59: 0
A60: 56. | B60: PODZIMKOVÁ | C60: Eliška | D60: 7.B | E60: 12.35 | G60: 0 | H60: 601.4075021 | J60: 12.09 | K60: 0 | L60: 0
A61: 57. | B61: RUTKAYOVÁ | C61: Klára | D61: 7.B | E61: 0 | G61: 0 | H61: 0 | J61: 0 | K61: 0 | L61: 0
A62: 58. | B62: SEIDLOVÁ | C62: Zuzana | D62: 7.B | E62: 12.14 | G62: 0 | H62: 612.8296242 | J62: 0 | K62: 0 | L62: 0
A63: 59. | B63: TOMÁŠOVÁ | C63: Sára | D63: 7.B | E63: 12.51 | G63: 0 | H63: 592.962323 | J63: 12.51 | K63: 0 | L63: 0
A64: 60. | B64: VANCLOVÁ | C64: Barbora | D64: 7.B | E64: 9.97 | G64: 0 | H64: 759.0335507 | J64: 0 | K64: 0 | L64: 0
A65: 61. | B65: VOTOČKOVÁ | C65: Veronika | D65: 7.B | E65: 12.55 | G65: 0 | H65: 590.8846744 | J65: 13.86 | K65: 0 | L65: 0
A66: 62. | B66: HARTIGOVÁ | C66: Anna | D66: 8.A | E66: 10.7 | G66: Jilemnice 16.09.20 | H66: 703.2306118 | J66: 10.5 | K66: 13.01 | L66: 0
A67: 63. | B67: HONCŮ | C67: Rozálie | D67: 8.A | E67: 9.18 | G67: Jilemnice 16.09.20 | H67: 829.4221623 | J67: 9.34 | K67: 9.91 | L67: 0
A68: 64. | B68: CHALOUPSKÁ | C68: Lucie | D68: 8.A | E68: 0 | G68: 0 | H68: 0 | J68: 9.12 | K68: 9.95 | L68: 0
A69: 65. | B69: KŘÍŽKOVÁ | C69: Anna | D69: 8.A | E69: 10.8 | G69: Jilemnice 16.09.20 | H69: 696.1738475 | J69: 11.23 | K69: 11.61 | L69: 0
A70: 66. | B70: =B166 -> LUKEŠOVÁ | C70: Kristýna | D70: 8.A | E70: 0 | G70: 0 | H70: 0 | J70: 10.65 | K70: 11.73 | L70: 0
A71: 67. | B71: MOTLÍKOVÁ | C71: Eliška | D71: 8.A | E71: 10.45 | G71: Jilemnice 16.09.20 | H71: 721.4634001 | J71: 10.77 | K71: 11.39 | L71: 0
A72: 68. | B72: POHOŘELÁ | C72: Amálie | D72: 8.A | E72: 9.28 | G72: Jilemnice 16.09.20 | H72: 819.8497259 | J72: 10.23 | K72: 10.33 | L72: 0
A73: 69. | B73: POLÁČKOVÁ | C73: Natálie | D73: 8.A | E73: 0 | G73: 0 | H73: 0 | J73: 12.7 | K73: 13.16 | L73: 0
A74: 70. | B74: ŘEHOŘKOVÁ | C74: Lucie | D74: 8.A | E74: 10.38 | G74: Jilemnice 16.09.20 | H74: 726.7259659 | J74: 10.4 | K74: 11.62 | L74: 0
A75: 71. | B75: SKÁLOVÁ | C75: Alena | D75: 8.A | E75: 11.43 | G75: Jilemnice 16.09.20 | H75: 654.5556074 | J75: 12.9 | K75: 12.88 | L75: 0
A76: 72. | B76: VÁVROVÁ | C76: Aneta | D76: 8.A | E76: 9.72 | G76: Jilemnice 16.09.20 | H76: 780.0709346 | J76: 9.7 | K76: 10.59 | L76: 0
A77: 73. | B77: ZELINKOVÁ | C77: Klára | D77: 8.A | E77: 9.71 | G77: Jilemnice 16.09.20 | H77: 780.9349623 | J77: 10.4 | K77: 10.92 | L77: 0
A78: 74. | B78: JUNGOVÁ | C78: Lucie | D78: 9.A | E78: 9.18 | G78: Jilemnice 16.09.20 | H78: 829.4221623 | J78: 9.61 | K78: 9.2 | L78: 9.7
A79: 75. | B79: KŘIVÁNKOVÁ | C79: Linda | D79: 9.A | E79: 10.7 | G79: Jilemnice 16.09.20 | H79: 703.2306118 | J79: 10.89 | K79: 0 | L79: 11.5
A80: 76. | B80: KUBÁTOVÁ | C80: Lucie | D80: 9.A | E80: 10.38 | G80: Jilemnice 16.09.20 | H80: 726.7259659 | J80: 0 | K80: 10.56 | L80: 10.86
A81: 77. | B81: ŠIMŮNKOVÁ | C81: Nikola | D81: 9.A | E81: 10.69 | G81: Jilemnice 16.09.20 | H81: 703.9435497 | J81: 11.24 | K81: 11.86 | L81: 11.24
A82: 78. | B82: ŠMÍDOVÁ | C82: Kristýna | D82: 9.A | E82: 12.5 | G82: Jilemnice 16.09.20 | H82: 593.4838128 | J82: 11.52 | K82: 0 | L82: 13.52
A83: 79. | B83: VOTOČKOVÁ | C83: Nikola | D83: 9.A | E83: 8.9 | G83: Jilemnice 16.09.20 | H83: 857.3693744 | J83: 9.48 | K83: 9.6 | L83: 9.84
A84: 80. | B84: VYHLASOVÁ | C84: Lenka | D84: 9.A | E84: 12.5 | G84: Jilemnice 16.09.20 | H84: 593.4838128 | J84: 13.17 | K84: 0 | L84: 13.6
A85: 81. | B85: BÖHMOVÁ | C85: Diana | D85: 9.B | E85: 10.16 | G85: Jilemnice 16.09.20 | H85: 743.7375504 | J85: 0 | K85: 10.61 | L85: 10.76
A86: 82. | B86: =B182 -> HOUDOVÁ | C86: Tereza | D86: 9.B | E86: 10.08 | G86: Jilemnice 16.09.20 | H86: 750.1076892 | J86: 10.68 | K86: 10.96 | L86: 10.86
A87: 83. | B87: JANÍKOVÁ | C87: Kristýna | D87: 9.B | E87: 9.18 | G87: Jilemnice 16.09.20 | H87: 829.4221623 | J87: 9.56 | K87: 0 | L87: 0
A88: 84. | B88: KUŽELOVÁ | C88: Ela | D88: 9.B | E88: 9.52 | G88: Jilemnice 16.09.20 | H88: 797.6963731 | J88: 9.65 | K88: 9.78 | L88: 10.19
A89: 85. | B89: MATERNOVÁ | C89: Lucie | D89: 9.B | E89: 9.87 | G89: Jilemnice 16.09.20 | H89: 767.3206174 | J89: 0 | K89: 10.67 | L89: 11.69
A90: 86. | B90: OPOČENSKÁ | C90: Matylda | D90: 9.B | E90: 0 | G90: 0 | H90: 0 | J90: 0 | K90: 11.65 | L90: 11.29
A91: 87. | B91: PIŠTOROVÁ | C91: Karolína | D91: 9.B | E91: 9.63 | G91: Jilemnice 16.09.20 | H91: 787.9117839 | J91: 9.65 | K91: 9.9 | L91: 9.95
A92: 88. | B92: POKORNÝ | C92: Anna | D92: 9.B | E92: 0 | G92: 0 | H92: 0 | J92: 0 | K92: 10.47 | L92: 11.31
A93: 89. | B93: SUCHÁNKOVÁ | C93: Michaela | D93: 9.B | E93: 12.63 | G93: Jilemnice 16.09.20 | H93: 586.7688574 | J93: 13.9 | K93: 13.28 | L93: 13.23
A94: 90. | B94: =B190 -> ŠUBÍKOVÁ | C94: Štěpánka | D94: 9.B | E94: 9.78 | G94: Jilemnice 16.09.20 | H94: 774.923874 | J94: 10.36 | K94: 10.74 | L94: 11.24
A95: 91. | B95: =B191 -> VANCLOVÁ | C95: =C191 -> Pavlína | D95: =D191 -> 9.B | E95: =E191 -> 0 | G95: =G191 -> 0 | H95: =H191 -> 0 | J95: =J191 -> 10.16 | K95: =K191 -> 10.84 | L95: =L191 -> 10.47
A101: ZG | B101: ERBENOVÁ | C101: Sára | D101: 6.A | E101: 11.58 | G101: Jilemnice 16.09.20 | H101: =IF(E101=0,0,IF(E101>0,((1000 - 321 / E101 + 340 / E101*2 - 16600 / E101*3 + 32190000000 / E101*4)/15000000-62)*0.95)) -> 645.3139553
B102: HOFMANOVÁ | C102: Nicol | D102: 6.A | E102: 11.92 | G102: Jilemnice 16.09.20 | H102: =IF(E102=0,0,IF(E102>0,((1000 - 321 / E102 + 340 / E102*2 - 16600 / E102*3 + 32190000000 / E102*4)/15000000-62)*0.95)) -> 625.2273174
B103: HOLEŠOVSKÁ | C103: Aneta | D103: 6.A | E103: 10.99 | G103: Jilemnice 16.09.20 | H103: =IF(E103=0,0,IF(E103>0,((1000 - 321 / E103 + 340 / E103*2 - 16600 / E103*3 + 32190000000 / E103*4)/15000000-62)*0.95)) -> 683.1197966
B104: HOLUBCOVÁ | C104: Alena | D104: 6.A | H104: =IF(E104=0,0,IF(E104>0,((1000 - 321 / E104 + 340 / E104*2 - 16600 / E104*3 + 32190000000 / E104*4)/15000000-62)*0.95)) -> 0
B105: KOHOUTOVÁ | C105: Anna | D105: 6.A | E105: 13.25 | G105: Jilemnice 16.09.20 | H105: =IF(E105=0,0,IF(E105>0,((1000 - 321 / E105 + 340 / E105*2 - 16600 / E105*3 + 32190000000 / E105*4)/15000000-62)*0.95)) -> 556.5564308
B106: KRAUSOVÁ | C106: Anežka | D106: 6.A | E106: 11.74 | G106: Jilemnice 16.09.20 | H106: =IF(E106=0,0,IF(E106>0,((1000 - 321 / E106 + 340 / E106*2 - 16600 / E106*3 + 32190000000 / E106*4)/15000000-62)*0.95)) -> 635.7164917
B107: KUŽELOVÁ | C107: Apoléna | D107: 6.A | E107: 10.86 | G107: Jilemnice 16.09.20 | H107: =IF(E107=0,0,IF(E107>0,((1000 - 321 / E107 + 340 / E107*2 - 16600 / E107*3 + 32190000000 / E107*4)/15000000-62)*0.95)) -> 692.0021691
B108: MORÁVKOVÁ | C108: Lucie | D108: 6.A | E108: 11.58 | G108: Jilemnice 16.09.20 | H108: =IF(E108=0,0,IF(E108>0,((1000 - 321 / E108 + 340 / E108*2 - 16600 / E108*3 + 32190000000 / E108*4)/15000000-62)*0.95)) -> 645.3139553
B109: SKLENÁROVÁ | C109: Eliška | D109: 6.A | H109: =IF(E109=0,0,IF(E109>0,((1000 - 321 / E109 + 340 / E109*2 - 16600 / E109*3 + 32190000000 / E109*4)/15000000-62)*0.95)) -> 0
B110: ŠTOLFOVÁ | C110: Tereza | D110: 6.A | E110: 10.82 | G110: Jilemnice 16.09.20 | H110: =IF(E110=0,0,IF(E110>0,((1000 - 321 / E110 + 340 / E110*2 - 16600 / E110*3 + 32190000000 / E110*4)/15000000-62)*0.95)) -> 694.7781473
B111: ŠUBÍKOVÁ | C111: Klára | D111: 6.A | H111: =IF(E111=0,0,IF(E111>0,((1000 - 321 / E111 + 340 / E111*2 - 16600 / E111*3 + 32190000000 / E111*4)/15000000-62)*0.95)) -> 0
B112: TULÁČKOVÁ | C112: Natálie | D112: 6.A | E112: 11.52 | G112: Jilemnice 16.09.20 | H112: =IF(E112=0,0,IF(E112>0,((1000 - 321 / E112 + 340 / E112*2 - 16600 / E112*3 + 32190000000 / E112*4)/15000000-62)*0.95)) -> 648.981736
B113: VOJTÍŠKOVÁ | C113: Ella | D113: 6.A | E113: 10.61 | G113: Jilemnice 16.09.20 | H113: =IF(E113=0,0,IF(E113>0,((1000 - 321 / E113 + 340 / E113*2 - 16600 / E113*3 + 32190000000 / E113*4)/15000000-62)*0.95)) -> 709.6954327
B114: DRUGÁČOVÁ | C114: Kristinka | D114: 6.B | H114: =IF(E114=0,0,IF(E114>0,((1000 - 321 / E114 + 340 / E114*2 - 16600 / E114*3 + 32190000000 / E114*4)/15000000-62)*0.95)) -> 0
B115: FAJSTAVROVÁ | C115: Karolína | D115: 6.B | E115: 10.61 | G115: Jilemnice 16.09.20 | H115: =IF(E115=0,0,IF(E115>0,((1000 - 321 / E115 + 340 / E115*2 - 16600 / E115*3 + 32190000000 / E115*4)/15000000-62)*0.95)) -> 709.6954327
B116: FAJSTAVROVÁ | C116: Magdaléna | D116: 6.B | E116: 10.25 | G116: Jilemnice 16.09.20 | H116: =IF(E116=0,0,IF(E116>0,((1000 - 321 / E116 + 340 / E116*2 - 16600 / E116*3 + 32190000000 / E116*4)/15000000-62)*0.95)) -> 736.6900017
B117: HLAVATÁ | C117: Anna | D117: 6.B | H117: =IF(E117=0,0,IF(E117>0,((1000 - 321 / E117 + 340 / E117*2 - 16600 / E117*3 + 32190000000 / E117*4)/15000000-62)*0.95)) -> 0
B118: JINDROVÁ | C118: Barbora | D118: 6.B | E118: 12.1 | G118: Jilemnice 16.09.20 | H118: =IF(E118=0,0,IF(E118>0,((1000 - 321 / E118 + 340 / E118*2 - 16600 / E118*3 + 32190000000 / E118*4)/15000000-62)*0.95)) -> 615.0502178
B119: MAŘASOVÁ | C119: Vendula | D119: 6.B | H119: =IF(E119=0,0,IF(E119>0,((1000 - 321 / E119 + 340 / E119*2 - 16600 / E119*3 + 32190000000 / E119*4)/15000000-62)*0.95)) -> 0
B120: PETŘÍČKOVÁ | C120: Natálie | D120: 6.B | E120: 10.78 | G120: Jilemnice 16.09.20 | H120: =IF(E120=0,0,IF(E120>0,((1000 - 321 / E120 + 340 / E120*2 - 16600 / E120*3 + 32190000000 / E120*4)/15000000-62)*0.95)) -> 697.5747265
B121: PETŘÍKOVÁ | C121: Adéla | D121: 6.B | E121: 12.38 | G121: Jilemnice 16.09.20 | H121: =IF(E121=0,0,IF(E121>0,((1000 - 321 / E121 + 340 / E121*2 - 16600 / E121*3 + 32190000000 / E121*4)/15000000-62)*0.95)) -> 599.8074033
B122: REGÁLOVÁ | C122: Karolína | D122: 6.B | E122: 11.39 | G122: Jilemnice 16.09.20 | H122: =IF(E122=0,0,IF(E122>0,((1000 - 321 / E122 + 340 / E122*2 - 16600 / E122*3 + 32190000000 / E122*4)/15000000-62)*0.95)) -> 657.061158
B123: RIEGROVÁ | C123: Magdaléna | D123: 6.B | H123: =IF(E123=0,0,IF(E123>0,((1000 - 321 / E123 + 340 / E123*2 - 16600 / E123*3 + 32190000000 / E123*4)/15000000-62)*0.95)) -> 0
B124: RYBENSKÁ | C124: Sabina | D124: 6.B | E124: 11.01 | G124: Jilemnice 16.09.20 | H124: =IF(E124=0,0,IF(E124>0,((1000 - 321 / E124 + 340 / E124*2 - 16600 / E124*3 + 32190000000 / E124*4)/15000000-62)*0.95)) -> 681.7718952
B125: STEINEROVÁ | C125: Barbora | D125: 6.B | E125: 11.26 | G125: Jilemnice 16.09.20 | H125: =IF(E125=0,0,IF(E125>0,((1000 - 321 / E125 + 340 / E125*2 - 16600 / E125*3 + 32190000000 / E125*4)/15000000-62)*0.95)) -> 665.3271387
B126: TOMEŠOVÁ | C126: Barbora | D126: 6.B | E126: 11.59 | G126: Jilemnice 16.09.20 | H126: =IF(E126=0,0,IF(E126>0,((1000 - 321 / E126 + 340 / E126*2 - 16600 / E126*3 + 32190000000 / E126*4)/15000000-62)*0.95)) -> 644.7063505
B127: VOHNOUTOVÁ | C127: Aneta | D127: 6.B | E127: 10.21 | G127: Jilemnice 16.09.20 | H127: =IF(E127=0,0,IF(E127>0,((1000 - 321 / E127 + 340 / E127*2 - 16600 / E127*3 + 32190000000 / E127*4)/15000000-62)*0.95)) -> 739.8069065
B128: HAVLÍKOVÁ | C128: Michaela | D128: 7.A | E128: 11.75 | G128: Jilemnice 18.09.20 | H128: =IF(E128=0,0,IF(E128>0,((1000 - 321 / E128 + 340 / E128*2 - 16600 / E128*3 + 32190000000 / E128*4)/15000000-62)*0.95)) -> 635.1253288 | J128: 12.24
B129: HOLUBCOVÁ | C129: Sára | D129: 7.A | E129: 9.58 | G129: Jilemnice 18.09.20 | H129: =IF(E129=0,0,IF(E129>0,((1000 - 321 / E129 + 340 / E129*2 - 16600 / E129*3 + 32190000000 / E129*4)/15000000-62)*0.95)) -> 792.3314693 | J129: 9.96
B130: HONCŮ | C130: Tereza | D130: 7.A | E130: 11.17 | G130: Jilemnice 18.09.20 | H130: =IF(E130=0,0,IF(E130>0,((1000 - 321 / E130 + 340 / E130*2 - 16600 / E130*3 + 32190000000 / E130*4)/15000000-62)*0.95)) -> 671.1624509
B131: HORÁČKOVÁ | C131: Kateřina | D131: 7.A | E131: 9.59 | G131: Jilemnice 18.09.20 | H131: =IF(E131=0,0,IF(E131>0,((1000 - 321 / E131 + 340 / E131*2 - 16600 / E131*3 + 32190000000 / E131*4)/15000000-62)*0.95)) -> 791.4438453 | J131: 9.91
B132: JOUDALOVÁ | C132: Daniela | D132: 7.A | H132: =IF(E132=0,0,IF(E132>0,((1000 - 321 / E132 + 340 / E132*2 - 16600 / E132*3 + 32190000000 / E132*4)/15000000-62)*0.95)) -> 0 | J132: 13.96
B133: KLÍMOVÁ | C133: Anna | D133: 7.A | E133: 10.81 | G133: Jilemnice 18.09.20 | H133: =IF(E133=0,0,IF(E133>0,((1000 - 321 / E133 + 340 / E133*2 - 16600 / E133*3 + 32190000000 / E133*4)/15000000-62)*0.95)) -> 695.4753518 | J133: 11.09
B134: KOHOUTOVÁ | C134: Veronika | D134: 7.A | H134: =IF(E134=0,0,IF(E134>0,((1000 - 321 / E134 + 340 / E134*2 - 16600 / E134*3 + 32190000000 / E134*4)/15000000-62)*0.95)) -> 0 | J134: 9.96
B135: KOVÁŘOVÁ | C135: Viktorie | D135: 7.A | E135: 10.62 | G135: Jilemnice 18.09.20 | H135: =IF(E135=0,0,IF(E135>0,((1000 - 321 / E135 + 340 / E135*2 - 16600 / E135*3 + 32190000000 / E135*4)/15000000-62)*0.95)) -> 708.9717082 | J135: 11.22
B136: KYNČLOVÁ | C136: Anna | D136: 7.A | E136: 9.5 | G136: Jilemnice 18.09.20 | H136: =IF(E136=0,0,IF(E136>0,((1000 - 321 / E136 + 340 / E136*2 - 16600 / E136*3 + 32190000000 / E136*4)/15000000-62)*0.95)) -> 799.4997337 | J136: 10.51
B137: MATOUŠOVÁ | C137: Tereza | D137: 7.A | E137: 10.81 | G137: Jilemnice 18.09.20 | H137: =IF(E137=0,0,IF(E137>0,((1000 - 321 / E137 + 340 / E137*2 - 16600 / E137*3 + 32190000000 / E137*4)/15000000-62)*0.95)) -> 695.4753518 | J137: 11.37
B138: MAZÁNKOVÁ | C138: Zuzana | D138: 7.A | E138: 10.26 | G138: Jilemnice 18.09.20 | H138: =IF(E138=0,0,IF(E138>0,((1000 - 321 / E138 + 340 / E138*2 - 16600 / E138*3 + 32190000000 / E138*4)/15000000-62)*0.95)) -> 735.914573 | J138: 11.5
B139: MORKESOVÁ | C139: Sabrina | D139: 7.A | H139: =IF(E139=0,0,IF(E139>0,((1000 - 321 / E139 + 340 / E139*2 - 16600 / E139*3 + 32190000000 / E139*4)/15000000-62)*0.95)) -> 0 | J139: 9.39
B140: POHOŘALÁ | C140: Alžběta | D140: 7.A | E140: 9.5 | G140: Jilemnice 18.09.20 | H140: =IF(E140=0,0,IF(E140>0,((1000 - 321 / E140 + 340 / E140*2 - 16600 / E140*3 + 32190000000 / E140*4)/15000000-62)*0.95)) -> 799.4997337 | J140: 10.59
B141: SCHOLZOVÁ | C141: Laura | D141: 7.A | E141: 11.29 | G141: Jilemnice 18.09.20 | H141: =IF(E141=0,0,IF(E141>0,((1000 - 321 / E141 + 340 / E141*2 - 16600 / E141*3 + 32190000000 / E141*4)/15000000-62)*0.95)) -> 663.4027089
B142: VÁCLAVÍKOVÁ | C142: Valerie | D142: 7.A | E142: 9.42 | G142: Jilemnice 18.09.20 | H142: =IF(E142=0,0,IF(E142>0,((1000 - 321 / E142 + 340 / E142*2 - 16600 / E142*3 + 32190000000 / E142*4)/15000000-62)*0.95)) -> 806.7897522 | J142: 10.34
B143: ZAPADLOVÁ | C143: Emma | D143: 7.A | E143: 9.52 | G143: Jilemnice 18.09.20 | H143: =IF(E143=0,0,IF(E143>0,((1000 - 321 / E143 + 340 / E143*2 - 16600 / E143*3 + 32190000000 / E143*4)/15000000-62)*0.95)) -> 797.6963731
B144: ŽIŠKOVÁ | C144: Mia | D144: 7.A | E144: 9.58 | G144: Jilemnice 18.09.20 | H144: =IF(E144=0,0,IF(E144>0,((1000 - 321 / E144 + 340 / E144*2 - 16600 / E144*3 + 32190000000 / E144*4)/15000000-62)*0.95)) -> 792.3314693 | J144: 10.58
B145: FARSKÁ | C145: Tereza | D145: 7.B | E145: 11.55 | H145: =IF(E145=0,0,IF(E145>0,((1000 - 321 / E145 + 340 / E145*2 - 16600 / E145*3 + 32190000000 / E145*4)/15000000-62)*0.95)) -> 647.1430823 | J145: 11.73
B146: FEIXOVÁ | C146: Rozálie | D146: 7.B | E146: 11.58 | H146: =IF(E146=0,0,IF(E146>0,((1000 - 321 / E146 + 340 / E146*2 - 16600 / E146*3 + 32190000000 / E146*4)/15000000-62)*0.95)) -> 645.3139553 | J146: 12.86
B147: FIŠEROVÁ | C147: Michaela | D147: 7.B | E147: 10.9 | H147: =IF(E147=0,0,IF(E147>0,((1000 - 321 / E147 + 340 / E147*2 - 16600 / E147*3 + 32190000000 / E147*4)/15000000-62)*0.95)) -> 689.2465651 | J147: 11.71
B148: HAVLÍČKOVÁ | C148: Kristýna | D148: 7.B | E148: 12.36 | H148: =IF(E148=0,0,IF(E148>0,((1000 - 321 / E148 + 340 / E148*2 - 16600 / E148*3 + 32190000000 / E148*4)/15000000-62)*0.95)) -> 600.8732728 | J148: 12.86
B149: JODASOVÁ | C149: Nikola | D149: 7.B | E149: 9.75 | H149: =IF(E149=0,0,IF(E149>0,((1000 - 321 / E149 + 340 / E149*2 - 16600 / E149*3 + 32190000000 / E149*4)/15000000-62)*0.95)) -> 777.4894858 | J149: 10.37
B150: KADAVÁ | C150: Nikola | D150: 7.B | H150: =IF(E150=0,0,IF(E150>0,((1000 - 321 / E150 + 340 / E150*2 - 16600 / E150*3 + 32190000000 / E150*4)/15000000-62)*0.95)) -> 0 | J150: 12.41
B151: KRAFKOVÁ | C151: Lucie | D151: 7.B | E151: 11.1 | H151: =IF(E151=0,0,IF(E151>0,((1000 - 321 / E151 + 340 / E151*2 - 16600 / E151*3 + 32190000000 / E151*4)/15000000-62)*0.95)) -> 675.7664479
B152: KŘIVINKOVÁ | C152: Alžběta | D152: 7.B | E152: 11.01 | H152: =IF(E152=0,0,IF(E152>0,((1000 - 321 / E152 + 340 / E152*2 - 16600 / E152*3 + 32190000000 / E152*4)/15000000-62)*0.95)) -> 681.7718952
B153: LEŠÁKOVÁ | C153: Lenka | D153: 7.B | E153: 12.4 | H153: =IF(E153=0,0,IF(E153>0,((1000 - 321 / E153 + 340 / E153*2 - 16600 / E153*3 + 32190000000 / E153*4)/15000000-62)*0.95)) -> 598.7449721 | J153: 12.92
B154: NYKLÍČKOVÁ | C154: Adéla | D154: 7.B | E154: 10.11 | H154: =IF(E154=0,0,IF(E154>0,((1000 - 321 / E154 + 340 / E154*2 - 16600 / E154*3 + 32190000000 / E154*4)/15000000-62)*0.95)) -> 747.7070731 | J154: 10
B155: PLŮCHOVÁ | C155: Petra | D155: 7.B | E155: 11.01 | H155: =IF(E155=0,0,IF(E155>0,((1000 - 321 / E155 + 340 / E155*2 - 16600 / E155*3 + 32190000000 / E155*4)/15000000-62)*0.95)) -> 681.7718952 | J155: 11.32
B156: PODZIMKOVÁ | C156: Eliška | D156: 7.B | E156: 12.35 | H156: =IF(E156=0,0,IF(E156>0,((1000 - 321 / E156 + 340 / E156*2 - 16600 / E156*3 + 32190000000 / E156*4)/15000000-62)*0.95)) -> 601.4075021 | J156: 12.09
B157: RUTKAYOVÁ | C157: Klára | D157: 7.B | H157: =IF(E157=0,0,IF(E157>0,((1000 - 321 / E157 + 340 / E157*2 - 16600 / E157*3 + 32190000000 / E157*4)/15000000-62)*0.95)) -> 0
B158: SEIDLOVÁ | C158: Zuzana | D158: 7.B | E158: 12.14 | H158: =IF(E158=0,0,IF(E158>0,((1000 - 321 / E158 + 340 / E158*2 - 16600 / E158*3 + 32190000000 / E158*4)/15000000-62)*0.95)) -> 612.8296242
B159: TOMÁŠOVÁ | C159: Sára | D159: 7.B | E159: 12.51 | H159: =IF(E159=0,0,IF(E159>0,((1000 - 321 / E159 + 340 / E159*2 - 16600 / E159*3 + 32190000000 / E159*4)/15000000-62)*0.95)) -> 592.962323 | J159: 12.51
B160: VANCLOVÁ | C160: Barbora | D160: 7.B | E160: 9.97 | H160: =IF(E160=0,0,IF(E160>0,((1000 - 321 / E160 + 340 / E160*2 - 16600 / E160*3 + 32190000000 / E160*4)/15000000-62)*0.95)) -> 759.0335507
B161: VOTOČKOVÁ | C161: Veronika | D161: 7.B | E161: 12.55 | H161: =IF(E161=0,0,IF(E161>0,((1000 - 321 / E161 + 340 / E161*2 - 16600 / E161*3 + 32190000000 / E161*4)/15000000-62)*0.95)) -> 590.8846744 | J161: 13.86
B162: HARTIGOVÁ | C162: Anna | D162: 8.A | E162: 10.7 | G162: Jilemnice 16.09.20 | H162: =IF(E162=0,0,IF(E162>0,((1000 - 321 / E162 + 340 / E162*2 - 16600 / E162*3 + 32190000000 / E162*4)/15000000-62)*0.95)) -> 703.2306118 | J162: 10.5 | K162: 13.01
B163: HONCŮ | C163: Rozálie | D163: 8.A | E163: 9.18 | G163: Jilemnice 16.09.20 | H163: =IF(E163=0,0,IF(E163>0,((1000 - 321 / E163 + 340 / E163*2 - 16600 / E163*3 + 32190000000 / E163*4)/15000000-62)*0.95)) -> 829.4221623 | J163: 9.34 | K163: 9.91
B164: CHALOUPSKÁ | C164: Lucie | D164: 8.A | H164: =IF(E164=0,0,IF(E164>0,((1000 - 321 / E164 + 340 / E164*2 - 16600 / E164*3 + 32190000000 / E164*4)/15000000-62)*0.95)) -> 0 | J164: 9.12 | K164: 9.95
B165: KŘÍŽKOVÁ | C165: Anna | D165: 8.A | E165: 10.8 | G165: Jilemnice 16.09.20 | H165: =IF(E165=0,0,IF(E165>0,((1000 - 321 / E165 + 340 / E165*2 - 16600 / E165*3 + 32190000000 / E165*4)/15000000-62)*0.95)) -> 696.1738475 | J165: 11.23 | K165: 11.61
B166: LUKEŠOVÁ | C166: Kristýna | D166: 8.A | H166: =IF(E166=0,0,IF(E166>0,((1000 - 321 / E166 + 340 / E166*2 - 16600 / E166*3 + 32190000000 / E166*4)/15000000-62)*0.95)) -> 0 | J166: 10.65 | K166: 11.73
B167: MOTLÍKOVÁ | C167: Eliška | D167: 8.A | E167: 10.45 | G167: Jilemnice 16.09.20 | H167: =IF(E167=0,0,IF(E167>0,((1000 - 321 / E167 + 340 / E167*2 - 16600 / E167*3 + 32190000000 / E167*4)/15000000-62)*0.95)) -> 721.4634001 | J167: 10.77 | K167: 11.39
B168: POHOŘELÁ | C168: Amálie | D168: 8.A | E168: 9.28 | G168: Jilemnice 16.09.20 | H168: =IF(E168=0,0,IF(E168>0,((1000 - 321 / E168 + 340 / E168*2 - 16600 / E168*3 + 32190000000 / E168*4)/15000000-62)*0.95)) -> 819.8497259 | J168: 10.23 | K168: 10.33
B169: POLÁČKOVÁ | C169: Natálie | D169: 8.A | H169: =IF(E169=0,0,IF(E169>0,((1000 - 321 / E169 + 340 / E169*2 - 16600 / E169*3 + 32190000000 / E169*4)/15000000-62)*0.95)) -> 0 | J169: 12.7 | K169: 13.16
B170: ŘEHOŘKOVÁ | C170: Lucie | D170: 8.A | E170: 10.38 | G170: Jilemnice 16.09.20 | H170: =IF(E170=0,0,IF(E170>0,((1000 - 321 / E170 + 340 / E170*2 - 16600 / E170*3 + 32190000000 / E170*4)/15000000-62)*0.95)) -> 726.7259659 | J170: 10.4 | K170: 11.62
B171: SKÁLOVÁ | C171: Alena | D171: 8.A | E171: 11.43 | G171: Jilemnice 16.09.20 | H171: =IF(E171=0,0,IF(E171>0,((1000 - 321 / E171 + 340 / E171*2 - 16600 / E171*3 + 32190000000 / E171*4)/15000000-62)*0.95)) -> 654.5556074 | J171: 12.9 | K171: 12.88
B172: VÁVROVÁ | C172: Aneta | D172: 8.A | E172: 9.72 | G172: Jilemnice 16.09.20 | H172: =IF(E172=0,0,IF(E172>0,((1000 - 321 / E172 + 340 / E172*2 - 16600 / E172*3 + 32190000000 / E172*4)/15000000-62)*0.95)) -> 780.0709346 | J172: 9.7 | K172: 10.59
B173: ZELINKOVÁ | C173: Klára | D173: 8.A | E173: 9.71 | G173: Jilemnice 16.09.20 | H173: =IF(E173=0,0,IF(E173>0,((1000 - 321 / E173 + 340 / E173*2 - 16600 / E173*3 + 32190000000 / E173*4)/15000000-62)*0.95)) -> 780.9349623 | J173: 10.4 | K173: 10.92
B174: JUNGOVÁ | C174: Lucie | D174: 9.A | E174: 9.18 | G174: Jilemnice 16.09.20 | H174: =IF(E174=0,0,IF(E174>0,((1000 - 321 / E174 + 340 / E174*2 - 16600 / E174*3 + 32190000000 / E174*4)/15000000-62)*0.95)) -> 829.4221623 | J174: 9.61 | K174: 9.2 | L174: 9.7
B175: KŘIVÁNKOVÁ | C175: Linda | D175: 9.A | E175: 10.7 | G175: Jilemnice 16.09.20 | H175: =IF(E175=0,0,IF(E175>0,((1000 - 321 / E175 + 340 / E175*2 - 16600 / E175*3 + 32190000000 / E175*4)/15000000-62)*0.95)) -> 703.2306118 | J175: 10.89 | L175: 11.5
B176: KUBÁTOVÁ | C176: Lucie | D176: 9.A | E176: 10.38 | G176: Jilemnice 16.09.20 | H176: =IF(E176=0,0,IF(E176>0,((1000 - 321 / E176 + 340 / E176*2 - 16600 / E176*3 + 32190000000 / E176*4)/15000000-62)*0.95)) -> 726.7259659 | K176: 10.56 | L176: 10.86
B177: ŠIMŮNKOVÁ | C177: Nikola | D177: 9.A | E177: 10.69 | G177: Jilemnice 16.09.20 | H177: =IF(E177=0,0,IF(E177>0,((1000 - 321 / E177 + 340 / E177*2 - 16600 / E177*3 + 32190000000 / E177*4)/15000000-62)*0.95)) -> 703.9435497 | J177: 11.24 | K177: 11.86 | L177: 11.24
B178: ŠMÍDOVÁ | C178: Kristýna | D178: 9.A | E178: 12.5 | G178: Jilemnice 16.09.20 | H178: =IF(E178=0,0,IF(E178>0,((1000 - 321 / E178 + 340 / E178*2 - 16600 / E178*3 + 32190000000 / E178*4)/15000000-62)*0.95)) -> 593.4838128 | J178: 11.52 | L178: 13.52
B179: VOTOČKOVÁ | C179: Nikola | D179: 9.A | E179: 8.9 | G179: Jilemnice 16.09.20 | H179: =IF(E179=0,0,IF(E179>0,((1000 - 321 / E179 + 340 / E179*2 - 16600 / E179*3 + 32190000000 / E179*4)/15000000-62)*0.95)) -> 857.3693744 | J179: 9.48 | K179: 9.6 | L179: 9.84
B180: VYHLASOVÁ | C180: Lenka | D180: 9.A | E180: 12.5 | G180: Jilemnice 16.09.20 | H180: =IF(E180=0,0,IF(E180>0,((1000 - 321 / E180 + 340 / E180*2 - 16600 / E180*3 + 32190000000 / E180*4)/15000000-62)*0.95)) -> 593.4838128 | J180: 13.17 | L180: 13.6
B181: BÖHMOVÁ | C181: Diana | D181: 9.B | E181: 10.16 | G181: Jilemnice 16.09.20 | H181: =IF(E181=0,0,IF(E181>0,((1000 - 321 / E181 + 340 / E181*2 - 16600 / E181*3 + 32190000000 / E181*4)/15000000-62)*0.95)) -> 743.7375504 | K181: 10.61 | L181: 10.76
B182: HOUDOVÁ | C182: Tereza | D182: 9.B | E182: 10.08 | G182: Jilemnice 16.09.20 | H182: =IF(E182=0,0,IF(E182>0,((1000 - 321 / E182 + 340 / E182*2 - 16600 / E182*3 + 32190000000 / E182*4)/15000000-62)*0.95)) -> 750.1076892 | J182: 10.68 | K182: 10.96 | L182: 10.86
B183: JANÍKOVÁ | C183: Kristýna | D183: 9.B | E183: 9.18 | G183: Jilemnice 16.09.20 | H183: =IF(E183=0,0,IF(E183>0,((1000 - 321 / E183 + 340 / E183*2 - 16600 / E183*3 + 32190000000 / E183*4)/15000000-62)*0.95)) -> 829.4221623 | J183: 9.56
B184: KUŽELOVÁ | C184: Ela | D184: 9.B | E184: 9.52 | G184: Jilemnice 16.09.20 | H184: =IF(E184=0,0,IF(E184>0,((1000 - 321 / E184 + 340 / E184*2 - 16600 / E184*3 + 32190000000 / E184*4)/15000000-62)*0.95)) -> 797.6963731 | J184: 9.65 | K184: 9.78 | L184: 10.19
B185: MATERNOVÁ | C185: Lucie | D185: 9.B | E185: 9.87 | G185: Jilemnice 16.09.20 | H185: =IF(E185=0,0,IF(E185>0,((1000 - 321 / E185 + 340 / E185*2 - 16600 / E185*3 + 32190000000 / E185*4)/15000000-62)*0.95)) -> 767.3206174 | K185: 10.67 | L185: 11.69
B186: OPOČENSKÁ | C186: Matylda | D186: 9.B | H186: =IF(E186=0,0,IF(E186>0,((1000 - 321 / E186 + 340 / E186*2 - 16600 / E186*3 + 32190000000 / E186*4)/15000000-62)*0.95)) -> 0 | K186: 11.65 | L186: 11.29
B187: PIŠTOROVÁ | C187: Karolína | D187: 9.B | E187: 9.63 | G187: Jilemnice 16.09.20 | H187: =IF(E187=0,0,IF(E187>0,((1000 - 321 / E187 + 340 / E187*2 - 16600 / E187*3 + 32190000000 / E187*4)/15000000-62)*0.95)) -> 787.9117839 | J187: 9.65 | K187: 9.9 | L187: 9.95
B188: POKORNÝ | C188: Anna | D188: 9.B | H188: =IF(E188=0,0,IF(E188>0,((1000 - 321 / E188 + 340 / E188*2 - 16600 / E188*3 + 32190000000 / E188*4)/15000000-62)*0.95)) -> 0 | K188: 10.47 | L188: 11.31
B189: SUCHÁNKOVÁ | C189: Michaela | D189: 9.B | E189: 12.63 | G189: Jilemnice 16.09.20 | H189: =IF(E189=0,0,IF(E189>0,((1000 - 321 / E189 + 340 / E189*2 - 16600 / E189*3 + 32190000000 / E189*4)/15000000-62)*0.95)) -> 586.7688574 | J189: 13.9 | K189: 13.28 | L189: 13.23
B190: ŠUBÍKOVÁ | C190: Štěpánka | D190: 9.B | E190: 9.78 | G190: Jilemnice 16.09.20 | H190: =IF(E190=0,0,IF(E190>0,((1000 - 321 / E190 + 340 / E190*2 - 16600 / E190*3 + 32190000000 / E190*4)/15000000-62)*0.95)) -> 774.923874 | J190: 10.36 | K190: 10.74 | L190: 11.24
B191: VANCLOVÁ | C191: Pavlína | D191: 9.B | H191: =IF(E191=0,0,IF(E191>0,((1000 - 321 / E191 + 340 / E191*2 - 16600 / E191*3 + 32190000000 / E191*4)/15000000-62)*0.95)) -> 0 | J191: 10.16 | K191: 10.84 | L191: 10.47

Sheet D300
C1: VÝKONY 2020 - 2021 | G1: 300 M | I1: DĚVČATA 6. - 9. ROČ.
K2: stav k | L2: =TODAY() -> 44375
H3: BODY | J3: 19 - 20 | K3: 18 - 19 | L3: 17 - 18
A5: 1. | B5: =B101 -> ERBENOVÁ | C5: =C101 -> Sára | D5: 6.A | E5: 00:00:00 | G5: 0 | H5: 0 | J5: 00:00:00 | K5: 00:00:00 | L5: 00:00:00
A6: 2. | B6: =B102 -> HOFMANOVÁ | C6: Nicol | D6: 6.A | E6: 00:01:15.700 | G6: 0 | H6: 491.2991107 | J6: 00:00:00 | K6: 00:00:00 | L6: 00:00:00
A7: 3. | B7: HOLEŠOVSKÁ | C7: Aneta | D7: 6.A | E7: 00:00:00 | G7: 0 | H7: 0 | J7: 00:00:00 | K7: 00:00:00 | L7: 00:00:00
A8: 4. | B8: HOLUBCOVÁ | C8: Alena | D8: 6.A | E8: 00:00:59.270 | G8: 0 | H8: 687.0880805 | J8: 00:00:00 | K8: 00:00:00 | L8: 00:00:00
A9: 5. | B9: KOHOUTOVÁ | C9: Anna | D9: 6.A | E9: 00:01:24.100 | G9: 0 | H9: 420.7536823 | J9: 00:00:00 | K9: 00:00:00 | L9: 00:00:00
A10: 6. | B10: KRAUSOVÁ | C10: Anežka | D10: 6.A | E10: 00:01:04.100 | G10: 0 | H10: 619.1152056 | J10: 00:00:00 | K10: 00:00:00 | L10: 00:00:00
A11: 7. | B11: KUŽELOVÁ | C11: Apoléna | D11: 6.A | E11: 00:00:00 | G11: 0 | H11: 0 | J11: 00:00:00 | K11: 00:00:00 | L11: 00:00:00
A12: 8. | B12: MORÁVKOVÁ | C12: Lucie | D12: 6.A | E12: 00:00:00 | G12: 0 | H12: 0 | J12: 00:00:00 | K12: 00:00:00 | L12: 00:00:00
A13: 9. | B13: SKLENÁROVÁ | C13: Eliška | D13: 6.A | E13: 00:01:17.530 | G13: 0 | H13: 474.6279096 | J13: 00:00:00 | K13: 00:00:00 | L13: 00:00:00
A14: 10. | B14: ŠTOLFOVÁ | C14: Tereza | D14: 6.A | E14: 00:01:04.880 | G14: 0 | H14: 609.0873703 | J14: 00:00:00 | K14: 00:00:00 | L14: 00:00:00
A15: 11. | B15: ŠUBÍKOVÁ | C15: Klára | D15: 6.A | E15: 00:01:06.100 | G15: 0 | H15: 593.8773779 | J15: 00:00:00 | K15: 00:00:00 | L15: 00:00:00
A16: 12. | B16: TULÁČKOVÁ | C16: Natálie | D16: 6.A | E16: 00:00:00 | G16: 0 | H16: 0 | J16: 00:00:00 | K16: 00:00:00 | L16: 00:00:00
A17: 13. | B17: VOJTÍŠKOVÁ | C17: Ella | D17: 6.A | E17: 00:00:00 | G17: 0 | H17: 0 | J17: 00:00:00 | K17: 00:00:00 | L17: 00:00:00
A18: 14. | B18: DRUGÁČOVÁ | C18: Kristinka | D18: 6.B | E18: 00:01:03.360 | G18: Jilemnice 23.06.21 | H18: 628.8570231 | J18: 00:00:00 | K18: 00:00:00 | L18: 00:00:00
A19: 15. | B19: FAJSTAVROVÁ | C19: Karolína | D19: 6.B | E19: 00:00:00 | G19: 0 | H19: 0 | J19: 00:00:00 | K19: 00:00:00 | L19: 00:00:00
A20: 16. | B20: FAJSTAVROVÁ | C20: Magdaléna | D20: 6.B | E20: 00:00:00 | G20: 0 | H20: 0 | J20: 00:00:00 | K20: 00:00:00 | L20: 00:00:00
A21: 17. | B21: HLAVATÁ | C21: Anna | D21: 6.B | E21: 00:00:00 | G21: 0 | H21: 0 | J21: 00:00:00 | K21: 00:00:00 | L21: 00:00:00
A22: 18. | B22: =B118 -> JINDROVÁ | C22: Barbora | D22: 6.B | E22: 00:00:00 | G22: 0 | H22: 0 | J22: 00:00:00 | K22: 00:00:00 | L22: 00:00:00
A23: 19. | B23: MAŘASOVÁ | C23: Vendula | D23: 6.B | E23: 00:00:00 | G23: 0 | H23: 0 | J23: 00:00:00 | K23: 00:00:00 | L23: 00:00:00
A24: 20. | B24: PETŘÍČKOVÁ | C24: Natálie | D24: 6.B | E24: 00:00:00 | G24: 0 | H24: 0 | J24: 00:00:00 | K24: 00:00:00 | L24: 00:00:00
A25: 21. | B25: PETŘÍKOVÁ | C25: Adéla | D25: 6.B | E25: 00:01:10.660 | G25: 0 | H25: 541.6772924 | J25: 00:00:00 | K25: 00:00:00 | L25: 00:00:00
A26: 22. | B26: REGÁLOVÁ | C26: Karolína | D26: 6.B | E26: 00:00:00 | G26: 0 | H26: 0 | J26: 00:00:00 | K26: 00:00:00 | L26: 00:00:00
A27: 23. | B27: RIEGROVÁ | C27: Magdaléna | D27: 6.B | E27: 00:01:13.300 | G27: 0 | H27: 514.4247023 | J27: 00:00:00 | K27: 00:00:00 | L27: 00:00:00
A28: 24. | B28: RYBENSKÁ | C28: Sabina | D28: 6.B | E28: 00:00:00 | G28: 0 | H28: 0 | J28: 00:00:00 | K28: 00:00:00 | L28: 00:00:00
A29: 25. | B29: STEINEROVÁ | C29: Barbora | D29: 6.B | E29: 00:00:00 | G29: 0 | H29: 0 | J29: 00:00:00 | K29: 00:00:00 | L29: 00:00:00
A30: 26. | B30: TOMEŠOVÁ | C30: Barbora | D30: 6.B | E30: 00:00:00 | G30: 0 | H30: 0 | J30: 00:00:00 | K30: 00:00:00 | L30: 00:00:00
A31: 27. | B31: VOHNOUTOVÁ | C31: Aneta | D31: 6.B | E31: 00:00:00 | G31: 0 | H31: 0 | J31: 00:00:00 | K31: 00:00:00 | L31: 00:00:00
A32: 28. | B32: HAVLÍKOVÁ | C32: Michaela | D32: 7.A | E32: 00:00:00 | G32: 0 | H32: 0 | J32: 00:01:18.970 | K32: 00:00:00 | L32: 00:00:00
A33: 29. | B33: HOLUBCOVÁ | C33: Sára | D33: 7.A | E33: 00:00:00 | G33: 0 | H33: 0 | J33: 00:00:58.890 | K33: 00:00:00 | L33: 00:00:00
A34: 30. | B34: HONCŮ | C34: Tereza | D34: 7.A | E34: 00:00:00 | G34: 0 | H34: 0 | J34: 00:01:07.580 | K34: 00:00:00 | L34: 00:00:00
A35: 31. | B35: HORÁČKOVÁ | C35: Kateřina | D35: 7.A | E35: 00:00:00 | G35: 0 | H35: 0 | J35: 00:01:02.240 | K35: 00:00:00 | L35: 00:00:00
A36: 32. | B36: JOUDALOVÁ | C36: Daniela | D36: 7.A | E36: 00:00:00 | G36: 0 | H36: 0 | J36: 00:01:29.440 | K36: 00:00:00 | L36: 00:00:00
A37: 33. | B37: KLÍMOVÁ | C37: Anna | D37: 7.A | E37: 00:00:00 | G37: 0 | H37: 0 | J37: 00:01:03.720 | K37: 00:00:00 | L37: 00:00:00
A38: 34. | B38: =B134 -> KOHOUTOVÁ | C38: Veronika | D38: 7.A | E38: 00:00:00 | G38: 0 | H38: 0 | J38: 00:00:59.130 | K38: 00:00:00 | L38: 00:00:00
A39: 35. | B39: KOVÁŘOVÁ | C39: Viktorie | D39: 7.A | E39: 00:00:00 | G39: 0 | H39: 0 | J39: 00:01:04.860 | K39: 00:00:00 | L39: 00:00:00
A40: 36. | B40: KYNČLOVÁ | C40: Anna | D40: 7.A | E40: 00:00:00 | G40: 0 | H40: 0 | J40: 00:00:59.780 | K40: 00:00:00 | L40: 00:00:00
A41: 37. | B41: MATOUŠOVÁ | C41: Tereza | D41: 7.A | E41: 00:00:00 | G41: 0 | H41: 0 | J41: 00:01:10.610 | K41: 00:00:00 | L41: 00:00:00
A42: 38. | B42: MAZÁNKOVÁ | C42: Zuzana | D42: 7.A | E42: 00:00:00 | G42: 0 | H42: 0 | J42: 00:01:04.850 | K42: 00:00:00 | L42: 00:00:00
A43: 39. | B43: MORKESOVÁ | C43: Sabrina | D43: 7.A | E43: 00:00:00 | G43: 0 | H43: 0 | J43: 00:01:00.680 | K43: 00:00:00 | L43: 00:00:00
A44: 40. | B44: POHOŘALÁ | C44: Alžběta | D44: 7.A | E44: 00:00:00 | G44: 0 | H44: 0 | J44: 00:01:05.990 | K44: 00:00:00 | L44: 00:00:00
A45: 41. | B45: SCHOLZOVÁ | C45: Laura | D45: 7.A | E45: 00:00:00 | G45: 0 | H45: 0 | J45: 00:01:14.770 | K45: 00:00:00 | L45: 00:00:00
A46: 42. | B46: VÁCLAVÍKOVÁ | C46: Valerie | D46: 7.A | E46: 00:00:00 | G46: 0 | H46: 0 | J46: 00:01:03.520 | K46: 00:00:00 | L46: 00:00:00
A47: 43. | B47: ZAPADLOVÁ | C47: Emma | D47: 7.A | E47: 00:00:00 | G47: 0 | H47: 0 | J47: 00:01:04.690 | K47: 00:00:00 | L47: 00:00:00
A48: 44. | B48: ŽIŠKOVÁ | C48: Mia | D48: 7.A | E48: 00:00:00 | G48: 0 | H48: 0 | J48: 00:01:06.460 | K48: 00:00:00 | L48: 00:00:00
A49: 45. | B49: FARSKÁ | C49: Tereza | D49: 7.B | E49: 00:00:00 | G49: 0 | H49: 0 | J49: 00:01:14.230 | K49: 00:00:00 | L49: 00:00:00
A50: 46. | B50: FEIXOVÁ | C50: Rozálie | D50: 7.B | E50: 00:00:00 | G50: 0 | H50: 0 | J50: 00:01:28.320 | K50: 00:00:00 | L50: 00:00:00
A51: 47. | B51: FIŠEROVÁ | C51: Michaela | D51: 7.B | E51: 00:00:00 | G51: 0 | H51: 0 | J51: 00:01:19.320 | K51: 00:00:00 | L51: 00:00:00
A52: 48. | B52: HAVLÍČKOVÁ | C52: Kristýna | D52: 7.B | E52: 00:00:00 | G52: 0 | H52: 0 | J52: 00:00:00 | K52: 00:00:00 | L52: 00:00:00
A53: 49. | B53: JODASOVÁ | C53: Nikola | D53: 7.B | E53: 00:00:00 | G53: 0 | H53: 0 | J53: 00:01:11.830 | K53: 00:00:00 | L53: 00:00:00
A54: 50. | B54: =B150 -> KADAVÁ | C54: Nikola | D54: 7.B | E54: 00:00:00 | G54: 0 | H54: 0 | J54: 00:01:29.980 | K54: 00:00:00 | L54: 00:00:00
A55: 51. | B55: KRAFKOVÁ | C55: Lucie | D55: 7.B | E55: 00:00:00 | G55: 0 | H55: 0 | J55: 00:00:00 | K55: 00:00:00 | L55: 00:00:00
A56: 52. | B56: KŘIVINKOVÁ | C56: Alžběta | D56: 7.B | E56: 00:00:00 | G56: 0 | H56: 0 | J56: 00:01:12.620 | K56: 00:00:00 | L56: 00:00:00
A57: 53. | B57: LEŠÁKOVÁ | C57: Lenka | D57: 7.B | E57: 00:00:00 | G57: 0 | H57: 0 | J57: 00:01:32.350 | K57: 00:00:00 | L57: 00:00:00
A58: 54. | B58: NYKLÍČKOVÁ | C58: Adéla | D58: 7.B | E58: 00:00:00 | G58: 0 | H58: 0 | J58: 00:01:09.160 | K58: 00:00:00 | L58: 00:00:00
A59: 55. | B59: PLŮCHOVÁ | C59: Petra | D59: 7.B | E59: 00:00:00 | G59: 0 | H59: 0 | J59: 00:01:10.250 | K59: 00:00:00 | L59: 00:00:00
A60: 56. | B60: PODZIMKOVÁ | C60: Eliška | D60: 7.B | E60: 00:00:00 | G60: 0 | H60: 0 | J60: 00:01:21.100 | K60: 00:00:00 | L60: 00:00:00
A61: 57. | B61: RUTKAYOVÁ | C61: Klára | D61: 7.B | E61: 00:00:00 | G61: 0 | H61: 0 | J61: 00:01:19.660 | K61: 00:00:00 | L61: 00:00:00
A62: 58. | B62: SEIDLOVÁ | C62: Zuzana | D62: 7.B | E62: 00:00:00 | G62: 0 | H62: 0 | J62: 00:01:25.020 | K62: 00:00:00 | L62: 00:00:00
A63: 59. | B63: TOMÁŠOVÁ | C63: Sára | D63: 7.B | E63: 00:00:00 | G63: 0 | H63: 0 | J63: 00:00:00 | K63: 00:00:00 | L63: 00:00:00
A64: 60. | B64: VANCLOVÁ | C64: Barbora | D64: 7.B | E64: 00:00:00 | G64: 0 | H64: 0 | J64: 00:01:16.110 | K64: 00:00:00 | L64: 00:00:00
A65: 61. | B65: VOTOČKOVÁ | C65: Veronika | D65: 7.B | E65: 00:00:00 | G65: 0 | H65: 0 | J65: 00:01:36.510 | K65: 00:00:00 | L65: 00:00:00
A66: 62. | B66: HARTIGOVÁ | C66: Anna | D66: 8.A | E66: 00:00:00 | G66: 0 | H66: 0 | J66: 00:01:03.510 | K66: 00:01:29.540 | L66: 00:00:00
A67: 63. | B67: HONCŮ | C67: Rozálie | D67: 8.A | E67: 00:00:00 | G67: 0 | H67: 0 | J67: 00:01:03.850 | K67: 00:01:06.010 | L67: 00:00:00
A68: 64. | B68: CHALOUPSKÁ | C68: Lucie | D68: 8.A | E68: 00:00:50.300 | G68: Jilemnice 23.06.21 | H68: 847.9565742 | J68: 00:00:57.680 | K68: 00:00:56.920 | L68: 00:00:00
A69: 65. | B69: KŘÍŽKOVÁ | C69: Anna | D69: 8.A | E69: 00:01:01.790 | G69: Jilemnice 23.06.21 | H69: 650.2981572 | J69: 00:01:07.500 | K69: 00:01:05.510 | L69: 00:00:00
A70: 66. | B70: =B166 -> LUKEŠOVÁ | C70: Kristýna | D70: 8.A | E70: 00:00:56.800 | G70: Jilemnice 23.06.21 | H70: 726.3159891 | J70: 00:01:05.900 | K70: 00:01:15.580 | L70: 00:00:00
A71: 67. | B71: MOTLÍKOVÁ | C71: Eliška | D71: 8.A | E71: 00:00:00 | G71: 0 | H71: 0 | J71: 00:01:02.560 | K71: 00:01:06.450 | L71: 00:00:00
A72: 68. | B72: POHOŘELÁ | C72: Amálie | D72: 8.A | E72: 00:01:00.730 | G72: Jilemnice 23.06.21 | H72: 665.4012487 | J72: 00:01:03.840 | K72: 00:01:07.200 | L72: 00:00:00
A73: 69. | B73: POLÁČKOVÁ | C73: Natálie | D73: 8.A | E73: 00:01:32.640 | G73: Jilemnice 23.06.21 | H73: 362.1473163 | J73: 00:01:29.720 | K73: 00:01:29.520 | L73: 00:00:00
A74: 70. | B74: ŘEHOŘKOVÁ | C74: Lucie | D74: 8.A | E74: 00:00:59.520 | G74: Jilemnice 23.06.21 | H74: 683.2990891 | J74: 00:00:00 | K74: 00:01:18.550 | L74: 00:00:00
A75: 71. | B75: SKÁLOVÁ | C75: Alena | D75: 8.A | E75: 00:01:10.120 | G75: Jilemnice 23.06.21 | H75: 547.5044892 | J75: 00:01:20.570 | K75: 00:01:32.380 | L75: 00:00:00
A76: 72. | B76: VÁVROVÁ | C76: Aneta | D76: 8.A | E76: 00:00:53.350 | G76: Jilemnice 23.06.21 | H76: 787.1880212 | J76: 00:00:53.320 | K76: 00:01:05.390 | L76: 00:00:00
A77: 73. | B77: ZELINKOVÁ | C77: Klára | D77: 8.A | E77: 00:01:01.100 | G77: Jilemnice 23.06.21 | H77: 660.0698802 | J77: 00:01:01.220 | K77: 00:01:08.240 | L77: 00:00:00
A78: 74. | B78: JUNGOVÁ | C78: Lucie | D78: 9.A | E78: 00:00:00 | H78: 0 | J78: 00:00:52.800 | K78: 00:00:51.060 | L78: 00:00:53.350
A79: 75. | B79: KŘIVÁNKOVÁ | C79: Linda | D79: 9.A | E79: 00:01:23.880 | G79: Jilemnice 23.06.21 | H79: 422.4211204 | J79: 00:01:13.410 | K79: 00:01:20.700 | L79: 00:01:14.160
A80: 76. | B80: KUBÁTOVÁ | C80: Lucie | D80: 9.A | E80: 00:00:00 | H80: 0 | J80: 00:01:03.930 | K80: 00:01:01.340 | L80: 00:01:01.020
A81: 77. | B81: ŠIMŮNKOVÁ | C81: Nikola | D81: 9.A | E81: 00:01:21.920 | G81: Jilemnice 23.06.21 | H81: 437.6717991 | J81: 00:01:14.110 | K81: 00:01:21.900 | L81: 00:01:14.820
A82: 78. | B82: ŠMÍDOVÁ | C82: Kristýna | D82: 9.A | E82: 00:01:12.680 | G82: Jilemnice 23.06.21 | H82: 520.6470498 | J82: 00:01:16.560 | K82: 00:01:18.960 | L82: 00:00:00
A83: 79. | B83: VOTOČKOVÁ | C83: Nikola | D83: 9.A | E83: 00:00:51.900 | G83: Jilemnice 23.06.21 | H83: 815.1873542 | J83: 00:00:53.610 | K83: 00:00:56.180 | L83: 00:00:59.560
A84: 80. | B84: VYHLASOVÁ | C84: Lenka | D84: 9.A | E84: 00:00:00 | H84: 0 | J84: 00:01:44.220 | K84: 00:01:33.900 | L84: 00:01:34.440
A85: 81. | B85: BÖHMOVÁ | C85: Diana | D85: 9.B | E85: 00:01:03.120 | G85: Jilemnice 23.06.21 | H85: 632.0655859 | J85: 00:00:00 | K85: 00:01:08.080 | L85: 00:01:05.800
A86: 82. | B86: =B182 -> HOUDOVÁ | C86: Tereza | D86: 9.B | E86: 00:00:00 | H86: 0 | J86: 00:00:00 | K86: 00:01:00.750 | L86: 00:01:05.810
A87: 83. | B87: JANÍKOVÁ | C87: Kristýna | D87: 9.B | E87: 00:00:00 | H87: 0 | J87: 00:01:02.590 | K87: 00:00:00 | L87: 00:00:00
A88: 84. | B88: KUŽELOVÁ | C88: Ela | D88: 9.B | E88: 00:01:23.590 | G88: Jilemnice 23.06.21 | H88: 424.6325174 | J88: 00:01:03.930 | K88: 00:01:02.900 | L88: 00:01:09.200
A89: 85. | B89: MATERNOVÁ | C89: Lucie | D89: 9.B | E89: 00:01:04.620 | G89: Jilemnice 23.06.21 | H89: 612.4030839 | J89: 00:01:04.780 | K89: 00:01:05.300 | L89: 00:01:09.850
A90: 86. | B90: OPOČENSKÁ | C90: Matylda | D90: 9.B | E90: 00:00:00 | H90: 0 | J90: 00:00:00 | K90: 00:00:00 | L90: 00:00:00
A91: 87. | B91: PIŠTOROVÁ | C91: Karolína | D91: 9.B | E91: 00:00:00 | H91: 0 | J91: 00:00:58.150 | K91: 00:00:57.920 | L91: 00:00:55.470
A92: 88. | B92: POKORNÝ | C92: Anna | D92: 9.B | E92: 00:00:00 | H92: 0 | J92: 00:00:00 | K92: 00:01:09.530 | L92: 00:01:10.680
A93: 89. | B93: SUCHÁNKOVÁ | C93: Michaela | D93: 9.B | E93: 00:01:27.210 | G93: Jilemnice 23.06.21 | H93: 398.082218 | J93: 00:01:31.570 | K93: 00:01:22.570 | L93: 00:01:24.750
A94: 90. | B94: ŠUBÍKOVÁ | C94: Štěpánka | D94: 9.B | E94: 00:01:02.710 | G94: Jilemnice 23.06.21 | H94: 637.6036953 | J94: 00:01:31.570 | K94: 00:01:12.330 | L94: 00:01:11.690
A95: 91. | B95: VANCLOVÁ | C95: Pavlína | D95: 9.B | E95: 00:01:02.270 | G95: Jilemnice 23.06.21 | H95: 643.6281601 | J95: 00:01:09.370 | K95: 00:01:13.560 | L95: 00:01:06.690
B101: ERBENOVÁ | C101: Sára | D101: 6.A | H101: =IF(E101=0,0,IF(E101>0,(1000000000 - 313216 / E101 + 34538300 / E101*2 - 1698600000 / E101*3 + 32198000000 / E101*4)/200000000000-215)) -> 0
B102: HOFMANOVÁ | C102: Nicol | D102: 6.A | E102: 00:01:15.700 | H102: =IF(E102=0,0,IF(E102>0,(1000000000 - 313216 / E102 + 34538300 / E102*2 - 1698600000 / E102*3 + 32198000000 / E102*4)/200000000000-215)) -> 491.2991107
B103: HOLEŠOVSKÁ | C103: Aneta | D103: 6.A | H103: =IF(E103=0,0,IF(E103>0,(1000000000 - 313216 / E103 + 34538300 / E103*2 - 1698600000 / E103*3 + 32198000000 / E103*4)/200000000000-215)) -> 0
B104: HOLUBCOVÁ | C104: Alena | D104: 6.A | E104: 00:00:59.270 | H104: =IF(E104=0,0,IF(E104>0,(1000000000 - 313216 / E104 + 34538300 / E104*2 - 1698600000 / E104*3 + 32198000000 / E104*4)/200000000000-215)) -> 687.0880805
B105: KOHOUTOVÁ | C105: Anna | D105: 6.A | E105: 00:01:24.100 | H105: =IF(E105=0,0,IF(E105>0,(1000000000 - 313216 / E105 + 34538300 / E105*2 - 1698600000 / E105*3 + 32198000000 / E105*4)/200000000000-215)) -> 420.7536823
B106: KRAUSOVÁ | C106: Anežka | D106: 6.A | E106: 00:01:04.100 | H106: =IF(E106=0,0,IF(E106>0,(1000000000 - 313216 / E106 + 34538300 / E106*2 - 1698600000 / E106*3 + 32198000000 / E106*4)/200000000000-215)) -> 619.1152056
B107: KUŽELOVÁ | C107: Apoléna | D107: 6.A | H107: =IF(E107=0,0,IF(E107>0,(1000000000 - 313216 / E107 + 34538300 / E107*2 - 1698600000 / E107*3 + 32198000000 / E107*4)/200000000000-215)) -> 0
B108: MORÁVKOVÁ | C108: Lucie | D108: 6.A | H108: =IF(E108=0,0,IF(E108>0,(1000000000 - 313216 / E108 + 34538300 / E108*2 - 1698600000 / E108*3 + 32198000000 / E108*4)/200000000000-215)) -> 0
B109: SKLENÁROVÁ | C109: Eliška | D109: 6.A | E109: 00:01:17.530 | H109: =IF(E109=0,0,IF(E109>0,(1000000000 - 313216 / E109 + 34538300 / E109*2 - 1698600000 / E109*3 + 32198000000 / E109*4)/200000000000-215)) -> 474.6279096
B110: ŠTOLFOVÁ | C110: Tereza | D110: 6.A | E110: 00:01:04.880 | H110: =IF(E110=0,0,IF(E110>0,(1000000000 - 313216 / E110 + 34538300 / E110*2 - 1698600000 / E110*3 + 32198000000 / E110*4)/200000000000-215)) -> 609.0873703
B111: ŠUBÍKOVÁ | C111: Klára | D111: 6.A | E111: 00:01:06.100 | H111: =IF(E111=0,0,IF(E111>0,(1000000000 - 313216 / E111 + 34538300 / E111*2 - 1698600000 / E111*3 + 32198000000 / E111*4)/200000000000-215)) -> 593.8773779
B112: TULÁČKOVÁ | C112: Natálie | D112: 6.A | H112: =IF(E112=0,0,IF(E112>0,(1000000000 - 313216 / E112 + 34538300 / E112*2 - 1698600000 / E112*3 + 32198000000 / E112*4)/200000000000-215)) -> 0
B113: VOJTÍŠKOVÁ | C113: Ella | D113: 6.A | H113: =IF(E113=0,0,IF(E113>0,(1000000000 - 313216 / E113 + 34538300 / E113*2 - 1698600000 / E113*3 + 32198000000 / E113*4)/200000000000-215)) -> 0
B114: DRUGÁČOVÁ | C114: Kristinka | D114: 6.B | E114: 00:01:03.360 | G114: Jilemnice 23.06.21 | H114: =IF(E114=0,0,IF(E114>0,(1000000000 - 313216 / E114 + 34538300 / E114*2 - 1698600000 / E114*3 + 32198000000 / E114*4)/200000000000-215)) -> 628.8570231
B115: FAJSTAVROVÁ | C115: Karolína | D115: 6.B | H115: =IF(E115=0,0,IF(E115>0,(1000000000 - 313216 / E115 + 34538300 / E115*2 - 1698600000 / E115*3 + 32198000000 / E115*4)/200000000000-215)) -> 0
B116: FAJSTAVROVÁ | C116: Magdaléna | D116: 6.B | H116: =IF(E116=0,0,IF(E116>0,(1000000000 - 313216 / E116 + 34538300 / E116*2 - 1698600000 / E116*3 + 32198000000 / E116*4)/200000000000-215)) -> 0
B117: HLAVATÁ | C117: Anna | D117: 6.B | H117: =IF(E117=0,0,IF(E117>0,(1000000000 - 313216 / E117 + 34538300 / E117*2 - 1698600000 / E117*3 + 32198000000 / E117*4)/200000000000-215)) -> 0
B118: JINDROVÁ | C118: Barbora | D118: 6.B | H118: =IF(E118=0,0,IF(E118>0,(1000000000 - 313216 / E118 + 34538300 / E118*2 - 1698600000 / E118*3 + 32198000000 / E118*4)/200000000000-215)) -> 0
B119: MAŘASOVÁ | C119: Vendula | D119: 6.B | H119: =IF(E119=0,0,IF(E119>0,(1000000000 - 313216 / E119 + 34538300 / E119*2 - 1698600000 / E119*3 + 32198000000 / E119*4)/200000000000-215)) -> 0
B120: PETŘÍČKOVÁ | C120: Natálie | D120: 6.B | H120: =IF(E120=0,0,IF(E120>0,(1000000000 - 313216 / E120 + 34538300 / E120*2 - 1698600000 / E120*3 + 32198000000 / E120*4)/200000000000-215)) -> 0
B121: PETŘÍKOVÁ | C121: Adéla | D121: 6.B | E121: 00:01:10.660 | H121: =IF(E121=0,0,IF(E121>0,(1000000000 - 313216 / E121 + 34538300 / E121*2 - 1698600000 / E121*3 + 32198000000 / E121*4)/200000000000-215)) -> 541.6772924
B122: REGÁLOVÁ | C122: Karolína | D122: 6.B | H122: =IF(E122=0,0,IF(E122>0,(1000000000 - 313216 / E122 + 34538300 / E122*2 - 1698600000 / E122*3 + 32198000000 / E122*4)/200000000000-215)) -> 0
B123: RIEGROVÁ | C123: Magdaléna | D123: 6.B | E123: 00:01:13.300 | H123: =IF(E123=0,0,IF(E123>0,(1000000000 - 313216 / E123 + 34538300 / E123*2 - 1698600000 / E123*3 + 32198000000 / E123*4)/200000000000-215)) -> 514.4247023
B124: RYBENSKÁ | C124: Sabina | D124: 6.B | H124: =IF(E124=0,0,IF(E124>0,(1000000000 - 313216 / E124 + 34538300 / E124*2 - 1698600000 / E124*3 + 32198000000 / E124*4)/200000000000-215)) -> 0
B125: STEINEROVÁ | C125: Barbora | D125: 6.B | H125: =IF(E125=0,0,IF(E125>0,(1000000000 - 313216 / E125 + 34538300 / E125*2 - 1698600000 / E125*3 + 32198000000 / E125*4)/200000000000-215)) -> 0
B126: TOMEŠOVÁ | C126: Barbora | D126: 6.B | H126: =IF(E126=0,0,IF(E126>0,(1000000000 - 313216 / E126 + 34538300 / E126*2 - 1698600000 / E126*3 + 32198000000 / E126*4)/200000000000-215)) -> 0
B127: VOHNOUTOVÁ | C127: Aneta | D127: 6.B | H127: =IF(E127=0,0,IF(E127>0,(1000000000 - 313216 / E127 + 34538300 / E127*2 - 1698600000 / E127*3 + 32198000000 / E127*4)/200000000000-215)) -> 0
B128: HAVLÍKOVÁ | C128: Michaela | D128: 7.A | H128: =IF(E128=0,0,IF(E128>0,(1000000000 - 313216 / E128 + 34538300 / E128*2 - 1698600000 / E128*3 + 32198000000 / E128*4)/200000000000-215)) -> 0 | J128: 00:01:18.970
B129: HOLUBCOVÁ | C129: Sára | D129: 7.A | H129: =IF(E129=0,0,IF(E129>0,(1000000000 - 313216 / E129 + 34538300 / E129*2 - 1698600000 / E129*3 + 32198000000 / E129*4)/200000000000-215)) -> 0 | J129: 00:00:58.890
B130: HONCŮ | C130: Tereza | D130: 7.A | H130: =IF(E130=0,0,IF(E130>0,(1000000000 - 313216 / E130 + 34538300 / E130*2 - 1698600000 / E130*3 + 32198000000 / E130*4)/200000000000-215)) -> 0 | J130: 00:01:07.580
B131: HORÁČKOVÁ | C131: Kateřina | D131: 7.A | H131: =IF(E131=0,0,IF(E131>0,(1000000000 - 313216 / E131 + 34538300 / E131*2 - 1698600000 / E131*3 + 32198000000 / E131*4)/200000000000-215)) -> 0 | J131: 00:01:02.240
B132: JOUDALOVÁ | C132: Daniela | D132: 7.A | H132: =IF(E132=0,0,IF(E132>0,(1000000000 - 313216 / E132 + 34538300 / E132*2 - 1698600000 / E132*3 + 32198000000 / E132*4)/200000000000-215)) -> 0 | J132: 00:01:29.440
B133: KLÍMOVÁ | C133: Anna | D133: 7.A | H133: =IF(E133=0,0,IF(E133>0,(1000000000 - 313216 / E133 + 34538300 / E133*2 - 1698600000 / E133*3 + 32198000000 / E133*4)/200000000000-215)) -> 0 | J133: 00:01:03.720
B134: KOHOUTOVÁ | C134: Veronika | D134: 7.A | H134: =IF(E134=0,0,IF(E134>0,(1000000000 - 313216 / E134 + 34538300 / E134*2 - 1698600000 / E134*3 + 32198000000 / E134*4)/200000000000-215)) -> 0 | J134: 00:00:59.130
B135: KOVÁŘOVÁ | C135: Viktorie | D135: 7.A | H135: =IF(E135=0,0,IF(E135>0,(1000000000 - 313216 / E135 + 34538300 / E135*2 - 1698600000 / E135*3 + 32198000000 / E135*4)/200000000000-215)) -> 0 | J135: 00:01:04.860
B136: KYNČLOVÁ | C136: Anna | D136: 7.A | H136: =IF(E136=0,0,IF(E136>0,(1000000000 - 313216 / E136 + 34538300 / E136*2 - 1698600000 / E136*3 + 32198000000 / E136*4)/200000000000-215)) -> 0 | J136: 00:00:59.780
B137: MATOUŠOVÁ | C137: Tereza | D137: 7.A | H137: =IF(E137=0,0,IF(E137>0,(1000000000 - 313216 / E137 + 34538300 / E137*2 - 1698600000 / E137*3 + 32198000000 / E137*4)/200000000000-215)) -> 0 | J137: 00:01:10.610
B138: MAZÁNKOVÁ | C138: Zuzana | D138: 7.A | H138: =IF(E138=0,0,IF(E138>0,(1000000000 - 313216 / E138 + 34538300 / E138*2 - 1698600000 / E138*3 + 32198000000 / E138*4)/200000000000-215)) -> 0 | J138: 00:01:04.850
B139: MORKESOVÁ | C139: Sabrina | D139: 7.A | H139: =IF(E139=0,0,IF(E139>0,(1000000000 - 313216 / E139 + 34538300 / E139*2 - 1698600000 / E139*3 + 32198000000 / E139*4)/200000000000-215)) -> 0 | J139: 00:01:00.680
B140: POHOŘALÁ | C140: Alžběta | D140: 7.A | H140: =IF(E140=0,0,IF(E140>0,(1000000000 - 313216 / E140 + 34538300 / E140*2 - 1698600000 / E140*3 + 32198000000 / E140*4)/200000000000-215)) -> 0 | J140: 00:01:05.990
B141: SCHOLZOVÁ | C141: Laura | D141: 7.A | H141: =IF(E141=0,0,IF(E141>0,(1000000000 - 313216 / E141 + 34538300 / E141*2 - 1698600000 / E141*3 + 32198000000 / E141*4)/200000000000-215)) -> 0 | J141: 00:01:14.770
B142: VÁCLAVÍKOVÁ | C142: Valerie | D142: 7.A | H142: =IF(E142=0,0,IF(E142>0,(1000000000 - 313216 / E142 + 34538300 / E142*2 - 1698600000 / E142*3 + 32198000000 / E142*4)/200000000000-215)) -> 0 | J142: 00:01:03.520
B143: ZAPADLOVÁ | C143: Emma | D143: 7.A | H143: =IF(E143=0,0,IF(E143>0,(1000000000 - 313216 / E143 + 34538300 / E143*2 - 1698600000 / E143*3 + 32198000000 / E143*4)/200000000000-215)) -> 0 | J143: 00:01:04.690
B144: ŽIŠKOVÁ | C144: Mia | D144: 7.A | H144: =IF(E144=0,0,IF(E144>0,(1000000000 - 313216 / E144 + 34538300 / E144*2 - 1698600000 / E144*3 + 32198000000 / E144*4)/200000000000-215)) -> 0 | J144: 00:01:06.460
B145: FARSKÁ | C145: Tereza | D145: 7.B | H145: =IF(E145=0,0,IF(E145>0,(1000000000 - 313216 / E145 + 34538300 / E145*2 - 1698600000 / E145*3 + 32198000000 / E145*4)/200000000000-215)) -> 0 | J145: 00:01:14.230
B146: FEIXOVÁ | C146: Rozálie | D146: 7.B | H146: =IF(E146=0,0,IF(E146>0,(1000000000 - 313216 / E146 + 34538300 / E146*2 - 1698600000 / E146*3 + 32198000000 / E146*4)/200000000000-215)) -> 0 | J146: 00:01:28.320
B147: FIŠEROVÁ | C147: Michaela | D147: 7.B | H147: =IF(E147=0,0,IF(E147>0,(1000000000 - 313216 / E147 + 34538300 / E147*2 - 1698600000 / E147*3 + 32198000000 / E147*4)/200000000000-215)) -> 0 | J147: 00:01:19.320
B148: HAVLÍČKOVÁ | C148: Kristýna | D148: 7.B | H148: =IF(E148=0,0,IF(E148>0,(1000000000 - 313216 / E148 + 34538300 / E148*2 - 1698600000 / E148*3 + 32198000000 / E148*4)/200000000000-215)) -> 0
B149: JODASOVÁ | C149: Nikola | D149: 7.B | H149: =IF(E149=0,0,IF(E149>0,(1000000000 - 313216 / E149 + 34538300 / E149*2 - 1698600000 / E149*3 + 32198000000 / E149*4)/200000000000-215)) -> 0 | J149: 00:01:11.830
B150: KADAVÁ | C150: Nikola | D150: 7.B | H150: =IF(E150=0,0,IF(E150>0,(1000000000 - 313216 / E150 + 34538300 / E150*2 - 1698600000 / E150*3 + 32198000000 / E150*4)/200000000000-215)) -> 0 | J150: 00:01:29.980
B151: KRAFKOVÁ | C151: Lucie | D151: 7.B | H151: =IF(E151=0,0,IF(E151>0,(1000000000 - 313216 / E151 + 34538300 / E151*2 - 1698600000 / E151*3 + 32198000000 / E151*4)/200000000000-215)) -> 0
B152: KŘIVINKOVÁ | C152: Alžběta | D152: 7.B | H152: =IF(E152=0,0,IF(E152>0,(1000000000 - 313216 / E152 + 34538300 / E152*2 - 1698600000 / E152*3 + 32198000000 / E152*4)/200000000000-215)) -> 0 | J152: 00:01:12.620
B153: LEŠÁKOVÁ | C153: Lenka | D153: 7.B | H153: =IF(E153=0,0,IF(E153>0,(1000000000 - 313216 / E153 + 34538300 / E153*2 - 1698600000 / E153*3 + 32198000000 / E153*4)/200000000000-215)) -> 0 | J153: 00:01:32.350
B154: NYKLÍČKOVÁ | C154: Adéla | D154: 7.B | H154: =IF(E154=0,0,IF(E154>0,(1000000000 - 313216 / E154 + 34538300 / E154*2 - 1698600000 / E154*3 + 32198000000 / E154*4)/200000000000-215)) -> 0 | J154: 00:01:09.160
B155: PLŮCHOVÁ | C155: Petra | D155: 7.B | H155: =IF(E155=0,0,IF(E155>0,(1000000000 - 313216 / E155 + 34538300 / E155*2 - 1698600000 / E155*3 + 32198000000 / E155*4)/200000000000-215)) -> 0 | J155: 00:01:10.250
B156: PODZIMKOVÁ | C156: Eliška | D156: 7.B | H156: =IF(E156=0,0,IF(E156>0,(1000000000 - 313216 / E156 + 34538300 / E156*2 - 1698600000 / E156*3 + 32198000000 / E156*4)/200000000000-215)) -> 0 | J156: 00:01:21.100
B157: RUTKAYOVÁ | C157: Klára | D157: 7.B | H157: =IF(E157=0,0,IF(E157>0,(1000000000 - 313216 / E157 + 34538300 / E157*2 - 1698600000 / E157*3 + 32198000000 / E157*4)/200000000000-215)) -> 0 | J157: 00:01:19.660
B158: SEIDLOVÁ | C158: Zuzana | D158: 7.B | H158: =IF(E158=0,0,IF(E158>0,(1000000000 - 313216 / E158 + 34538300 / E158*2 - 1698600000 / E158*3 + 32198000000 / E158*4)/200000000000-215)) -> 0 | J158: 00:01:25.020
B159: TOMÁŠOVÁ | C159: Sára | D159: 7.B | H159: =IF(E159=0,0,IF(E159>0,(1000000000 - 313216 / E159 + 34538300 / E159*2 - 1698600000 / E159*3 + 32198000000 / E159*4)/200000000000-215)) -> 0
B160: VANCLOVÁ | C160: Barbora | D160: 7.B | H160: =IF(E160=0,0,IF(E160>0,(1000000000 - 313216 / E160 + 34538300 / E160*2 - 1698600000 / E160*3 + 32198000000 / E160*4)/200000000000-215)) -> 0 | J160: 00:01:16.110
B161: VOTOČKOVÁ | C161: Veronika | D161: 7.B | H161: =IF(E161=0,0,IF(E161>0,(1000000000 - 313216 / E161 + 34538300 / E161*2 - 1698600000 / E161*3 + 32198000000 / E161*4)/200000000000-215)) -> 0 | J161: 00:01:36.510
B162: HARTIGOVÁ | C162: Anna | D162: 8.A | H162: =IF(E162=0,0,IF(E162>0,(1000000000 - 313216 / E162 + 34538300 / E162*2 - 1698600000 / E162*3 + 32198000000 / E162*4)/200000000000-215)) -> 0 | J162: 00:01:03.510 | K162: 00:01:29.540
B163: HONCŮ | C163: Rozálie | D163: 8.A | H163: =IF(E163=0,0,IF(E163>0,(1000000000 - 313216 / E163 + 34538300 / E163*2 - 1698600000 / E163*3 + 32198000000 / E163*4)/200000000000-215)) -> 0 | J163: 00:01:03.850 | K163: 00:01:06.010
B164: CHALOUPSKÁ | C164: Lucie | D164: 8.A | E164: 00:00:50.300 | G164: Jilemnice 23.06.21 | H164: =IF(E164=0,0,IF(E164>0,(1000000000 - 313216 / E164 + 34538300 / E164*2 - 1698600000 / E164*3 + 32198000000 / E164*4)/200000000000-215)) -> 847.9565742 | J164: 00:00:57.680 | K164: 00:00:56.920
B165: KŘÍŽKOVÁ | C165: Anna | D165: 8.A | E165: 00:01:01.790 | G165: Jilemnice 23.06.21 | H165: =IF(E165=0,0,IF(E165>0,(1000000000 - 313216 / E165 + 34538300 / E165*2 - 1698600000 / E165*3 + 32198000000 / E165*4)/200000000000-215)) -> 650.2981572 | J165: 00:01:07.500 | K165: 00:01:05.510
B166: LUKEŠOVÁ | C166: Kristýna | D166: 8.A | E166: 00:00:56.800 | G166: Jilemnice 23.06.21 | H166: =IF(E166=0,0,IF(E166>0,(1000000000 - 313216 / E166 + 34538300 / E166*2 - 1698600000 / E166*3 + 32198000000 / E166*4)/200000000000-215)) -> 726.3159891 | J166: 00:01:05.900 | K166: 00:01:15.580
B167: MOTLÍKOVÁ | C167: Eliška | D167: 8.A | H167: =IF(E167=0,0,IF(E167>0,(1000000000 - 313216 / E167 + 34538300 / E167*2 - 1698600000 / E167*3 + 32198000000 / E167*4)/200000000000-215)) -> 0 | J167: 00:01:02.560 | K167: 00:01:06.450
B168: POHOŘELÁ | C168: Amálie | D168: 8.A | E168: 00:01:00.730 | G168: Jilemnice 23.06.21 | H168: =IF(E168=0,0,IF(E168>0,(1000000000 - 313216 / E168 + 34538300 / E168*2 - 1698600000 / E168*3 + 32198000000 / E168*4)/200000000000-215)) -> 665.4012487 | J168: 00:01:03.840 | K168: 00:01:07.200
B169: POLÁČKOVÁ | C169: Natálie | D169: 8.A | E169: 00:01:32.640 | G169: Jilemnice 23.06.21 | H169: =IF(E169=0,0,IF(E169>0,(1000000000 - 313216 / E169 + 34538300 / E169*2 - 1698600000 / E169*3 + 32198000000 / E169*4)/200000000000-215)) -> 362.1473163 | J169: 00:01:29.720 | K169: 00:01:29.520
B170: ŘEHOŘKOVÁ | C170: Lucie | D170: 8.A | E170: 00:00:59.520 | G170: Jilemnice 23.06.21 | H170: =IF(E170=0,0,IF(E170>0,(1000000000 - 313216 / E170 + 34538300 / E170*2 - 1698600000 / E170*3 + 32198000000 / E170*4)/200000000000-215)) -> 683.2990891 | K170: 00:01:18.550
B171: SKÁLOVÁ | C171: Alena | D171: 8.A | E171: 00:01:10.120 | G171: Jilemnice 23.06.21 | H171: =IF(E171=0,0,IF(E171>0,(1000000000 - 313216 / E171 + 34538300 / E171*2 - 1698600000 / E171*3 + 32198000000 / E171*4)/200000000000-215)) -> 547.5044892 | J171: 00:01:20.570 | K171: 00:01:32.380
B172: VÁVROVÁ | C172: Aneta | D172: 8.A | E172: 00:00:53.350 | G172: Jilemnice 23.06.21 | H172: =IF(E172=0,0,IF(E172>0,(1000000000 - 313216 / E172 + 34538300 / E172*2 - 1698600000 / E172*3 + 32198000000 / E172*4)/200000000000-215)) -> 787.1880212 | J172: 00:00:53.320 | K172: 00:01:05.390
B173: ZELINKOVÁ | C173: Klára | D173: 8.A | E173: 00:01:01.100 | G173: Jilemnice 23.06.21 | H173: =IF(E173=0,0,IF(E173>0,(1000000000 - 313216 / E173 + 34538300 / E173*2 - 1698600000 / E173*3 + 32198000000 / E173*4)/200000000000-215)) -> 660.0698802 | J173: 00:01:01.220 | K173: 00:01:08.240
B174: JUNGOVÁ | C174: Lucie | D174: 9.A | H174: =IF(E174=0,0,IF(E174>0,(1000000000 - 313216 / E174 + 34538300 / E174*2 - 1698600000 / E174*3 + 32198000000 / E174*4)/200000000000-215)) -> 0 | J174: 00:00:52.800 | K174: 00:00:51.060 | L174: 00:00:53.350
B175: KŘIVÁNKOVÁ | C175: Linda | D175: 9.A | E175: 00:01:23.880 | G175: Jilemnice 23.06.21 | H175: =IF(E175=0,0,IF(E175>0,(1000000000 - 313216 / E175 + 34538300 / E175*2 - 1698600000 / E175*3 + 32198000000 / E175*4)/200000000000-215)) -> 422.4211204 | J175: 00:01:13.410 | K175: 00:01:20.700 | L175: 00:01:14.160
B176: KUBÁTOVÁ | C176: Lucie | D176: 9.A | H176: =IF(E176=0,0,IF(E176>0,(1000000000 - 313216 / E176 + 34538300 / E176*2 - 1698600000 / E176*3 + 32198000000 / E176*4)/200000000000-215)) -> 0 | J176: 00:01:03.930 | K176: 00:01:01.340 | L176: 00:01:01.020
B177: ŠIMŮNKOVÁ | C177: Nikola | D177: 9.A | E177: 00:01:21.920 | G177: Jilemnice 23.06.21 | H177: =IF(E177=0,0,IF(E177>0,(1000000000 - 313216 / E177 + 34538300 / E177*2 - 1698600000 / E177*3 + 32198000000 / E177*4)/200000000000-215)) -> 437.6717991 | J177: 00:01:14.110 | K177: 00:01:21.900 | L177: 00:01:14.820
B178: ŠMÍDOVÁ | C178: Kristýna | D178: 9.A | E178: 00:01:12.680 | G178: Jilemnice 23.06.21 | H178: =IF(E178=0,0,IF(E178>0,(1000000000 - 313216 / E178 + 34538300 / E178*2 - 1698600000 / E178*3 + 32198000000 / E178*4)/200000000000-215)) -> 520.6470498 | J178: 00:01:16.560 | K178: 00:01:18.960
B179: VOTOČKOVÁ | C179: Nikola | D179: 9.A | E179: 00:00:51.900 | G179: Jilemnice 23.06.21 | H179: =IF(E179=0,0,IF(E179>0,(1000000000 - 313216 / E179 + 34538300 / E179*2 - 1698600000 / E179*3 + 32198000000 / E179*4)/200000000000-215)) -> 815.1873542 | J179: 00:00:53.610 | K179: 00:00:56.180 | L179: 00:00:59.560
B180: VYHLASOVÁ | C180: Lenka | D180: 9.A | H180: =IF(E180=0,0,IF(E180>0,(1000000000 - 313216 / E180 + 34538300 / E180*2 - 1698600000 / E180*3 + 32198000000 / E180*4)/200000000000-215)) -> 0 | J180: 00:01:44.220 | K180: 00:01:33.900 | L180: 00:01:34.440
B181: BÖHMOVÁ | C181: Diana | D181: 9.B | E181: 00:01:03.120 | G181: Jilemnice 23.06.21 | H181: =IF(E181=0,0,IF(E181>0,(1000000000 - 313216 / E181 + 34538300 / E181*2 - 1698600000 / E181*3 + 32198000000 / E181*4)/200000000000-215)) -> 632.0655859 | K181: 00:01:08.080 | L181: 00:01:05.800
B182: HOUDOVÁ | C182: Tereza | D182: 9.B | H182: =IF(E182=0,0,IF(E182>0,(1000000000 - 313216 / E182 + 34538300 / E182*2 - 1698600000 / E182*3 + 32198000000 / E182*4)/200000000000-215)) -> 0 | K182: 00:01:00.750 | L182: 00:01:05.810
B183: JANÍKOVÁ | C183: Kristýna | D183: 9.B | H183: =IF(E183=0,0,IF(E183>0,(1000000000 - 313216 / E183 + 34538300 / E183*2 - 1698600000 / E183*3 + 32198000000 / E183*4)/200000000000-215)) -> 0 | J183: 00:01:02.590
B184: KUŽELOVÁ | C184: Ela | D184: 9.B | E184: 00:01:23.590 | G184: Jilemnice 23.06.21 | H184: =IF(E184=0,0,IF(E184>0,(1000000000 - 313216 / E184 + 34538300 / E184*2 - 1698600000 / E184*3 + 32198000000 / E184*4)/200000000000-215)) -> 424.6325174 | J184: 00:01:03.930 | K184: 00:01:02.900 | L184: 00:01:09.200
B185: MATERNOVÁ | C185: Lucie | D185: 9.B | E185: 00:01:04.620 | G185: Jilemnice 23.06.21 | H185: =IF(E185=0,0,IF(E185>0,(1000000000 - 313216 / E185 + 34538300 / E185*2 - 1698600000 / E185*3 + 32198000000 / E185*4)/200000000000-215)) -> 612.4030839 | J185: 00:01:04.780 | K185: 00:01:05.300 | L185: 00:01:09.850
B186: OPOČENSKÁ | C186: Matylda | D186: 9.B | H186: =IF(E186=0,0,IF(E186>0,(1000000000 - 313216 / E186 + 34538300 / E186*2 - 1698600000 / E186*3 + 32198000000 / E186*4)/200000000000-215)) -> 0
B187: PIŠTOROVÁ | C187: Karolína | D187: 9.B | H187: =IF(E187=0,0,IF(E187>0,(1000000000 - 313216 / E187 + 34538300 / E187*2 - 1698600000 / E187*3 + 32198000000 / E187*4)/200000000000-215)) -> 0 | J187: 00:00:58.150 | K187: 00:00:57.920 | L187: 00:00:55.470
B188: POKORNÝ | C188: Anna | D188: 9.B | H188: =IF(E188=0,0,IF(E188>0,(1000000000 - 313216 / E188 + 34538300 / E188*2 - 1698600000 / E188*3 + 32198000000 / E188*4)/200000000000-215)) -> 0 | K188: 00:01:09.530 | L188: 00:01:10.680
B189: SUCHÁNKOVÁ | C189: Michaela | D189: 9.B | E189: 00:01:27.210 | G189: Jilemnice 23.06.21 | H189: =IF(E189=0,0,IF(E189>0,(1000000000 - 313216 / E189 + 34538300 / E189*2 - 1698600000 / E189*3 + 32198000000 / E189*4)/200000000000-215)) -> 398.082218 | J189: 00:01:31.570 | K189: 00:01:22.570 | L189: 00:01:24.750
B190: ŠUBÍKOVÁ | C190: Štěpánka | D190: 9.B | E190: 00:01:02.710 | G190: Jilemnice 23.06.21 | H190: =IF(E190=0,0,IF(E190>0,(1000000000 - 313216 / E190 + 34538300 / E190*2 - 1698600000 / E190*3 + 32198000000 / E190*4)/200000000000-215)) -> 637.6036953 | J190: 00:01:31.570 | K190: 00:01:12.330 | L190: 00:01:11.690
B191: VANCLOVÁ | C191: Pavlína | D191: 9.B | E191: 00:01:02.270 | G191: Jilemnice 23.06.21 | H191: =IF(E191=0,0,IF(E191>0,(1000000000 - 313216 / E191 + 34538300 / E191*2 - 1698600000 / E191*3 + 32198000000 / E191*4)/200000000000-215)) -> 643.6281601 | J191: 00:01:09.370 | K191: 00:01:13.560 | L191: 00:01:06.690

Sheet D800
C1: VÝKONY 2020 - 2021 | G1: 800 M | H1: DĚVČATA 6. - 9. ROČ.
K2: stav k | L2: =TODAY() -> 44375
H3: BODY | J3: 19 - 20 | K3: 18 - 19 | L3: 17 - 18
A5: 1. | B5: =B101 -> ERBENOVÁ | C5: =C101 -> Sára | D5: 6.A | E5: 00:00:00 | G5: 0 | H5: 0 | J5: 00:00:00 | K5: 00:00:00 | L5: 00:00:00
A6: 2. | B6: =B102 -> HOFMANOVÁ | C6: Nicol | D6: 6.A | E6: 00:00:00 | G6: 0 | H6: 0 | J6: 00:00:00 | K6: 00:00:00 | L6: 00:00:00
A7: 3. | B7: HOLEŠOVSKÁ | C7: Aneta | D7: 6.A | E7: 00:06:54 | G7: Jilemnice 22.09.20 | H7: 279.5310145 | J7: 00:00:00 | K7: 00:00:00 | L7: 00:00:00
A8: 4. | B8: HOLUBCOVÁ | C8: Alena | D8: 6.A | E8: 00:00:00 | G8: 0 | H8: 0 | J8: 00:00:00 | K8: 00:00:00 | L8: 00:00:00
A9: 5. | B9: KOHOUTOVÁ | C9: Anna | D9: 6.A | E9: 00:00:00 | G9: 0 | H9: 0 | J9: 00:00:00 | K9: 00:00:00 | L9: 00:00:00
A10: 6. | B10: KRAUSOVÁ | C10: Anežka | D10: 6.A | E10: 00:00:00 | G10: 0 | H10: 0 | J10: 00:00:00 | K10: 00:00:00 | L10: 00:00:00
A11: 7. | B11: KUŽELOVÁ | C11: Apoléna | D11: 6.A | E11: 00:04:22 | G11: Jilemnice 22.09.20 | H11: 517.1215266 | J11: 00:00:00 | K11: 00:00:00 | L11: 00:00:00
A12: 8. | B12: MORÁVKOVÁ | C12: Lucie | D12: 6.A | E12: 00:04:54 | G12: Jilemnice 22.09.20 | H12: 446.6865305 | J12: 00:00:00 | K12: 00:00:00 | L12: 00:00:00
A13: 9. | B13: SKLENÁROVÁ | C13: Eliška | D13: 6.A | E13: 00:00:00 | G13: 0 | H13: 0 | J13: 00:00:00 | K13: 00:00:00 | L13: 00:00:00
A14: 10. | B14: ŠTOLFOVÁ | C14: Tereza | D14: 6.A | E14: 00:00:00 | G14: 0 | H14: 0 | J14: 00:00:00 | K14: 00:00:00 | L14: 00:00:00
A15: 11. | B15: ŠUBÍKOVÁ | C15: Klára | D15: 6.A | E15: 00:00:00 | G15: 0 | H15: 0 | J15: 00:00:00 | K15: 00:00:00 | L15: 00:00:00
A16: 12. | B16: TULÁČKOVÁ | C16: Natálie | D16: 6.A | E16: 00:04:48 | G16: Jilemnice 22.09.20 | H16: 458.7008332 | J16: 00:00:00 | K16: 00:00:00 | L16: 00:00:00
A17: 13. | B17: VOJTÍŠKOVÁ | C17: Ella | D17: 6.A | E17: 00:00:00 | G17: 0 | H17: 0 | J17: 00:00:00 | K17: 00:00:00 | L17: 00:00:00
A18: 14. | B18: DRUGÁČOVÁ | C18: Kristinka | D18: 6.B | E18: 00:00:00 | G18: 0 | H18: 0 | J18: 00:00:00 | K18: 00:00:00 | L18: 00:00:00
A19: 15. | B19: FAJSTAVROVÁ | C19: Karolína | D19: 6.B | E19: 00:03:11 | G19: Jilemnice 22.09.20 | H19: 757.6745547 | J19: 00:00:00 | K19: 00:00:00 | L19: 00:00:00
A20: 16. | B20: FAJSTAVROVÁ | C20: Magdaléna | D20: 6.B | E20: 00:03:02 | G20: Jilemnice 22.09.20 | H20: 801.5705492 | J20: 00:00:00 | K20: 00:00:00 | L20: 00:00:00
A21: 17. | B21: HLAVATÁ | C21: Anna | D21: 6.B | E21: 00:00:00 | G21: 0 | H21: 0 | J21: 00:00:00 | K21: 00:00:00 | L21: 00:00:00
A22: 18. | B22: =B118 -> JINDROVÁ | C22: Barbora | D22: 6.B | E22: 00:04:04 | G22: Jilemnice 22.09.20 | H22: 564.8599999 | J22: 00:00:00 | K22: 00:00:00 | L22: 00:00:00
A23: 19. | B23: MAŘASOVÁ | C23: Vendula | D23: 6.B | E23: 00:04:11 | G23: Jilemnice 22.09.20 | H23: 545.4814341 | J23: 00:00:00 | K23: 00:00:00 | L23: 00:00:00
A24: 20. | B24: PETŘÍČKOVÁ | C24: Natálie | D24: 6.B | E24: 00:00:00 | G24: 0 | H24: 0 | J24: 00:00:00 | K24: 00:00:00 | L24: 00:00:00
A25: 21. | B25: PETŘÍKOVÁ | C25: Adéla | D25: 6.B | E25: 00:00:00 | G25: 0 | H25: 0 | J25: 00:00:00 | K25: 00:00:00 | L25: 00:00:00
A26: 22. | B26: REGÁLOVÁ | C26: Karolína | D26: 6.B | E26: 00:04:17 | G26: Jilemnice 22.09.20 | H26: 529.7114396 | J26: 00:00:00 | K26: 00:00:00 | L26: 00:00:00
A27: 23. | B27: RIEGROVÁ | C27: Magdaléna | D27: 6.B | E27: 00:00:00 | G27: 0 | H27: 0 | J27: 00:00:00 | K27: 00:00:00 | L27: 00:00:00
A28: 24. | B28: RYBENSKÁ | C28: Sabina | D28: 6.B | E28: 00:04:17 | G28: Jilemnice 22.09.20 | H28: 529.7114396 | J28: 00:00:00 | K28: 00:00:00 | L28: 00:00:00
A29: 25. | B29: STEINEROVÁ | C29: Barbora | D29: 6.B | E29: 00:04:18 | G29: Jilemnice 22.09.20 | H29: 527.1544185 | J29: 00:00:00 | K29: 00:00:00 | L29: 00:00:00
A30: 26. | B30: TOMEŠOVÁ | C30: Barbora | D30: 6.B | E30: 00:04:20 | G30: Jilemnice 22.09.20 | H30: 522.0993845 | J30: 00:00:00 | K30: 00:00:00 | L30: 00:00:00
A31: 27. | B31: VOHNOUTOVÁ | C31: Aneta | D31: 6.B | E31: 00:03:36 | G31: Jilemnice 22.09.20 | H31: 654.9344442 | J31: 00:00:00 | K31: 00:00:00 | L31: 00:00:00
A32: 28. | B32: HAVLÍKOVÁ | C32: Michaela | D32: 7.A | E32: 00:00:00 | G32: 0 | H32: 0 | J32: 00:04:12.990 | K32: 00:00:00 | L32: 00:00:00
A33: 29. | B33: HOLUBCOVÁ | C33: Sára | D33: 7.A | E33: 00:00:00 | G33: 0 | H33: 0 | J33: 00:03:44.190 | K33: 00:00:00 | L33: 00:00:00
A34: 30. | B34: HONCŮ | C34: Tereza | D34: 7.A | E34: 00:00:00 | G34: 0 | H34: 0 | J34: 00:04:00.600 | K34: 00:00:00 | L34: 00:00:00
A35: 31. | B35: HORÁČKOVÁ | C35: Kateřina | D35: 7.A | E35: 00:00:00 | G35: 0 | H35: 0 | J35: 00:03:39.880 | K35: 00:00:00 | L35: 00:00:00
A36: 32. | B36: JOUDALOVÁ | C36: Daniela | D36: 7.A | E36: 00:00:00 | G36: 0 | H36: 0 | J36: 00:00:00 | K36: 00:00:00 | L36: 00:00:00
A37: 33. | B37: KLÍMOVÁ | C37: Anna | D37: 7.A | E37: 00:00:00 | G37: 0 | H37: 0 | J37: 00:03:43.750 | K37: 00:00:00 | L37: 00:00:00
A38: 34. | B38: =B134 -> KOHOUTOVÁ | C38: Veronika | D38: 7.A | E38: 00:00:00 | G38: 0 | H38: 0 | J38: 00:03:21.790 | K38: 00:00:00 | L38: 00:00:00
A39: 35. | B39: KOVÁŘOVÁ | C39: Viktorie | D39: 7.A | E39: 00:00:00 | G39: 0 | H39: 0 | J39: 00:03:46.100 | K39: 00:00:00 | L39: 00:00:00
A40: 36. | B40: KYNČLOVÁ | C40: Anna | D40: 7.A | E40: 00:00:00 | G40: 0 | H40: 0 | J40: 00:03:11.460 | K40: 00:00:00 | L40: 00:00:00
A41: 37. | B41: MATOUŠOVÁ | C41: Tereza | D41: 7.A | E41: 00:00:00 | G41: 0 | H41: 0 | J41: 00:04:28.960 | K41: 00:00:00 | L41: 00:00:00
A42: 38. | B42: MAZÁNKOVÁ | C42: Zuzana | D42: 7.A | E42: 00:00:00 | G42: 0 | H42: 0 | J42: 00:04:00.600 | K42: 00:00:00 | L42: 00:00:00
A43: 39. | B43: MORKESOVÁ | C43: Sabrina | D43: 7.A | E43: 00:00:00 | G43: 0 | H43: 0 | J43: 00:03:22.340 | K43: 00:00:00 | L43: 00:00:00
A44: 40. | B44: POHOŘALÁ | C44: Alžběta | D44: 7.A | E44: 00:00:00 | G44: 0 | H44: 0 | J44: 00:04:00.600 | K44: 00:00:00 | L44: 00:00:00
A45: 41. | B45: SCHOLZOVÁ | C45: Laura | D45: 7.A | E45: 00:00:00 | G45: 0 | H45: 0 | J45: 00:04:18.780 | K45: 00:00:00 | L45: 00:00:00
A46: 42. | B46: VÁCLAVÍKOVÁ | C46: Valerie | D46: 7.A | E46: 00:00:00 | G46: 0 | H46: 0 | J46: 00:03:49.500 | K46: 00:00:00 | L46: 00:00:00
A47: 43. | B47: ZAPADLOVÁ | C47: Emma | D47: 7.A | E47: 00:00:00 | G47: 0 | H47: 0 | J47: 00:03:24.360 | K47: 00:00:00 | L47: 00:00:00
A48: 44. | B48: ŽIŠKOVÁ | C48: Mia | D48: 7.A | E48: 00:00:00 | G48: 0 | H48: 0 | J48: 00:04:11.900 | K48: 00:00:00 | L48: 00:00:00
A49: 45. | B49: FARSKÁ | C49: Tereza | D49: 7.B | E49: 00:00:00 | G49: 0 | H49: 0 | J49: 00:00:00 | K49: 00:00:00 | L49: 00:00:00
A50: 46. | B50: FEIXOVÁ | C50: Rozálie | D50: 7.B | E50: 00:00:00 | G50: 0 | H50: 0 | J50: 00:00:00 | K50: 00:00:00 | L50: 00:00:00
A51: 47. | B51: FIŠEROVÁ | C51: Michaela | D51: 7.B | E51: 00:00:00 | G51: 0 | H51: 0 | J51: 00:00:00 | K51: 00:00:00 | L51: 00:00:00
A52: 48. | B52: HAVLÍČKOVÁ | C52: Kristýna | D52: 7.B | E52: 00:00:00 | G52: 0 | H52: 0 | J52: 00:00:00 | K52: 00:00:00 | L52: 00:00:00
A53: 49. | B53: JODASOVÁ | C53: Nikola | D53: 7.B | E53: 00:00:00 | G53: 0 | H53: 0 | J53: 00:00:00 | K53: 00:00:00 | L53: 00:00:00
A54: 50. | B54: =B150 -> KADAVÁ | C54: Nikola | D54: 7.B | E54: 00:00:00 | G54: 0 | H54: 0 | J54: 00:00:00 | K54: 00:00:00 | L54: 00:00:00
A55: 51. | B55: KRAFKOVÁ | C55: Lucie | D55: 7.B | E55: 00:00:00 | G55: 0 | H55: 0 | J55: 00:00:00 | K55: 00:00:00 | L55: 00:00:00
A56: 52. | B56: KŘIVINKOVÁ | C56: Alžběta | D56: 7.B | E56: 00:00:00 | G56: 0 | H56: 0 | J56: 00:00:00 | K56: 00:00:00 | L56: 00:00:00
A57: 53. | B57: LEŠÁKOVÁ | C57: Lenka | D57: 7.B | E57: 00:00:00 | G57: 0 | H57: 0 | J57: 00:00:00 | K57: 00:00:00 | L57: 00:00:00
A58: 54. | B58: NYKLÍČKOVÁ | C58: Adéla | D58: 7.B | E58: 00:00:00 | G58: 0 | H58: 0 | J58: 00:00:00 | K58: 00:00:00 | L58: 00:00:00
A59: 55. | B59: PLŮCHOVÁ | C59: Petra | D59: 7.B | E59: 00:00:00 | G59: 0 | H59: 0 | J59: 00:00:00 | K59: 00:00:00 | L59: 00:00:00
A60: 56. | B60: PODZIMKOVÁ | C60: Eliška | D60: 7.B | E60: 00:00:00 | G60: 0 | H60: 0 | J60: 00:00:00 | K60: 00:00:00 | L60: 00:00:00
A61: 57. | B61: RUTKAYOVÁ | C61: Klára | D61: 7.B | E61: 00:00:00 | G61: 0 | H61: 0 | J61: 00:00:00 | K61: 00:00:00 | L61: 00:00:00
A62: 58. | B62: SEIDLOVÁ | C62: Zuzana | D62: 7.B | E62: 00:00:00 | G62: 0 | H62: 0 | J62: 00:00:00 | K62: 00:00:00 | L62: 00:00:00
A63: 59. | B63: TOMÁŠOVÁ | C63: Sára | D63: 7.B | E63: 00:00:00 | G63: 0 | H63: 0 | J63: 00:00:00 | K63: 00:00:00 | L63: 00:00:00
A64: 60. | B64: VANCLOVÁ | C64: Barbora | D64: 7.B | E64: 00:00:00 | G64: 0 | H64: 0 | J64: 00:00:00 | K64: 00:00:00 | L64: 00:00:00
A65: 61. | B65: VOTOČKOVÁ | C65: Veronika | D65: 7.B | E65: 00:00:00 | G65: 0 | H65: 0 | J65: 00:00:00 | K65: 00:00:00 | L65: 00:00:00
A66: 62. | B66: HARTIGOVÁ | C66: Anna | D66: 8.A | E66: 00:00:00 | G66: 0 | H66: 0 | J66: 00:00:00 | K66: 00:04:39.330 | L66: 00:00:00
A67: 63. | B67: HONCŮ | C67: Rozálie | D67: 8.A | E67: 00:00:00 | G67: 0 | H67: 0 | J67: 00:00:00 | K67: 00:04:50.840 | L67: 00:00:00
A68: 64. | B68: CHALOUPSKÁ | C68: Lucie | D68: 8.A | E68: 00:00:00 | G68: 0 | H68: 0 | J68: 00:00:00 | K68: 00:04:20.270 | L68: 00:00:00
A69: 65. | B69: KŘÍŽKOVÁ | C69: Anna | D69: 8.A | E69: 00:00:00 | G69: 0 | H69: 0 | J69: 00:00:00 | K69: 00:04:01.790 | L69: 00:00:00
A70: 66. | B70: =B166 -> LUKEŠOVÁ | C70: Kristýna | D70: 8.A | E70: 00:00:00 | G70: 0 | H70: 0 | J70: 00:00:00 | K70: 00:04:33.830 | L70: 00:00:00
A71: 67. | B71: MOTLÍKOVÁ | C71: Eliška | D71: 8.A | E71: 00:00:00 | G71: 0 | H71: 0 | J71: 00:00:00 | K71: 00:03:45.680 | L71: 00:00:00
A72: 68. | B72: POHOŘELÁ | C72: Amálie | D72: 8.A | E72: 00:00:00 | G72: 0 | H72: 0 | J72: 00:00:00 | K72: 00:04:11.300 | L72: 00:00:00
A73: 69. | B73: POLÁČKOVÁ | C73: Natálie | D73: 8.A | E73: 00:00:00 | G73: 0 | H73: 0 | J73: 00:00:00 | K73: 00:05:24.730 | L73: 00:00:00
A74: 70. | B74: ŘEHOŘKOVÁ | C74: Lucie | D74: 8.A | E74: 00:00:00 | G74: 0 | H74: 0 | J74: 00:00:00 | K74: 00:04:53.870 | L74: 00:00:00
A75: 71. | B75: SKÁLOVÁ | C75: Alena | D75: 8.A | E75: 00:00:00 | G75: 0 | H75: 0 | J75: 00:00:00 | K75: 00:05:00.980 | L75: 00:00:00
A76: 72. | B76: VÁVROVÁ | C76: Aneta | D76: 8.A | E76: 00:00:00 | G76: 0 | H76: 0 | J76: 00:00:00 | K76: 00:04:39.330 | L76: 00:00:00
A77: 73. | B77: ZELINKOVÁ | C77: Klára | D77: 8.A | E77: 00:00:00 | G77: 0 | H77: 0 | J77: 00:00:00 | K77: 00:03:48.280 | L77: 00:00:00
A78: 74. | B78: JUNGOVÁ | C78: Lucie | D78: 9.A | E78: 00:00:00 | G78: 0 | H78: 0 | J78: 00:00:00 | K78: 00:03:14.620 | L78: 00:03:00.880
A79: 75. | B79: KŘIVÁNKOVÁ | C79: Linda | D79: 9.A | E79: 00:00:00 | G79: 0 | H79: 0 | J79: 00:00:00 | K79: 00:04:26.020 | L79: 00:04:49.480
A80: 76. | B80: KUBÁTOVÁ | C80: Lucie | D80: 9.A | E80: 00:00:00 | G80: 0 | H80: 0 | J80: 00:00:00 | K80: 00:03:42.540 | L80: 00:03:30.480
A81: 77. | B81: ŠIMŮNKOVÁ | C81: Nikola | D81: 9.A | E81: 00:00:00 | G81: 0 | H81: 0 | J81: 00:00:00 | K81: 00:04:49.340 | L81: 00:05:15.120
A82: 78. | B82: ŠMÍDOVÁ | C82: Kristýna | D82: 9.A | E82: 00:00:00 | G82: 0 | H82: 0 | J82: 00:00:00 | K82: 00:04:36.990 | L82: 00:05:15.960
A83: 79. | B83: VOTOČKOVÁ | C83: Nikola | D83: 9.A | E83: 00:00:00 | G83: 0 | H83: 0 | J83: 00:02:49.970 | K83: 00:03:12.760 | L83: 00:03:22.360
A84: 80. | B84: VYHLASOVÁ | C84: Lenka | D84: 9.A | E84: 00:00:00 | G84: 0 | H84: 0 | J84: 00:00:00 | K84: 00:00:00 | L84: 00:00:00
A85: 81. | B85: BÖHMOVÁ | C85: Diana | D85: 9.B | E85: 00:00:00 | G85: 0 | H85: 0 | J85: 00:00:00 | K85: 00:03:47.200 | L85: 00:03:34.140
A86: 82. | B86: =B182 -> HOUDOVÁ | C86: Tereza | D86: 9.B | E86: 00:00:00 | G86: 0 | H86: 0 | J86: 00:00:00 | K86: 00:03:19.550 | L86: 00:04:28.890
A87: 83. | B87: JANÍKOVÁ | C87: Kristýna | D87: 9.B | E87: 00:00:00 | G87: 0 | H87: 0 | J87: 00:03:01.370 | K87: 00:00:00 | L87: 00:00:00
A88: 84. | B88: KUŽELOVÁ | C88: Ela | D88: 9.B | E88: 00:00:00 | G88: 0 | H88: 0 | J88: 00:00:00 | K88: 00:03:50.290 | L88: 00:04:38.890
A89: 85. | B89: MATERNOVÁ | C89: Lucie | D89: 9.B | E89: 00:00:00 | G89: 0 | H89: 0 | J89: 00:00:00 | K89: 00:04:10.680 | L89: 00:04:25.040
A90: 86. | B90: OPOČENSKÁ | C90: Matylda | D90: 9.B | E90: 00:00:00 | G90: 0 | H90: 0 | J90: 00:00:00 | K90: 00:00:00 | L90: 00:04:39.260
A91: 87. | B91: PIŠTOROVÁ | C91: Karolína | D91: 9.B | E91: 00:00:00 | G91: 0 | H91: 0 | J91: 00:00:00 | K91: 00:03:14.620 | L91: 00:03:05.440
A92: 88. | B92: POKORNÝ | C92: Anna | D92: 9.B | E92: 00:00:00 | G92: 0 | H92: 0 | J92: 00:00:00 | K92: 00:00:00 | L92: 00:05:14.170
A93: 89. | B93: SUCHÁNKOVÁ | C93: Michaela | D93: 9.B | E93: 00:00:00 | G93: 0 | H93: 0 | J93: 00:00:00 | K93: 00:05:09.220 | L93: 00:04:42.460
A94: 90. | B94: ŠUBÍKOVÁ | C94: Štěpánka | D94: 9.B | E94: 00:00:00 | G94: 0 | H94: 0 | J94: 00:00:00 | K94: 00:03:52.980 | L94: 00:03:57.510
A95: 91. | B95: VANCLOVÁ | C95: Pavlína | D95: 9.B | E95: 00:00:00 | G95: 0 | H95: 0 | J95: 00:00:00 | K95: 00:04:12.460 | L95: 00:05:07.360
B101: ERBENOVÁ | C101: Sára | D101: 6.A | H101: =IF(E101=0,0,IF(E101>0,(100 - 313216 / E101 + 3453830 / E101*2 - 169860000 / E101*3 + 321980000/ E101*4)/400000000-130)) -> 0
B102: HOFMANOVÁ | C102: Nicol | D102: 6.A | H102: =IF(E102=0,0,IF(E102>0,(100 - 313216 / E102 + 3453830 / E102*2 - 169860000 / E102*3 + 321980000/ E102*4)/400000000-130)) -> 0
B103: HOLEŠOVSKÁ | C103: Aneta | D103: 6.A | E103: 00:06:54 | G103: Jilemnice 22.09.20 | H103: =IF(E103=0,0,IF(E103>0,(100 - 313216 / E103 + 3453830 / E103*2 - 169860000 / E103*3 + 321980000/ E103*4)/400000000-130)) -> 279.5310145
B104: HOLUBCOVÁ | C104: Alena | D104: 6.A | H104: =IF(E104=0,0,IF(E104>0,(100 - 313216 / E104 + 3453830 / E104*2 - 169860000 / E104*3 + 321980000/ E104*4)/400000000-130)) -> 0
B105: KOHOUTOVÁ | C105: Anna | D105: 6.A | H105: =IF(E105=0,0,IF(E105>0,(100 - 313216 / E105 + 3453830 / E105*2 - 169860000 / E105*3 + 321980000/ E105*4)/400000000-130)) -> 0
B106: KRAUSOVÁ | C106: Anežka | D106: 6.A | H106: =IF(E106=0,0,IF(E106>0,(100 - 313216 / E106 + 3453830 / E106*2 - 169860000 / E106*3 + 321980000/ E106*4)/400000000-130)) -> 0
B107: KUŽELOVÁ | C107: Apoléna | D107: 6.A | E107: 00:04:22 | G107: Jilemnice 22.09.20 | H107: =IF(E107=0,0,IF(E107>0,(100 - 313216 / E107 + 3453830 / E107*2 - 169860000 / E107*3 + 321980000/ E107*4)/400000000-130)) -> 517.1215266
B108: MORÁVKOVÁ | C108: Lucie | D108: 6.A | E108: 00:04:54 | G108: Jilemnice 22.09.20 | H108: =IF(E108=0,0,IF(E108>0,(100 - 313216 / E108 + 3453830 / E108*2 - 169860000 / E108*3 + 321980000/ E108*4)/400000000-130)) -> 446.6865305
B109: SKLENÁROVÁ | C109: Eliška | D109: 6.A | H109: =IF(E109=0,0,IF(E109>0,(100 - 313216 / E109 + 3453830 / E109*2 - 169860000 / E109*3 + 321980000/ E109*4)/400000000-130)) -> 0
B110: ŠTOLFOVÁ | C110: Tereza | D110: 6.A | H110: =IF(E110=0,0,IF(E110>0,(100 - 313216 / E110 + 3453830 / E110*2 - 169860000 / E110*3 + 321980000/ E110*4)/400000000-130)) -> 0
B111: ŠUBÍKOVÁ | C111: Klára | D111: 6.A | H111: =IF(E111=0,0,IF(E111>0,(100 - 313216 / E111 + 3453830 / E111*2 - 169860000 / E111*3 + 321980000/ E111*4)/400000000-130)) -> 0
B112: TULÁČKOVÁ | C112: Natálie | D112: 6.A | E112: 00:04:48 | G112: Jilemnice 22.09.20 | H112: =IF(E112=0,0,IF(E112>0,(100 - 313216 / E112 + 3453830 / E112*2 - 169860000 / E112*3 + 321980000/ E112*4)/400000000-130)) -> 458.7008332
B113: VOJTÍŠKOVÁ | C113: Ella | D113: 6.A | H113: =IF(E113=0,0,IF(E113>0,(100 - 313216 / E113 + 3453830 / E113*2 - 169860000 / E113*3 + 321980000/ E113*4)/400000000-130)) -> 0
B114: DRUGÁČOVÁ | C114: Kristinka | D114: 6.B | H114: =IF(E114=0,0,IF(E114>0,(100 - 313216 / E114 + 3453830 / E114*2 - 169860000 / E114*3 + 321980000/ E114*4)/400000000-130)) -> 0
B115: FAJSTAVROVÁ | C115: Karolína | D115: 6.B | E115: 00:03:11 | G115: Jilemnice 22.09.20 | H115: =IF(E115=0,0,IF(E115>0,(100 - 313216 / E115 + 3453830 / E115*2 - 169860000 / E115*3 + 321980000/ E115*4)/400000000-130)) -> 757.6745547
B116: FAJSTAVROVÁ | C116: Magdaléna | D116: 6.B | E116: 00:03:02 | G116: Jilemnice 22.09.20 | H116: =IF(E116=0,0,IF(E116>0,(100 - 313216 / E116 + 3453830 / E116*2 - 169860000 / E116*3 + 321980000/ E116*4)/400000000-130)) -> 801.5705492
B117: HLAVATÁ | C117: Anna | D117: 6.B | H117: =IF(E117=0,0,IF(E117>0,(100 - 313216 / E117 + 3453830 / E117*2 - 169860000 / E117*3 + 321980000/ E117*4)/400000000-130)) -> 0
B118: JINDROVÁ | C118: Barbora | D118: 6.B | E118: 00:04:04 | G118: Jilemnice 22.09.20 | H118: =IF(E118=0,0,IF(E118>0,(100 - 313216 / E118 + 3453830 / E118*2 - 169860000 / E118*3 + 321980000/ E118*4)/400000000-130)) -> 564.8599999
B119: MAŘASOVÁ | C119: Vendula | D119: 6.B | E119: 00:04:11 | G119: Jilemnice 22.09.20 | H119: =IF(E119=0,0,IF(E119>0,(100 - 313216 / E119 + 3453830 / E119*2 - 169860000 / E119*3 + 321980000/ E119*4)/400000000-130)) -> 545.4814341
B120: PETŘÍČKOVÁ | C120: Natálie | D120: 6.B | H120: =IF(E120=0,0,IF(E120>0,(100 - 313216 / E120 + 3453830 / E120*2 - 169860000 / E120*3 + 321980000/ E120*4)/400000000-130)) -> 0
B121: PETŘÍKOVÁ | C121: Adéla | D121: 6.B | H121: =IF(E121=0,0,IF(E121>0,(100 - 313216 / E121 + 3453830 / E121*2 - 169860000 / E121*3 + 321980000/ E121*4)/400000000-130)) -> 0
B122: REGÁLOVÁ | C122: Karolína | D122: 6.B | E122: 00:04:17 | G122: Jilemnice 22.09.20 | H122: =IF(E122=0,0,IF(E122>0,(100 - 313216 / E122 + 3453830 / E122*2 - 169860000 / E122*3 + 321980000/ E122*4)/400000000-130)) -> 529.7114396
B123: RIEGROVÁ | C123: Magdaléna | D123: 6.B | H123: =IF(E123=0,0,IF(E123>0,(100 - 313216 / E123 + 3453830 / E123*2 - 169860000 / E123*3 + 321980000/ E123*4)/400000000-130)) -> 0
B124: RYBENSKÁ | C124: Sabina | D124: 6.B | E124: 00:04:17 | G124: Jilemnice 22.09.20 | H124: =IF(E124=0,0,IF(E124>0,(100 - 313216 / E124 + 3453830 / E124*2 - 169860000 / E124*3 + 321980000/ E124*4)/400000000-130)) -> 529.7114396
B125: STEINEROVÁ | C125: Barbora | D125: 6.B | E125: 00:04:18 | G125: Jilemnice 22.09.20 | H125: =IF(E125=0,0,IF(E125>0,(100 - 313216 / E125 + 3453830 / E125*2 - 169860000 / E125*3 + 321980000/ E125*4)/400000000-130)) -> 527.1544185
B126: TOMEŠOVÁ | C126: Barbora | D126: 6.B | E126: 00:04:20 | G126: Jilemnice 22.09.20 | H126: =IF(E126=0,0,IF(E126>0,(100 - 313216 / E126 + 3453830 / E126*2 - 169860000 / E126*3 + 321980000/ E126*4)/400000000-130)) -> 522.0993845
B127: VOHNOUTOVÁ | C127: Aneta | D127: 6.B | E127: 00:03:36 | G127: Jilemnice 22.09.20 | H127: =IF(E127=0,0,IF(E127>0,(100 - 313216 / E127 + 3453830 / E127*2 - 169860000 / E127*3 + 321980000/ E127*4)/400000000-130)) -> 654.9344442
B128: HAVLÍKOVÁ | C128: Michaela | D128: 7.A | H128: =IF(E128=0,0,IF(E128>0,(100 - 313216 / E128 + 3453830 / E128*2 - 169860000 / E128*3 + 321980000/ E128*4)/400000000-130)) -> 0 | J128: 00:04:12.990
B129: HOLUBCOVÁ | C129: Sára | D129: 7.A | H129: =IF(E129=0,0,IF(E129>0,(100 - 313216 / E129 + 3453830 / E129*2 - 169860000 / E129*3 + 321980000/ E129*4)/400000000-130)) -> 0 | J129: 00:03:44.190
B130: HONCŮ | C130: Tereza | D130: 7.A | H130: =IF(E130=0,0,IF(E130>0,(100 - 313216 / E130 + 3453830 / E130*2 - 169860000 / E130*3 + 321980000/ E130*4)/400000000-130)) -> 0 | J130: 00:04:00.600
B131: HORÁČKOVÁ | C131: Kateřina | D131: 7.A | H131: =IF(E131=0,0,IF(E131>0,(100 - 313216 / E131 + 3453830 / E131*2 - 169860000 / E131*3 + 321980000/ E131*4)/400000000-130)) -> 0 | J131: 00:03:39.880
B132: JOUDALOVÁ | C132: Daniela | D132: 7.A | H132: =IF(E132=0,0,IF(E132>0,(100 - 313216 / E132 + 3453830 / E132*2 - 169860000 / E132*3 + 321980000/ E132*4)/400000000-130)) -> 0
B133: KLÍMOVÁ | C133: Anna | D133: 7.A | H133: =IF(E133=0,0,IF(E133>0,(100 - 313216 / E133 + 3453830 / E133*2 - 169860000 / E133*3 + 321980000/ E133*4)/400000000-130)) -> 0 | J133: 00:03:43.750
B134: KOHOUTOVÁ | C134: Veronika | D134: 7.A | H134: =IF(E134=0,0,IF(E134>0,(100 - 313216 / E134 + 3453830 / E134*2 - 169860000 / E134*3 + 321980000/ E134*4)/400000000-130)) -> 0 | J134: 00:03:21.790
B135: KOVÁŘOVÁ | C135: Viktorie | D135: 7.A | H135: =IF(E135=0,0,IF(E135>0,(100 - 313216 / E135 + 3453830 / E135*2 - 169860000 / E135*3 + 321980000/ E135*4)/400000000-130)) -> 0 | J135: 00:03:46.100
B136: KYNČLOVÁ | C136: Anna | D136: 7.A | H136: =IF(E136=0,0,IF(E136>0,(100 - 313216 / E136 + 3453830 / E136*2 - 169860000 / E136*3 + 321980000/ E136*4)/400000000-130)) -> 0 | J136: 00:03:11.460
B137: MATOUŠOVÁ | C137: Tereza | D137: 7.A | H137: =IF(E137=0,0,IF(E137>0,(100 - 313216 / E137 + 3453830 / E137*2 - 169860000 / E137*3 + 321980000/ E137*4)/400000000-130)) -> 0 | J137: 00:04:28.960
B138: MAZÁNKOVÁ | C138: Zuzana | D138: 7.A | H138: =IF(E138=0,0,IF(E138>0,(100 - 313216 / E138 + 3453830 / E138*2 - 169860000 / E138*3 + 321980000/ E138*4)/400000000-130)) -> 0 | J138: 00:04:00.600
B139: MORKESOVÁ | C139: Sabrina | D139: 7.A | H139: =IF(E139=0,0,IF(E139>0,(100 - 313216 / E139 + 3453830 / E139*2 - 169860000 / E139*3 + 321980000/ E139*4)/400000000-130)) -> 0 | J139: 00:03:22.340
B140: POHOŘALÁ | C140: Alžběta | D140: 7.A | H140: =IF(E140=0,0,IF(E140>0,(100 - 313216 / E140 + 3453830 / E140*2 - 169860000 / E140*3 + 321980000/ E140*4)/400000000-130)) -> 0 | J140: 00:04:00.600
B141: SCHOLZOVÁ | C141: Laura | D141: 7.A | H141: =IF(E141=0,0,IF(E141>0,(100 - 313216 / E141 + 3453830 / E141*2 - 169860000 / E141*3 + 321980000/ E141*4)/400000000-130)) -> 0 | J141: 00:04:18.780
B142: VÁCLAVÍKOVÁ | C142: Valerie | D142: 7.A | H142: =IF(E142=0,0,IF(E142>0,(100 - 313216 / E142 + 3453830 / E142*2 - 169860000 / E142*3 + 321980000/ E142*4)/400000000-130)) -> 0 | J142: 00:03:49.500
B143: ZAPADLOVÁ | C143: Emma | D143: 7.A | H143: =IF(E143=0,0,IF(E143>0,(100 - 313216 / E143 + 3453830 / E143*2 - 169860000 / E143*3 + 321980000/ E143*4)/400000000-130)) -> 0 | J143: 00:03:24.360
B144: ŽIŠKOVÁ | C144: Mia | D144: 7.A | H144: =IF(E144=0,0,IF(E144>0,(100 - 313216 / E144 + 3453830 / E144*2 - 169860000 / E144*3 + 321980000/ E144*4)/400000000-130)) -> 0 | J144: 00:04:11.900
B145: FARSKÁ | C145: Tereza | D145: 7.B | H145: =IF(E145=0,0,IF(E145>0,(100 - 313216 / E145 + 3453830 / E145*2 - 169860000 / E145*3 + 321980000/ E145*4)/400000000-130)) -> 0
B146: FEIXOVÁ | C146: Rozálie | D146: 7.B | H146: =IF(E146=0,0,IF(E146>0,(100 - 313216 / E146 + 3453830 / E146*2 - 169860000 / E146*3 + 321980000/ E146*4)/400000000-130)) -> 0
B147: FIŠEROVÁ | C147: Michaela | D147: 7.B | H147: =IF(E147=0,0,IF(E147>0,(100 - 313216 / E147 + 3453830 / E147*2 - 169860000 / E147*3 + 321980000/ E147*4)/400000000-130)) -> 0
B148: HAVLÍČKOVÁ | C148: Kristýna | D148: 7.B | H148: =IF(E148=0,0,IF(E148>0,(100 - 313216 / E148 + 3453830 / E148*2 - 169860000 / E148*3 + 321980000/ E148*4)/400000000-130)) -> 0
B149: JODASOVÁ | C149: Nikola | D149: 7.B | H149: =IF(E149=0,0,IF(E149>0,(100 - 313216 / E149 + 3453830 / E149*2 - 169860000 / E149*3 + 321980000/ E149*4)/400000000-130)) -> 0
B150: KADAVÁ | C150: Nikola | D150: 7.B | H150: =IF(E150=0,0,IF(E150>0,(100 - 313216 / E150 + 3453830 / E150*2 - 169860000 / E150*3 + 321980000/ E150*4)/400000000-130)) -> 0
B151: KRAFKOVÁ | C151: Lucie | D151: 7.B | H151: =IF(E151=0,0,IF(E151>0,(100 - 313216 / E151 + 3453830 / E151*2 - 169860000 / E151*3 + 321980000/ E151*4)/400000000-130)) -> 0
B152: KŘIVINKOVÁ | C152: Alžběta | D152: 7.B | H152: =IF(E152=0,0,IF(E152>0,(100 - 313216 / E152 + 3453830 / E152*2 - 169860000 / E152*3 + 321980000/ E152*4)/400000000-130)) -> 0
B153: LEŠÁKOVÁ | C153: Lenka | D153: 7.B | H153: =IF(E153=0,0,IF(E153>0,(100 - 313216 / E153 + 3453830 / E153*2 - 169860000 / E153*3 + 321980000/ E153*4)/400000000-130)) -> 0
B154: NYKLÍČKOVÁ | C154: Adéla | D154: 7.B | H154: =IF(E154=0,0,IF(E154>0,(100 - 313216 / E154 + 3453830 / E154*2 - 169860000 / E154*3 + 321980000/ E154*4)/400000000-130)) -> 0
B155: PLŮCHOVÁ | C155: Petra | D155: 7.B | H155: =IF(E155=0,0,IF(E155>0,(100 - 313216 / E155 + 3453830 / E155*2 - 169860000 / E155*3 + 321980000/ E155*4)/400000000-130)) -> 0
B156: PODZIMKOVÁ | C156: Eliška | D156: 7.B | H156: =IF(E156=0,0,IF(E156>0,(100 - 313216 / E156 + 3453830 / E156*2 - 169860000 / E156*3 + 321980000/ E156*4)/400000000-130)) -> 0
B157: RUTKAYOVÁ | C157: Klára | D157: 7.B | H157: =IF(E157=0,0,IF(E157>0,(100 - 313216 / E157 + 3453830 / E157*2 - 169860000 / E157*3 + 321980000/ E157*4)/400000000-130)) -> 0
B158: SEIDLOVÁ | C158: Zuzana | D158: 7.B | H158: =IF(E158=0,0,IF(E158>0,(100 - 313216 / E158 + 3453830 / E158*2 - 169860000 / E158*3 + 321980000/ E158*4)/400000000-130)) -> 0
B159: TOMÁŠOVÁ | C159: Sára | D159: 7.B | H159: =IF(E159=0,0,IF(E159>0,(100 - 313216 / E159 + 3453830 / E159*2 - 169860000 / E159*3 + 321980000/ E159*4)/400000000-130)) -> 0
B160: VANCLOVÁ | C160: Barbora | D160: 7.B | H160: =IF(E160=0,0,IF(E160>0,(100 - 313216 / E160 + 3453830 / E160*2 - 169860000 / E160*3 + 321980000/ E160*4)/400000000-130)) -> 0
B161: VOTOČKOVÁ | C161: Veronika | D161: 7.B | H161: =IF(E161=0,0,IF(E161>0,(100 - 313216 / E161 + 3453830 / E161*2 - 169860000 / E161*3 + 321980000/ E161*4)/400000000-130)) -> 0
B162: HARTIGOVÁ | C162: Anna | D162: 8.A | H162: =IF(E162=0,0,IF(E162>0,(100 - 313216 / E162 + 3453830 / E162*2 - 169860000 / E162*3 + 321980000/ E162*4)/400000000-130)) -> 0 | K162: 00:04:39.330
B163: HONCŮ | C163: Rozálie | D163: 8.A | H163: =IF(E163=0,0,IF(E163>0,(100 - 313216 / E163 + 3453830 / E163*2 - 169860000 / E163*3 + 321980000/ E163*4)/400000000-130)) -> 0 | K163: 00:04:50.840
B164: CHALOUPSKÁ | C164: Lucie | D164: 8.A | H164: =IF(E164=0,0,IF(E164>0,(100 - 313216 / E164 + 3453830 / E164*2 - 169860000 / E164*3 + 321980000/ E164*4)/400000000-130)) -> 0 | K164: 00:04:20.270
B165: KŘÍŽKOVÁ | C165: Anna | D165: 8.A | H165: =IF(E165=0,0,IF(E165>0,(100 - 313216 / E165 + 3453830 / E165*2 - 169860000 / E165*3 + 321980000/ E165*4)/400000000-130)) -> 0 | K165: 00:04:01.790
B166: LUKEŠOVÁ | C166: Kristýna | D166: 8.A | H166: =IF(E166=0,0,IF(E166>0,(100 - 313216 / E166 + 3453830 / E166*2 - 169860000 / E166*3 + 321980000/ E166*4)/400000000-130)) -> 0 | K166: 00:04:33.830
B167: MOTLÍKOVÁ | C167: Eliška | D167: 8.A | H167: =IF(E167=0,0,IF(E167>0,(100 - 313216 / E167 + 3453830 / E167*2 - 169860000 / E167*3 + 321980000/ E167*4)/400000000-130)) -> 0 | K167: 00:03:45.680
B168: POHOŘELÁ | C168: Amálie | D168: 8.A | H168: =IF(E168=0,0,IF(E168>0,(100 - 313216 / E168 + 3453830 / E168*2 - 169860000 / E168*3 + 321980000/ E168*4)/400000000-130)) -> 0 | K168: 00:04:11.300
B169: POLÁČKOVÁ | C169: Natálie | D169: 8.A | H169: =IF(E169=0,0,IF(E169>0,(100 - 313216 / E169 + 3453830 / E169*2 - 169860000 / E169*3 + 321980000/ E169*4)/400000000-130)) -> 0 | K169: 00:05:24.730
B170: ŘEHOŘKOVÁ | C170: Lucie | D170: 8.A | H170: =IF(E170=0,0,IF(E170>0,(100 - 313216 / E170 + 3453830 / E170*2 - 169860000 / E170*3 + 321980000/ E170*4)/400000000-130)) -> 0 | K170: 00:04:53.870
B171: SKÁLOVÁ | C171: Alena | D171: 8.A | H171: =IF(E171=0,0,IF(E171>0,(100 - 313216 / E171 + 3453830 / E171*2 - 169860000 / E171*3 + 321980000/ E171*4)/400000000-130)) -> 0 | K171: 00:05:00.980
B172: VÁVROVÁ | C172: Aneta | D172: 8.A | H172: =IF(E172=0,0,IF(E172>0,(100 - 313216 / E172 + 3453830 / E172*2 - 169860000 / E172*3 + 321980000/ E172*4)/400000000-130)) -> 0 | K172: 00:04:39.330
B173: ZELINKOVÁ | C173: Klára | D173: 8.A | H173: =IF(E173=0,0,IF(E173>0,(100 - 313216 / E173 + 3453830 / E173*2 - 169860000 / E173*3 + 321980000/ E173*4)/400000000-130)) -> 0 | K173: 00:03:48.280
B174: JUNGOVÁ | C174: Lucie | D174: 9.A | H174: =IF(E174=0,0,IF(E174>0,(100 - 313216 / E174 + 3453830 / E174*2 - 169860000 / E174*3 + 321980000/ E174*4)/400000000-130)) -> 0 | K174: 00:03:14.620 | L174: 00:03:00.880
B175: KŘIVÁNKOVÁ | C175: Linda | D175: 9.A | H175: =IF(E175=0,0,IF(E175>0,(100 - 313216 / E175 + 3453830 / E175*2 - 169860000 / E175*3 + 321980000/ E175*4)/400000000-130)) -> 0 | K175: 00:04:26.020 | L175: 00:04:49.480
B176: KUBÁTOVÁ | C176: Lucie | D176: 9.A | H176: =IF(E176=0,0,IF(E176>0,(100 - 313216 / E176 + 3453830 / E176*2 - 169860000 / E176*3 + 321980000/ E176*4)/400000000-130)) -> 0 | K176: 00:03:42.540 | L176: 00:03:30.480
B177: ŠIMŮNKOVÁ | C177: Nikola | D177: 9.A | H177: =IF(E177=0,0,IF(E177>0,(100 - 313216 / E177 + 3453830 / E177*2 - 169860000 / E177*3 + 321980000/ E177*4)/400000000-130)) -> 0 | K177: 00:04:49.340 | L177: 00:05:15.120
B178: ŠMÍDOVÁ | C178: Kristýna | D178: 9.A | H178: =IF(E178=0,0,IF(E178>0,(100 - 313216 / E178 + 3453830 / E178*2 - 169860000 / E178*3 + 321980000/ E178*4)/400000000-130)) -> 0 | K178: 00:04:36.990 | L178: 00:05:15.960
B179: VOTOČKOVÁ | C179: Nikola | D179: 9.A | H179: =IF(E179=0,0,IF(E179>0,(100 - 313216 / E179 + 3453830 / E179*2 - 169860000 / E179*3 + 321980000/ E179*4)/400000000-130)) -> 0 | J179: 00:02:49.970 | K179: 00:03:12.760 | L179: 00:03:22.360
B180: VYHLASOVÁ | C180: Lenka | D180: 9.A | H180: =IF(E180=0,0,IF(E180>0,(100 - 313216 / E180 + 3453830 / E180*2 - 169860000 / E180*3 + 321980000/ E180*4)/400000000-130)) -> 0
B181: BÖHMOVÁ | C181: Diana | D181: 9.B | H181: =IF(E181=0,0,IF(E181>0,(100 - 313216 / E181 + 3453830 / E181*2 - 169860000 / E181*3 + 321980000/ E181*4)/400000000-130)) -> 0 | K181: 00:03:47.200 | L181: 00:03:34.140
B182: HOUDOVÁ | C182: Tereza | D182: 9.B | H182: =IF(E182=0,0,IF(E182>0,(100 - 313216 / E182 + 3453830 / E182*2 - 169860000 / E182*3 + 321980000/ E182*4)/400000000-130)) -> 0 | K182: 00:03:19.550 | L182: 00:04:28.890
B183: JANÍKOVÁ | C183: Kristýna | D183: 9.B | H183: =IF(E183=0,0,IF(E183>0,(100 - 313216 / E183 + 3453830 / E183*2 - 169860000 / E183*3 + 321980000/ E183*4)/400000000-130)) -> 0 | J183: 00:03:01.370
B184: KUŽELOVÁ | C184: Ela | D184: 9.B | H184: =IF(E184=0,0,IF(E184>0,(100 - 313216 / E184 + 3453830 / E184*2 - 169860000 / E184*3 + 321980000/ E184*4)/400000000-130)) -> 0 | K184: 00:03:50.290 | L184: 00:04:38.890
B185: MATERNOVÁ | C185: Lucie | D185: 9.B | H185: =IF(E185=0,0,IF(E185>0,(100 - 313216 / E185 + 3453830 / E185*2 - 169860000 / E185*3 + 321980000/ E185*4)/400000000-130)) -> 0 | K185: 00:04:10.680 | L185: 00:04:25.040
B186: OPOČENSKÁ | C186: Matylda | D186: 9.B | H186: =IF(E186=0,0,IF(E186>0,(100 - 313216 / E186 + 3453830 / E186*2 - 169860000 / E186*3 + 321980000/ E186*4)/400000000-130)) -> 0 | L186: 00:04:39.260
B187: PIŠTOROVÁ | C187: Karolína | D187: 9.B | H187: =IF(E187=0,0,IF(E187>0,(100 - 313216 / E187 + 3453830 / E187*2 - 169860000 / E187*3 + 321980000/ E187*4)/400000000-130)) -> 0 | K187: 00:03:14.620 | L187: 00:03:05.440
B188: POKORNÝ | C188: Anna | D188: 9.B | H188: =IF(E188=0,0,IF(E188>0,(100 - 313216 / E188 + 3453830 / E188*2 - 169860000 / E188*3 + 321980000/ E188*4)/400000000-130)) -> 0 | L188: 00:05:14.170
B189: SUCHÁNKOVÁ | C189: Michaela | D189: 9.B | H189: =IF(E189=0,0,IF(E189>0,(100 - 313216 / E189 + 3453830 / E189*2 - 169860000 / E189*3 + 321980000/ E189*4)/400000000-130)) -> 0 | K189: 00:05:09.220 | L189: 00:04:42.460
B190: ŠUBÍKOVÁ | C190: Štěpánka | D190: 9.B | H190: =IF(E190=0,0,IF(E190>0,(100 - 313216 / E190 + 3453830 / E190*2 - 169860000 / E190*3 + 321980000/ E190*4)/400000000-130)) -> 0 | K190: 00:03:52.980 | L190: 00:03:57.510
B191: VANCLOVÁ | C191: Pavlína | D191: 9.B | H191: =IF(E191=0,0,IF(E191>0,(100 - 313216 / E191 + 3453830 / E191*2 - 169860000 / E191*3 + 321980000/ E191*4)/400000000-130)) -> 0 | K191: 00:04:12.460 | L191: 00:05:07.360

Sheet Ddál
C1: VÝKONY 2020 - 2021 | G1: DÁLKA | H1: DĚVČATA 6. - 9. ROČ.
K2: stav k | L2: =TODAY() -> 2021-06-28
H3: BODY | J3: 19 - 20 | K3: 18 - 19 | L3: 17 - 18
A5: 1. | B5: =B101 -> ERBENOVÁ | C5: =C101 -> Sára | D5: 6.A | E5: 253 | G5: Jilemnice 23.09.21 | H5: 570.392 | J5: 0 | K5: 0 | L5: 0
A6: 2. | B6: =B102 -> HOFMANOVÁ | C6: Nicol | D6: 6.A | E6: 297 | G6: Jilemnice 23.09.21 | H6: 646.908 | J6: 0 | K6: 0 | L6: 0
A7: 3. | B7: HOLEŠOVSKÁ | C7: Aneta | D7: 6.A | E7: 283 | G7: Jilemnice 23.09.21 | H7: 622.562 | J7: 0 | K7: 0 | L7: 0
A8: 4. | B8: HOLUBCOVÁ | C8: Alena | D8: 6.A | E8: 290 | G8: Jilemnice 23.09.21 | H8: 634.735 | J8: 0 | K8: 0 | L8: 0
A9: 5. | B9: KOHOUTOVÁ | C9: Anna | D9: 6.A | E9: 227 | G9: Jilemnice 23.09.21 | H9: 525.178 | J9: 0 | K9: 0 | L9: 0
A10: 6. | B10: KRAUSOVÁ | C10: Anežka | D10: 6.A | E10: 0 | G10: 0 | H10: 0 | J10: 0 | K10: 0 | L10: 0
A11: 7. | B11: KUŽELOVÁ | C11: Apoléna | D11: 6.A | E11: 274 | G11: Jilemnice 23.09.21 | H11: 606.911 | J11: 0 | K11: 0 | L11: 0
A12: 8. | B12: MORÁVKOVÁ | C12: Lucie | D12: 6.A | E12: 220 | G12: Jilemnice 23.09.21 | H12: 513.005 | J12: 0 | K12: 0 | L12: 0
A13: 9. | B13: SKLENÁROVÁ | C13: Eliška | D13: 6.A | E13: 0 | G13: 0 | H13: 0 | J13: 0 | K13: 0 | L13: 0
A14: 10. | B14: ŠTOLFOVÁ | C14: Tereza | D14: 6.A | E14: 0 | G14: 0 | H14: 0 | J14: 0 | K14: 0 | L14: 0
A15: 11. | B15: ŠUBÍKOVÁ | C15: Klára | D15: 6.A | E15: 310 | G15: Jilemnice 23.09.21 | H15: 669.515 | J15: 0 | K15: 0 | L15: 0
A16: 12. | B16: TULÁČKOVÁ | C16: Natálie | D16: 6.A | E16: 257 | G16: Jilemnice 23.09.21 | H16: 577.348 | J16: 0 | K16: 0 | L16: 0
A17: 13. | B17: VOJTÍŠKOVÁ | C17: Ella | D17: 6.A | E17: 304 | G17: Jilemnice 23.09.21 | H17: 659.081 | J17: 0 | K17: 0 | L17: 0
A18: 14. | B18: DRUGÁČOVÁ | C18: Kristinka | D18: 6.B | E18: 307 | G18: Jilemnice 23.09.21 | H18: 664.298 | J18: 0 | K18: 0 | L18: 0
A19: 15. | B19: FAJSTAVROVÁ | C19: Karolína | D19: 6.B | E19: 290 | G19: Jilemnice 23.09.21 | H19: 634.735 | J19: 0 | K19: 0 | L19: 0
A20: 16. | B20: FAJSTAVROVÁ | C20: Magdaléna | D20: 6.B | E20: 0 | G20: 0 | H20: 0 | J20: 0 | K20: 0 | L20: 0
A21: 17. | B21: HLAVATÁ | C21: Anna | D21: 6.B | E21: 291 | G21: Jilemnice 23.09.21 | H21: 636.474 | J21: 0 | K21: 0 | L21: 0
A22: 18. | B22: =B118 -> JINDROVÁ | C22: Barbora | D22: 6.B | E22: 295 | G22: Jilemnice 23.09.21 | H22: 643.43 | J22: 0 | K22: 0 | L22: 0
A23: 19. | B23: MAŘASOVÁ | C23: Vendula | D23: 6.B | E23: 240 | G23: Jilemnice 23.09.21 | H23: 547.785 | J23: 0 | K23: 0 | L23: 0
A24: 20. | B24: PETŘÍČKOVÁ | C24: Natálie | D24: 6.B | E24: 313 | G24: Jilemnice 23.09.21 | H24: 674.732 | J24: 0 | K24: 0 | L24: 0
A25: 21. | B25: PETŘÍKOVÁ | C25: Adéla | D25: 6.B | E25: 192 | G25: Jilemnice 23.09.21 | H25: 464.313 | J25: 0 | K25: 0 | L25: 0
A26: 22. | B26: REGÁLOVÁ | C26: Karolína | D26: 6.B | E26: 291 | G26: Jilemnice 23.09.21 | H26: 636.474 | J26: 0 | K26: 0 | L26: 0
A27: 23. | B27: RIEGROVÁ | C27: Magdaléna | D27: 6.B | E27: 0 | G27: 0 | H27: 0 | J27: 0 | K27: 0 | L27: 0
A28: 24. | B28: RYBENSKÁ | C28: Sabina | D28: 6.B | E28: 260 | G28: Jilemnice 23.09.21 | H28: 582.565 | J28: 0 | K28: 0 | L28: 0
A29: 25. | B29: STEINEROVÁ | C29: Barbora | D29: 6.B | E29: 288 | G29: Jilemnice 23.09.21 | H29: 631.257 | J29: 0 | K29: 0 | L29: 0
A30: 26. | B30: TOMEŠOVÁ | C30: Barbora | D30: 6.B | E30: 218 | G30: Jilemnice 23.09.21 | H30: 509.527 | J30: 0 | K30: 0 | L30: 0
A31: 27. | B31: VOHNOUTOVÁ | C31: Aneta | D31: 6.B | E31: 0 | G31: 0 | H31: 0 | J31: 0 | K31: 0 | L31: 0
A32: 28. | B32: HAVLÍKOVÁ | C32: Michaela | D32: 7.A | E32: 290 | G32: Jilemnice 11.06.21 | H32: 634.735 | J32: 237 | K32: 0 | L32: 0
A33: 29. | B33: HOLUBCOVÁ | C33: Sára | D33: 7.A | E33: 361 | G33: Jilemnice 11.06.21 | H33: 758.204 | J33: 327 | K33: 0 | L33: 0
A34: 30. | B34: HONCŮ | C34: Tereza | D34: 7.A | E34: 341 | G34: Jilemnice 11.06.21 | H34: 723.424 | J34: 280 | K34: 0 | L34: 0
A35: 31. | B35: HORÁČKOVÁ | C35: Kateřina | D35: 7.A | E35: 359 | G35: Jilemnice 11.06.21 | H35: 754.726 | J35: 293 | K35: 0 | L35: 0
A36: 32. | B36: JOUDALOVÁ | C36: Daniela | D36: 7.A | E36: 0 | G36: 0 | H36: 0 | J36: 0 | K36: 0 | L36: 0
A37: 33. | B37: KLÍMOVÁ | C37: Anna | D37: 7.A | E37: 0 | G37: 0 | H37: 0 | J37: 277 | K37: 0 | L37: 0
A38: 34. | B38: =B134 -> KOHOUTOVÁ | C38: Veronika | D38: 7.A | E38: 374 | G38: Jilemnice 11.06.21 | H38: 780.811 | J38: 323 | K38: 0 | L38: 0
A39: 35. | B39: KOVÁŘOVÁ | C39: Viktorie | D39: 7.A | E39: 340 | G39: Jilemnice 11.06.21 | H39: 721.685 | J39: 279 | K39: 0 | L39: 0
A40: 36. | B40: KYNČLOVÁ | C40: Anna | D40: 7.A | E40: 366 | G40: Jilemnice 11.06.21 | H40: 766.899 | J40: 292 | K40: 0 | L40: 0
A41: 37. | B41: MATOUŠOVÁ | C41: Tereza | D41: 7.A | E41: 350 | G41: Jilemnice 11.06.21 | H41: 739.075 | J41: 260 | K41: 0 | L41: 0
A42: 38. | B42: MAZÁNKOVÁ | C42: Zuzana | D42: 7.A | E42: 312 | G42: Jilemnice 11.06.21 | H42: 672.993 | J42: 241 | K42: 0 | L42: 0
A43: 39. | B43: MORKESOVÁ | C43: Sabrina | D43: 7.A | E43: 366 | G43: Jilemnice 11.06.21 | H43: 766.899 | J43: 350 | K43: 0 | L43: 0
A44: 40. | B44: POHOŘALÁ | C44: Alžběta | D44: 7.A | E44: 347 | G44: Jilemnice 11.06.21 | H44: 733.858 | J44: 323 | K44: 0 | L44: 0
A45: 41. | B45: SCHOLZOVÁ | C45: Laura | D45: 7.A | E45: 0 | G45: 0 | H45: 0 | J45: 225 | K45: 0 | L45: 0
A46: 42. | B46: VÁCLAVÍKOVÁ | C46: Valerie | D46: 7.A | E46: 352 | G46: Jilemnice 11.06.21 | H46: 742.553 | J46: 310 | K46: 0 | L46: 0
A47: 43. | B47: ZAPADLOVÁ | C47: Emma | D47: 7.A | E47: 344 | G47: Jilemnice 11.06.21 | H47: 728.641 | J47: 0 | K47: 0 | L47: 0
A48: 44. | B48: ŽIŠKOVÁ | C48: Mia | D48: 7.A | E48: 342 | G48: Jilemnice 11.06.21 | H48: 725.163 | J48: 0 | K48: 0 | L48: 0
A49: 45. | B49: FARSKÁ | C49: Tereza | D49: 7.B | E49: 0 | G49: 0 | H49: 0 | J49: 0 | K49: 0 | L49: 0
A50: 46. | B50: FEIXOVÁ | C50: Rozálie | D50: 7.B | E50: 250 | G50: Jilemnice 11.06.21 | H50: 565.175 | J50: 0 | K50: 0 | L50: 0
A51: 47. | B51: FIŠEROVÁ | C51: Michaela | D51: 7.B | E51: 243 | G51: Jilemnice 11.06.21 | H51: 553.002 | J51: 0 | K51: 0 | L51: 0
A52: 48. | B52: HAVLÍČKOVÁ | C52: Kristýna | D52: 7.B | E52: 235 | G52: Jilemnice 11.06.21 | H52: 539.09 | J52: 0 | K52: 0 | L52: 0
A53: 49. | B53: JODASOVÁ | C53: Nikola | D53: 7.B | E53: 325 | G53: Jilemnice 11.06.21 | H53: 695.6 | J53: 319 | K53: 0 | L53: 0
A54: 50. | B54: =B150 -> KADAVÁ | C54: Nikola | D54: 7.B | E54: 0 | G54: 0 | H54: 0 | J54: 0 | K54: 0 | L54: 0
A55: 51. | B55: KRAFKOVÁ | C55: Lucie | D55: 7.B | E55: 234 | G55: Jilemnice 11.06.21 | H55: 537.351 | J55: 0 | K55: 0 | L55: 0
A56: 52. | B56: KŘIVINKOVÁ | C56: Alžběta | D56: 7.B | E56: 285 | G56: Jilemnice 11.06.21 | H56: 626.04 | J56: 0 | K56: 0 | L56: 0
A57: 53. | B57: LEŠÁKOVÁ | C57: Lenka | D57: 7.B | E57: 0 | G57: 0 | H57: 0 | J57: 0 | K57: 0 | L57: 0
A58: 54. | B58: NYKLÍČKOVÁ | C58: Adéla | D58: 7.B | E58: 325 | G58: Jilemnice 11.06.21 | H58: 695.6 | J58: 0 | K58: 0 | L58: 0
A59: 55. | B59: PLŮCHOVÁ | C59: Petra | D59: 7.B | E59: 225 | G59: Jilemnice 11.06.21 | H59: 521.7 | J59: 0 | K59: 0 | L59: 0
A60: 56. | B60: PODZIMKOVÁ | C60: Eliška | D60: 7.B | E60: 190 | G60: Jilemnice 11.06.21 | H60: 460.835 | J60: 0 | K60: 0 | L60: 0
A61: 57. | B61: RUTKAYOVÁ | C61: Klára | D61: 7.B | E61: 0 | G61: 0 | H61: 0 | J61: 0 | K61: 0 | L61: 0
A62: 58. | B62: SEIDLOVÁ | C62: Zuzana | D62: 7.B | E62: 284 | G62: Jilemnice 11.06.21 | H62: 624.301 | J62: 0 | K62: 0 | L62: 0
A63: 59. | B63: TOMÁŠOVÁ | C63: Sára | D63: 7.B | E63: 197 | G63: Jilemnice 11.06.21 | H63: 473.008 | J63: 0 | K63: 0 | L63: 0
A64: 60. | B64: VANCLOVÁ | C64: Barbora | D64: 7.B | E64: 278 | G64: Jilemnice 11.06.21 | H64: 613.867 | J64: 0 | K64: 0 | L64: 0
A65: 61. | B65: VOTOČKOVÁ | C65: Veronika | D65: 7.B | E65: 255 | G65: Jilemnice 11.06.21 | H65: 573.87 | J65: 0 | K65: 0 | L65: 0
A66: 62. | B66: HARTIGOVÁ | C66: Anna | D66: 8.A | E66: 337 | G66: Jilemnice 23.09.21 | H66: 716.468 | J66: 0 | K66: 0 | L66: 0
A67: 63. | B67: HONCŮ | C67: Rozálie | D67: 8.A | E67: 391 | G67: Jilemnice 23.09.21 | H67: 810.374 | J67: 0 | K67: 0 | L67: 0
A68: 64. | B68: CHALOUPSKÁ | C68: Lucie | D68: 8.A | E68: 380 | G68: Jilemnice 23.09.21 | H68: 791.245 | J68: 320 | K68: 0 | L68: 0
A69: 65. | B69: KŘÍŽKOVÁ | C69: Anna | D69: 8.A | E69: 278 | G69: Jilemnice 23.09.21 | H69: 613.867 | J69: 0 | K69: 0 | L69: 0
A70: 66. | B70: =B166 -> LUKEŠOVÁ | C70: Kristýna | D70: 8.A | E70: 341 | G70: Jilemnice 23.09.21 | H70: 723.424 | J70: 0 | K70: 0 | L70: 0
A71: 67. | B71: MOTLÍKOVÁ | C71: Eliška | D71: 8.A | E71: 327 | G71: Jilemnice 23.09.21 | H71: 699.078 | J71: 0 | K71: 0 | L71: 0
A72: 68. | B72: POHOŘELÁ | C72: Amálie | D72: 8.A | E72: 0 | G72: 0 | H72: 0 | J72: 0 | K72: 0 | L72: 0
A73: 69. | B73: POLÁČKOVÁ | C73: Natálie | D73: 8.A | E73: 0 | G73: 0 | H73: 0 | J73: 0 | K73: 0 | L73: 0
A74: 70. | B74: ŘEHOŘKOVÁ | C74: Lucie | D74: 8.A | E74: 353 | G74: Jilemnice 23.09.21 | H74: 744.292 | J74: 0 | K74: 0 | L74: 0
A75: 71. | B75: SKÁLOVÁ | C75: Alena | D75: 8.A | E75: 312 | G75: Jilemnice 23.09.21 | H75: 672.993 | J75: 0 | K75: 0 | L75: 0
A76: 72. | B76: VÁVROVÁ | C76: Aneta | D76: 8.A | E76: 377 | G76: Jilemnice 23.09.21 | H76: 786.028 | J76: 0 | K76: 0 | L76: 0
A77: 73. | B77: ZELINKOVÁ | C77: Klára | D77: 8.A | E77: 344 | G77: Jilemnice 23.09.21 | H77: 728.641 | J77: 0 | K77: 0 | L77: 0
A78: 74. | B78: JUNGOVÁ | C78: Lucie | D78: 9.A | E78: 0 | G78: 0 | H78: 0 | J78: 0 | K78: 0 | L78: 318
A79: 75. | B79: KŘIVÁNKOVÁ | C79: Linda | D79: 9.A | E79: 0 | G79: 0 | H79: 0 | J79: 0 | K79: 0 | L79: 258
A80: 76. | B80: KUBÁTOVÁ | C80: Lucie | D80: 9.A | E80: 0 | G80: 0 | H80: 0 | J80: 0 | K80: 0 | L80: 0
A81: 77. | B81: ŠIMŮNKOVÁ | C81: Nikola | D81: 9.A | E81: 0 | G81: 0 | H81: 0 | J81: 0 | K81: 0 | L81: 262
A82: 78. | B82: ŠMÍDOVÁ | C82: Kristýna | D82: 9.A | E82: 0 | G82: 0 | H82: 0 | J82: 0 | K82: 0 | L82: 220
A83: 79. | B83: VOTOČKOVÁ | C83: Nikola | D83: 9.A | E83: 0 | G83: 0 | H83: 0 | J83: 0 | K83: 0 | L83: 350
A84: 80. | B84: VYHLASOVÁ | C84: Lenka | D84: 9.A | E84: 0 | G84: 0 | H84: 0 | J84: 0 | K84: 0 | L84: 0
A85: 81. | B85: BÖHMOVÁ | C85: Diana | D85: 9.B | E85: 0 | G85: 0 | H85: 0 | J85: 0 | K85: 0 | L85: 260
A86: 82. | B86: =B182 -> HOUDOVÁ | C86: Tereza | D86: 9.B | E86: 0 | G86: 0 | H86: 0 | J86: 0 | K86: 0 | L86: 301
A87: 83. | B87: JANÍKOVÁ | C87: Kristýna | D87: 9.B | E87: 0 | G87: 0 | H87: 0 | J87: 0 | K87: 0 | L87: 0
A88: 84. | B88: KUŽELOVÁ | C88: Ela | D88: 9.B | E88: 0 | G88: 0 | H88: 0 | J88: 356 | K88: 0 | L88: 351
A89: 85. | B89: MATERNOVÁ | C89: Lucie | D89: 9.B | E89: 0 | G89: 0 | H89: 0 | J89: 0 | K89: 0 | L89: 210
A90: 86. | B90: OPOČENSKÁ | C90: Matylda | D90: 9.B | E90: 0 | G90: 0 | H90: 0 | J90: 0 | K90: 0 | L90: 293
A91: 87. | B91: PIŠTOROVÁ | C91: Karolína | D91: 9.B | E91: 0 | G91: 0 | H91: 0 | J91: 0 | K91: 0 | L91: 337
A92: 88. | B92: POKORNÝ | C92: Anna | D92: 9.B | E92: 0 | G92: 0 | H92: 0 | J92: 0 | K92: 0 | L92: 220
A93: 89. | B93: SUCHÁNKOVÁ | C93: Michaela | D93: 9.B | E93: 0 | G93: 0 | H93: 0 | J93: 0 | K93: 0 | L93: 190
A94: 90. | B94: ŠUBÍKOVÁ | C94: Štěpánka | D94: 9.B | E94: 0 | G94: 0 | H94: 0 | J94: 0 | K94: 0 | L94: 280
A95: 91. | B95: VANCLOVÁ | C95: Pavlína | D95: 9.B | E95: 0 | G95: 0 | H95: 0 | J95: 0 | K95: 0 | L95: 290
B101: ERBENOVÁ | C101: Sára | D101: 6.A | E101: 253 | G101: Jilemnice 23.09.21 | H101: =IF(E101=0,0,IF(E101>0,(E101+75)*1.739)) -> 570.392
B102: HOFMANOVÁ | C102: Nicol | D102: 6.A | E102: 297 | G102: Jilemnice 23.09.21 | H102: =IF(E102=0,0,IF(E102>0,(E102+75)*1.739)) -> 646.908
B103: HOLEŠOVSKÁ | C103: Aneta | D103: 6.A | E103: 283 | G103: Jilemnice 23.09.21 | H103: =IF(E103=0,0,IF(E103>0,(E103+75)*1.739)) -> 622.562
B104: HOLUBCOVÁ | C104: Alena | D104: 6.A | E104: 290 | G104: Jilemnice 23.09.21 | H104: =IF(E104=0,0,IF(E104>0,(E104+75)*1.739)) -> 634.735
B105: KOHOUTOVÁ | C105: Anna | D105: 6.A | E105: 227 | G105: Jilemnice 23.09.21 | H105: =IF(E105=0,0,IF(E105>0,(E105+75)*1.739)) -> 525.178
B106: KRAUSOVÁ | C106: Anežka | D106: 6.A | E106: =E202 -> 0 | H106: =IF(E106=0,0,IF(E106>0,(E106+75)*1.739)) -> 0
B107: KUŽELOVÁ | C107: Apoléna | D107: 6.A | E107: 274 | G107: Jilemnice 23.09.21 | H107: =IF(E107=0,0,IF(E107>0,(E107+75)*1.739)) -> 606.911
B108: MORÁVKOVÁ | C108: Lucie | D108: 6.A | E108: 220 | G108: Jilemnice 23.09.21 | H108: =IF(E108=0,0,IF(E108>0,(E108+75)*1.739)) -> 513.005
B109: SKLENÁROVÁ | C109: Eliška | D109: 6.A | E109: =E205 -> 0 | H109: =IF(E109=0,0,IF(E109>0,(E109+75)*1.739)) -> 0
B110: ŠTOLFOVÁ | C110: Tereza | D110: 6.A | E110: =E206 -> 0 | H110: =IF(E110=0,0,IF(E110>0,(E110+75)*1.739)) -> 0
B111: ŠUBÍKOVÁ | C111: Klára | D111: 6.A | E111: 310 | G111: Jilemnice 23.09.21 | H111: =IF(E111=0,0,IF(E111>0,(E111+75)*1.739)) -> 669.515
B112: TULÁČKOVÁ | C112: Natálie | D112: 6.A | E112: 257 | G112: Jilemnice 23.09.21 | H112: =IF(E112=0,0,IF(E112>0,(E112+75)*1.739)) -> 577.348
B113: VOJTÍŠKOVÁ | C113: Ella | D113: 6.A | E113: 304 | G113: Jilemnice 23.09.21 | H113: =IF(E113=0,0,IF(E113>0,(E113+75)*1.739)) -> 659.081
B114: DRUGÁČOVÁ | C114: Kristinka | D114: 6.B | E114: 307 | G114: Jilemnice 23.09.21 | H114: =IF(E114=0,0,IF(E114>0,(E114+75)*1.739)) -> 664.298
B115: FAJSTAVROVÁ | C115: Karolína | D115: 6.B | E115: 290 | G115: Jilemnice 23.09.21 | H115: =IF(E115=0,0,IF(E115>0,(E115+75)*1.739)) -> 634.735
B116: FAJSTAVROVÁ | C116: Magdaléna | D116: 6.B | E116: =E212 -> 0 | H116: =IF(E116=0,0,IF(E116>0,(E116+75)*1.739)) -> 0
B117: HLAVATÁ | C117: Anna | D117: 6.B | E117: 291 | G117: Jilemnice 23.09.21 | H117: =IF(E117=0,0,IF(E117>0,(E117+75)*1.739)) -> 636.474
B118: JINDROVÁ | C118: Barbora | D118: 6.B | E118: 295 | G118: Jilemnice 23.09.21 | H118: =IF(E118=0,0,IF(E118>0,(E118+75)*1.739)) -> 643.43
B119: MAŘASOVÁ | C119: Vendula | D119: 6.B | E119: 240 | G119: Jilemnice 23.09.21 | H119: =IF(E119=0,0,IF(E119>0,(E119+75)*1.739)) -> 547.785
B120: PETŘÍČKOVÁ | C120: Natálie | D120: 6.B | E120: 313 | G120: Jilemnice 23.09.21 | H120: =IF(E120=0,0,IF(E120>0,(E120+75)*1.739)) -> 674.732
B121: PETŘÍKOVÁ | C121: Adéla | D121: 6.B | E121: 192 | G121: Jilemnice 23.09.21 | H121: =IF(E121=0,0,IF(E121>0,(E121+75)*1.739)) -> 464.313
B122: REGÁLOVÁ | C122: Karolína | D122: 6.B | E122: 291 | G122: Jilemnice 23.09.21 | H122: =IF(E122=0,0,IF(E122>0,(E122+75)*1.739)) -> 636.474
B123: RIEGROVÁ | C123: Magdaléna | D123: 6.B | E123: =E219 -> 0 | H123: =IF(E123=0,0,IF(E123>0,(E123+75)*1.739)) -> 0
B124: RYBENSKÁ | C124: Sabina | D124: 6.B | E124: 260 | G124: Jilemnice 23.09.21 | H124: =IF(E124=0,0,IF(E124>0,(E124+75)*1.739)) -> 582.565
B125: STEINEROVÁ | C125: Barbora | D125: 6.B | E125: 288 | G125: Jilemnice 23.09.21 | H125: =IF(E125=0,0,IF(E125>0,(E125+75)*1.739)) -> 631.257
B126: TOMEŠOVÁ | C126: Barbora | D126: 6.B | E126: 218 | G126: Jilemnice 23.09.21 | H126: =IF(E126=0,0,IF(E126>0,(E126+75)*1.739)) -> 509.527
B127: VOHNOUTOVÁ | C127: Aneta | D127: 6.B | E127: =E223 -> 0 | H127: =IF(E127=0,0,IF(E127>0,(E127+75)*1.739)) -> 0
B128: HAVLÍKOVÁ | C128: Michaela | D128: 7.A | E128: 290 | G128: Jilemnice 11.06.21 | H128: =IF(E128=0,0,IF(E128>0,(E128+75)*1.739)) -> 634.735 | J128: 237
B129: HOLUBCOVÁ | C129: Sára | D129: 7.A | E129: 361 | G129: Jilemnice 11.06.21 | H129: =IF(E129=0,0,IF(E129>0,(E129+75)*1.739)) -> 758.204 | J129: 327
B130: HONCŮ | C130: Tereza | D130: 7.A | E130: 341 | G130: Jilemnice 11.06.21 | H130: =IF(E130=0,0,IF(E130>0,(E130+75)*1.739)) -> 723.424 | J130: 280
B131: HORÁČKOVÁ | C131: Kateřina | D131: 7.A | E131: 359 | G131: Jilemnice 11.06.21 | H131: =IF(E131=0,0,IF(E131>0,(E131+75)*1.739)) -> 754.726 | J131: 293
B132: JOUDALOVÁ | C132: Daniela | D132: 7.A | E132: =E228 -> 0 | H132: =IF(E132=0,0,IF(E132>0,(E132+75)*1.739)) -> 0
B133: KLÍMOVÁ | C133: Anna | D133: 7.A | E133: =E229 -> 0 | H133: =IF(E133=0,0,IF(E133>0,(E133+75)*1.739)) -> 0 | J133: 277
B134: KOHOUTOVÁ | C134: Veronika | D134: 7.A | E134: 374 | G134: Jilemnice 11.06.21 | H134: =IF(E134=0,0,IF(E134>0,(E134+75)*1.739)) -> 780.811 | J134: 323
B135: KOVÁŘOVÁ | C135: Viktorie | D135: 7.A | E135: 340 | G135: Jilemnice 11.06.21 | H135: =IF(E135=0,0,IF(E135>0,(E135+75)*1.739)) -> 721.685 | J135: 279
B136: KYNČLOVÁ | C136: Anna | D136: 7.A | E136: 366 | G136: Jilemnice 11.06.21 | H136: =IF(E136=0,0,IF(E136>0,(E136+75)*1.739)) -> 766.899 | J136: 292
B137: MATOUŠOVÁ | C137: Tereza | D137: 7.A | E137: 350 | G137: Jilemnice 11.06.21 | H137: =IF(E137=0,0,IF(E137>0,(E137+75)*1.739)) -> 739.075 | J137: 260
B138: MAZÁNKOVÁ | C138: Zuzana | D138: 7.A | E138: 312 | G138: Jilemnice 11.06.21 | H138: =IF(E138=0,0,IF(E138>0,(E138+75)*1.739)) -> 672.993 | J138: 241
B139: MORKESOVÁ | C139: Sabrina | D139: 7.A | E139: 366 | G139: Jilemnice 11.06.21 | H139: =IF(E139=0,0,IF(E139>0,(E139+75)*1.739)) -> 766.899 | J139: 350
B140: POHOŘALÁ | C140: Alžběta | D140: 7.A | E140: 347 | G140: Jilemnice 11.06.21 | H140: =IF(E140=0,0,IF(E140>0,(E140+75)*1.739)) -> 733.858 | J140: 323
B141: SCHOLZOVÁ | C141: Laura | D141: 7.A | E141: =E237 -> 0 | H141: =IF(E141=0,0,IF(E141>0,(E141+75)*1.739)) -> 0 | J141: 225
B142: VÁCLAVÍKOVÁ | C142: Valerie | D142: 7.A | E142: 352 | G142: Jilemnice 11.06.21 | H142: =IF(E142=0,0,IF(E142>0,(E142+75)*1.739)) -> 742.553 | J142: 310
B143: ZAPADLOVÁ | C143: Emma | D143: 7.A | E143: 344 | G143: Jilemnice 11.06.21 | H143: =IF(E143=0,0,IF(E143>0,(E143+75)*1.739)) -> 728.641
B144: ŽIŠKOVÁ | C144: Mia | D144: 7.A | E144: 342 | G144: Jilemnice 11.06.21 | H144: =IF(E144=0,0,IF(E144>0,(E144+75)*1.739)) -> 725.163
B145: FARSKÁ | C145: Tereza | D145: 7.B | H145: =IF(E145=0,0,IF(E145>0,(E145+75)*1.739)) -> 0
B146: FEIXOVÁ | C146: Rozálie | D146: 7.B | E146: 250 | G146: Jilemnice 11.06.21 | H146: =IF(E146=0,0,IF(E146>0,(E146+75)*1.739)) -> 565.175
B147: FIŠEROVÁ | C147: Michaela | D147: 7.B | E147: 243 | G147: Jilemnice 11.06.21 | H147: =IF(E147=0,0,IF(E147>0,(E147+75)*1.739)) -> 553.002
B148: HAVLÍČKOVÁ | C148: Kristýna | D148: 7.B | E148: 235 | G148: Jilemnice 11.06.21 | H148: =IF(E148=0,0,IF(E148>0,(E148+75)*1.739)) -> 539.09
B149: JODASOVÁ | C149: Nikola | D149: 7.B | E149: 325 | G149: Jilemnice 11.06.21 | H149: =IF(E149=0,0,IF(E149>0,(E149+75)*1.739)) -> 695.6 | J149: 319
B150: KADAVÁ | C150: Nikola | D150: 7.B | E150: =E246 -> 0 | H150: =IF(E150=0,0,IF(E150>0,(E150+75)*1.739)) -> 0
B151: KRAFKOVÁ | C151: Lucie | D151: 7.B | E151: 234 | G151: Jilemnice 11.06.21 | H151: =IF(E151=0,0,IF(E151>0,(E151+75)*1.739)) -> 537.351
B152: KŘIVINKOVÁ | C152: Alžběta | D152: 7.B | E152: 285 | G152: Jilemnice 11.06.21 | H152: =IF(E152=0,0,IF(E152>0,(E152+75)*1.739)) -> 626.04
B153: LEŠÁKOVÁ | C153: Lenka | D153: 7.B | E153: =E249 -> 0 | H153: =IF(E153=0,0,IF(E153>0,(E153+75)*1.739)) -> 0
B154: NYKLÍČKOVÁ | C154: Adéla | D154: 7.B | E154: 325 | G154: Jilemnice 11.06.21 | H154: =IF(E154=0,0,IF(E154>0,(E154+75)*1.739)) -> 695.6
B155: PLŮCHOVÁ | C155: Petra | D155: 7.B | E155: 225 | G155: Jilemnice 11.06.21 | H155: =IF(E155=0,0,IF(E155>0,(E155+75)*1.739)) -> 521.7
B156: PODZIMKOVÁ | C156: Eliška | D156: 7.B | E156: 190 | G156: Jilemnice 11.06.21 | H156: =IF(E156=0,0,IF(E156>0,(E156+75)*1.739)) -> 460.835
B157: RUTKAYOVÁ | C157: Klára | D157: 7.B | E157: =E253 -> 0 | H157: =IF(E157=0,0,IF(E157>0,(E157+75)*1.739)) -> 0
B158: SEIDLOVÁ | C158: Zuzana | D158: 7.B | E158: 284 | G158: Jilemnice 11.06.21 | H158: =IF(E158=0,0,IF(E158>0,(E158+75)*1.739)) -> 624.301
B159: TOMÁŠOVÁ | C159: Sára | D159: 7.B | E159: 197 | G159: Jilemnice 11.06.21 | H159: =IF(E159=0,0,IF(E159>0,(E159+75)*1.739)) -> 473.008
B160: VANCLOVÁ | C160: Barbora | D160: 7.B | E160: 278 | G160: Jilemnice 11.06.21 | H160: =IF(E160=0,0,IF(E160>0,(E160+75)*1.739)) -> 613.867
B161: VOTOČKOVÁ | C161: Veronika | D161: 7.B | E161: 255 | G161: Jilemnice 11.06.21 | H161: =IF(E161=0,0,IF(E161>0,(E161+75)*1.739)) -> 573.87
B162: HARTIGOVÁ | C162: Anna | D162: 8.A | E162: 337 | G162: Jilemnice 23.09.21 | H162: =IF(E162=0,0,IF(E162>0,(E162+75)*1.739)) -> 716.468
B163: HONCŮ | C163: Rozálie | D163: 8.A | E163: 391 | G163: Jilemnice 23.09.21 | H163: =IF(E163=0,0,IF(E163>0,(E163+75)*1.739)) -> 810.374
B164: CHALOUPSKÁ | C164: Lucie | D164: 8.A | E164: 380 | G164: Jilemnice 23.09.21 | H164: =IF(E164=0,0,IF(E164>0,(E164+75)*1.739)) -> 791.245 | J164: 320
B165: KŘÍŽKOVÁ | C165: Anna | D165: 8.A | E165: 278 | G165: Jilemnice 23.09.21 | H165: =IF(E165=0,0,IF(E165>0,(E165+75)*1.739)) -> 613.867
B166: LUKEŠOVÁ | C166: Kristýna | D166: 8.A | E166: 341 | G166: Jilemnice 23.09.21 | H166: =IF(E166=0,0,IF(E166>0,(E166+75)*1.739)) -> 723.424
B167: MOTLÍKOVÁ | C167: Eliška | D167: 8.A | E167: 327 | G167: Jilemnice 23.09.21 | H167: =IF(E167=0,0,IF(E167>0,(E167+75)*1.739)) -> 699.078
B168: POHOŘELÁ | C168: Amálie | D168: 8.A | E168: =E264 -> 0 | H168: =IF(E168=0,0,IF(E168>0,(E168+75)*1.739)) -> 0
B169: POLÁČKOVÁ | C169: Natálie | D169: 8.A | E169: =E265 -> 0 | H169: =IF(E169=0,0,IF(E169>0,(E169+75)*1.739)) -> 0
B170: ŘEHOŘKOVÁ | C170: Lucie | D170: 8.A | E170: 353 | G170: Jilemnice 23.09.21 | H170: =IF(E170=0,0,IF(E170>0,(E170+75)*1.739)) -> 744.292
B171: SKÁLOVÁ | C171: Alena | D171: 8.A | E171: 312 | G171: Jilemnice 23.09.21 | H171: =IF(E171=0,0,IF(E171>0,(E171+75)*1.739)) -> 672.993
B172: VÁVROVÁ | C172: Aneta | D172: 8.A | E172: 377 | G172: Jilemnice 23.09.21 | H172: =IF(E172=0,0,IF(E172>0,(E172+75)*1.739)) -> 786.028
B173: ZELINKOVÁ | C173: Klára | D173: 8.A | E173: 344 | G173: Jilemnice 23.09.21 | H173: =IF(E173=0,0,IF(E173>0,(E173+75)*1.739)) -> 728.641
B174: JUNGOVÁ | C174: Lucie | D174: 9.A | E174: =E270 -> 0 | H174: =IF(E174=0,0,IF(E174>0,(E174+75)*1.739)) -> 0 | L174: 318
B175: KŘIVÁNKOVÁ | C175: Linda | D175: 9.A | E175: =E271 -> 0 | H175: =IF(E175=0,0,IF(E175>0,(E175+75)*1.739)) -> 0 | L175: 258
B176: KUBÁTOVÁ | C176: Lucie | D176: 9.A | E176: =E272 -> 0 | H176: =IF(E176=0,0,IF(E176>0,(E176+75)*1.739)) -> 0
B177: ŠIMŮNKOVÁ | C177: Nikola | D177: 9.A | E177: =E273 -> 0 | H177: =IF(E177=0,0,IF(E177>0,(E177+75)*1.739)) -> 0 | L177: 262
B178: ŠMÍDOVÁ | C178: Kristýna | D178: 9.A | E178: =E274 -> 0 | H178: =IF(E178=0,0,IF(E178>0,(E178+75)*1.739)) -> 0 | L178: 220
B179: VOTOČKOVÁ | C179: Nikola | D179: 9.A | E179: =E275 -> 0 | H179: =IF(E179=0,0,IF(E179>0,(E179+75)*1.739)) -> 0 | L179: 350
B180: VYHLASOVÁ | C180: Lenka | D180: 9.A | E180: =E276 -> 0 | H180: =IF(E180=0,0,IF(E180>0,(E180+75)*1.739)) -> 0
B181: BÖHMOVÁ | C181: Diana | D181: 9.B | E181: =E277 -> 0 | H181: =IF(E181=0,0,IF(E181>0,(E181+75)*1.739)) -> 0 | L181: 260
B182: HOUDOVÁ | C182: Tereza | D182: 9.B | E182: =E278 -> 0 | H182: =IF(E182=0,0,IF(E182>0,(E182+75)*1.739)) -> 0 | L182: 301
B183: JANÍKOVÁ | C183: Kristýna | D183: 9.B | E183: =E279 -> 0
B184: KUŽELOVÁ | C184: Ela | D184: 9.B | E184: =E280 -> 0 | H184: =IF(E184=0,0,IF(E184>0,(E184+75)*1.739)) -> 0 | J184: 356 | L184: 351
B185: MATERNOVÁ | C185: Lucie | D185: 9.B | E185: =E281 -> 0 | H185: =IF(E185=0,0,IF(E185>0,(E185+75)*1.739)) -> 0 | L185: 210
B186: OPOČENSKÁ | C186: Matylda | D186: 9.B | E186: =E282 -> 0 | H186: =IF(E186=0,0,IF(E186>0,(E186+75)*1.739)) -> 0 | L186: 293
B187: PIŠTOROVÁ | C187: Karolína | D187: 9.B | E187: =E283 -> 0 | H187: =IF(E187=0,0,IF(E187>0,(E187+75)*1.739)) -> 0 | L187: 337
B188: POKORNÝ | C188: Anna | D188: 9.B | E188: =E284 -> 0 | H188: =IF(E188=0,0,IF(E188>0,(E188+75)*1.739)) -> 0 | L188: 220
B189: SUCHÁNKOVÁ | C189: Michaela | D189: 9.B | E189: =E285 -> 0 | H189: =IF(E189=0,0,IF(E189>0,(E189+75)*1.739)) -> 0 | L189: 190
B190: ŠUBÍKOVÁ | C190: Štěpánka | D190: 9.B | E190: =E286 -> 0 | H190: =IF(E190=0,0,IF(E190>0,(E190+75)*1.739)) -> 0 | L190: 280
B191: VANCLOVÁ | C191: Pavlína | D191: 9.B | E191: =E287 -> 0 | H191: =IF(E191=0,0,IF(E191>0,(E191+75)*1.739)) -> 0 | L191: 290

Sheet Dvýš
C1: VÝKONY 2020 - 2021 | G1: VÝŠKA | H1: DĚVČATA 6. - 9. ROČ.
K2: stav k | L2: =TODAY() -> 2021-06-28
H3: BODY | J3: 19 - 20 | K3: 18 - 19 | L3: 17 - 18
A5: 1. | B5: =B101 -> ERBENOVÁ | C5: =C101 -> Sára | D5: 6.A | E5: 0 | G5: 0 | H5: 0 | J5: 0 | K5: 0 | L5: 0
A6: 2. | B6: =B102 -> HOFMANOVÁ | C6: Nicol | D6: 6.A | E6: 0 | G6: 0 | H6: 0 | J6: 0 | K6: 0 | L6: 0
A7: 3. | B7: HOLEŠOVSKÁ | C7: Aneta | D7: 6.A | E7: 0 | G7: 0 | H7: 0 | J7: 0 | K7: 0 | L7: 0
A8: 4. | B8: HOLUBCOVÁ | C8: Alena | D8: 6.A | E8: 0 | G8: 0 | H8: 0 | J8: 0 | K8: 0 | L8: 0
A9: 5. | B9: KOHOUTOVÁ | C9: Anna | D9: 6.A | E9: 0 | G9: 0 | H9: 0 | J9: 0 | K9: 0 | L9: 0
A10: 6. | B10: KRAUSOVÁ | C10: Anežka | D10: 6.A | E10: 0 | G10: 0 | H10: 0 | J10: 0 | K10: 0 | L10: 0
A11: 7. | B11: KUŽELOVÁ | C11: Apoléna | D11: 6.A | E11: 0 | G11: 0 | H11: 0 | J11: 0 | K11: 0 | L11: 0
A12: 8. | B12: MORÁVKOVÁ | C12: Lucie | D12: 6.A | E12: 0 | G12: 0 | H12: 0 | J12: 0 | K12: 0 | L12: 0
A13: 9. | B13: SKLENÁROVÁ | C13: Eliška | D13: 6.A | E13: 0 | G13: 0 | H13: 0 | J13: 0 | K13: 0 | L13: 0
A14: 10. | B14: ŠTOLFOVÁ | C14: Tereza | D14: 6.A | E14: 0 | G14: 0 | H14: 0 | J14: 0 | K14: 0 | L14: 0
A15: 11. | B15: ŠUBÍKOVÁ | C15: Klára | D15: 6.A | E15: 0 | G15: 0 | H15: 0 | J15: 0 | K15: 0 | L15: 0
A16: 12. | B16: TULÁČKOVÁ | C16: Natálie | D16: 6.A | E16: 0 | G16: 0 | H16: 0 | J16: 0 | K16: 0 | L16: 0
A17: 13. | B17: VOJTÍŠKOVÁ | C17: Ella | D17: 6.A | E17: 0 | G17: 0 | H17: 0 | J17: 0 | K17: 0 | L17: 0
A18: 14. | B18: DRUGÁČOVÁ | C18: Kristinka | D18: 6.B | E18: 0 | G18: 0 | H18: 0 | J18: 0 | K18: 0 | L18: 0
A19: 15. | B19: FAJSTAVROVÁ | C19: Karolína | D19: 6.B | E19: 0 | G19: 0 | H19: 0 | J19: 0 | K19: 0 | L19: 0
A20: 16. | B20: FAJSTAVROVÁ | C20: Magdaléna | D20: 6.B | E20: 0 | G20: 0 | H20: 0 | J20: 0 | K20: 0 | L20: 0
A21: 17. | B21: HLAVATÁ | C21: Anna | D21: 6.B | E21: 0 | G21: 0 | H21: 0 | J21: 0 | K21: 0 | L21: 0
A22: 18. | B22: =B118 -> JINDROVÁ | C22: Barbora | D22: 6.B | E22: 0 | G22: 0 | H22: 0 | J22: 0 | K22: 0 | L22: 0
A23: 19. | B23: MAŘASOVÁ | C23: Vendula | D23: 6.B | E23: 0 | G23: 0 | H23: 0 | J23: 0 | K23: 0 | L23: 0
A24: 20. | B24: PETŘÍČKOVÁ | C24: Natálie | D24: 6.B | E24: 0 | G24: 0 | H24: 0 | J24: 0 | K24: 0 | L24: 0
A25: 21. | B25: PETŘÍKOVÁ | C25: Adéla | D25: 6.B | E25: 0 | G25: 0 | H25: 0 | J25: 0 | K25: 0 | L25: 0
A26: 22. | B26: REGÁLOVÁ | C26: Karolína | D26: 6.B | E26: 0 | G26: 0 | H26: 0 | J26: 0 | K26: 0 | L26: 0
A27: 23. | B27: RIEGROVÁ | C27: Magdaléna | D27: 6.B | E27: 0 | G27: 0 | H27: 0 | J27: 0 | K27: 0 | L27: 0
A28: 24. | B28: RYBENSKÁ | C28: Sabina | D28: 6.B | E28: 0 | G28: 0 | H28: 0 | J28: 0 | K28: 0 | L28: 0
A29: 25. | B29: STEINEROVÁ | C29: Barbora | D29: 6.B | E29: 0 | G29: 0 | H29: 0 | J29: 0 | K29: 0 | L29: 0
A30: 26. | B30: TOMEŠOVÁ | C30: Barbora | D30: 6.B | E30: 0 | G30: 0 | H30: 0 | J30: 0 | K30: 0 | L30: 0
A31: 27. | B31: VOHNOUTOVÁ | C31: Aneta | D31: 6.B | E31: 0 | G31: 0 | H31: 0 | J31: 0 | K31: 0 | L31: 0
A32: 28. | B32: HAVLÍKOVÁ | C32: Michaela | D32: 7.A | E32: 0 | G32: 0 | H32: 0 | J32: 0 | K32: 0 | L32: 0
A33: 29. | B33: HOLUBCOVÁ | C33: Sára | D33: 7.A | E33: 0 | G33: 0 | H33: 0 | J33: 0 | K33: 0 | L33: 0
A34: 30. | B34: HONCŮ | C34: Tereza | D34: 7.A | E34: 0 | G34: 0 | H34: 0 | J34: 0 | K34: 0 | L34: 0
A35: 31. | B35: HORÁČKOVÁ | C35: Kateřina | D35: 7.A | E35: 0 | G35: 0 | H35: 0 | J35: 0 | K35: 0 | L35: 0
A36: 32. | B36: JOUDALOVÁ | C36: Daniela | D36: 7.A | E36: 0 | G36: 0 | H36: 0 | J36: 0 | K36: 0 | L36: 0
A37: 33. | B37: KLÍMOVÁ | C37: Anna | D37: 7.A | E37: 0 | G37: 0 | H37: 0 | J37: 0 | K37: 0 | L37: 0
A38: 34. | B38: =B134 -> KOHOUTOVÁ | C38: Veronika | D38: 7.A | E38: 0 | G38: 0 | H38: 0 | J38: 0 | K38: 0 | L38: 0
A39: 35. | B39: KOVÁŘOVÁ | C39: Viktorie | D39: 7.A | E39: 0 | G39: 0 | H39: 0 | J39: 0 | K39: 0 | L39: 0
A40: 36. | B40: KYNČLOVÁ | C40: Anna | D40: 7.A | E40: 0 | G40: 0 | H40: 0 | J40: 0 | K40: 0 | L40: 0
A41: 37. | B41: MATOUŠOVÁ | C41: Tereza | D41: 7.A | E41: 0 | G41: 0 | H41: 0 | J41: 0 | K41: 0 | L41: 0
A42: 38. | B42: MAZÁNKOVÁ | C42: Zuzana | D42: 7.A | E42: 0 | G42: 0 | H42: 0 | J42: 0 | K42: 0 | L42: 0
A43: 39. | B43: MORKESOVÁ | C43: Sabrina | D43: 7.A | E43: 0 | G43: 0 | H43: 0 | J43: 0 | K43: 0 | L43: 0
A44: 40. | B44: POHOŘALÁ | C44: Alžběta | D44: 7.A | E44: 0 | G44: 0 | H44: 0 | J44: 0 | K44: 0 | L44: 0
A45: 41. | B45: SCHOLZOVÁ | C45: Laura | D45: 7.A | E45: 0 | G45: 0 | H45: 0 | J45: 0 | K45: 0 | L45: 0
A46: 42. | B46: VÁCLAVÍKOVÁ | C46: Valerie | D46: 7.A | E46: 0 | G46: 0 | H46: 0 | J46: 0 | K46: 0 | L46: 0
A47: 43. | B47: ZAPADLOVÁ | C47: Emma | D47: 7.A | E47: 0 | G47: 0 | H47: 0 | J47: 0 | K47: 0 | L47: 0
A48: 44. | B48: ŽIŠKOVÁ | C48: Mia | D48: 7.A | E48: 0 | G48: 0 | H48: 0 | J48: 0 | K48: 0 | L48: 0
A49: 45. | B49: FARSKÁ | C49: Tereza | D49: 7.B | E49: 0 | G49: 0 | H49: 0 | J49: 0 | K49: 0 | L49: 0
A50: 46. | B50: FEIXOVÁ | C50: Rozálie | D50: 7.B | E50: 0 | G50: 0 | H50: 0 | J50: 0 | K50: 0 | L50: 0
A51: 47. | B51: FIŠEROVÁ | C51: Michaela | D51: 7.B | E51: 89 | G51: Jilemnice 04.06.21 | H51: 570.5 | J51: 0 | K51: 0 | L51: 0
A52: 48. | B52: HAVLÍČKOVÁ | C52: Kristýna | D52: 7.B | E52: 0 | G52: 0 | H52: 0 | J52: 0 | K52: 0 | L52: 0
A53: 49. | B53: JODASOVÁ | C53: Nikola | D53: 7.B | E53: 0 | G53: 0 | H53: 0 | J53: 0 | K53: 0 | L53: 0
A54: 50. | B54: =B150 -> KADAVÁ | C54: Nikola | D54: 7.B | E54: 0 | G54: 0 | H54: 0 | J54: 0 | K54: 0 | L54: 0
A55: 51. | B55: KRAFKOVÁ | C55: Lucie | D55: 7.B | E55: 0 | G55: 0 | H55: 0 | J55: 0 | K55: 0 | L55: 0
A56: 52. | B56: KŘIVINKOVÁ | C56: Alžběta | D56: 7.B | E56: 0 | G56: 0 | H56: 0 | J56: 0 | K56: 0 | L56: 0
A57: 53. | B57: LEŠÁKOVÁ | C57: Lenka | D57: 7.B | E57: 0 | G57: 0 | H57: 0 | J57: 0 | K57: 0 | L57: 0
A58: 54. | B58: NYKLÍČKOVÁ | C58: Adéla | D58: 7.B | E58: 104 | G58: Jilemnice 04.06.21 | H58: 668 | J58: 0 | K58: 0 | L58: 0
A59: 55. | B59: PLŮCHOVÁ | C59: Petra | D59: 7.B | E59: 104 | G59: Jilemnice 04.06.21 | H59: 668 | J59: 0 | K59: 0 | L59: 0
A60: 56. | B60: PODZIMKOVÁ | C60: Eliška | D60: 7.B | E60: 93 | G60: Jilemnice 04.06.21 | H60: 596.5 | J60: 0 | K60: 0 | L60: 0
A61: 57. | B61: RUTKAYOVÁ | C61: Klára | D61: 7.B | E61: 0 | G61: 0 | H61: 0 | J61: 0 | K61: 0 | L61: 0
A62: 58. | B62: SEIDLOVÁ | C62: Zuzana | D62: 7.B | E62: 99 | G62: Jilemnice 04.06.21 | H62: 635.5 | J62: 0 | K62: 0 | L62: 0
A63: 59. | B63: TOMÁŠOVÁ | C63: Sára | D63: 7.B | E63: 0 | G63: 0 | H63: 0 | J63: 0 | K63: 0 | L63: 0
A64: 60. | B64: VANCLOVÁ | C64: Barbora | D64: 7.B | E64: 99 | G64: Jilemnice 04.06.21 | H64: 635.5 | J64: 0 | K64: 0 | L64: 0
A65: 61. | B65: VOTOČKOVÁ | C65: Veronika | D65: 7.B | E65: 0 | G65: 0 | H65: 0 | J65: 0 | K65: 0 | L65: 0
A66: 62. | B66: HARTIGOVÁ | C66: Anna | D66: 8.A | E66: 0 | G66: 0 | H66: 0 | J66: 0 | K66: 0 | L66: 0
A67: 63. | B67: HONCŮ | C67: Rozálie | D67: 8.A | E67: 0 | G67: 0 | H67: 0 | J67: 110 | K67: 0 | L67: 0
A68: 64. | B68: CHALOUPSKÁ | C68: Lucie | D68: 8.A | E68: 0 | G68: 0 | H68: 0 | J68: 0 | K68: 0 | L68: 0
A69: 65. | B69: KŘÍŽKOVÁ | C69: Anna | D69: 8.A | E69: 0 | G69: 0 | H69: 0 | J69: 0 | K69: 0 | L69: 0
A70: 66. | B70: =B166 -> LUKEŠOVÁ | C70: Kristýna | D70: 8.A | E70: 0 | G70: 0 | H70: 0 | J70: 0 | K70: 0 | L70: 0
A71: 67. | B71: MOTLÍKOVÁ | C71: Eliška | D71: 8.A | E71: 0 | G71: 0 | H71: 0 | J71: 0 | K71: 0 | L71: 0
A72: 68. | B72: POHOŘELÁ | C72: Amálie | D72: 8.A | E72: 0 | G72: 0 | H72: 0 | J72: 0 | K72: 0 | L72: 0
A73: 69. | B73: POLÁČKOVÁ | C73: Natálie | D73: 8.A | E73: 0 | G73: 0 | H73: 0 | J73: 0 | K73: 0 | L73: 0
A74: 70. | B74: ŘEHOŘKOVÁ | C74: Lucie | D74: 8.A | E74: 0 | G74: 0 | H74: 0 | J74: 0 | K74: 0 | L74: 0
A75: 71. | B75: SKÁLOVÁ | C75: Alena | D75: 8.A | E75: 0 | G75: 0 | H75: 0 | J75: 0 | K75: 0 | L75: 0
A76: 72. | B76: VÁVROVÁ | C76: Aneta | D76: 8.A | E76: 0 | G76: 0 | H76: 0 | J76: 0 | K76: 0 | L76: 0
A77: 73. | B77: ZELINKOVÁ | C77: Klára | D77: 8.A | E77: 0 | G77: 0 | H77: 0 | J77: 105 | K77: 0 | L77: 0
A78: 74. | B78: JUNGOVÁ | C78: Lucie | D78: 9.A | E78: 0 | G78: 0 | H78: 0 | J78: 0 | K78: 125 | L78: 115
A79: 75. | B79: KŘIVÁNKOVÁ | C79: Linda | D79: 9.A | E79: 0 | G79: 0 | H79: 0 | J79: 0 | K79: 93 | L79: 95
A80: 76. | B80: KUBÁTOVÁ | C80: Lucie | D80: 9.A | E80: 0 | G80: 0 | H80: 0 | J80: 0 | K80: 100 | L80: 105
A81: 77. | B81: ŠIMŮNKOVÁ | C81: Nikola | D81: 9.A | E81: 0 | G81: 0 | H81: 0 | J81: 0 | K81: 100 | L81: 100
A82: 78. | B82: ŠMÍDOVÁ | C82: Kristýna | D82: 9.A | E82: 0 | G82: 0 | H82: 0 | J82: 0 | K82: 0 | L82: 0
A83: 79. | B83: VOTOČKOVÁ | C83: Nikola | D83: 9.A | E83: 0 | G83: 0 | H83: 0 | J83: 115 | K83: 115 | L83: 105
A84: 80. | B84: VYHLASOVÁ | C84: Lenka | D84: 9.A | E84: 0 | G84: 0 | H84: 0 | J84: 0 | K84: 93 | L84: 95
A85: 81. | B85: BÖHMOVÁ | C85: Diana | D85: 9.B | E85: 0 | G85: 0 | H85: 0 | J85: 0 | K85: 93 | L85: 95
A86: 82. | B86: =B182 -> HOUDOVÁ | C86: Tereza | D86: 9.B | E86: 0 | G86: 0 | H86: 0 | J86: 0 | K86: 116 | L86: 110
A87: 83. | B87: JANÍKOVÁ | C87: Kristýna | D87: 9.B | E87: 0 | G87: 0 | H87: 0 | J87: 130 | K87: 0 | L87: 0
A88: 84. | B88: KUŽELOVÁ | C88: Ela | D88: 9.B | E88: 0 | G88: 0 | H88: 0 | J88: 0 | K88: 107 | L88: 105
A89: 85. | B89: MATERNOVÁ | C89: Lucie | D89: 9.B | E89: 0 | G89: 0 | H89: 0 | J89: 0 | K89: 93 | L89: 80
A90: 86. | B90: OPOČENSKÁ | C90: Matylda | D90: 9.B | E90: 0 | G90: 0 | H90: 0 | J90: 0 | K90: 0 | L90: 0
A91: 87. | B91: PIŠTOROVÁ | C91: Karolína | D91: 9.B | E91: 0 | G91: 0 | H91: 0 | J91: 0 | K91: 115 | L91: 95
A92: 88. | B92: POKORNÝ | C92: Anna | D92: 9.B | E92: 0 | G92: 0 | H92: 0 | J92: 0 | K92: 93 | L92: 80
A93: 89. | B93: SUCHÁNKOVÁ | C93: Michaela | D93: 9.B | E93: 0 | G93: 0 | H93: 0 | J93: 0 | K93: 93 | L93: 80
A94: 90. | B94: ŠUBÍKOVÁ | C94: Štěpánka | D94: 9.B | E94: 0 | G94: 0 | H94: 0 | J94: 0 | K94: 100 | L94: 105
A95: 91. | B95: VANCLOVÁ | C95: Pavlína | D95: 9.B | E95: 0 | G95: 0 | H95: 0 | J95: 0 | K95: 0 | L95: 105
B101: ERBENOVÁ | C101: Sára | D101: 6.A | H101: =IF(E101=0,0,(IF(E101>0,E101*5*1.3-8))) -> 0
B102: HOFMANOVÁ | C102: Nicol | D102: 6.A | H102: =IF(E102=0,0,(IF(E102>0,E102*5*1.3-8))) -> 0
B103: HOLEŠOVSKÁ | C103: Aneta | D103: 6.A | H103: =IF(E103=0,0,(IF(E103>0,E103*5*1.3-8))) -> 0
B104: HOLUBCOVÁ | C104: Alena | D104: 6.A | H104: =IF(E104=0,0,(IF(E104>0,E104*5*1.3-8))) -> 0
B105: KOHOUTOVÁ | C105: Anna | D105: 6.A | H105: =IF(E105=0,0,(IF(E105>0,E105*5*1.3-8))) -> 0
B106: KRAUSOVÁ | C106: Anežka | D106: 6.A | H106: =IF(E106=0,0,(IF(E106>0,E106*5*1.3-8))) -> 0
B107: KUŽELOVÁ | C107: Apoléna | D107: 6.A | H107: =IF(E107=0,0,(IF(E107>0,E107*5*1.3-8))) -> 0
B108: MORÁVKOVÁ | C108: Lucie | D108: 6.A | H108: =IF(E108=0,0,(IF(E108>0,E108*5*1.3-8))) -> 0
B109: SKLENÁROVÁ | C109: Eliška | D109: 6.A | H109: =IF(E109=0,0,(IF(E109>0,E109*5*1.3-8))) -> 0
B110: ŠTOLFOVÁ | C110: Tereza | D110: 6.A | H110: =IF(E110=0,0,(IF(E110>0,E110*5*1.3-8))) -> 0
B111: ŠUBÍKOVÁ | C111: Klára | D111: 6.A | H111: =IF(E111=0,0,(IF(E111>0,E111*5*1.3-8))) -> 0
B112: TULÁČKOVÁ | C112: Natálie | D112: 6.A | H112: =IF(E112=0,0,(IF(E112>0,E112*5*1.3-8))) -> 0
B113: VOJTÍŠKOVÁ | C113: Ella | D113: 6.A | H113: =IF(E113=0,0,(IF(E113>0,E113*5*1.3-8))) -> 0
B114: DRUGÁČOVÁ | C114: Kristinka | D114: 6.B | H114: =IF(E114=0,0,(IF(E114>0,E114*5*1.3-8))) -> 0
B115: FAJSTAVROVÁ | C115: Karolína | D115: 6.B | H115: =IF(E115=0,0,(IF(E115>0,E115*5*1.3-8))) -> 0
B116: FAJSTAVROVÁ | C116: Magdaléna | D116: 6.B | H116: =IF(E116=0,0,(IF(E116>0,E116*5*1.3-8))) -> 0
B117: HLAVATÁ | C117: Anna | D117: 6.B | H117: =IF(E117=0,0,(IF(E117>0,E117*5*1.3-8))) -> 0
B118: JINDROVÁ | C118: Barbora | D118: 6.B | H118: =IF(E118=0,0,(IF(E118>0,E118*5*1.3-8))) -> 0
B119: MAŘASOVÁ | C119: Vendula | D119: 6.B | H119: =IF(E119=0,0,(IF(E119>0,E119*5*1.3-8))) -> 0
B120: PETŘÍČKOVÁ | C120: Natálie | D120: 6.B | H120: =IF(E120=0,0,(IF(E120>0,E120*5*1.3-8))) -> 0
B121: PETŘÍKOVÁ | C121: Adéla | D121: 6.B | H121: =IF(E121=0,0,(IF(E121>0,E121*5*1.3-8))) -> 0
B122: REGÁLOVÁ | C122: Karolína | D122: 6.B | H122: =IF(E122=0,0,(IF(E122>0,E122*5*1.3-8))) -> 0
B123: RIEGROVÁ | C123: Magdaléna | D123: 6.B | H123: =IF(E123=0,0,(IF(E123>0,E123*5*1.3-8))) -> 0
B124: RYBENSKÁ | C124: Sabina | D124: 6.B | H124: =IF(E124=0,0,(IF(E124>0,E124*5*1.3-8))) -> 0
B125: STEINEROVÁ | C125: Barbora | D125: 6.B | H125: =IF(E125=0,0,(IF(E125>0,E125*5*1.3-8))) -> 0
B126: TOMEŠOVÁ | C126: Barbora | D126: 6.B | H126: =IF(E126=0,0,(IF(E126>0,E126*5*1.3-8))) -> 0
B127: VOHNOUTOVÁ | C127: Aneta | D127: 6.B | H127: =IF(E127=0,0,(IF(E127>0,E127*5*1.3-8))) -> 0
B128: HAVLÍKOVÁ | C128: Michaela | D128: 7.A | H128: =IF(E128=0,0,(IF(E128>0,E128*5*1.3-8))) -> 0
B129: HOLUBCOVÁ | C129: Sára | D129: 7.A | H129: =IF(E129=0,0,(IF(E129>0,E129*5*1.3-8))) -> 0
B130: HONCŮ | C130: Tereza | D130: 7.A | H130: =IF(E130=0,0,(IF(E130>0,E130*5*1.3-8))) -> 0
B131: HORÁČKOVÁ | C131: Kateřina | D131: 7.A | H131: =IF(E131=0,0,(IF(E131>0,E131*5*1.3-8))) -> 0
B132: JOUDALOVÁ | C132: Daniela | D132: 7.A | H132: =IF(E132=0,0,(IF(E132>0,E132*5*1.3-8))) -> 0
B133: KLÍMOVÁ | C133: Anna | D133: 7.A | H133: =IF(E133=0,0,(IF(E133>0,E133*5*1.3-8))) -> 0
B134: KOHOUTOVÁ | C134: Veronika | D134: 7.A | H134: =IF(E134=0,0,(IF(E134>0,E134*5*1.3-8))) -> 0
B135: KOVÁŘOVÁ | C135: Viktorie | D135: 7.A | H135: =IF(E135=0,0,(IF(E135>0,E135*5*1.3-8))) -> 0
B136: KYNČLOVÁ | C136: Anna | D136: 7.A | H136: =IF(E136=0,0,(IF(E136>0,E136*5*1.3-8))) -> 0
B137: MATOUŠOVÁ | C137: Tereza | D137: 7.A | H137: =IF(E137=0,0,(IF(E137>0,E137*5*1.3-8))) -> 0
B138: MAZÁNKOVÁ | C138: Zuzana | D138: 7.A | H138: =IF(E138=0,0,(IF(E138>0,E138*5*1.3-8))) -> 0
B139: MORKESOVÁ | C139: Sabrina | D139: 7.A | H139: =IF(E139=0,0,(IF(E139>0,E139*5*1.3-8))) -> 0
B140: POHOŘALÁ | C140: Alžběta | D140: 7.A | H140: =IF(E140=0,0,(IF(E140>0,E140*5*1.3-8))) -> 0
B141: SCHOLZOVÁ | C141: Laura | D141: 7.A | H141: =IF(E141=0,0,(IF(E141>0,E141*5*1.3-8))) -> 0
B142: VÁCLAVÍKOVÁ | C142: Valerie | D142: 7.A | H142: =IF(E142=0,0,(IF(E142>0,E142*5*1.3-8))) -> 0
B143: ZAPADLOVÁ | C143: Emma | D143: 7.A | H143: =IF(E143=0,0,(IF(E143>0,E143*5*1.3-8))) -> 0
B144: ŽIŠKOVÁ | C144: Mia | D144: 7.A | H144: =IF(E144=0,0,(IF(E144>0,E144*5*1.3-8))) -> 0
B145: FARSKÁ | C145: Tereza | D145: 7.B | H145: =IF(E145=0,0,(IF(E145>0,E145*5*1.3-8))) -> 0
B146: FEIXOVÁ | C146: Rozálie | D146: 7.B | H146: =IF(E146=0,0,(IF(E146>0,E146*5*1.3-8))) -> 0
B147: FIŠEROVÁ | C147: Michaela | D147: 7.B | E147: 89 | G147: Jilemnice 04.06.21 | H147: =IF(E147=0,0,(IF(E147>0,E147*5*1.3-8))) -> 570.5
B148: HAVLÍČKOVÁ | C148: Kristýna | D148: 7.B | H148: =IF(E148=0,0,(IF(E148>0,E148*5*1.3-8))) -> 0
B149: JODASOVÁ | C149: Nikola | D149: 7.B | H149: =IF(E149=0,0,(IF(E149>0,E149*5*1.3-8))) -> 0
B150: KADAVÁ | C150: Nikola | D150: 7.B | H150: =IF(E150=0,0,(IF(E150>0,E150*5*1.3-8))) -> 0
B151: KRAFKOVÁ | C151: Lucie | D151: 7.B | H151: =IF(E151=0,0,(IF(E151>0,E151*5*1.3-8))) -> 0
B152: KŘIVINKOVÁ | C152: Alžběta | D152: 7.B | H152: =IF(E152=0,0,(IF(E152>0,E152*5*1.3-8))) -> 0
B153: LEŠÁKOVÁ | C153: Lenka | D153: 7.B | H153: =IF(E153=0,0,(IF(E153>0,E153*5*1.3-8))) -> 0
B154: NYKLÍČKOVÁ | C154: Adéla | D154: 7.B | E154: 104 | G154: Jilemnice 04.06.21 | H154: =IF(E154=0,0,(IF(E154>0,E154*5*1.3-8))) -> 668
B155: PLŮCHOVÁ | C155: Petra | D155: 7.B | E155: 104 | G155: Jilemnice 04.06.21 | H155: =IF(E155=0,0,(IF(E155>0,E155*5*1.3-8))) -> 668
B156: PODZIMKOVÁ | C156: Eliška | D156: 7.B | E156: 93 | G156: Jilemnice 04.06.21 | H156: =IF(E156=0,0,(IF(E156>0,E156*5*1.3-8))) -> 596.5
B157: RUTKAYOVÁ | C157: Klára | D157: 7.B | H157: =IF(E157=0,0,(IF(E157>0,E157*5*1.3-8))) -> 0
B158: SEIDLOVÁ | C158: Zuzana | D158: 7.B | E158: 99 | G158: Jilemnice 04.06.21 | H158: =IF(E158=0,0,(IF(E158>0,E158*5*1.3-8))) -> 635.5
B159: TOMÁŠOVÁ | C159: Sára | D159: 7.B | H159: =IF(E159=0,0,(IF(E159>0,E159*5*1.3-8))) -> 0
B160: VANCLOVÁ | C160: Barbora | D160: 7.B | E160: 99 | G160: Jilemnice 04.06.21 | H160: =IF(E160=0,0,(IF(E160>0,E160*5*1.3-8))) -> 635.5
B161: VOTOČKOVÁ | C161: Veronika | D161: 7.B | H161: =IF(E161=0,0,(IF(E161>0,E161*5*1.3-8))) -> 0
B162: HARTIGOVÁ | C162: Anna | D162: 8.A | H162: =IF(E162=0,0,(IF(E162>0,E162*5*1.3-8))) -> 0
B163: HONCŮ | C163: Rozálie | D163: 8.A | H163: =IF(E163=0,0,(IF(E163>0,E163*5*1.3-8))) -> 0 | J163: 110
B164: CHALOUPSKÁ | C164: Lucie | D164: 8.A | H164: =IF(E164=0,0,(IF(E164>0,E164*5*1.3-8))) -> 0
B165: KŘÍŽKOVÁ | C165: Anna | D165: 8.A | H165: =IF(E165=0,0,(IF(E165>0,E165*5*1.3-8))) -> 0
B166: LUKEŠOVÁ | C166: Kristýna | D166: 8.A | H166: =IF(E166=0,0,(IF(E166>0,E166*5*1.3-8))) -> 0
B167: MOTLÍKOVÁ | C167: Eliška | D167: 8.A | H167: =IF(E167=0,0,(IF(E167>0,E167*5*1.3-8))) -> 0
B168: POHOŘELÁ | C168: Amálie | D168: 8.A | H168: =IF(E168=0,0,(IF(E168>0,E168*5*1.3-8))) -> 0
B169: POLÁČKOVÁ | C169: Natálie | D169: 8.A | H169: =IF(E169=0,0,(IF(E169>0,E169*5*1.3-8))) -> 0
B170: ŘEHOŘKOVÁ | C170: Lucie | D170: 8.A | H170: =IF(E170=0,0,(IF(E170>0,E170*5*1.3-8))) -> 0
B171: SKÁLOVÁ | C171: Alena | D171: 8.A | H171: =IF(E171=0,0,(IF(E171>0,E171*5*1.3-8))) -> 0
B172: VÁVROVÁ | C172: Aneta | D172: 8.A | H172: =IF(E172=0,0,(IF(E172>0,E172*5*1.3-8))) -> 0
B173: ZELINKOVÁ | C173: Klára | D173: 8.A | H173: =IF(E173=0,0,(IF(E173>0,E173*5*1.3-8))) -> 0 | J173: 105
B174: JUNGOVÁ | C174: Lucie | D174: 9.A | H174: =IF(E174=0,0,(IF(E174>0,E174*5*1.3-8))) -> 0 | K174: 125 | L174: 115
B175: KŘIVÁNKOVÁ | C175: Linda | D175: 9.A | H175: =IF(E175=0,0,(IF(E175>0,E175*5*1.3-8))) -> 0 | K175: 93 | L175: 95
B176: KUBÁTOVÁ | C176: Lucie | D176: 9.A | H176: =IF(E176=0,0,(IF(E176>0,E176*5*1.3-8))) -> 0 | K176: 100 | L176: 105
B177: ŠIMŮNKOVÁ | C177: Nikola | D177: 9.A | H177: =IF(E177=0,0,(IF(E177>0,E177*5*1.3-8))) -> 0 | K177: 100 | L177: 100
B178: ŠMÍDOVÁ | C178: Kristýna | D178: 9.A | H178: =IF(E178=0,0,(IF(E178>0,E178*5*1.3-8))) -> 0
B179: VOTOČKOVÁ | C179: Nikola | D179: 9.A | H179: =IF(E179=0,0,(IF(E179>0,E179*5*1.3-8))) -> 0 | J179: 115 | K179: 115 | L179: 105
B180: VYHLASOVÁ | C180: Lenka | D180: 9.A | H180: =IF(E180=0,0,(IF(E180>0,E180*5*1.3-8))) -> 0 | K180: 93 | L180: 95
B181: BÖHMOVÁ | C181: Diana | D181: 9.B | H181: =IF(E181=0,0,(IF(E181>0,E181*5*1.3-8))) -> 0 | K181: 93 | L181: 95
B182: HOUDOVÁ | C182: Tereza | D182: 9.B | H182: =IF(E182=0,0,(IF(E182>0,E182*5*1.3-8))) -> 0 | K182: 116 | L182: 110
B183: JANÍKOVÁ | C183: Kristýna | D183: 9.B | H183: =IF(E183=0,0,(IF(E183>0,E183*5*1.3-8))) -> 0 | J183: 130
B184: KUŽELOVÁ | C184: Ela | D184: 9.B | H184: =IF(E184=0,0,(IF(E184>0,E184*5*1.3-8))) -> 0 | K184: 107 | L184: 105
B185: MATERNOVÁ | C185: Lucie | D185: 9.B | H185: =IF(E185=0,0,(IF(E185>0,E185*5*1.3-8))) -> 0 | K185: 93 | L185: 80
B186: OPOČENSKÁ | C186: Matylda | D186: 9.B | H186: =IF(E186=0,0,(IF(E186>0,E186*5*1.3-8))) -> 0
B187: PIŠTOROVÁ | C187: Karolína | D187: 9.B | H187: =IF(E187=0,0,(IF(E187>0,E187*5*1.3-8))) -> 0 | K187: 115 | L187: 95
B188: POKORNÝ | C188: Anna | D188: 9.B | H188: =IF(E188=0,0,(IF(E188>0,E188*5*1.3-8))) -> 0 | K188: 93 | L188: 80
B189: SUCHÁNKOVÁ | C189: Michaela | D189: 9.B | H189: =IF(E189=0,0,(IF(E189>0,E189*5*1.3-8))) -> 0 | K189: 93 | L189: 80
B190: ŠUBÍKOVÁ | C190: Štěpánka | D190: 9.B | H190: =IF(E190=0,0,(IF(E190>0,E190*5*1.3-8))) -> 0 | K190: 100 | L190: 105
B191: VANCLOVÁ | C191: Pavlína | D191: 9.B | H191: =IF(E191=0,0,(IF(E191>0,E191*5*1.3-8))) -> 0 | L191: 105

Sheet Dmíč
C1: VÝKONY 2020 - 2021 | G1: MÍČEK | H1: DĚVČATA 6. - 9. ROČ.
K2: stav k | L2: =TODAY() -> 44375
H3: BODY | J3: 19 - 20 | K3: 18 - 19 | L3: 17 - 18
A5: 1. | B5: =B101 -> ERBENOVÁ | C5: =C101 -> Sára | D5: 6.A | E5: 17.5 | G5: Jilemnice 07.06.21 | H5: 321.5 | J5: 0 | K5: 0 | L5: 0
A6: 2. | B6: =B102 -> HOFMANOVÁ | C6: Nicol | D6: 6.A | E6: 15.5 | G6: Jilemnice 07.06.21 | H6: 285.1 | J6: 0 | K6: 0 | L6: 0
A7: 3. | B7: HOLEŠOVSKÁ | C7: Aneta | D7: 6.A | E7: 22.6 | G7: Jilemnice 22.09.20 | H7: 414.32 | J7: 0 | K7: 0 | L7: 0
A8: 4. | B8: HOLUBCOVÁ | C8: Alena | D8: 6.A | E8: 29 | G8: Jilemnice 07.06.21 | H8: 530.8 | J8: 0 | K8: 0 | L8: 0
A9: 5. | B9: KOHOUTOVÁ | C9: Anna | D9: 6.A | E9: 13 | G9: Jilemnice 07.06.21 | H9: 239.6 | J9: 0 | K9: 0 | L9: 0
A10: 6. | B10: KRAUSOVÁ | C10: Anežka | D10: 6.A | E10: 0 | G10: 0 | H10: 0 | J10: 0 | K10: 0 | L10: 0
A11: 7. | B11: KUŽELOVÁ | C11: Apoléna | D11: 6.A | E11: 18.4 | G11: Jilemnice 22.09.20 | H11: 337.88 | J11: 0 | K11: 0 | L11: 0
A12: 8. | B12: MORÁVKOVÁ | C12: Lucie | D12: 6.A | E12: 20.9 | G12: Jilemnice 22.09.20 | H12: 383.38 | J12: 0 | K12: 0 | L12: 0
A13: 9. | B13: SKLENÁROVÁ | C13: Eliška | D13: 6.A | E13: 0 | G13: 0 | H13: 0 | J13: 0 | K13: 0 | L13: 0
A14: 10. | B14: ŠTOLFOVÁ | C14: Tereza | D14: 6.A | E14: 14 | G14: Jilemnice 07.06.21 | H14: 257.8 | J14: 0 | K14: 0 | L14: 0
A15: 11. | B15: ŠUBÍKOVÁ | C15: Klára | D15: 6.A | E15: 13 | G15: Jilemnice 07.06.21 | H15: 239.6 | J15: 0 | K15: 0 | L15: 0
A16: 12. | B16: TULÁČKOVÁ | C16: Natálie | D16: 6.A | E16: 17.8 | G16: Jilemnice 22.09.20 | H16: 326.96 | J16: 0 | K16: 0 | L16: 0
A17: 13. | B17: VOJTÍŠKOVÁ | C17: Ella | D17: 6.A | E17: 24.6 | G17: Jilemnice 22.09.20 | H17: 450.72 | J17: 0 | K17: 0 | L17: 0
A18: 14. | B18: DRUGÁČOVÁ | C18: Kristinka | D18: 6.B | E18: 16.5 | G18: Jilemnice 07.06.21 | H18: 303.3 | J18: 0 | K18: 0 | L18: 0
A19: 15. | B19: FAJSTAVROVÁ | C19: Karolína | D19: 6.B | E19: 22.4 | G19: Jilemnice 22.09.20 | H19: 410.68 | J19: 0 | K19: 0 | L19: 0
A20: 16. | B20: FAJSTAVROVÁ | C20: Magdaléna | D20: 6.B | E20: 29 | G20: Jilemnice 22.09.20 | H20: 530.8 | J20: 0 | K20: 0 | L20: 0
A21: 17. | B21: HLAVATÁ | C21: Anna | D21: 6.B | E21: 0 | H21: 0 | J21: 0 | K21: 0 | L21: 0
A22: 18. | B22: =B118 -> JINDROVÁ | C22: Barbora | D22: 6.B | E22: 12 | G22: Jilemnice 22.09.20 | H22: 221.4 | J22: 0 | K22: 0 | L22: 0
A23: 19. | B23: MAŘASOVÁ | C23: Vendula | D23: 6.B | E23: 13 | G23: Jilemnice 22.09.20 | H23: 239.6 | J23: 0 | K23: 0 | L23: 0
A24: 20. | B24: PETŘÍČKOVÁ | C24: Natálie | D24: 6.B | E24: 21.8 | G24: Jilemnice 22.09.20 | H24: 399.76 | J24: 0 | K24: 0 | L24: 0
A25: 21. | B25: PETŘÍKOVÁ | C25: Adéla | D25: 6.B | E25: 11 | G25: Jilemnice 07.06.21 | H25: 203.2 | J25: 0 | K25: 0 | L25: 0
A26: 22. | B26: REGÁLOVÁ | C26: Karolína | D26: 6.B | E26: 23.2 | G26: Jilemnice 22.09.20 | H26: 425.24 | J26: 0 | K26: 0 | L26: 0
A27: 23. | B27: RIEGROVÁ | C27: Magdaléna | D27: 6.B | E27: 15.5 | G27: Jilemnice 07.06.21 | H27: 285.1 | J27: 0 | K27: 0 | L27: 0
A28: 24. | B28: RYBENSKÁ | C28: Sabina | D28: 6.B | E28: 12.6 | G28: Jilemnice 22.09.20 | H28: 232.32 | J28: 0 | K28: 0 | L28: 0
A29: 25. | B29: STEINEROVÁ | C29: Barbora | D29: 6.B | E29: 24.4 | G29: Jilemnice 22.09.20 | H29: 447.08 | J29: 0 | K29: 0 | L29: 0
A30: 26. | B30: TOMEŠOVÁ | C30: Barbora | D30: 6.B | E30: 16.2 | G30: Jilemnice 22.09.20 | H30: 297.84 | J30: 0 | K30: 0 | L30: 0
A31: 27. | B31: VOHNOUTOVÁ | C31: Aneta | D31: 6.B | E31: 29 | G31: Jilemnice 22.09.20 | H31: 530.8 | J31: 0 | K31: 0 | L31: 0
A32: 28. | B32: HAVLÍKOVÁ | C32: Michaela | D32: 7.A | E32: 0 | G32: 0 | H32: 0 | J32: 10.5 | K32: 0 | L32: 0
A33: 29. | B33: HOLUBCOVÁ | C33: Sára | D33: 7.A | E33: 25 | G33: Jilemnice 07.06.21 | H33: 458 | J33: 0 | K33: 0 | L33: 0
A34: 30. | B34: HONCŮ | C34: Tereza | D34: 7.A | E34: 22 | G34: Jilemnice 07.06.21 | H34: 403.4 | J34: 18.5 | K34: 0 | L34: 0
A35: 31. | B35: HORÁČKOVÁ | C35: Kateřina | D35: 7.A | E35: 22 | G35: Jilemnice 07.06.21 | H35: 403.4 | J35: 21 | K35: 0 | L35: 0
A36: 32. | B36: JOUDALOVÁ | C36: Daniela | D36: 7.A | E36: 0 | G36: 0 | H36: 0 | J36: 10 | K36: 0 | L36: 0
A37: 33. | B37: KLÍMOVÁ | C37: Anna | D37: 7.A | E37: 0 | G37: 0 | H37: 0 | J37: 17.5 | K37: 0 | L37: 0
A38: 34. | B38: =B134 -> KOHOUTOVÁ | C38: Veronika | D38: 7.A | E38: 29.5 | G38: Jilemnice 07.06.21 | H38: 539.9 | J38: 24 | K38: 0 | L38: 0
A39: 35. | B39: KOVÁŘOVÁ | C39: Viktorie | D39: 7.A | E39: 19.5 | G39: Jilemnice 07.06.21 | H39: 357.9 | J39: 17.5 | K39: 0 | L39: 0
A40: 36. | B40: KYNČLOVÁ | C40: Anna | D40: 7.A | E40: 27.5 | G40: Jilemnice 07.06.21 | H40: 503.5 | J40: 21 | K40: 0 | L40: 0
A41: 37. | B41: MATOUŠOVÁ | C41: Tereza | D41: 7.A | E41: 20.5 | G41: Jilemnice 07.06.21 | H41: 376.1 | J41: 17.5 | K41: 0 | L41: 0
A42: 38. | B42: MAZÁNKOVÁ | C42: Zuzana | D42: 7.A | E42: 19 | G42: Jilemnice 07.06.21 | H42: 348.8 | J42: 14.5 | K42: 0 | L42: 0
A43: 39. | B43: MORKESOVÁ | C43: Sabrina | D43: 7.A | E43: 42 | G43: Jilemnice 07.06.21 | H43: 767.4 | J43: 36.5 | K43: 0 | L43: 0
A44: 40. | B44: POHOŘALÁ | C44: Alžběta | D44: 7.A | E44: 22.5 | G44: Jilemnice 07.06.21 | H44: 412.5 | J44: 15.5 | K44: 0 | L44: 0
A45: 41. | B45: SCHOLZOVÁ | C45: Laura | D45: 7.A | E45: 0 | G45: 0 | H45: 0 | J45: 0 | K45: 0 | L45: 0
A46: 42. | B46: VÁCLAVÍKOVÁ | C46: Valerie | D46: 7.A | E46: 26.5 | G46: Jilemnice 07.06.21 | H46: 485.3 | J46: 25.5 | K46: 0 | L46: 0
A47: 43. | B47: ZAPADLOVÁ | C47: Emma | D47: 7.A | E47: 33.5 | G47: Jilemnice 07.06.21 | H47: 612.7 | J47: 27.5 | K47: 0 | L47: 0
A48: 44. | B48: ŽIŠKOVÁ | C48: Mia | D48: 7.A | E48: 22.5 | G48: Jilemnice 07.06.21 | H48: 412.5 | J48: 0 | K48: 0 | L48: 0
A49: 45. | B49: FARSKÁ | C49: Tereza | D49: 7.B | E49: 0 | G49: 0 | H49: 0 | J49: 0 | K49: 0 | L49: 0
A50: 46. | B50: FEIXOVÁ | C50: Rozálie | D50: 7.B | E50: 0 | G50: 0 | H50: 0 | J50: 0 | K50: 0 | L50: 0
A51: 47. | B51: FIŠEROVÁ | C51: Michaela | D51: 7.B | E51: 0 | G51: 0 | H51: 0 | J51: 0 | K51: 0 | L51: 0
A52: 48. | B52: HAVLÍČKOVÁ | C52: Kristýna | D52: 7.B | E52: 0 | G52: 0 | H52: 0 | J52: 0 | K52: 0 | L52: 0
A53: 49. | B53: JODASOVÁ | C53: Nikola | D53: 7.B | E53: 0 | G53: 0 | H53: 0 | J53: 24 | K53: 0 | L53: 0
A54: 50. | B54: =B150 -> KADAVÁ | C54: Nikola | D54: 7.B | E54: 0 | G54: 0 | H54: 0 | J54: 0 | K54: 0 | L54: 0
A55: 51. | B55: KRAFKOVÁ | C55: Lucie | D55: 7.B | E55: 0 | G55: 0 | H55: 0 | J55: 0 | K55: 0 | L55: 0
A56: 52. | B56: KŘIVINKOVÁ | C56: Alžběta | D56: 7.B | E56: 0 | G56: 0 | H56: 0 | J56: 0 | K56: 0 | L56: 0
A57: 53. | B57: LEŠÁKOVÁ | C57: Lenka | D57: 7.B | E57: 0 | G57: 0 | H57: 0 | J57: 0 | K57: 0 | L57: 0
A58: 54. | B58: NYKLÍČKOVÁ | C58: Adéla | D58: 7.B | E58: 0 | G58: 0 | H58: 0 | J58: 0 | K58: 0 | L58: 0
A59: 55. | B59: PLŮCHOVÁ | C59: Petra | D59: 7.B | E59: 0 | G59: 0 | H59: 0 | J59: 0 | K59: 0 | L59: 0
A60: 56. | B60: PODZIMKOVÁ | C60: Eliška | D60: 7.B | E60: 0 | G60: 0 | H60: 0 | J60: 0 | K60: 0 | L60: 0
A61: 57. | B61: RUTKAYOVÁ | C61: Klára | D61: 7.B | E61: 0 | G61: 0 | H61: 0 | J61: 0 | K61: 0 | L61: 0
A62: 58. | B62: SEIDLOVÁ | C62: Zuzana | D62: 7.B | E62: 0 | G62: 0 | H62: 0 | J62: 0 | K62: 0 | L62: 0
A63: 59. | B63: TOMÁŠOVÁ | C63: Sára | D63: 7.B | E63: 0 | G63: 0 | H63: 0 | J63: 0 | K63: 0 | L63: 0
A64: 60. | B64: VANCLOVÁ | C64: Barbora | D64: 7.B | E64: 0 | G64: 0 | H64: 0 | J64: 0 | K64: 0 | L64: 0
A65: 61. | B65: VOTOČKOVÁ | C65: Veronika | D65: 7.B | E65: 0 | G65: 0 | H65: 0 | J65: 0 | K65: 0 | L65: 0
A66: 62. | B66: HARTIGOVÁ | C66: Anna | D66: 8.A | E66: 25 | G66: Jilemnice 07.06.21 | H66: 458 | J66: 0 | K66: 20.5 | L66: 0
A67: 63. | B67: HONCŮ | C67: Rozálie | D67: 8.A | E67: 27 | G67: Jilemnice 07.06.21 | H67: 494.4 | J67: 21.5 | K67: 20 | L67: 0
A68: 64. | B68: CHALOUPSKÁ | C68: Lucie | D68: 8.A | E68: 29 | G68: Jilemnice 07.06.21 | H68: 530.8 | J68: 0 | K68: 22 | L68: 0
A69: 65. | B69: KŘÍŽKOVÁ | C69: Anna | D69: 8.A | E69: 25 | G69: Jilemnice 07.06.21 | H69: 458 | J69: 0 | K69: 17 | L69: 0
A70: 66. | B70: =B166 -> LUKEŠOVÁ | C70: Kristýna | D70: 8.A | E70: 22.5 | G70: Jilemnice 07.06.21 | H70: 412.5 | J70: 0 | K70: 16.5 | L70: 0
A71: 67. | B71: MOTLÍKOVÁ | C71: Eliška | D71: 8.A | E71: 25 | G71: Jilemnice 07.06.21 | H71: 458 | J71: 0 | K71: 17 | L71: 0
A72: 68. | B72: POHOŘELÁ | C72: Amálie | D72: 8.A | E72: 0 | H72: 0 | J72: 0 | K72: 14.5 | L72: 0
A73: 69. | B73: POLÁČKOVÁ | C73: Natálie | D73: 8.A | E73: 24 | G73: Jilemnice 07.06.21 | H73: 439.8 | J73: 0 | K73: 18.5 | L73: 0
A74: 70. | B74: ŘEHOŘKOVÁ | C74: Lucie | D74: 8.A | E74: 30.5 | G74: Jilemnice 07.06.21 | H74: 558.1 | J74: 0 | K74: 29 | L74: 0
A75: 71. | B75: SKÁLOVÁ | C75: Alena | D75: 8.A | E75: 20 | G75: Jilemnice 07.06.21 | H75: 367 | J75: 0 | K75: 14 | L75: 0
A76: 72. | B76: VÁVROVÁ | C76: Aneta | D76: 8.A | E76: 24 | G76: Jilemnice 07.06.21 | H76: 439.8 | J76: 0 | K76: 19.5 | L76: 0
A77: 73. | B77: ZELINKOVÁ | C77: Klára | D77: 8.A | E77: 27 | G77: Jilemnice 07.06.21 | H77: 494.4 | J77: 22 | K77: 20 | L77: 0
A78: 74. | B78: JUNGOVÁ | C78: Lucie | D78: 9.A | E78: 20.5 | G78: Jilemnice 07.06.21 | H78: 376.1 | J78: 19.5 | K78: 22.5 | L78: 20
A79: 75. | B79: KŘIVÁNKOVÁ | C79: Linda | D79: 9.A | E79: 15.5 | G79: Jilemnice 07.06.21 | H79: 285.1 | J79: 15 | K79: 16 | L79: 15
A80: 76. | B80: KUBÁTOVÁ | C80: Lucie | D80: 9.A | E80: 0 | H80: 0 | J80: 20.5 | K80: 21 | L80: 21
A81: 77. | B81: ŠIMŮNKOVÁ | C81: Nikola | D81: 9.A | E81: 18 | G81: Jilemnice 07.06.21 | H81: 330.6 | J81: 15 | K81: 17 | L81: 15
A82: 78. | B82: ŠMÍDOVÁ | C82: Kristýna | D82: 9.A | E82: 20 | G82: Jilemnice 07.06.21 | H82: 367 | J82: 24.5 | K82: 24 | L82: 0
A83: 79. | B83: VOTOČKOVÁ | C83: Nikola | D83: 9.A | E83: 29 | G83: Jilemnice 07.06.21 | H83: 530.8 | J83: 25.12 | K83: 26 | L83: 22.5
A84: 80. | B84: VYHLASOVÁ | C84: Lenka | D84: 9.A | E84: 0 | H84: 0 | J84: 0 | K84: 23 | L84: 28.31
A85: 81. | B85: BÖHMOVÁ | C85: Diana | D85: 9.B | E85: 19.5 | G85: Jilemnice 07.06.21 | H85: 357.9 | J85: 0 | K85: 24.5 | L85: 22.5
A86: 82. | B86: =B182 -> HOUDOVÁ | C86: Tereza | D86: 9.B | E86: 0 | H86: 0 | J86: 31 | K86: 30 | L86: 24.5
A87: 83. | B87: JANÍKOVÁ | C87: Kristýna | D87: 9.B | E87: 0 | H87: 0 | J87: 32.52 | K87: 0 | L87: 0
A88: 84. | B88: KUŽELOVÁ | C88: Ela | D88: 9.B | E88: 0 | H88: 0 | J88: 21 | K88: 22 | L88: 22.5
A89: 85. | B89: MATERNOVÁ | C89: Lucie | D89: 9.B | E89: 14 | G89: Jilemnice 07.06.21 | H89: 257.8 | J89: 13 | K89: 12.5 | L89: 13
A90: 86. | B90: OPOČENSKÁ | C90: Matylda | D90: 9.B | E90: 0 | H90: 0 | J90: 0 | K90: 15 | L90: 14
A91: 87. | B91: PIŠTOROVÁ | C91: Karolína | D91: 9.B | E91: 20 | G91: Jilemnice 07.06.21 | H91: 367 | J91: 21.5 | K91: 23 | L91: 21
A92: 88. | B92: =B188 -> POKORNÝ | C92: Anna | D92: 9.B | E92: 16.5 | G92: Jilemnice 07.06.21 | H92: 303.3 | J92: 14 | K92: 13.5 | L92: 12.5
A93: 89. | B93: =B189 -> SUCHÁNKOVÁ | C93: Michaela | D93: 9.B | E93: 15 | G93: Jilemnice 07.06.21 | H93: 276 | J93: 15.5 | K93: 16 | L93: 15
A94: 90. | B94: ŠUBÍKOVÁ | C94: Štěpánka | D94: 9.B | E94: 17.5 | G94: Jilemnice 07.06.21 | H94: 321.5 | J94: 17.5 | K94: 17.5 | L94: 16
A95: 91. | B95: =B191 -> VANCLOVÁ | C95: Pavlína | D95: 9.B | E95: 23 | G95: Jilemnice 07.06.21 | H95: 421.6 | J95: 21.5 | K95: 22 | L95: 20
B101: ERBENOVÁ | C101: Sára | D101: 6.A | E101: 17.5 | G101: Jilemnice 07.06.21 | H101: =IF(E101=0,0,IF(E101>0,E101*10*1.82+3)) -> 321.5
B102: HOFMANOVÁ | C102: Nicol | D102: 6.A | E102: 15.5 | G102: Jilemnice 07.06.21 | H102: =IF(E102=0,0,IF(E102>0,E102*10*1.82+3)) -> 285.1
B103: HOLEŠOVSKÁ | C103: Aneta | D103: 6.A | E103: 22.6 | G103: Jilemnice 22.09.20 | H103: =IF(E103=0,0,IF(E103>0,E103*10*1.82+3)) -> 414.32
B104: HOLUBCOVÁ | C104: Alena | D104: 6.A | E104: 29 | G104: Jilemnice 07.06.21 | H104: =IF(E104=0,0,IF(E104>0,E104*10*1.82+3)) -> 530.8
B105: KOHOUTOVÁ | C105: Anna | D105: 6.A | E105: 13 | G105: Jilemnice 07.06.21 | H105: =IF(E105=0,0,IF(E105>0,E105*10*1.82+3)) -> 239.6
B106: KRAUSOVÁ | C106: Anežka | D106: 6.A | H106: =IF(E106=0,0,IF(E106>0,E106*10*1.82+3)) -> 0
B107: KUŽELOVÁ | C107: Apoléna | D107: 6.A | E107: 18.4 | G107: Jilemnice 22.09.20 | H107: =IF(E107=0,0,IF(E107>0,E107*10*1.82+3)) -> 337.88
B108: MORÁVKOVÁ | C108: Lucie | D108: 6.A | E108: 20.9 | G108: Jilemnice 22.09.20 | H108: =IF(E108=0,0,IF(E108>0,E108*10*1.82+3)) -> 383.38
B109: SKLENÁROVÁ | C109: Eliška | D109: 6.A | H109: =IF(E109=0,0,IF(E109>0,E109*10*1.82+3)) -> 0
B110: ŠTOLFOVÁ | C110: Tereza | D110: 6.A | E110: 14 | G110: Jilemnice 07.06.21 | H110: =IF(E110=0,0,IF(E110>0,E110*10*1.82+3)) -> 257.8
B111: ŠUBÍKOVÁ | C111: Klára | D111: 6.A | E111: 13 | G111: Jilemnice 07.06.21 | H111: =IF(E111=0,0,IF(E111>0,E111*10*1.82+3)) -> 239.6
B112: TULÁČKOVÁ | C112: Natálie | D112: 6.A | E112: 17.8 | G112: Jilemnice 22.09.20 | H112: =IF(E112=0,0,IF(E112>0,E112*10*1.82+3)) -> 326.96
B113: VOJTÍŠKOVÁ | C113: Ella | D113: 6.A | E113: 24.6 | G113: Jilemnice 22.09.20 | H113: =IF(E113=0,0,IF(E113>0,E113*10*1.82+3)) -> 450.72
B114: DRUGÁČOVÁ | C114: Kristinka | D114: 6.B | E114: 16.5 | G114: Jilemnice 07.06.21 | H114: =IF(E114=0,0,IF(E114>0,E114*10*1.82+3)) -> 303.3
B115: FAJSTAVROVÁ | C115: Karolína | D115: 6.B | E115: 22.4 | G115: Jilemnice 22.09.20 | H115: =IF(E115=0,0,IF(E115>0,E115*10*1.82+3)) -> 410.68
B116: FAJSTAVROVÁ | C116: Magdaléna | D116: 6.B | E116: 29 | G116: Jilemnice 22.09.20 | H116: =IF(E116=0,0,IF(E116>0,E116*10*1.82+3)) -> 530.8
B117: HLAVATÁ | C117: Anna | D117: 6.B | H117: =IF(E117=0,0,IF(E117>0,E117*10*1.82+3)) -> 0
B118: JINDROVÁ | C118: Barbora | D118: 6.B | E118: 12 | G118: Jilemnice 22.09.20 | H118: =IF(E118=0,0,IF(E118>0,E118*10*1.82+3)) -> 221.4
B119: MAŘASOVÁ | C119: Vendula | D119: 6.B | E119: 13 | G119: Jilemnice 22.09.20 | H119: =IF(E119=0,0,IF(E119>0,E119*10*1.82+3)) -> 239.6
B120: PETŘÍČKOVÁ | C120: Natálie | D120: 6.B | E120: 21.8 | G120: Jilemnice 22.09.20 | H120: =IF(E120=0,0,IF(E120>0,E120*10*1.82+3)) -> 399.76
B121: PETŘÍKOVÁ | C121: Adéla | D121: 6.B | E121: 11 | G121: Jilemnice 07.06.21 | H121: =IF(E121=0,0,IF(E121>0,E121*10*1.82+3)) -> 203.2
B122: REGÁLOVÁ | C122: Karolína | D122: 6.B | E122: 23.2 | G122: Jilemnice 22.09.20 | H122: =IF(E122=0,0,IF(E122>0,E122*10*1.82+3)) -> 425.24
B123: RIEGROVÁ | C123: Magdaléna | D123: 6.B | E123: 15.5 | G123: Jilemnice 07.06.21 | H123: =IF(E123=0,0,IF(E123>0,E123*10*1.82+3)) -> 285.1
B124: RYBENSKÁ | C124: Sabina | D124: 6.B | E124: 12.6 | G124: Jilemnice 22.09.20 | H124: =IF(E124=0,0,IF(E124>0,E124*10*1.82+3)) -> 232.32
B125: STEINEROVÁ | C125: Barbora | D125: 6.B | E125: 24.4 | G125: Jilemnice 22.09.20 | H125: =IF(E125=0,0,IF(E125>0,E125*10*1.82+3)) -> 447.08
B126: TOMEŠOVÁ | C126: Barbora | D126: 6.B | E126: 16.2 | G126: Jilemnice 22.09.20 | H126: =IF(E126=0,0,IF(E126>0,E126*10*1.82+3)) -> 297.84
B127: VOHNOUTOVÁ | C127: Aneta | D127: 6.B | E127: 29 | G127: Jilemnice 22.09.20 | H127: =IF(E127=0,0,IF(E127>0,E127*10*1.82+3)) -> 530.8
B128: HAVLÍKOVÁ | C128: Michaela | D128: 7.A | H128: =IF(E128=0,0,IF(E128>0,E128*10*1.82+3)) -> 0 | J128: 10.5
B129: HOLUBCOVÁ | C129: Sára | D129: 7.A | E129: 25 | G129: Jilemnice 07.06.21 | H129: =IF(E129=0,0,IF(E129>0,E129*10*1.82+3)) -> 458
B130: HONCŮ | C130: Tereza | D130: 7.A | E130: 22 | G130: Jilemnice 07.06.21 | H130: =IF(E130=0,0,IF(E130>0,E130*10*1.82+3)) -> 403.4 | J130: 18.5
B131: HORÁČKOVÁ | C131: Kateřina | D131: 7.A | E131: 22 | G131: Jilemnice 07.06.21 | H131: =IF(E131=0,0,IF(E131>0,E131*10*1.82+3)) -> 403.4 | J131: 21
B132: JOUDALOVÁ | C132: Daniela | D132: 7.A | H132: =IF(E132=0,0,IF(E132>0,E132*10*1.82+3)) -> 0 | J132: 10
B133: KLÍMOVÁ | C133: Anna | D133: 7.A | H133: =IF(E133=0,0,IF(E133>0,E133*10*1.82+3)) -> 0 | J133: 17.5
B134: KOHOUTOVÁ | C134: Veronika | D134: 7.A | E134: 29.5 | G134: Jilemnice 07.06.21 | H134: =IF(E134=0,0,IF(E134>0,E134*10*1.82+3)) -> 539.9 | J134: 24
B135: KOVÁŘOVÁ | C135: Viktorie | D135: 7.A | E135: 19.5 | G135: Jilemnice 07.06.21 | H135: =IF(E135=0,0,IF(E135>0,E135*10*1.82+3)) -> 357.9 | J135: 17.5
B136: KYNČLOVÁ | C136: Anna | D136: 7.A | E136: 27.5 | G136: Jilemnice 07.06.21 | H136: =IF(E136=0,0,IF(E136>0,E136*10*1.82+3)) -> 503.5 | J136: 21
B137: MATOUŠOVÁ | C137: Tereza | D137: 7.A | E137: 20.5 | G137: Jilemnice 07.06.21 | H137: =IF(E137=0,0,IF(E137>0,E137*10*1.82+3)) -> 376.1 | J137: 17.5
B138: MAZÁNKOVÁ | C138: Zuzana | D138: 7.A | E138: 19 | G138: Jilemnice 07.06.21 | H138: =IF(E138=0,0,IF(E138>0,E138*10*1.82+3)) -> 348.8 | J138: 14.5
B139: MORKESOVÁ | C139: Sabrina | D139: 7.A | E139: 42 | G139: Jilemnice 07.06.21 | H139: =IF(E139=0,0,IF(E139>0,E139*10*1.82+3)) -> 767.4 | J139: 36.5
B140: POHOŘALÁ | C140: Alžběta | D140: 7.A | E140: 22.5 | G140: Jilemnice 07.06.21 | H140: =IF(E140=0,0,IF(E140>0,E140*10*1.82+3)) -> 412.5 | J140: 15.5
B141: SCHOLZOVÁ | C141: Laura | D141: 7.A | H141: =IF(E141=0,0,IF(E141>0,E141*10*1.82+3)) -> 0
B142: VÁCLAVÍKOVÁ | C142: Valerie | D142: 7.A | E142: 26.5 | G142: Jilemnice 07.06.21 | H142: =IF(E142=0,0,IF(E142>0,E142*10*1.82+3)) -> 485.3 | J142: 25.5
B143: ZAPADLOVÁ | C143: Emma | D143: 7.A | E143: 33.5 | G143: Jilemnice 07.06.21 | H143: =IF(E143=0,0,IF(E143>0,E143*10*1.82+3)) -> 612.7 | J143: 27.5
B144: ŽIŠKOVÁ | C144: Mia | D144: 7.A | E144: 22.5 | G144: Jilemnice 07.06.21 | H144: =IF(E144=0,0,IF(E144>0,E144*10*1.82+3)) -> 412.5
B145: FARSKÁ | C145: Tereza | D145: 7.B | H145: =IF(E145=0,0,IF(E145>0,E145*10*1.82+3)) -> 0
B146: FEIXOVÁ | C146: Rozálie | D146: 7.B | H146: =IF(E146=0,0,IF(E146>0,E146*10*1.82+3)) -> 0
B147: FIŠEROVÁ | C147: Michaela | D147: 7.B | H147: =IF(E147=0,0,IF(E147>0,E147*10*1.82+3)) -> 0
B148: HAVLÍČKOVÁ | C148: Kristýna | D148: 7.B | H148: =IF(E148=0,0,IF(E148>0,E148*10*1.82+3)) -> 0
B149: JODASOVÁ | C149: Nikola | D149: 7.B | H149: =IF(E149=0,0,IF(E149>0,E149*10*1.82+3)) -> 0 | J149: 24
B150: KADAVÁ | C150: Nikola | D150: 7.B | H150: =IF(E150=0,0,IF(E150>0,E150*10*1.82+3)) -> 0
B151: KRAFKOVÁ | C151: Lucie | D151: 7.B | H151: =IF(E151=0,0,IF(E151>0,E151*10*1.82+3)) -> 0
B152: KŘIVINKOVÁ | C152: Alžběta | D152: 7.B | H152: =IF(E152=0,0,IF(E152>0,E152*10*1.82+3)) -> 0
B153: LEŠÁKOVÁ | C153: Lenka | D153: 7.B | H153: =IF(E153=0,0,IF(E153>0,E153*10*1.82+3)) -> 0
B154: NYKLÍČKOVÁ | C154: Adéla | D154: 7.B | H154: =IF(E154=0,0,IF(E154>0,E154*10*1.82+3)) -> 0
B155: PLŮCHOVÁ | C155: Petra | D155: 7.B | H155: =IF(E155=0,0,IF(E155>0,E155*10*1.82+3)) -> 0
B156: PODZIMKOVÁ | C156: Eliška | D156: 7.B | H156: =IF(E156=0,0,IF(E156>0,E156*10*1.82+3)) -> 0
B157: RUTKAYOVÁ | C157: Klára | D157: 7.B | H157: =IF(E157=0,0,IF(E157>0,E157*10*1.82+3)) -> 0
B158: SEIDLOVÁ | C158: Zuzana | D158: 7.B | H158: =IF(E158=0,0,IF(E158>0,E158*10*1.82+3)) -> 0
B159: TOMÁŠOVÁ | C159: Sára | D159: 7.B | H159: =IF(E159=0,0,IF(E159>0,E159*10*1.82+3)) -> 0
B160: VANCLOVÁ | C160: Barbora | D160: 7.B | H160: =IF(E160=0,0,IF(E160>0,E160*10*1.82+3)) -> 0
B161: VOTOČKOVÁ | C161: Veronika | D161: 7.B | H161: =IF(E161=0,0,IF(E161>0,E161*10*1.82+3)) -> 0
B162: HARTIGOVÁ | C162: Anna | D162: 8.A | E162: 25 | G162: Jilemnice 07.06.21 | H162: =IF(E162=0,0,IF(E162>0,E162*10*1.82+3)) -> 458 | K162: 20.5
B163: HONCŮ | C163: Rozálie | D163: 8.A | E163: 27 | G163: Jilemnice 07.06.21 | H163: =IF(E163=0,0,IF(E163>0,E163*10*1.82+3)) -> 494.4 | J163: 21.5 | K163: 20
B164: CHALOUPSKÁ | C164: Lucie | D164: 8.A | E164: 29 | G164: Jilemnice 07.06.21 | H164: =IF(E164=0,0,IF(E164>0,E164*10*1.82+3)) -> 530.8 | K164: 22
B165: KŘÍŽKOVÁ | C165: Anna | D165: 8.A | E165: 25 | G165: Jilemnice 07.06.21 | H165: =IF(E165=0,0,IF(E165>0,E165*10*1.82+3)) -> 458 | K165: 17
B166: LUKEŠOVÁ | C166: Kristýna | D166: 8.A | E166: 22.5 | G166: Jilemnice 07.06.21 | H166: =IF(E166=0,0,IF(E166>0,E166*10*1.82+3)) -> 412.5 | K166: 16.5
B167: MOTLÍKOVÁ | C167: Eliška | D167: 8.A | E167: 25 | G167: Jilemnice 07.06.21 | H167: =IF(E167=0,0,IF(E167>0,E167*10*1.82+3)) -> 458 | K167: 17
B168: POHOŘELÁ | C168: Amálie | D168: 8.A | H168: =IF(E168=0,0,IF(E168>0,E168*10*1.82+3)) -> 0 | K168: 14.5
B169: POLÁČKOVÁ | C169: Natálie | D169: 8.A | E169: 24 | G169: Jilemnice 07.06.21 | H169: =IF(E169=0,0,IF(E169>0,E169*10*1.82+3)) -> 439.8 | K169: 18.5
B170: ŘEHOŘKOVÁ | C170: Lucie | D170: 8.A | E170: 30.5 | G170: Jilemnice 07.06.21 | H170: =IF(E170=0,0,IF(E170>0,E170*10*1.82+3)) -> 558.1 | K170: 29
B171: SKÁLOVÁ | C171: Alena | D171: 8.A | E171: 20 | G171: Jilemnice 07.06.21 | H171: =IF(E171=0,0,IF(E171>0,E171*10*1.82+3)) -> 367 | K171: 14
B172: VÁVROVÁ | C172: Aneta | D172: 8.A | E172: 24 | G172: Jilemnice 07.06.21 | H172: =IF(E172=0,0,IF(E172>0,E172*10*1.82+3)) -> 439.8 | K172: 19.5
B173: ZELINKOVÁ | C173: Klára | D173: 8.A | E173: 27 | G173: Jilemnice 07.06.21 | H173: =IF(E173=0,0,IF(E173>0,E173*10*1.82+3)) -> 494.4 | J173: 22 | K173: 20
B174: JUNGOVÁ | C174: Lucie | D174: 9.A | E174: 20.5 | G174: Jilemnice 07.06.21 | H174: =IF(E174=0,0,IF(E174>0,E174*10*1.82+3)) -> 376.1 | J174: 19.5 | K174: 22.5 | L174: 20
B175: KŘIVÁNKOVÁ | C175: Linda | D175: 9.A | E175: 15.5 | G175: Jilemnice 07.06.21 | H175: =IF(E175=0,0,IF(E175>0,E175*10*1.82+3)) -> 285.1 | J175: 15 | K175: 16 | L175: 15
B176: KUBÁTOVÁ | C176: Lucie | D176: 9.A | H176: =IF(E176=0,0,IF(E176>0,E176*10*1.82+3)) -> 0 | J176: 20.5 | K176: 21 | L176: 21
B177: ŠIMŮNKOVÁ | C177: Nikola | D177: 9.A | E177: 18 | G177: Jilemnice 07.06.21 | H177: =IF(E177=0,0,IF(E177>0,E177*10*1.82+3)) -> 330.6 | J177: 15 | K177: 17 | L177: 15
B178: ŠMÍDOVÁ | C178: Kristýna | D178: 9.A | E178: 20 | G178: Jilemnice 07.06.21 | H178: =IF(E178=0,0,IF(E178>0,E178*10*1.82+3)) -> 367 | J178: 24.5 | K178: 24
B179: VOTOČKOVÁ | C179: Nikola | D179: 9.A | E179: 29 | G179: Jilemnice 07.06.21 | H179: =IF(E179=0,0,IF(E179>0,E179*10*1.82+3)) -> 530.8 | J179: 25.12 | K179: 26 | L179: 22.5
B180: VYHLASOVÁ | C180: Lenka | D180: 9.A | H180: =IF(E180=0,0,IF(E180>0,E180*10*1.82+3)) -> 0 | K180: 23 | L180: 28.31
B181: BÖHMOVÁ | C181: Diana | D181: 9.B | E181: 19.5 | G181: Jilemnice 07.06.21 | H181: =IF(E181=0,0,IF(E181>0,E181*10*1.82+3)) -> 357.9 | K181: 24.5 | L181: 22.5
B182: HOUDOVÁ | C182: Tereza | D182: 9.B | H182: =IF(E182=0,0,IF(E182>0,E182*10*1.82+3)) -> 0 | J182: 31 | K182: 30 | L182: 24.5
B183: JANÍKOVÁ | C183: Kristýna | D183: 9.B | H183: =IF(E183=0,0,IF(E183>0,E183*10*1.82+3)) -> 0 | J183: 32.52
B184: KUŽELOVÁ | C184: Ela | D184: 9.B | H184: =IF(E184=0,0,IF(E184>0,E184*10*1.82+3)) -> 0 | J184: 21 | K184: 22 | L184: 22.5
B185: MATERNOVÁ | C185: Lucie | D185: 9.B | E185: 14 | G185: Jilemnice 07.06.21 | H185: =IF(E185=0,0,IF(E185>0,E185*10*1.82+3)) -> 257.8 | J185: 13 | K185: 12.5 | L185: 13
B186: OPOČENSKÁ | C186: Matylda | D186: 9.B | H186: =IF(E186=0,0,IF(E186>0,E186*10*1.82+3)) -> 0 | K186: 15 | L186: 14
B187: PIŠTOROVÁ | C187: Karolína | D187: 9.B | E187: 20 | G187: Jilemnice 07.06.21 | H187: =IF(E187=0,0,IF(E187>0,E187*10*1.82+3)) -> 367 | J187: 21.5 | K187: 23 | L187: 21
B188: POKORNÝ | C188: Anna | D188: 9.B | E188: 16.5 | G188: Jilemnice 07.06.21 | H188: =IF(E188=0,0,IF(E188>0,E188*10*1.82+3)) -> 303.3 | J188: 14 | K188: 13.5 | L188: 12.5
B189: SUCHÁNKOVÁ | C189: Michaela | D189: 9.B | E189: 15 | G189: Jilemnice 07.06.21 | H189: =IF(E189=0,0,IF(E189>0,E189*10*1.82+3)) -> 276 | J189: 15.5 | K189: 16 | L189: 15
B190: ŠUBÍKOVÁ | C190: Štěpánka | D190: 9.B | E190: 17.5 | G190: Jilemnice 07.06.21 | H190: =IF(E190=0,0,IF(E190>0,E190*10*1.82+3)) -> 321.5 | J190: 17.5 | K190: 17.5 | L190: 16
B191: VANCLOVÁ | C191: Pavlína | D191: 9.B | E191: 23 | G191: Jilemnice 07.06.21 | H191: =IF(E191=0,0,IF(E191>0,E191*10*1.82+3)) -> 421.6 | J191: 21.5 | K191: 22 | L191: 20

Sheet Dkou
C1: VÝKONY 2020 - 2021 | G1: KOULE | H1: DĚVČATA 6. - 9. ROČ.
K2: stav k | L2: =TODAY() -> 44375
H3: BODY | J3: 19 - 20 | K3: 18 - 19 | L3: 17 - 18
A5: 1. | B5: =B101 -> ERBENOVÁ | C5: =C101 -> Sára | D5: 6.A | E5: 3.41 | G5: Jilemnice 09.06.21 | H5: 325.3333333 | J5: 0 | K5: 0 | L5: 0
A6: 2. | B6: =B102 -> HOFMANOVÁ | C6: Nicol | D6: 6.A | E6: 4.47 | G6: Jilemnice 09.06.21 | H6: 419.5555556 | J6: 0 | K6: 0 | L6: 0
A7: 3. | B7: HOLEŠOVSKÁ | C7: Aneta | D7: 6.A | E7: 0 | G7: 0 | H7: 0 | J7: 0 | K7: 0 | L7: 0
A8: 4. | B8: HOLUBCOVÁ | C8: Alena | D8: 6.A | E8: 6.21 | G8: Jilemnice 09.06.21 | H8: 574.2222222 | J8: 0 | K8: 0 | L8: 0
A9: 5. | B9: KOHOUTOVÁ | C9: Anna | D9: 6.A | E9: 2.82 | G9: Jilemnice 09.06.21 | H9: 272.8888889 | J9: 0 | K9: 0 | L9: 0
A10: 6. | B10: KRAUSOVÁ | C10: Anežka | D10: 6.A | E10: 0 | G10: 0 | H10: 0 | J10: 0 | K10: 0 | L10: 0
A11: 7. | B11: KUŽELOVÁ | C11: Apoléna | D11: 6.A | E11: 0 | G11: 0 | H11: 0 | J11: 0 | K11: 0 | L11: 0
A12: 8. | B12: MORÁVKOVÁ | C12: Lucie | D12: 6.A | E12: 0 | G12: 0 | H12: 0 | J12: 0 | K12: 0 | L12: 0
A13: 9. | B13: SKLENÁROVÁ | C13: Eliška | D13: 6.A | E13: 0 | G13: 0 | H13: 0 | J13: 0 | K13: 0 | L13: 0
A14: 10. | B14: ŠTOLFOVÁ | C14: Tereza | D14: 6.A | E14: 3.05 | G14: Jilemnice 09.06.21 | H14: 293.3333333 | J14: 0 | K14: 0 | L14: 0
A15: 11. | B15: ŠUBÍKOVÁ | C15: Klára | D15: 6.A | E15: 3.85 | G15: Jilemnice 09.06.21 | H15: 364.4444444 | J15: 0 | K15: 0 | L15: 0
A16: 12. | B16: TULÁČKOVÁ | C16: Natálie | D16: 6.A | E16: 0 | G16: 0 | H16: 0 | J16: 0 | K16: 0 | L16: 0
A17: 13. | B17: VOJTÍŠKOVÁ | C17: Ella | D17: 6.A | E17: 0 | G17: 0 | H17: 0 | J17: 0 | K17: 0 | L17: 0
A18: 14. | B18: DRUGÁČOVÁ | C18: Kristinka | D18: 6.B | E18: 4 | G18: Jilemnice 09.06.21 | H18: 377.7777778 | J18: 0 | K18: 0 | L18: 0
A19: 15. | B19: FAJSTAVROVÁ | C19: Karolína | D19: 6.B | E19: 0 | G19: 0 | H19: 0 | J19: 0 | K19: 0 | L19: 0
A20: 16. | B20: FAJSTAVROVÁ | C20: Magdaléna | D20: 6.B | E20: 0 | G20: 0 | H20: 0 | J20: 0 | K20: 0 | L20: 0
A21: 17. | B21: HLAVATÁ | C21: Anna | D21: 6.B | E21: 0 | G21: 0 | H21: 0 | J21: 0 | K21: 0 | L21: 0
A22: 18. | B22: =B118 -> JINDROVÁ | C22: Barbora | D22: 6.B | E22: 0 | G22: 0 | H22: 0 | J22: 0 | K22: 0 | L22: 0
A23: 19. | B23: MAŘASOVÁ | C23: Vendula | D23: 6.B | E23: 0 | G23: 0 | H23: 0 | J23: 0 | K23: 0 | L23: 0
A24: 20. | B24: PETŘÍČKOVÁ | C24: Natálie | D24: 6.B | E24: 0 | G24: 0 | H24: 0 | J24: 0 | K24: 0 | L24: 0
A25: 21. | B25: PETŘÍKOVÁ | C25: Adéla | D25: 6.B | E25: 3.73 | G25: Jilemnice 09.06.21 | H25: 353.7777778 | J25: 0 | K25: 0 | L25: 0
A26: 22. | B26: REGÁLOVÁ | C26: Karolína | D26: 6.B | E26: 0 | G26: 0 | H26: 0 | J26: 0 | K26: 0 | L26: 0
A27: 23. | B27: RIEGROVÁ | C27: Magdaléna | D27: 6.B | E27: 2.64 | G27: Jilemnice 09.06.21 | H27: 256.8888889 | J27: 0 | K27: 0 | L27: 0
A28: 24. | B28: RYBENSKÁ | C28: Sabina | D28: 6.B | E28: 0 | G28: 0 | H28: 0 | J28: 0 | K28: 0 | L28: 0
A29: 25. | B29: STEINEROVÁ | C29: Barbora | D29: 6.B | E29: 0 | G29: 0 | H29: 0 | J29: 0 | K29: 0 | L29: 0
A30: 26. | B30: TOMEŠOVÁ | C30: Barbora | D30: 6.B | E30: 0 | G30: 0 | H30: 0 | J30: 0 | K30: 0 | L30: 0
A31: 27. | B31: VOHNOUTOVÁ | C31: Aneta | D31: 6.B | E31: 0 | G31: 0 | H31: 0 | J31: 0 | K31: 0 | L31: 0
A32: 28. | B32: HAVLÍKOVÁ | C32: Michaela | D32: 7.A | E32: 2.61 | G32: Jilemnice 02.10.20 | H32: 254.2222222 | J32: 0 | K32: 0 | L32: 0
A33: 29. | B33: HOLUBCOVÁ | C33: Sára | D33: 7.A | E33: 4.04 | G33: Jilemnice 02.10.20 | H33: 381.3333333 | J33: 3.1 | K33: 0 | L33: 0
A34: 30. | B34: HONCŮ | C34: Tereza | D34: 7.A | E34: 3.76 | G34: Jilemnice 02.10.20 | H34: 356.4444444 | J34: 2.62 | K34: 0 | L34: 0
A35: 31. | B35: HORÁČKOVÁ | C35: Kateřina | D35: 7.A | E35: 5.5 | G35: Jilemnice 02.10.20 | H35: 511.1111111 | J35: 4.9 | K35: 0 | L35: 0
A36: 32. | B36: JOUDALOVÁ | C36: Daniela | D36: 7.A | E36: 3.85 | G36: Jilemnice 02.10.20 | H36: 364.4444444 | J36: 2.87 | K36: 0 | L36: 0
A37: 33. | B37: KLÍMOVÁ | C37: Anna | D37: 7.A | E37: 4.5 | G37: Jilemnice 02.10.20 | H37: 422.2222222 | J37: 4.44 | K37: 0 | L37: 0
A38: 34. | B38: =B134 -> KOHOUTOVÁ | C38: Veronika | D38: 7.A | E38: 5.31 | G38: Jilemnice 02.10.20 | H38: 494.2222222 | J38: 3.57 | K38: 0 | L38: 0
A39: 35. | B39: KOVÁŘOVÁ | C39: Viktorie | D39: 7.A | E39: 3.94 | G39: Jilemnice 02.10.20 | H39: 372.4444444 | J39: 3.16 | K39: 0 | L39: 0
A40: 36. | B40: KYNČLOVÁ | C40: Anna | D40: 7.A | E40: 3.46 | G40: Jilemnice 02.10.20 | H40: 329.7777778 | J40: 2.46 | K40: 0 | L40: 0
A41: 37. | B41: MATOUŠOVÁ | C41: Tereza | D41: 7.A | E41: 4.61 | G41: Jilemnice 02.10.20 | H41: 432 | J41: 3.51 | K41: 0 | L41: 0
A42: 38. | B42: MAZÁNKOVÁ | C42: Zuzana | D42: 7.A | E42: 4.5 | G42: Jilemnice 02.10.20 | H42: 422.2222222 | J42: 3.66 | K42: 0 | L42: 0
A43: 39. | B43: MORKESOVÁ | C43: Sabrina | D43: 7.A | E43: 6.62 | G43: Jilemnice 02.10.20 | H43: 610.6666667 | J43: 5.65 | K43: 0 | L43: 0
A44: 40. | B44: POHOŘALÁ | C44: Alžběta | D44: 7.A | E44: 4.26 | G44: Jilemnice 02.10.20 | H44: 400.8888889 | J44: 3.78 | K44: 0 | L44: 0
A45: 41. | B45: SCHOLZOVÁ | C45: Laura | D45: 7.A | E45: 3.08 | G45: Jilemnice 02.10.20 | H45: 296 | J45: 2.75 | K45: 0 | L45: 0
A46: 42. | B46: VÁCLAVÍKOVÁ | C46: Valerie | D46: 7.A | E46: 5.92 | G46: Jilemnice 02.10.20 | H46: 548.4444444 | J46: 5.56 | K46: 0 | L46: 0
A47: 43. | B47: ZAPADLOVÁ | C47: Emma | D47: 7.A | E47: 4.26 | G47: Jilemnice 02.10.20 | H47: 400.8888889 | J47: 5.08 | K47: 0 | L47: 0
A48: 44. | B48: ŽIŠKOVÁ | C48: Mia | D48: 7.A | E48: 0 | G48: 0 | H48: 0 | J48: 3.84 | K48: 0 | L48: 0
A49: 45. | B49: FARSKÁ | C49: Tereza | D49: 7.B | E49: 0 | G49: 0 | H49: 0 | J49: 2.2 | K49: 0 | L49: 0
A50: 46. | B50: FEIXOVÁ | C50: Rozálie | D50: 7.B | E50: 0 | G50: 0 | H50: 0 | J50: 2.8 | K50: 0 | L50: 0
A51: 47. | B51: FIŠEROVÁ | C51: Michaela | D51: 7.B | E51: 0 | G51: 0 | H51: 0 | J51: 4.15 | K51: 0 | L51: 0
A52: 48. | B52: HAVLÍČKOVÁ | C52: Kristýna | D52: 7.B | E52: 0 | G52: 0 | H52: 0 | J52: 3.75 | K52: 0 | L52: 0
A53: 49. | B53: JODASOVÁ | C53: Nikola | D53: 7.B | E53: 0 | G53: 0 | H53: 0 | J53: 4.8 | K53: 0 | L53: 0
A54: 50. | B54: =B150 -> KADAVÁ | C54: Nikola | D54: 7.B | E54: 0 | G54: 0 | H54: 0 | J54: 3.79 | K54: 0 | L54: 0
A55: 51. | B55: KRAFKOVÁ | C55: Lucie | D55: 7.B | E55: 0 | G55: 0 | H55: 0 | J55: 0 | K55: 0 | L55: 0
A56: 52. | B56: KŘIVINKOVÁ | C56: Alžběta | D56: 7.B | E56: 0 | G56: 0 | H56: 0 | J56: 5.15 | K56: 0 | L56: 0
A57: 53. | B57: LEŠÁKOVÁ | C57: Lenka | D57: 7.B | E57: 0 | G57: 0 | H57: 0 | J57: 3.23 | K57: 0 | L57: 0
A58: 54. | B58: NYKLÍČKOVÁ | C58: Adéla | D58: 7.B | E58: 0 | G58: 0 | H58: 0 | J58: 4.28 | K58: 0 | L58: 0
A59: 55. | B59: PLŮCHOVÁ | C59: Petra | D59: 7.B | E59: 0 | G59: 0 | H59: 0 | J59: 5.53 | K59: 0 | L59: 0
A60: 56. | B60: PODZIMKOVÁ | C60: Eliška | D60: 7.B | E60: 0 | G60: 0 | H60: 0 | J60: 2.4 | K60: 0 | L60: 0
A61: 57. | B61: RUTKAYOVÁ | C61: Klára | D61: 7.B | E61: 0 | G61: 0 | H61: 0 | J61: 4.31 | K61: 0 | L61: 0
A62: 58. | B62: SEIDLOVÁ | C62: Zuzana | D62: 7.B | E62: 0 | G62: 0 | H62: 0 | J62: 5.9 | K62: 0 | L62: 0
A63: 59. | B63: TOMÁŠOVÁ | C63: Sára | D63: 7.B | E63: 0 | G63: 0 | H63: 0 | J63: 4.8 | K63: 0 | L63: 0
A64: 60. | B64: VANCLOVÁ | C64: Barbora | D64: 7.B | E64: 0 | G64: 0 | H64: 0 | J64: 3.98 | K64: 0 | L64: 0
A65: 61. | B65: VOTOČKOVÁ | C65: Veronika | D65: 7.B | E65: 0 | G65: 0 | H65: 0 | J65: 0 | K65: 0 | L65: 0
A66: 62. | B66: HARTIGOVÁ | C66: Anna | D66: 8.A | E66: 6.81 | G66: Jilemnice 09.06.21 | H66: 627.5555556 | J66: 0 | K66: 5.16 | L66: 0
A67: 63. | B67: HONCŮ | C67: Rozálie | D67: 8.A | E67: 7.1 | G67: Jilemnice 09.06.21 | H67: 653.3333333 | J67: 0 | K67: 5.34 | L67: 0
A68: 64. | B68: CHALOUPSKÁ | C68: Lucie | D68: 8.A | E68: 7.18 | G68: Jilemnice 09.06.21 | H68: 660.4444444 | J68: 0 | K68: 5.18 | L68: 0
A69: 65. | B69: KŘÍŽKOVÁ | C69: Anna | D69: 8.A | E69: 5.8 | G69: Jilemnice 09.06.21 | H69: 537.7777778 | J69: 0 | K69: 4 | L69: 0
A70: 66. | B70: =B166 -> LUKEŠOVÁ | C70: Kristýna | D70: 8.A | E70: 5.6 | G70: Jilemnice 09.06.21 | H70: 520 | J70: 0 | K70: 4.37 | L70: 0
A71: 67. | B71: MOTLÍKOVÁ | C71: Eliška | D71: 8.A | E71: 6.39 | G71: Jilemnice 09.06.21 | H71: 590.2222222 | J71: 0 | K71: 5.3 | L71: 0
A72: 68. | B72: POHOŘELÁ | C72: Amálie | D72: 8.A | E72: 5.9 | G72: Jilemnice 09.06.21 | H72: 546.6666667 | J72: 0 | K72: 4.55 | L72: 0
A73: 69. | B73: POLÁČKOVÁ | C73: Natálie | D73: 8.A | E73: 3.6 | G73: Jilemnice 09.06.21 | H73: 342.2222222 | J73: 0 | K73: 2.73 | L73: 0
A74: 70. | B74: ŘEHOŘKOVÁ | C74: Lucie | D74: 8.A | E74: 7.5 | G74: Jilemnice 09.06.21 | H74: 688.8888889 | J74: 0 | K74: 6.03 | L74: 0
A75: 71. | B75: SKÁLOVÁ | C75: Alena | D75: 8.A | E75: 7.5 | G75: Jilemnice 09.06.21 | H75: 688.8888889 | J75: 0 | K75: 4.17 | L75: 0
A76: 72. | B76: VÁVROVÁ | C76: Aneta | D76: 8.A | E76: 5.5 | G76: Jilemnice 09.06.21 | H76: 511.1111111 | J76: 0 | K76: 3.8 | L76: 0
A77: 73. | B77: ZELINKOVÁ | C77: Klára | D77: 8.A | E77: 6.74 | G77: Jilemnice 09.06.21 | H77: 621.3333333 | J77: 0 | K77: 5.5 | L77: 0
A78: 74. | B78: JUNGOVÁ | C78: Lucie | D78: 9.A | E78: 4.95 | G78: Jilemnice 16.06.21 | H78: 462.2222222 | J78: 4.5 | K78: 4.55 | L78: 4.44
A79: 75. | B79: KŘIVÁNKOVÁ | C79: Linda | D79: 9.A | E79: 6.1 | G79: Jilemnice 16.06.21 | H79: 564.4444444 | J79: 6.25 | K79: 5.81 | L79: 4.85
A80: 76. | B80: KUBÁTOVÁ | C80: Lucie | D80: 9.A | E80: 0 | H80: 0 | J80: 4.9 | K80: 4.52 | L80: 3.54
A81: 77. | B81: ŠIMŮNKOVÁ | C81: Nikola | D81: 9.A | E81: 5.06 | G81: Jilemnice 16.06.21 | H81: 472 | J81: 4.54 | K81: 5.2 | L81: 4.44
A82: 78. | B82: ŠMÍDOVÁ | C82: Kristýna | D82: 9.A | E82: 6.32 | G82: Jilemnice 16.06.21 | H82: 584 | J82: 5.82 | K82: 5.35 | L82: 0
A83: 79. | B83: VOTOČKOVÁ | C83: Nikola | D83: 9.A | E83: 6.08 | G83: Jilemnice 16.06.21 | H83: 562.6666667 | J83: 5.63 | K83: 5.5 | L83: 4.22
A84: 80. | B84: VYHLASOVÁ | C84: Lenka | D84: 9.A | E84: 6.64 | G84: Jilemnice 16.06.21 | H84: 612.4444444 | J84: 6.54 | K84: 6.39 | L84: 6.12
A85: 81. | B85: BÖHMOVÁ | C85: Diana | D85: 9.B | E85: 5.66 | G85: Jilemnice 16.06.21 | H85: 525.3333333 | J85: 0 | K85: 5.46 | L85: 2.37
A86: 82. | B86: =B182 -> HOUDOVÁ | C86: Tereza | D86: 9.B | E86: 0 | H86: 0 | J86: 6.7 | K86: 5.3 | L86: 5.45
A87: 83. | B87: JANÍKOVÁ | C87: Kristýna | D87: 9.B | E87: 6.9 | G87: Jilemnice 16.06.21 | H87: 635.5555556 | J87: 6.7 | K87: 0 | L87: 0
A88: 84. | B88: KUŽELOVÁ | C88: Ela | D88: 9.B | E88: 6.14 | G88: Jilemnice 16.06.21 | H88: 568 | J88: 5.77 | K88: 5.7 | L88: 4.97
A89: 85. | B89: MATERNOVÁ | C89: Lucie | D89: 9.B | E89: 3.94 | G89: Jilemnice 16.06.21 | H89: 372.4444444 | J89: 3.94 | K89: 4.16 | L89: 2.77
A90: 86. | B90: OPOČENSKÁ | C90: Matylda | D90: 9.B | E90: 0 | H90: 0 | J90: 0 | K90: 0 | L90: 0
A91: 87. | B91: PIŠTOROVÁ | C91: Karolína | D91: 9.B | E91: 0 | H91: 0 | J91: 5.2 | K91: 5.18 | L91: 3.1
A92: 88. | B92: POKORNÝ | C92: Anna | D92: 9.B | E92: 6.23 | G92: Jilemnice 16.06.21 | H92: 576 | J92: 4.04 | K92: 4.08 | L92: 3
A93: 89. | B93: SUCHÁNKOVÁ | C93: Michaela | D93: 9.B | E93: 5.9 | G93: Jilemnice 16.06.21 | H93: 546.6666667 | J93: 4.22 | K93: 3.86 | L93: 3.24
A94: 90. | B94: ŠUBÍKOVÁ | C94: Štěpánka | D94: 9.B | E94: 5 | G94: Jilemnice 16.06.21 | H94: 466.6666667 | J94: 0 | K94: 4.37 | L94: 3.68
A95: 91. | B95: VANCLOVÁ | C95: Pavlína | D95: 9.B | E95: 7.9 | G95: Jilemnice 16.06.21 | H95: 724.4444444 | J95: 7.48 | K95: 7.05 | L95: 6.05
B101: ERBENOVÁ | C101: Sára | D101: 6.A | E101: 3.41 | G101: Jilemnice 09.06.21 | H101: =IF(E101=0,0,IF(E101>0,(40*E101+10)/0.45)) -> 325.3333333
B102: HOFMANOVÁ | C102: Nicol | D102: 6.A | E102: 4.47 | G102: Jilemnice 09.06.21 | H102: =IF(E102=0,0,IF(E102>0,(40*E102+10)/0.45)) -> 419.5555556
B103: HOLEŠOVSKÁ | C103: Aneta | D103: 6.A | H103: =IF(E103=0,0,IF(E103>0,(40*E103+10)/0.45)) -> 0
B104: HOLUBCOVÁ | C104: Alena | D104: 6.A | E104: 6.21 | G104: Jilemnice 09.06.21 | H104: =IF(E104=0,0,IF(E104>0,(40*E104+10)/0.45)) -> 574.2222222
B105: KOHOUTOVÁ | C105: Anna | D105: 6.A | E105: 2.82 | G105: Jilemnice 09.06.21 | H105: =IF(E105=0,0,IF(E105>0,(40*E105+10)/0.45)) -> 272.8888889
B106: KRAUSOVÁ | C106: Anežka | D106: 6.A | H106: =IF(E106=0,0,IF(E106>0,(40*E106+10)/0.45)) -> 0
B107: KUŽELOVÁ | C107: Apoléna | D107: 6.A | H107: =IF(E107=0,0,IF(E107>0,(40*E107+10)/0.45)) -> 0
B108: MORÁVKOVÁ | C108: Lucie | D108: 6.A | H108: =IF(E108=0,0,IF(E108>0,(40*E108+10)/0.45)) -> 0
B109: SKLENÁROVÁ | C109: Eliška | D109: 6.A | H109: =IF(E109=0,0,IF(E109>0,(40*E109+10)/0.45)) -> 0
B110: ŠTOLFOVÁ | C110: Tereza | D110: 6.A | E110: 3.05 | G110: Jilemnice 09.06.21 | H110: =IF(E110=0,0,IF(E110>0,(40*E110+10)/0.45)) -> 293.3333333
B111: ŠUBÍKOVÁ | C111: Klára | D111: 6.A | E111: 3.85 | G111: Jilemnice 09.06.21 | H111: =IF(E111=0,0,IF(E111>0,(40*E111+10)/0.45)) -> 364.4444444
B112: TULÁČKOVÁ | C112: Natálie | D112: 6.A | H112: =IF(E112=0,0,IF(E112>0,(40*E112+10)/0.45)) -> 0
B113: VOJTÍŠKOVÁ | C113: Ella | D113: 6.A | H113: =IF(E113=0,0,IF(E113>0,(40*E113+10)/0.45)) -> 0
B114: DRUGÁČOVÁ | C114: Kristinka | D114: 6.B | E114: 4 | G114: Jilemnice 09.06.21 | H114: =IF(E114=0,0,IF(E114>0,(40*E114+10)/0.45)) -> 377.7777778
B115: FAJSTAVROVÁ | C115: Karolína | D115: 6.B | H115: =IF(E115=0,0,IF(E115>0,(40*E115+10)/0.45)) -> 0
B116: FAJSTAVROVÁ | C116: Magdaléna | D116: 6.B | H116: =IF(E116=0,0,IF(E116>0,(40*E116+10)/0.45)) -> 0
B117: HLAVATÁ | C117: Anna | D117: 6.B | H117: =IF(E117=0,0,IF(E117>0,(40*E117+10)/0.45)) -> 0
B118: JINDROVÁ | C118: Barbora | D118: 6.B | H118: =IF(E118=0,0,IF(E118>0,(40*E118+10)/0.45)) -> 0
B119: MAŘASOVÁ | C119: Vendula | D119: 6.B | H119: =IF(E119=0,0,IF(E119>0,(40*E119+10)/0.45)) -> 0
B120: PETŘÍČKOVÁ | C120: Natálie | D120: 6.B | H120: =IF(E120=0,0,IF(E120>0,(40*E120+10)/0.45)) -> 0
B121: PETŘÍKOVÁ | C121: Adéla | D121: 6.B | E121: 3.73 | G121: Jilemnice 09.06.21 | H121: =IF(E121=0,0,IF(E121>0,(40*E121+10)/0.45)) -> 353.7777778
B122: REGÁLOVÁ | C122: Karolína | D122: 6.B | H122: =IF(E122=0,0,IF(E122>0,(40*E122+10)/0.45)) -> 0
B123: RIEGROVÁ | C123: Magdaléna | D123: 6.B | E123: 2.64 | G123: Jilemnice 09.06.21 | H123: =IF(E123=0,0,IF(E123>0,(40*E123+10)/0.45)) -> 256.8888889
B124: RYBENSKÁ | C124: Sabina | D124: 6.B | H124: =IF(E124=0,0,IF(E124>0,(40*E124+10)/0.45)) -> 0
B125: STEINEROVÁ | C125: Barbora | D125: 6.B | H125: =IF(E125=0,0,IF(E125>0,(40*E125+10)/0.45)) -> 0
B126: TOMEŠOVÁ | C126: Barbora | D126: 6.B | H126: =IF(E126=0,0,IF(E126>0,(40*E126+10)/0.45)) -> 0
B127: VOHNOUTOVÁ | C127: Aneta | D127: 6.B | H127: =IF(E127=0,0,IF(E127>0,(40*E127+10)/0.45)) -> 0
B128: HAVLÍKOVÁ | C128: Michaela | D128: 7.A | E128: 2.61 | G128: Jilemnice 02.10.20 | H128: =IF(E128=0,0,IF(E128>0,(40*E128+10)/0.45)) -> 254.2222222
B129: HOLUBCOVÁ | C129: Sára | D129: 7.A | E129: 4.04 | G129: Jilemnice 02.10.20 | H129: =IF(E129=0,0,IF(E129>0,(40*E129+10)/0.45)) -> 381.3333333 | J129: 3.1
B130: HONCŮ | C130: Tereza | D130: 7.A | E130: 3.76 | G130: Jilemnice 02.10.20 | H130: =IF(E130=0,0,IF(E130>0,(40*E130+10)/0.45)) -> 356.4444444 | J130: 2.62
B131: HORÁČKOVÁ | C131: Kateřina | D131: 7.A | E131: 5.5 | G131: Jilemnice 02.10.20 | H131: =IF(E131=0,0,IF(E131>0,(40*E131+10)/0.45)) -> 511.1111111 | J131: 4.9
B132: JOUDALOVÁ | C132: Daniela | D132: 7.A | E132: 3.85 | G132: Jilemnice 02.10.20 | H132: =IF(E132=0,0,IF(E132>0,(40*E132+10)/0.45)) -> 364.4444444 | J132: 2.87
B133: KLÍMOVÁ | C133: Anna | D133: 7.A | E133: 4.5 | G133: Jilemnice 02.10.20 | H133: =IF(E133=0,0,IF(E133>0,(40*E133+10)/0.45)) -> 422.2222222 | J133: 4.44
B134: KOHOUTOVÁ | C134: Veronika | D134: 7.A | E134: 5.31 | G134: Jilemnice 02.10.20 | H134: =IF(E134=0,0,IF(E134>0,(40*E134+10)/0.45)) -> 494.2222222 | J134: 3.57
B135: KOVÁŘOVÁ | C135: Viktorie | D135: 7.A | E135: 3.94 | G135: Jilemnice 02.10.20 | H135: =IF(E135=0,0,IF(E135>0,(40*E135+10)/0.45)) -> 372.4444444 | J135: 3.16
B136: KYNČLOVÁ | C136: Anna | D136: 7.A | E136: 3.46 | G136: Jilemnice 02.10.20 | H136: =IF(E136=0,0,IF(E136>0,(40*E136+10)/0.45)) -> 329.7777778 | J136: 2.46
B137: MATOUŠOVÁ | C137: Tereza | D137: 7.A | E137: 4.61 | G137: Jilemnice 02.10.20 | H137: =IF(E137=0,0,IF(E137>0,(40*E137+10)/0.45)) -> 432 | J137: 3.51
